Workbook

Sheet Datos (hidden)
B9: ANO | D9: MESES | F9: COD_RED | G9: DESC_RED | H9: RED | J9: COD_RED | K9: COD_MIC | L9: DESC_MICRO | M9: MICROREDES | O9: COD_ESTAB | P9: DESC_ESTAB | Q9: COD_RED | R9: COD_MIC | S9: COD_PROV | T9: COD_DIST | U9: REDMIC | V9: CONCATENAR | X9: COD_PROV | Y9: DESC_PROV | Z9: CONCATENAR | AB9: COD_PROV | AC9: COD_DIST | AD9: DESC_DIST | AE9: PROVDIST | AF9: CONCATENAR | AH9: UE
B10: 2024 | D10: 01-Enero | F10: 01 | G10: CUSCO SUR | H10: =CONCATENATE(F10," - ",G10) -> 01 - CUSCO SUR | J10: 00 | K10: 00 | L10: NO PERTENECE A NINGUNA MICRORED | M10: =CONCATENATE(J10,K10," - ",L10) -> 0000 - NO PERTENECE A NINGUNA MICRORED | O10: 000000000 | P10: (All) | Q10: 07 | R10: 00 | U10: =CONCATENATE(Q10,R10) -> 0700 | V10: =CONCATENATE(O10," - ",P10) -> 000000000 - (All) | X10: 00 | Y10: (All) | Z10: =CONCATENATE(X10," - ",Y10) -> 00 - (All) | AB10: 01 | AC10: 00 | AD10: (All) | AE10: =CONCATENATE(AB10,AC10) -> 0100 | AF10: =CONCATENATE(AB10,AC10," - ",AD10) -> 0100 - (All) | AH10: COD_RED | AI10: DESC_RED | AJ10: CONCATENAR
D11: 02-Febrero | F11: 02 | G11: CUSCO NORTE | H11: 02 - CUSCO NORTE | J11: 00 | K11: 99 | L11: (All) | M11: =CONCATENATE(J11,K11," - ",L11) -> 0099 - (All) | O11: 000002289 | P11: HOSPITAL REGIONAL CUSCO | Q11: 07 | R11: 00 | S11: 01 | T11: 01 | U11: =CONCATENATE(Q11,R11) -> 0700 | V11: =CONCATENATE(O11," - ",P11) -> 000002289 - HOSPITAL REGIONAL CUSCO | X11: 01 | Y11: CUSCO | Z11: =CONCATENATE(X11," - ",Y11) -> 01 - CUSCO | AB11: 01 | AC11: 01 | AD11: CUSCO | AE11: =CONCATENATE(AB11,AC11) -> 0101 | AF11: =CONCATENATE(AB11,AC11," - ",AD11) -> 0101 - CUSCO | AH11: 1129 | AI11: UE - SALUD CANAS - CANCHIS - ESPINAR | AJ11: =CONCATENATE(AH11," - ",AI11) -> 1129 - UE - SALUD CANAS - CANCHIS - ESPINAR
D12: 03-Marzo | F12: 03 | G12: LA CONVENCION | H12: 03 - LA CONVENCION | J12: 01 | K12: 00 | L12: HOSPITAL | M12: 0100 - HOSPITAL | O12: 000002305 | P12: HOSPITAL ANTONIO LORENA | Q12: 07 | R12: 00 | S12: 01 | T12: 06 | U12: =CONCATENATE(Q12,R12) -> 0700 | V12: 000002305 - HOSPITAL ANTONIO LORENA | X12: 02 | Y12: ACOMAYO | Z12: =CONCATENATE(X12," - ",Y12) -> 02 - ACOMAYO | AB12: 01 | AC12: 02 | AD12: CCORCA | AE12: 0102 | AF12: 0102 - CCORCA | AH12: 1130 | AI12: UE - HOSPITAL REGIONAL CUSCO | AJ12: =CONCATENATE(AH12," - ",AI12) -> 1130 - UE - HOSPITAL REGIONAL CUSCO
D13: 04-Abril | F13: 04 | G13: CANAS-CANCHIS-ESPINAR | H13: 04 - CANAS-CANCHIS-ESPINAR | J13: 01 | K13: 03 | L13: PARURO | M13: 0103 - PARURO | O13: 999999999 | P13: (All) | Q13: 07 | R13: 99 | U13: =CONCATENATE(Q13,R13) -> 0799 | V13: 999999999 - (All) | X13: 03 | Y13: ANTA | Z13: 03 - ANTA | AB13: 01 | AC13: 03 | AD13: POROY | AE13: 0103 | AF13: 0103 - POROY | AH13: 1169 | AI13: UE - HOSPITAL ANTONIO LORENA | AJ13: 1169 - UE - HOSPITAL ANTONIO LORENA
D14: 05-Mayo | F14: 05 | G14: KIMBIRI PICHARI | H14: 05 - KIMBIRI PICHARI | J14: 01 | K14: 06 | L14: PAUCARTAMBO | M14: 0106 - PAUCARTAMBO | O14: 000025210 | P14: TUPAC AMARU | Q14: 01 | R14: 00 | S14: 01 | T14: 05 | U14: 0100 | V14: 000025210 - TUPAC AMARU | X14: 04 | Y14: CALCA | Z14: 04 - CALCA | AB14: 01 | AC14: 04 | AD14: SAN JERONIMO | AE14: 0104 | AF14: 0104 - SAN JERONIMO | AH14: 1170 | AI14: UE - SALUD LA CONVENCION | AJ14: 1170 - UE - SALUD LA CONVENCION
D15: 06-Junio | F15: 06 | G15: CHUMBIVILCAS | H15: 06 - CHUMBIVILCAS | J15: 01 | K15: 12 | L15: URCOS | M15: 0112 - URCOS | O15: 000000000 | P15: (All) | Q15: 01 | R15: 16 | U15: =CONCATENATE(Q15,R15) -> 0116 | V15: =CONCATENATE(O15," - ",P15) -> 000000000 - (All) | X15: 05 | Y15: CANAS | Z15: 05 - CANAS | AB15: 01 | AC15: 05 | AD15: SAN SEBASTIAN | AE15: 0105 | AF15: 0105 - SAN SEBASTIAN | AH15: 1322 | AI15: UE - SALUD CUSCO SUR | AJ15: 1322 - UE - SALUD CUSCO SUR
D16: 07-Julio | F16: 07 | G16: HOSPITALES III | H16: =CONCATENATE(F16," - ",G16) -> 07 - HOSPITALES III | J16: 01 | K16: 13 | L16: ACOMAYO | M16: 0113 - ACOMAYO | O16: 000002300 | P16: SAN JERONIMO | Q16: 01 | R16: 16 | S16: 01 | T16: 04 | U16: 0116 | V16: 000002300 - SAN JERONIMO | X16: 06 | Y16: CANCHIS | Z16: 06 - CANCHIS | AB16: 01 | AC16: 06 | AD16: SANTIAGO | AE16: 0106 | AF16: 0106 - SANTIAGO | AH16: 1347 | AI16: UE - SALUD KIMBIRI PICHARI | AJ16: 1347 - UE - SALUD KIMBIRI PICHARI
D17: 08-Agosto | F17: 99 | G17: (All) | H17: =CONCATENATE(F17," - ",G17) -> 99 - (All) | J17: 01 | K17: 15 | L17: OCONGATE | M17: 0115 - OCONGATE | O17: 000002301 | P17: SAN SEBASTIAN | Q17: 01 | R17: 16 | S17: 01 | T17: 05 | U17: 0116 | V17: 000002301 - SAN SEBASTIAN | X17: 07 | Y17: CHUMBIVILCAS | Z17: 07 - CHUMBIVILCAS | AB17: 01 | AC17: 07 | AD17: SAYLLA | AE17: 0107 | AF17: 0107 - SAYLLA | AH17: 1348 | AI17: UE - SALUD CUSCO NORTE | AJ17: 1348 - UE - SALUD CUSCO NORTE
D18: 09-Setiembre | J18: 01 | K18: 16 | L18: CUSCO | M18: 0116 - CUSCO | O18: 000002303 | P18: SANTA ROSA | Q18: 01 | R18: 16 | S18: 01 | T18: 05 | U18: 0116 | V18: 000002303 - SANTA ROSA | X18: 08 | Y18: ESPINAR | Z18: 08 - ESPINAR | AB18: 01 | AC18: 08 | AD18: WANCHAQ | AE18: 0108 | AF18: 0108 - WANCHAQ | AH18: 1547 | AI18: UE - HOSPITAL ESPINAR | AJ18: 1547 - UE - HOSPITAL ESPINAR
D19: 10-Octubre | J19: 01 | K19: 99 | L19: (All) | M19: 0199 - (All) | O19: 000002314 | P19: SAYLLA | Q19: 01 | R19: 16 | S19: 01 | T19: 07 | U19: 0116 | V19: 000002314 - SAYLLA | X19: 09 | Y19: LA CONVENCION | Z19: 09 - LA CONVENCION | AB19: 02 | AC19: 00 | AD19: (All) | AE19: 0200 | AF19: 0200 - (All) | AH19: 1625 | AI19: UE - HOSPITAL SICUANI | AJ19: 1625 - UE - HOSPITAL SICUANI
D20: 11-Noviembre | J20: 02 | K20: 01 | L20: BELEMPAMPA | M20: 0201 - BELEMPAMPA | O20: 000002323 | P20: RONDOCAN | Q20: 01 | R20: 16 | S20: 02 | T20: 06 | U20: 0116 | V20: 000002323 - RONDOCAN | X20: 10 | Y20: PARURO | Z20: 10 - PARURO | AB20: 02 | AC20: 01 | AD20: ACOMAYO | AE20: 0201 | AF20: 0201 - ACOMAYO | AH20: 1626 | AI20: UE - HOSPITAL QUILLABAMBA | AJ20: 1626 - UE - HOSPITAL QUILLABAMBA
D21: 12-Diciembre | J21: 02 | K21: 02 | L21: WANCHAQ | M21: 0202 - WANCHAQ | O21: 000007699 | P21: CONCHACALLE | Q21: 01 | R21: 16 | S21: 01 | T21: 04 | U21: 0116 | V21: 000007699 - CONCHACALLE | X21: 11 | Y21: PAUCARTAMBO | Z21: 11 - PAUCARTAMBO | AB21: 02 | AC21: 02 | AD21: ACOPIA | AE21: 0202 | AF21: 0202 - ACOPIA | AH21: 1666 | AI21: UE - SALUD CHUMBIVILCAS | AJ21: 1666 - UE - SALUD CHUMBIVILCAS
J22: 02 | K22: 03 | L22: ANTA | M22: 0203 - ANTA | O22: 000010065 | P22: ESSALUD-SAN SEBASTIAN | Q22: 01 | R22: 16 | S22: 01 | T22: 05 | U22: 0116 | V22: 000010065 - ESSALUD-SAN SEBASTIAN | X22: 12 | Y22: QUISPICANCHI | Z22: 12 - QUISPICANCHI | AB22: 02 | AC22: 03 | AD22: ACOS | AE22: 0203 | AF22: 0203 - ACOS | AH22: 7777 | AI22: (All) | AJ22: =CONCATENATE(AH22," - ",AI22) -> 7777 - (All)
J23: 02 | K23: 04 | L23: LIMATAMBO | M23: 0204 - LIMATAMBO | O23: 000011743 | P23: SANIDAD-SANTA ROSA PNP | Q23: 01 | R23: 16 | S23: 01 | T23: 05 | U23: 0116 | V23: 000011743 - SANIDAD-SANTA ROSA PNP | X23: 13 | Y23: URUBAMBA | Z23: 13 - URUBAMBA | AB23: 02 | AC23: 04 | AD23: MOSOC LLACTA | AE23: 0204 | AF23: 0204 - MOSOC LLACTA
J24: 02 | K24: 05 | L24: PISAC | M24: 0205 - PISAC | O24: 000026181 | P24: MENTAL SAN SEBASTIAN | Q24: 01 | R24: 16 | S24: 01 | T24: 05 | U24: 0116 | V24: 000026181 - MENTAL SAN SEBASTIAN | AB24: 02 | AC24: 05 | AD24: POMACANCHI | AE24: 0205 | AF24: 0205 - POMACANCHI
J25: 02 | K25: 06 | L25: CALCA | M25: 0206 - CALCA | O25: 000030727 | P25: PATRÓN SAN SEBASTIAN | Q25: 01 | R25: 16 | S25: 01 | T25: 04 | U25: =CONCATENATE(Q25,R25) -> 0116 | V25: 000030727 - PATRÓN SAN SEBASTIAN | AB25: 02 | AC25: 06 | AD25: RONDOCAN | AE25: 0206 | AF25: 0206 - RONDOCAN
J26: 02 | K26: 07 | L26: URUBAMBA | M26: 0207 - URUBAMBA | O26: 000000000 | P26: (All) | Q26: 01 | R26: 03 | U26: =CONCATENATE(Q26,R26) -> 0103 | V26: =CONCATENATE(O26," - ",P26) -> 000000000 - (All) | AB26: 02 | AC26: 07 | AD26: SANGARARA | AE26: 0207 | AF26: 0207 - SANGARARA
J27: 02 | K27: 08 | L27: YANATILE | M27: 0208 - YANATILE | O27: 000002499 | P27: PARURO | Q27: 01 | R27: 03 | S27: 10 | T27: 01 | U27: 0103 | V27: 000002499 - PARURO | AB27: 03 | AC27: 00 | AD27: (All) | AE27: 0300 | AF27: 0300 - (All)
J28: 02 | K28: 09 | L28: SIETE CUARTONES | M28: 0209 - SIETE CUARTONES | O28: 000002500 | P28: ACCHA | Q28: 01 | R28: 03 | S28: 10 | T28: 02 | U28: 0103 | V28: 000002500 - ACCHA | AB28: 03 | AC28: 01 | AD28: ANTA | AE28: 0301 | AF28: 0301 - ANTA
J29: 02 | K29: 99 | L29: (All) | M29: 0299 - (All) | O29: 000002501 | P29: CCAPI | Q29: 01 | R29: 03 | S29: 10 | T29: 03 | U29: 0103 | V29: 000002501 - CCAPI | AB29: 03 | AC29: 02 | AD29: ANCAHUASI | AE29: 0302 | AF29: 0302 - ANCAHUASI
J30: 03 | K30: 00 | L30: HOSPITAL | M30: 0300 - HOSPITAL | O30: 000002502 | P30: CCOYABAMBA | Q30: 01 | R30: 03 | S30: 10 | T30: 03 | U30: 0103 | V30: 000002502 - CCOYABAMBA | AB30: 03 | AC30: 03 | AD30: CACHIMAYO | AE30: 0303 | AF30: 0303 - CACHIMAYO
J31: 03 | K31: 01 | L31: SANTA ANA | M31: 0301 - SANTA ANA | O31: 000002503 | P31: COLCHA | Q31: 01 | R31: 03 | S31: 10 | T31: 04 | U31: 0103 | V31: 000002503 - COLCHA | AB31: 03 | AC31: 04 | AD31: CHINCHAYPUJIO | AE31: 0304 | AF31: 0304 - CHINCHAYPUJIO
J32: 03 | K32: 02 | L32: MARANURA | M32: 0302 - MARANURA | O32: 000002504 | P32: HUANOQUITE | Q32: 01 | R32: 03 | S32: 10 | T32: 05 | U32: 0103 | V32: 000002504 - HUANOQUITE | AB32: 03 | AC32: 05 | AD32: HUAROCONDO | AE32: 0305 | AF32: 0305 - HUAROCONDO
J33: 03 | K33: 03 | L33: QUELLOUNO | M33: 0303 - QUELLOUNO | O33: 000002505 | P33: OMACHA | Q33: 01 | R33: 03 | S33: 10 | T33: 06 | U33: 0103 | V33: 000002505 - OMACHA | AB33: 03 | AC33: 06 | AD33: LIMATAMBO | AE33: 0306 | AF33: 0306 - LIMATAMBO
J34: 03 | K34: 04 | L34: KITENI | M34: 0304 - KITENI | O34: 000002506 | P34: ANTAPALLPA | Q34: 01 | R34: 03 | S34: 10 | T34: 06 | U34: 0103 | V34: 000002506 - ANTAPALLPA | AB34: 03 | AC34: 07 | AD34: MOLLEPATA | AE34: 0307 | AF34: 0307 - MOLLEPATA
J35: 03 | K35: 05 | L35: KAMISEA | M35: 0305 - KAMISEA | O35: 000002507 | P35: PACCARECTAMBO | Q35: 01 | R35: 03 | S35: 10 | T35: 07 | U35: 0103 | V35: 000002507 - PACCARECTAMBO | AB35: 03 | AC35: 08 | AD35: PUCYURA | AE35: 0308 | AF35: 0308 - PUCYURA
J36: 03 | K36: 06 | L36: PUCYURA | M36: 0306 - PUCYURA | O36: 000002509 | P36: YAURISQUE | Q36: 01 | R36: 03 | S36: 10 | T36: 09 | U36: 0103 | V36: 000002509 - YAURISQUE | AB36: 03 | AC36: 09 | AD36: ZURITE | AE36: 0309 | AF36: 0309 - ZURITE
J37: 03 | K37: 99 | L37: (All) | M37: 0399 - (All) | O37: 000006978 | P37: CCOCHIRIHUAY | Q37: 01 | R37: 03 | S37: 10 | T37: 04 | U37: 0103 | V37: 000006978 - CCOCHIRIHUAY | AB37: 04 | AC37: 00 | AD37: (All) | AE37: 0400 | AF37: 0400 - (All)
J38: 04 | K38: 00 | L38: HOSPITAL | M38: 0400 - HOSPITAL | O38: 000007147 | P38: HUASQUILLAY | Q38: 01 | R38: 03 | S38: 10 | T38: 06 | U38: 0103 | V38: 000007147 - HUASQUILLAY | AB38: 04 | AC38: 01 | AD38: CALCA | AE38: 0401 | AF38: 0401 - CALCA
J39: 04 | K39: 01 | L39: YANAOCA | M39: 0401 - YANAOCA | O39: 000012924 | P39: SAHUA SAHUA | Q39: 01 | R39: 03 | S39: 10 | T39: 06 | U39: 0103 | V39: 000012924 - SAHUA SAHUA | AB39: 04 | AC39: 02 | AD39: COYA | AE39: 0402 | AF39: 0402 - COYA
J40: 04 | K40: 02 | L40: EL DESCANSO | M40: 0402 - EL DESCANSO | O40: 000000000 | P40: (All) | Q40: 01 | R40: 06 | U40: 0106 | V40: 000000000 - (All) | AB40: 04 | AC40: 03 | AD40: LAMAY | AE40: 0403 | AF40: 0403 - LAMAY
J41: 04 | K41: 03 | L41: COMBAPATA | M41: 0403 - COMBAPATA | O41: 000002510 | P41: PAUCARTAMBO | Q41: 01 | R41: 06 | S41: 11 | T41: 01 | U41: 0106 | V41: 000002510 - PAUCARTAMBO | AB41: 04 | AC41: 04 | AD41: LARES | AE41: 0404 | AF41: 0404 - LARES
J42: 04 | K42: 04 | L42: TECHO OBRERO | M42: 0404 - TECHO OBRERO | O42: 000002511 | P42: MOLLOMARCA | Q42: 01 | R42: 06 | S42: 11 | T42: 01 | U42: 0106 | V42: 000002511 - MOLLOMARCA | AB42: 04 | AC42: 05 | AD42: PISAC | AE42: 0405 | AF42: 0405 - PISAC
J43: 04 | K43: 05 | L43: PAMPAPHALLA | M43: 0405 - PAMPAPHALLA | O43: 000002512 | P43: CAICAY | Q43: 01 | R43: 06 | S43: 11 | T43: 02 | U43: 0106 | V43: 000002512 - CAICAY | AB43: 04 | AC43: 06 | AD43: SAN SALVADOR | AE43: 0406 | AF43: 0406 - SAN SALVADOR
J44: 04 | K44: 06 | L44: YAURI | M44: 0406 - YAURI | O44: 000002513 | P44: HUASAC | Q44: 01 | R44: 06 | S44: 11 | T44: 02 | U44: 0106 | V44: 000002513 - HUASAC | AB44: 04 | AC44: 07 | AD44: TARAY | AE44: 0407 | AF44: 0407 - TARAY
J45: 04 | K45: 99 | L45: (All) | M45: 0499 - (All) | O45: 000002514 | P45: CHALLABAMBA | Q45: 01 | R45: 06 | S45: 11 | T45: 03 | U45: 0106 | V45: 000002514 - CHALLABAMBA | AB45: 04 | AC45: 08 | AD45: YANATILE | AE45: 0408 | AF45: 0408 - YANATILE
J46: 05 | K46: 00 | L46: HOSPITAL | M46: 0500 - HOSPITAL | O46: 000002516 | P46: COLQUEPATA | Q46: 01 | R46: 06 | S46: 11 | T46: 04 | U46: 0106 | V46: 000002516 - COLQUEPATA | AB46: 05 | AC46: 00 | AD46: (All) | AE46: 0500 | AF46: 0500 - (All)
J47: 05 | K47: 01 | L47: KIMBIRI | M47: 0501 - KIMBIRI | O47: 000002517 | P47: PICHIHUA COLQUEPATA | Q47: 01 | R47: 06 | S47: 11 | T47: 04 | U47: 0106 | V47: 000002517 - PICHIHUA COLQUEPATA | AB47: 05 | AC47: 01 | AD47: YANAOCA | AE47: 0501 | AF47: 0501 - YANAOCA
J48: 05 | K48: 02 | L48: PICHARI | M48: 0502 - PICHARI | O48: 000002518 | P48: VIZCOCHONI | Q48: 01 | R48: 06 | S48: 11 | T48: 04 | U48: 0106 | V48: 000002518 - VIZCOCHONI | AB48: 05 | AC48: 02 | AD48: CHECCA | AE48: 0502 | AF48: 0502 - CHECCA
J49: 05 | K49: 99 | L49: (All) | M49: 0599 - (All) | O49: 000002519 | P49: AYRE | Q49: 01 | R49: 06 | S49: 11 | T49: 04 | U49: 0106 | V49: 000002519 - AYRE | AB49: 05 | AC49: 03 | AD49: KUNTURKANKI | AE49: 0503 | AF49: 0503 - KUNTURKANKI
J50: 06 | K50: 00 | L50: HOSPITAL | M50: 0600 - HOSPITAL | O50: 000002520 | P50: HUANCARANI | Q50: 01 | R50: 06 | S50: 11 | T50: 05 | U50: 0106 | V50: 000002520 - HUANCARANI | AB50: 05 | AC50: 04 | AD50: LANGUI | AE50: 0504 | AF50: 0504 - LANGUI
J51: 06 | K51: 09 | L51: SANTO TOMAS | M51: 0609 - SANTO TOMAS | O51: 000002521 | P51: PILCOPATA | Q51: 01 | R51: 06 | S51: 11 | T51: 06 | U51: 0106 | V51: 000002521 - PILCOPATA | AB51: 05 | AC51: 05 | AD51: LAYO | AE51: 0505 | AF51: 0505 - LAYO
J52: 06 | K52: 01 | L52: LIVITACA | M52: 0601 - LIVITACA | O52: 000002522 | P52: PATRIA | Q52: 01 | R52: 06 | S52: 11 | T52: 06 | U52: 0106 | V52: 000002522 - PATRIA | AB52: 05 | AC52: 06 | AD52: PAMPAMARCA | AE52: 0506 | AF52: 0506 - PAMPAMARCA
J53: 06 | K53: 99 | L53: (All) | M53: 0699 - (All) | O53: 000006979 | P53: TOCRA | Q53: 01 | R53: 06 | S53: 11 | T53: 04 | U53: 0106 | V53: 000006979 - TOCRA | AB53: 05 | AC53: 07 | AD53: QUEHUE | AE53: 0507 | AF53: 0507 - QUEHUE
J54: 07 | K54: 00 | L54: HOSPITAL | M54: 0700 - HOSPITAL | O54: 000010077 | P54: ESSALUD-PAUCARTAMBO | Q54: 01 | R54: 06 | S54: 11 | T54: 01 | U54: 0106 | V54: 000010077 - ESSALUD-PAUCARTAMBO | AB54: 05 | AC54: 08 | AD54: TUPAC AMARU | AE54: 0508 | AF54: 0508 - TUPAC AMARU
J55: 99 | K55: 99 | L55: (All) | M55: =CONCATENATE(J55,K55," - ",L55) -> 9999 - (All) | O55: 000033777 | P55: MENTAL COMUNITARIO VIRGEN DEL ROSARIO | Q55: 01 | R55: 06 | S55: 11 | T55: 01 | U55: =CONCATENATE(Q55,R55) -> 0106 | V55: =CONCATENATE(O55," - ",P55) -> 000033777 - MENTAL COMUNITARIO VIRGEN DEL ROSARIO | AB55: 06 | AC55: 00 | AD55: (All) | AE55: 0600 | AF55: 0600 - (All)
O56: 000000000 | P56: (All) | Q56: 01 | R56: 12 | U56: =CONCATENATE(Q56,R56) -> 0112 | V56: =CONCATENATE(O56," - ",P56) -> 000000000 - (All) | AB56: 06 | AC56: 01 | AD56: SICUANI | AE56: 0601 | AF56: 0601 - SICUANI
O57: 000002523 | P57: URCOS | Q57: 01 | R57: 12 | S57: 12 | T57: 01 | U57: 0112 | V57: 000002523 - URCOS | AB57: 06 | AC57: 02 | AD57: CHECACUPE | AE57: 0602 | AF57: 0602 - CHECACUPE
O58: 000002525 | P58: ANDAHUAYLILLAS | Q58: 01 | R58: 12 | S58: 12 | T58: 02 | U58: 0112 | V58: 000002525 - ANDAHUAYLILLAS | AB58: 06 | AC58: 03 | AD58: COMBAPATA | AE58: 0603 | AF58: 0603 - COMBAPATA
O59: 000002530 | P59: CUSIPATA | Q59: 01 | R59: 12 | S59: 12 | T59: 06 | U59: 0112 | V59: 000002530 - CUSIPATA | AB59: 06 | AC59: 04 | AD59: MARANGANI | AE59: 0604 | AF59: 0604 - MARANGANI
O60: 000002532 | P60: HUARO | Q60: 01 | R60: 12 | S60: 12 | T60: 07 | U60: 0112 | V60: 000002532 - HUARO | AB60: 06 | AC60: 05 | AD60: PITUMARCA | AE60: 0605 | AF60: 0605 - PITUMARCA
O61: 000002533 | P61: URPAY | Q61: 01 | R61: 12 | S61: 12 | T61: 07 | U61: 0112 | V61: 000002533 - URPAY | AB61: 06 | AC61: 06 | AD61: SAN PABLO | AE61: 0606 | AF61: 0606 - SAN PABLO
O62: 000002534 | P62: LUCRE | Q62: 01 | R62: 12 | S62: 12 | T62: 08 | U62: 0112 | V62: 000002534 - LUCRE | AB62: 06 | AC62: 07 | AD62: SAN PEDRO | AE62: 0607 | AF62: 0607 - SAN PEDRO
O63: 000002537 | P63: OROPESA | Q63: 01 | R63: 12 | S63: 12 | T63: 11 | U63: 0112 | V63: 000002537 - OROPESA | AB63: 06 | AC63: 08 | AD63: TINTA | AE63: 0608 | AF63: 0608 - TINTA
O64: 000002538 | P64: QUIQUIJANA | Q64: 01 | R64: 12 | S64: 12 | T64: 12 | U64: 0112 | V64: 000002538 - QUIQUIJANA | AB64: 07 | AC64: 00 | AD64: (All) | AE64: 0700 | AF64: 0700 - (All)
O65: 000002539 | P65: CCOLCA | Q65: 01 | R65: 12 | S65: 12 | T65: 12 | U65: 0112 | V65: 000002539 - CCOLCA | AB65: 07 | AC65: 01 | AD65: SANTO TOMAS | AE65: 0701 | AF65: 0701 - SANTO TOMAS
O66: 000006980 | P66: CHILLIHUANI | Q66: 01 | R66: 12 | S66: 12 | T66: 06 | U66: 0112 | V66: 000006980 - CHILLIHUANI | AB66: 07 | AC66: 02 | AD66: CAPACMARCA | AE66: 0702 | AF66: 0702 - CAPACMARCA
O67: 000008911 | P67: HUARA HUARA | Q67: 01 | R67: 12 | S67: 12 | T67: 05 | U67: 0112 | V67: 000008911 - HUARA HUARA | AB67: 07 | AC67: 03 | AD67: CHAMACA | AE67: 0703 | AF67: 0703 - CHAMACA
O68: 000011747 | P68: SANIDAD-PUCUTO PNP | Q68: 01 | R68: 12 | S68: 12 | T68: 07 | U68: 0112 | V68: 000011747 - SANIDAD-PUCUTO PNP | AB68: 07 | AC68: 04 | AD68: COLQUEMARCA | AE68: 0704 | AF68: 0704 - COLQUEMARCA
O69: 000026385 | P69: ESSALUD-URCOS | Q69: 01 | R69: 12 | S69: 12 | T69: 01 | U69: 0112 | V69: 000026385 - ESSALUD-URCOS | AB69: 07 | AC69: 05 | AD69: LIVITACA | AE69: 0705 | AF69: 0705 - LIVITACA
O70: 000030708 | P70: MENTAL COMUNITARIO HUARO | Q70: 01 | R70: 12 | S70: 12 | T70: 07 | U70: 0112 | V70: 000030708 - MENTAL COMUNITARIO HUARO | AB70: 07 | AC70: 06 | AD70: LLUSCO | AE70: 0706 | AF70: 0706 - LLUSCO
O71: 000000000 | P71: (All) | Q71: 01 | R71: 13 | U71: 0113 | V71: 000000000 - (All) | AB71: 07 | AC71: 07 | AD71: QUIÑOTA | AE71: 0707 | AF71: 0707 - QUIÑOTA
O72: 000002317 | P72: ACOMAYO | Q72: 01 | R72: 13 | S72: 02 | T72: 01 | U72: 0113 | V72: 000002317 - ACOMAYO | AB72: 07 | AC72: 08 | AD72: VELILLE | AE72: 0708 | AF72: 0708 - VELILLE
O73: 000002318 | P73: ACOPIA | Q73: 01 | R73: 13 | S73: 02 | T73: 02 | U73: 0113 | V73: 000002318 - ACOPIA | AB73: 08 | AC73: 00 | AD73: (All) | AE73: 0800 | AF73: 0800 - (All)
O74: 000002319 | P74: ACOS | Q74: 01 | R74: 13 | S74: 02 | T74: 03 | U74: 0113 | V74: 000002319 - ACOS | AB74: 08 | AC74: 01 | AD74: ESPINAR | AE74: 0801 | AF74: 0801 - ESPINAR
O75: 000002321 | P75: CENTRO DE SALUD POMACANCHI | Q75: 01 | R75: 13 | S75: 02 | T75: 05 | U75: 0113 | V75: 000002321 - CENTRO DE SALUD POMACANCHI | AB75: 08 | AC75: 02 | AD75: CONDOROMA | AE75: =CONCATENATE(AB75,AC75) -> 0802 | AF75: =CONCATENATE(AB75,AC75," - ",AD75) -> 0802 - CONDOROMA
O76: 000002322 | P76: SAN JUAN DE POMACANCHI | Q76: 01 | R76: 13 | S76: 02 | T76: 05 | U76: 0113 | V76: 000002322 - SAN JUAN DE POMACANCHI | AB76: 08 | AC76: 03 | AD76: COPORAQUE | AE76: 0803 | AF76: 0803 - COPORAQUE
O77: 000002324 | P77: PUESTO DE SALUD SANGARARA | Q77: 01 | R77: 13 | S77: 02 | T77: 07 | U77: 0113 | V77: 000002324 - PUESTO DE SALUD SANGARARA | AB77: 08 | AC77: 04 | AD77: OCORURO | AE77: 0804 | AF77: 0804 - OCORURO
O78: 000002325 | P78: PUESTO DE SALUD MARCACONGA | Q78: 01 | R78: 13 | S78: 02 | T78: 07 | U78: 0113 | V78: 000002325 - PUESTO DE SALUD MARCACONGA | AB78: 08 | AC78: 05 | AD78: PALLPATA | AE78: 0805 | AF78: 0805 - PALLPATA
O79: 000002508 | P79: PILLPINTO | Q79: 01 | R79: 13 | S79: 10 | T79: 08 | U79: 0113 | V79: 000002508 - PILLPINTO | AB79: 08 | AC79: 06 | AD79: PICHIGUA | AE79: 0806 | AF79: 0806 - PICHIGUA
O80: 000010076 | P80: ESSALUD-ACOMAYO | Q80: 01 | R80: 13 | S80: 02 | T80: 01 | U80: 0113 | V80: 000010076 - ESSALUD-ACOMAYO | AB80: 08 | AC80: 07 | AD80: SUYCKUTAMBO | AE80: 0807 | AF80: 0807 - SUYCKUTAMBO
O81: 000012926 | P81: SANTA LUCIA | Q81: 01 | R81: 13 | S81: 02 | T81: 05 | U81: 0113 | V81: 000012926 - SANTA LUCIA | AB81: 08 | AC81: 08 | AD81: ALTO PICHIGUA | AE81: 0808 | AF81: 0808 - ALTO PICHIGUA
O82: 000000000 | P82: (All) | Q82: 01 | R82: 15 | U82: 0115 | V82: 000000000 - (All) | AB82: 09 | AC82: 00 | AD82: (All) | AE82: 0900 | AF82: 0900 - (All)
O83: 000002524 | P83: PAMPACAMARA | Q83: 01 | R83: 15 | S83: 12 | T83: 05 | U83: 0115 | V83: 000002524 - PAMPACAMARA | AB83: 09 | AC83: 01 | AD83: SANTA ANA | AE83: 0901 | AF83: 0901 - SANTA ANA
O84: 000002526 | P84: QUINCE MIL | Q84: 01 | R84: 15 | S84: 12 | T84: 03 | U84: 0115 | V84: =CONCATENATE(O84," - ",P84) -> 000002526 - QUINCE MIL | AB84: 09 | AC84: 02 | AD84: ECHARATE | AE84: 0902 | AF84: 0902 - ECHARATE
O85: 000002527 | P85: CCARHUAYO | Q85: 01 | R85: 15 | S85: 12 | T85: 04 | U85: 0115 | V85: 000002527 - CCARHUAYO | AB85: 09 | AC85: 03 | AD85: HUAYOPATA | AE85: 0903 | AF85: 0903 - HUAYOPATA
O86: 000002528 | P86: CCATCCA | Q86: 01 | R86: 15 | S86: 12 | T86: 05 | U86: =CONCATENATE(Q86,R86) -> 0115 | V86: 000002528 - CCATCCA | AB86: 09 | AC86: 04 | AD86: MARANURA | AE86: 0904 | AF86: 0904 - MARANURA
O87: 000002529 | P87: KCAURY | Q87: 01 | R87: 15 | S87: 12 | T87: 05 | U87: 0115 | V87: 000002529 - KCAURY | AB87: 09 | AC87: 05 | AD87: OCOBAMBA | AE87: 0905 | AF87: 0905 - OCOBAMBA
O88: 000002535 | P88: MARCAPATA | Q88: 01 | R88: 15 | S88: 12 | T88: 09 | U88: 0115 | V88: 000002535 - MARCAPATA | AB88: 09 | AC88: 06 | AD88: QUELLOUNO | AE88: 0906 | AF88: 0906 - QUELLOUNO
O89: 000002536 | P89: OCONGATE | Q89: 01 | R89: 15 | S89: 12 | T89: 10 | U89: 0115 | V89: 000002536 - OCONGATE | AB89: 09 | AC89: 07 | AD89: KIMBIRI | AE89: 0907 | AF89: 0907 - KIMBIRI
O90: 000006977 | P90: TINKI | Q90: 01 | R90: 15 | S90: 12 | T90: 10 | U90: 0115 | V90: 000006977 - TINKI | AB90: 09 | AC90: 08 | AD90: SANTA TERESA | AE90: 0908 | AF90: 0908 - SANTA TERESA
O91: 000007110 | P91: INCACANCHA | Q91: 01 | R91: 15 | S91: 12 | T91: 09 | U91: 0115 | V91: 000007110 - INCACANCHA | AB91: 09 | AC91: 09 | AD91: VILCABAMBA | AE91: 0909 | AF91: 0909 - VILCABAMBA
O92: 000012931 | P92: CHICHINA | Q92: 01 | R92: 15 | S92: 12 | T92: 05 | U92: 0115 | V92: 000012931 - CHICHINA | AB92: 09 | AC92: 10 | AD92: PICHARI | AE92: 0910 | AF92: 0910 - PICHARI
O93: 000016335 | P93: CCAPANA | Q93: 01 | R93: 15 | S93: 12 | T93: 05 | U93: 0115 | V93: 000016335 - CCAPANA | AB93: 09 | AC93: 11 | AD93: INKAWASI | AE93: 0911 | AF93: 0911 - INKAWASI
O94: 999999999 | P94: (All) | Q94: 01 | R94: 99 | U94: 0199 | V94: 999999999 - (All) | AB94: 09 | AC94: 12 | AD94: VILLA VIRGEN | AE94: 0912 | AF94: 0912 - VILLA VIRGEN
O95: 000000000 | P95: (All) | Q95: 02 | R95: 01 | U95: 0201 | V95: 000000000 - (All) | AB95: 09 | AC95: 13 | AD95: VILLA KINTIARINA | AE95: 0913 | AF95: 0913 - VILLA KINTIARINA
O96: 000002292 | P96: INDEPENDENCIA | Q96: 02 | R96: 01 | S96: 01 | T96: 01 | U96: 0201 | V96: 000002292 - INDEPENDENCIA | AB96: 09 | AC96: 14 | AD96: MEGANTONI | AE96: 0914 | AF96: 0914 - MEGANTONI
O97: 000002297 | P97: CCORCCA | Q97: 02 | R97: 01 | S97: 01 | T97: 02 | U97: 0201 | V97: 000002297 - CCORCCA | AB97: 09 | AC97: 15 | AD97: KUMPIRUSHIATO | AE97: =CONCATENATE(AB97,AC97) -> 0915 | AF97: =CONCATENATE(AB97,AC97," - ",AD97) -> 0915 - KUMPIRUSHIATO
O98: 000002306 | P98: BELEMPAMPA | Q98: 02 | R98: 01 | S98: 01 | T98: 06 | U98: 0201 | V98: 000002306 - BELEMPAMPA | AB98: 09 | AC98: 16 | AD98: CIELO PUNCO | AE98: 0916 | AF98: 0916 - CIELO PUNCO
O99: 000002308 | P99: ZARZUELA ALTA | Q99: 02 | R99: 01 | S99: 01 | T99: 06 | U99: 0201 | V99: 000002308 - ZARZUELA ALTA | AB99: 09 | AC99: 17 | AD99: MANITEA | AE99: 0917 | AF99: 0917 - MANITEA
O100: 000002309 | P100: DIGNIDAD NACIONAL | Q100: 02 | R100: 01 | S100: 01 | T100: 06 | U100: 0201 | V100: 000002309 - DIGNIDAD NACIONAL | AB100: 09 | AC100: 18 | AD100: UNION ASHANINKA | AE100: 0918 | AF100: 0918 - UNION ASHANINKA
O101: 000002313 | P101: OCCOPATA | Q101: 02 | R101: 01 | S101: 01 | T101: 06 | U101: 0201 | V101: 000002313 - OCCOPATA | AB101: 10 | AC101: 00 | AD101: (All) | AE101: 1000 | AF101: 1000 - (All)
O102: 000010067 | P102: ESSALUD-SANTIAGO | Q102: 02 | R102: 01 | S102: 01 | T102: 06 | U102: 0201 | V102: 000010067 - ESSALUD-SANTIAGO | AB102: 10 | AC102: 01 | AD102: PARURO | AE102: 1001 | AF102: 1001 - PARURO
O103: 000010920 | P103: EJERCITO-QUINTA BRIGADA DE MONTAÑA | Q103: 02 | R103: 01 | S103: 01 | T103: 06 | U103: 0201 | V103: 000010920 - EJERCITO-QUINTA BRIGADA DE MONTAÑA | AB103: 10 | AC103: 02 | AD103: ACCHA | AE103: =CONCATENATE(AB103,AC103) -> 1002 | AF103: =CONCATENATE(AB103,AC103," - ",AD103) -> 1002 - ACCHA
O104: 000026182 | P104: MENTAL SANTIAGO | Q104: 02 | R104: 01 | S104: 01 | T104: 06 | U104: 0201 | V104: 000026182 - MENTAL SANTIAGO | AB104: 10 | AC104: 03 | AD104: CCAPI | AE104: 1003 | AF104: 1003 - CCAPI
O105: 000000000 | P105: (All) | Q105: 02 | R105: 02 | U105: 0202 | V105: 000000000 - (All) | AB105: 10 | AC105: 04 | AD105: COLCHA | AE105: 1004 | AF105: 1004 - COLCHA
O106: 000002302 | P106: CCORAO | Q106: 02 | R106: 02 | S106: 01 | T106: 05 | U106: 0202 | V106: 000002302 - CCORAO | AB106: 10 | AC106: 05 | AD106: HUANOQUITE | AE106: 1005 | AF106: 1005 - HUANOQUITE
O107: 000002307 | P107: MANCO CAPAC | Q107: 02 | R107: 02 | S107: 01 | T107: 06 | U107: 0202 | V107: 000002307 - MANCO CAPAC | AB107: 10 | AC107: 06 | AD107: OMACHA | AE107: 1006 | AF107: 1006 - OMACHA
O108: 000002310 | P108: CHOCCO | Q108: 02 | R108: 02 | S108: 01 | T108: 06 | U108: 0202 | V108: 000002310 - CHOCCO | AB108: 10 | AC108: 07 | AD108: PACCARITAMBO | AE108: 1007 | AF108: 1007 - PACCARITAMBO
O109: 000002315 | P109: WANCHAQ | Q109: 02 | R109: 02 | S109: 01 | T109: 08 | U109: 0202 | V109: 000002315 - WANCHAQ | AB109: 10 | AC109: 08 | AD109: PILLPINTO | AE109: 1008 | AF109: 1008 - PILLPINTO
O110: 000002316 | P110: TTIO | Q110: 02 | R110: 02 | S110: 01 | T110: 08 | U110: 0202 | V110: 000002316 - TTIO | AB110: 10 | AC110: 09 | AD110: YAURISQUE | AE110: 1009 | AF110: 1009 - YAURISQUE
O111: 000010041 | P111: ESSALUD-ADOLFO GUEVARA V. | Q111: 02 | R111: 02 | S111: 01 | T111: 08 | U111: 0202 | V111: 000010041 - ESSALUD-ADOLFO GUEVARA V. | AB111: 11 | AC111: 00 | AD111: (All) | AE111: 1100 | AF111: 1100 - (All)
O112: 000026183 | P112: ESSALUD-METROPOLITANO | Q112: 02 | R112: 02 | S112: 01 | T112: 08 | U112: 0202 | V112: 000026183 - ESSALUD-METROPOLITANO | AB112: 11 | AC112: 01 | AD112: PAUCARTAMBO | AE112: 1101 | AF112: 1101 - PAUCARTAMBO
O113: 000030730 | P113: PATRON SANTIAGO | Q113: 02 | R113: 02 | S113: 01 | T113: 08 | U113: 0202 | V113: 000030730 - PATRON SANTIAGO | AB113: 11 | AC113: 02 | AD113: CAICAY | AE113: 1102 | AF113: 1102 - CAICAY
O114: 000034419 | P114: MENTAL COMUNITARIO CUSCO | Q114: 02 | R114: 02 | S114: 01 | T114: 08 | U114: =CONCATENATE(Q114,R114) -> 0202 | V114: 000034419 - MENTAL COMUNITARIO CUSCO | AB114: 11 | AC114: 03 | AD114: CHALLABAMBA | AE114: =CONCATENATE(AB114,AC114) -> 1103 | AF114: =CONCATENATE(AB114,AC114," - ",AD114) -> 1103 - CHALLABAMBA
O115: 000000000 | P115: (All) | Q115: 02 | R115: 03 | U115: 0203 | V115: 000000000 - (All) | AB115: 11 | AC115: 04 | AD115: COLQUEPATA | AE115: 1104 | AF115: 1104 - COLQUEPATA
O116: 000002326 | P116: ANTA | Q116: 02 | R116: 03 | S116: 03 | T116: 01 | U116: 0203 | V116: 000002326 - ANTA | AB116: 11 | AC116: 05 | AD116: HUANCARANI | AE116: 1105 | AF116: 1105 - HUANCARANI
O117: 000002327 | P117: CHACAN | Q117: 02 | R117: 03 | S117: 03 | T117: 01 | U117: 0203 | V117: 000002327 - CHACAN | AB117: 11 | AC117: 06 | AD117: KOSÑIPATA | AE117: 1106 | AF117: 1106 - KOSÑIPATA
O118: 000002328 | P118: COMPONE | Q118: 02 | R118: 03 | S118: 03 | T118: 01 | U118: 0203 | V118: 000002328 - COMPONE | AB118: 12 | AC118: 00 | AD118: (All) | AE118: 1200 | AF118: 1200 - (All)
O119: 000002329 | P119: CONCHACALLA | Q119: 02 | R119: 03 | S119: 03 | T119: 01 | U119: 0203 | V119: 000002329 - CONCHACALLA | AB119: 12 | AC119: 01 | AD119: URCOS | AE119: 1201 | AF119: 1201 - URCOS
O120: 000002330 | P120: ANCAHUASI | Q120: 02 | R120: 03 | S120: 03 | T120: 02 | U120: 0203 | V120: 000002330 - ANCAHUASI | AB120: 12 | AC120: 02 | AD120: ANDAHUAYLILLAS | AE120: 1202 | AF120: 1202 - ANDAHUAYLILLAS
O121: 000002331 | P121: CACHIMAYO | Q121: 02 | R121: 03 | S121: 03 | T121: 03 | U121: 0203 | V121: 000002331 - CACHIMAYO | AB121: 12 | AC121: 03 | AD121: CAMANTI | AE121: 1203 | AF121: 1203 - CAMANTI
O122: 000002332 | P122: CHINCHAYPUJIO | Q122: 02 | R122: 03 | S122: 03 | T122: 04 | U122: 0203 | V122: 000002332 - CHINCHAYPUJIO | AB122: 12 | AC122: 04 | AD122: CCARHUAYO | AE122: 1204 | AF122: 1204 - CCARHUAYO
O123: 000002333 | P123: HUAROCONDO | Q123: 02 | R123: 03 | S123: 03 | T123: 05 | U123: 0203 | V123: 000002333 - HUAROCONDO | AB123: 12 | AC123: 05 | AD123: CCATCA | AE123: 1205 | AF123: 1205 - CCATCA
O124: 000002334 | P124: HUAYLLACOCHA | Q124: 02 | R124: 03 | S124: 03 | T124: 05 | U124: 0203 | V124: 000002334 - HUAYLLACOCHA | AB124: 12 | AC124: 06 | AD124: CUSIPATA | AE124: 1206 | AF124: 1206 - CUSIPATA
O125: 000002339 | P125: PUCYURA ANTA | Q125: 02 | R125: 03 | S125: 03 | T125: 08 | U125: 0203 | V125: 000002339 - PUCYURA ANTA | AB125: 12 | AC125: 07 | AD125: HUARO | AE125: 1207 | AF125: 1207 - HUARO
O126: 000002340 | P126: ZURITE | Q126: 02 | R126: 03 | S126: 03 | T126: 09 | U126: 0203 | V126: 000002340 - ZURITE | AB126: 12 | AC126: 08 | AD126: LUCRE | AE126: 1208 | AF126: 1208 - LUCRE
O127: 000006972 | P127: PANTIPATA | Q127: 02 | R127: 03 | S127: 03 | T127: 04 | U127: 0203 | V127: 000006972 - PANTIPATA | AB127: 12 | AC127: 09 | AD127: MARCAPATA | AE127: 1209 | AF127: 1209 - MARCAPATA
O128: 000027790 | P128: MENTAL COMUNITARIO ANTA | Q128: 02 | R128: 03 | S128: 03 | T128: 01 | U128: 0203 | V128: 000027790 - MENTAL COMUNITARIO ANTA | AB128: 12 | AC128: 10 | AD128: OCONGATE | AE128: 1210 | AF128: 1210 - OCONGATE
O129: 000000000 | P129: (All) | Q129: 02 | R129: 04 | U129: 0204 | V129: 000000000 - (All) | AB129: 12 | AC129: 11 | AD129: OROPESA | AE129: 1211 | AF129: 1211 - OROPESA
O130: 000002336 | P130: LIMATAMBO | Q130: 02 | R130: 04 | S130: 03 | T130: 06 | U130: 0204 | V130: 000002336 - LIMATAMBO | AB130: 12 | AC130: 12 | AD130: QUIQUIJANA | AE130: 1212 | AF130: 1212 - QUIQUIJANA
O131: 000002337 | P131: PAMPACONGA | Q131: 02 | R131: 04 | S131: 03 | T131: 06 | U131: 0204 | V131: 000002337 - PAMPACONGA | AB131: 13 | AC131: 00 | AD131: (All) | AE131: 1300 | AF131: 1300 - (All)
O132: 000002338 | P132: MOLLEPATA | Q132: 02 | R132: 04 | S132: 03 | T132: 07 | U132: 0204 | V132: 000002338 - MOLLEPATA | AB132: 13 | AC132: 01 | AD132: URUBAMBA | AE132: 1301 | AF132: 1301 - URUBAMBA
O133: 000010761 | P133: URATARI | Q133: 02 | R133: 04 | S133: 03 | T133: 06 | U133: 0204 | V133: 000010761 - URATARI | AB133: 13 | AC133: 02 | AD133: CHINCHERO | AE133: 1302 | AF133: 1302 - CHINCHERO
O134: 000021061 | P134: HUAMANPATA | Q134: 02 | R134: 04 | S134: 03 | T134: 07 | U134: 0204 | V134: 000021061 - HUAMANPATA | AB134: 13 | AC134: 03 | AD134: HUAYLLABAMBA | AE134: 1303 | AF134: 1303 - HUAYLLABAMBA
O135: 000000000 | P135: (All) | Q135: 02 | R135: 05 | U135: 0205 | V135: 000000000 - (All) | AB135: 13 | AC135: 04 | AD135: MACHUPICCHU | AE135: 1304 | AF135: 1304 - MACHUPICCHU
O136: 000002343 | P136: COYA | Q136: 02 | R136: 05 | S136: 04 | T136: 02 | U136: 0205 | V136: 000002343 - COYA | AB136: 13 | AC136: 05 | AD136: MARAS | AE136: 1305 | AF136: 1305 - MARAS
O137: 000002344 | P137: LAMAY | Q137: 02 | R137: 05 | S137: 04 | T137: 03 | U137: 0205 | V137: 000002344 - LAMAY | AB137: 13 | AC137: 06 | AD137: OLLANTAYTAMBO | AE137: 1306 | AF137: 1306 - OLLANTAYTAMBO
O138: 000002348 | P138: PISAC | Q138: 02 | R138: 05 | S138: 04 | T138: 05 | U138: 0205 | V138: 000002348 - PISAC | AB138: 13 | AC138: 07 | AD138: YUCAY | AE138: 1307 | AF138: 1307 - YUCAY
O139: 000002349 | P139: CUYO CHICO | Q139: 02 | R139: 05 | S139: 04 | T139: 05 | U139: 0205 | V139: 000002349 - CUYO CHICO | AB139: 00 | AC139: 00 | AD139: (All) | AE139: 0000 | AF139: 0000 - (All)
O140: 000002350 | P140: CUYO GRANDE | Q140: 02 | R140: 05 | S140: 04 | T140: 05 | U140: 0205 | V140: 000002350 - CUYO GRANDE
O141: 000002351 | P141: QUELLO QUELLO | Q141: 02 | R141: 05 | S141: 04 | T141: 05 | U141: 0205 | V141: 000002351 - QUELLO QUELLO
O142: 000002352 | P142: SAN SALVADOR | Q142: 02 | R142: 05 | S142: 04 | T142: 06 | U142: 0205 | V142: 000002352 - SAN SALVADOR
O143: 000002353 | P143: TARAY | Q143: 02 | R143: 05 | S143: 04 | T143: 07 | U143: 0205 | V143: 000002353 - TARAY
O144: 000002354 | P144: HUANCALLE | Q144: 02 | R144: 05 | S144: 04 | T144: 07 | U144: 0205 | V144: =CONCATENATE(O144," - ",P144) -> 000002354 - HUANCALLE
O145: 000006970 | P145: TIRACANCHA | Q145: 02 | R145: 05 | S145: 04 | T145: 06 | U145: =CONCATENATE(Q145,R145) -> 0205 | V145: 000006970 - TIRACANCHA
O146: 000006975 | P146: SAYLLAFAYA | Q146: 02 | R146: 05 | S146: 04 | T146: 03 | U146: 0205 | V146: 000006975 - SAYLLAFAYA
O147: 000007145 | P147: HUAMA | Q147: 02 | R147: 05 | S147: 04 | T147: 03 | U147: 0205 | V147: 000007145 - HUAMA
O148: 000007146 | P148: POQUES | Q148: 02 | R148: 05 | S148: 04 | T148: 03 | U148: 0205 | V148: 000007146 - POQUES
O149: 000025368 | P149: HUARQUI | Q149: 02 | R149: 05 | S149: 04 | T149: 03 | U149: 0205 | V149: 000025368 - HUARQUI
O150: 000000000 | P150: (All) | Q150: 02 | R150: 06 | U150: 0206 | V150: 000000000 - (All)
O151: 000002341 | P151: CALCA | Q151: 02 | R151: 06 | S151: 04 | T151: 01 | U151: 0206 | V151: 000002341 - CALCA
O152: 000002342 | P152: AMPARAES | Q152: 02 | R152: 06 | S152: 04 | T152: 04 | U152: 0206 | V152: 000002342 - AMPARAES
O153: 000002345 | P153: CCACHIN | Q153: 02 | R153: 06 | S153: 04 | T153: 04 | U153: 0206 | V153: 000002345 - CCACHIN
O154: 000002346 | P154: CHOQUECANCHA | Q154: 02 | R154: 06 | S154: 04 | T154: 04 | U154: 0206 | V154: 000002346 - CHOQUECANCHA
O155: 000002347 | P155: LARES | Q155: 02 | R155: 06 | S155: 04 | T155: 04 | U155: 0206 | V155: 000002347 - LARES
O156: 000002361 | P156: SUYO | Q156: 02 | R156: 06 | S156: 04 | T156: 04 | U156: 0206 | V156: 000002361 - SUYO
O157: 000002515 | P157: PAROBAMBA | Q157: 02 | R157: 06 | S157: 11 | T157: 03 | U157: 0206 | V157: 000002515 - PAROBAMBA
O158: 000007143 | P158: OTOCANI | Q158: 02 | R158: 06 | S158: 11 | T158: 03 | U158: 0206 | V158: 000007143 - OTOCANI
O159: 000007144 | P159: PATABAMBA | Q159: 02 | R159: 06 | S159: 04 | T159: 07 | U159: 0206 | V159: 000007144 - PATABAMBA
O160: 000010069 | P160: ESSALUD-CALCA | Q160: 02 | R160: 06 | S160: 04 | T160: 01 | U160: 0206 | V160: 000010069 - ESSALUD-CALCA
O161: 000010759 | P161: HUARAN | Q161: 02 | R161: 06 | S161: 04 | T161: 01 | U161: 0206 | V161: 000010759 - HUARAN
O162: 000010762 | P162: ACCHA ALTA - PAMPALLACTA | Q162: 02 | R162: 06 | S162: 04 | T162: 01 | U162: 0206 | V162: 000010762 - ACCHA ALTA - PAMPALLACTA
O163: 000026273 | P163: MENTAL COMUNITARIO CALCA | Q163: 02 | R163: 06 | S163: 04 | T163: 01 | U163: 0206 | V163: 000026273 - MENTAL COMUNITARIO CALCA
O164: 000000000 | P164: (All) | Q164: 02 | R164: 07 | U164: 0207 | V164: 000000000 - (All)
O165: 000002540 | P165: URUBAMBA | Q165: 02 | R165: 07 | S165: 13 | T165: 01 | U165: 0207 | V165: 000002540 - URUBAMBA
O166: 000002541 | P166: YANAHUARA | Q166: 02 | R166: 07 | S166: 13 | T166: 01 | U166: 0207 | V166: 000002541 - YANAHUARA
O167: 000002543 | P167: CHINCHERO | Q167: 02 | R167: 07 | S167: 13 | T167: 02 | U167: 0207 | V167: 000002543 - CHINCHERO
O168: 000002544 | P168: OCCOTUAN | Q168: 02 | R168: 07 | S168: 13 | T168: 02 | U168: 0207 | V168: 000002544 - OCCOTUAN
O169: 000002545 | P169: HUAYLLABAMBA | Q169: 02 | R169: 07 | S169: 13 | T169: 03 | U169: 0207 | V169: 000002545 - HUAYLLABAMBA
O170: 000002546 | P170: MACHUPICCHU | Q170: 02 | R170: 07 | S170: 13 | T170: 04 | U170: 0207 | V170: 000002546 - MACHUPICCHU
O171: 000002547 | P171: COLLPANI | Q171: 02 | R171: 07 | S171: 13 | T171: 04 | U171: 0207 | V171: 000002547 - COLLPANI
O172: 000002548 | P172: MARAS | Q172: 02 | R172: 07 | S172: 13 | T172: 05 | U172: 0207 | V172: 000002548 - MARAS
O173: 000002549 | P173: OLLANTAYTAMBO | Q173: 02 | R173: 07 | S173: 13 | T173: 06 | U173: 0207 | V173: 000002549 - OLLANTAYTAMBO
O174: 000002550 | P174: CHILLCA | Q174: 02 | R174: 07 | S174: 13 | T174: 06 | U174: 0207 | V174: 000002550 - CHILLCA
O175: 000002551 | P175: YUCAY | Q175: 02 | R175: 07 | S175: 13 | T175: 07 | U175: 0207 | V175: 000002551 - YUCAY
O176: 000006974 | P176: CAMINO INCA HUAYLLABAMBA | Q176: 02 | R176: 07 | S176: 13 | T176: 04 | U176: 0207 | V176: 000006974 - CAMINO INCA HUAYLLABAMBA
O177: 000010060 | P177: ESSALUD-URUBAMBA | Q177: 02 | R177: 07 | S177: 13 | T177: 01 | U177: 0207 | V177: 000010060 - ESSALUD-URUBAMBA
O178: 000010073 | P178: ESSALUD-MACHU PICCHU | Q178: 02 | R178: 07 | S178: 13 | T178: 04 | U178: 0207 | V178: 000010073 - ESSALUD-MACHU PICCHU
O179: 000010758 | P179: CRUZPATA | Q179: 02 | R179: 07 | S179: 13 | T179: 05 | U179: 0207 | V179: 000010758 - CRUZPATA
O180: 000010760 | P180: PATACANCHA | Q180: 02 | R180: 07 | S180: 13 | T180: 06 | U180: 0207 | V180: 000010760 - PATACANCHA
O181: 000030666 | P181: MENTAL COMUNITARIO URUBAMBA | Q181: 02 | R181: 07 | S181: 13 | T181: 01 | U181: 0207 | V181: 000030666 - MENTAL COMUNITARIO URUBAMBA
O182: 000000000 | P182: (All) | Q182: 02 | R182: 08 | U182: 0208 | V182: 000000000 - (All)
O183: 000002355 | P183: LA QUEBRADA | Q183: 02 | R183: 08 | S183: 04 | T183: 08 | U183: 0208 | V183: 000002355 - LA QUEBRADA
O184: 000002356 | P184: CCORIMAYO | Q184: 02 | R184: 08 | S184: 04 | T184: 08 | U184: 0208 | V184: 000002356 - CCORIMAYO
O185: 000002357 | P185: COLCCA YANATILE | Q185: 02 | R185: 08 | S185: 04 | T185: 08 | U185: 0208 | V185: 000002357 - COLCCA YANATILE
O186: 000002358 | P186: MUYUPAY | Q186: 02 | R186: 08 | S186: 04 | T186: 08 | U186: 0208 | V186: 000002358 - MUYUPAY
O187: 000002359 | P187: PUTUCUSI | Q187: 02 | R187: 08 | S187: 04 | T187: 08 | U187: 0208 | V187: 000002359 - PUTUCUSI
O188: 000002360 | P188: QUESQUENTO | Q188: 02 | R188: 08 | S188: 04 | T188: 08 | U188: 0208 | V188: 000002360 - QUESQUENTO
O189: 000002362 | P189: HUACHIBAMBA | Q189: 02 | R189: 08 | S189: 04 | T189: 08 | U189: 0208 | V189: 000002362 - HUACHIBAMBA
O190: 000002464 | P190: VERSALLES | Q190: 02 | R190: 08 | S190: 09 | T190: 05 | U190: 0208 | V190: 000002464 - VERSALLES
O191: 000002467 | P191: PUENTE SANTIAGO | Q191: 02 | R191: 08 | S191: 09 | T191: 06 | U191: 0208 | V191: 000002467 - PUENTE SANTIAGO
O192: 000006971 | P192: COMBAPATA YANATILE | Q192: 02 | R192: 08 | S192: 04 | T192: 08 | U192: 0208 | V192: 000006971 - COMBAPATA YANATILE
O193: 000006973 | P193: BELLAVISTA | Q193: 02 | R193: 08 | S193: 04 | T193: 08 | U193: 0208 | V193: 000006973 - BELLAVISTA
O194: 000007142 | P194: CHANCAMAYO | Q194: 02 | R194: 08 | S194: 04 | T194: 08 | U194: 0208 | V194: 000007142 - CHANCAMAYO
O195: 000000000 | P195: (All) | Q195: 02 | R195: 09 | U195: 0209 | V195: 000000000 - (All)
O196: 000002290 | P196: SAN PEDRO CUSCO | Q196: 02 | R196: 09 | S196: 01 | T196: 01 | U196: 0209 | V196: 000002290 - SAN PEDRO CUSCO
O197: 000002291 | P197: SIETE CUARTONES | Q197: 02 | R197: 09 | S197: 01 | T197: 01 | U197: 0209 | V197: 000002291 - SIETE CUARTONES
O198: 000002293 | P198: MIRAFLORES | Q198: 02 | R198: 09 | S198: 01 | T198: 01 | U198: 0209 | V198: 000002293 - MIRAFLORES
O199: 000002294 | P199: PICCHU LA RINCONADA | Q199: 02 | R199: 09 | S199: 01 | T199: 01 | U199: 0209 | V199: 000002294 - PICCHU LA RINCONADA
O200: 000002295 | P200: BUENA VISTA | Q200: 02 | R200: 09 | S200: 01 | T200: 01 | U200: 0209 | V200: 000002295 - BUENA VISTA
O201: 000002299 | P201: POROY | Q201: 02 | R201: 09 | S201: 01 | T201: 03 | U201: 0209 | V201: 000002299 - POROY
O202: 999999999 | P202: (All) | Q202: 02 | R202: 99 | U202: 0299 | V202: 999999999 - (All)
O203: 000002421 | P203: HOSPITAL QUILLABAMBA | Q203: 03 | R203: 00 | S203: 09 | T203: 01 | U203: =CONCATENATE(Q203,R203) -> 0300 | V203: =CONCATENATE(O203," - ",P203) -> 000002421 - HOSPITAL QUILLABAMBA
O204: 000000000 | P204: (All) | Q204: 03 | R204: 01 | U204: =CONCATENATE(Q204,R204) -> 0301 | V204: =CONCATENATE(O204," - ",P204) -> 000000000 - (All)
O205: 000002422 | P205: HUAYANAY | Q205: 03 | R205: 01 | S205: 09 | T205: 01 | U205: =CONCATENATE(Q205,R205) -> 0301 | V205: =CONCATENATE(O205," - ",P205) -> 000002422 - HUAYANAY
O206: 000002423 | P206: IDMA | Q206: 03 | R206: 01 | S206: 09 | T206: 01 | U206: 0301 | V206: =CONCATENATE(O206," - ",P206) -> 000002423 - IDMA
O207: 000002424 | P207: POTRERO | Q207: 03 | R207: 01 | S207: 09 | T207: 01 | U207: 0301 | V207: =CONCATENATE(O207," - ",P207) -> 000002424 - POTRERO
O208: 000002425 | P208: ECHARATE | Q208: 03 | R208: 01 | S208: 09 | T208: 02 | U208: 0301 | V208: 000002425 - ECHARATE
... 230 more rows

Sheet TD (hidden)
B2: Datos | F2: Tabla | G2: =IF(F3="(Todas)","CUSCO ","") -> 
B3: RED | C3: 03 - LA CONVENCION | F3: =TRIM(MID(C3,5,90)) -> LA CONVENCION | G3: =IF(F3="(All)"," ",F3) -> LA CONVENCION
B4: Micro Red | C4: 0399 - (All) | F4: =TRIM(MID(C4,7,90)) -> (All)
B5: Establecimiento | C5: 999999999 - (All) | F5: =TRIM(MID(C5,12,90)) -> (All)
B6: Provincia | C6: 00 - (All) | F6: =TRIM(MID(C6,6,90)) -> (All)
B7: Distrito | C7: 0000 - (All) | F7: =TRIM(MID(C7,8,90)) -> (All)
B8: UE | C8: 7777 - (All) | F8: =TRIM(MID(C8,8,90)) -> (All)
B10: AÑO | C10: 2024
B11: MESES | C11: 1 | D11: 2 | E11: 3 | F11: 4 | G11: 5 | H11: 6 | I11: 7 | J11: 8 | K11: 9 | L11: 10 | M11: 11 | N11: 0
B12: Mes_desc | C12: =IF(C11=1,"ENERO","") -> ENERO | D12: =IF(D11=2,"FEBRERO","") -> FEBRERO | E12: =IF(E11=3,"MARZO","") -> MARZO | F12: =IF(F11=4,"ABRIL","") -> ABRIL | G12: =IF(G11=5,"MAYO","") -> MAYO | H12: =IF(H11=6,"JUNIO","") -> JUNIO | I12: =IF(I11=7,"JULIO","") -> JULIO | J12: =IF(J11=8,"AGOSTO","") -> AGOSTO | K12: =IF(K11=9,"SETIEMBRE","") -> SETIEMBRE | L12: =IF(L11=10,"OCTUBRE","") -> OCTUBRE | M12: =IF(M11=11,"NOVIEMBRE","") -> NOVIEMBRE | N12: =IF(N11=12,"DICIEMBRE","") ->  | O12: =IF(C11=1,C12,IF(D11=2,D12,IF(E11=3,E12,IF(F11=4,F12,IF(G11=5,G12,IF(H11=6,H12,IF(I11=7,I12,IF(J11=8,J12,IF(K11=9,K12,IF(L11=10,L12,IF(M11=11,M12,IF(N11=12,N12,"")))))))))))) -> ENERO
B14: ACUMULADO | C14: 20 | D14: 22 | E14: 24 | F14: 26 | G14: 28 | H14: 30 | I14: 32 | J14: 34 | K14: 36 | L14: 38 | M14: 40 | O14: =MIN(C14:N14) -> 20 | P14: =MAX(C14:N14) -> 40
B15: Mes_desc_Acu | C15: =IF(C14=20,"ENERO","") -> ENERO | D15: =IF(D14=22,"FEBRERO","") -> FEBRERO | E15: =IF(E14=24,"MARZO","") -> MARZO | F15: =IF(F14=26,"ABRIL","") -> ABRIL | G15: =IF(G14=28,"MAYO","") -> MAYO | H15: =IF(H14=30,"JUNIO","") -> JUNIO | I15: =IF(I14=32,"JULIO","") -> JULIO | J15: =IF(J14=34,"AGOSTO","") -> AGOSTO | K15: =IF(K14=36,"SETIEMBRE","") -> SETIEMBRE | L15: =IF(L14=38,"OCTUBRE","") -> OCTUBRE | M15: =IF(M14=40,"NOVIEMBRE","") -> NOVIEMBRE | N15: =IF(N14=42,"DICIEMBRE","") ->  | O15: =IF(O14=C14,C15,IF(O14=D14,D15,IF(O14=E14,E15,IF(O14=F14,F15,IF(O14=G14,G15,IF(O14=H14,H15,IF(O14=I14,I15,IF(O14=J14,J15,IF(O14=K14,K15,IF(O14=L14,L15,IF(O14=M14,M15,IF(O14=N14,N15,"")))))))))))) -> ENERO | P15: =IF(P14=D14,D15,IF(P14=E14,E15,IF(P14=F14,F15,IF(P14=G14,G15,IF(P14=H14,H15,IF(P14=I14,I15,IF(P14=J14,J15,IF(P14=K14,K15,IF(P14=L14,L15,IF(P14=M14,M15,IF(P14=N14,N15,IF(P14=O14,O15,"")))))))))))) -> NOVIEMBRE
O16: =CONCATENATE(O15," - ",P15) -> ENERO - NOVIEMBRE
O17: =IF(O14=P14,O12,O16) -> ENERO - NOVIEMBRE
A28: Salud Mental 1
A30: Anio | B30: 2024
A31: UE | B31: (Todas)
A32: Red | B32: LA CONVENCION
A33: MicroRed | B33: (Todas)
A34: EESS | B34: (Todas)
A35: Provincia | B35: (Todas)
A36: Distrito | B36: (Todas)
A38: Etiquetas de fila | B38: CSMental_Reunion_1 | C38: CSMental_Reunion_2 | D38: CSMental_Reunion_3 | E38: CSMental_Reunion_4 | F38: CSMental_Reunion_5 | G38: CSMental_Reunion_6 | H38: CSMental_Reunion_7 | I38: CSMental_Reunion_8 | J38: CSMental_Reunion_9 | K38: CSMental_Reunion_10 | L38: CSMental_Participa_1 | M38: CSMental_Participa_2 | N38: CSMental_Participa_3 | O38: CSMental_Participa_4 | P38: CSMental_Participa_5 | Q38: CSMental_Participa_6 | R38: CSMental_Participa_7 | S38: CSMental_Participa_8 | T38: CSMental_Participa_9 | U38: CSMental_Participa_10 | V38: MedicoPsiq_Reunion_1 | W38: MedicoPsiq_Reunion_2 | X38: MedicoPsiq_Reunion_3 | Y38: MedicoPsiq_Reunion_4 | Z38: MedicoPsiq_Reunion_5 | AA38: MedicoPsiq_Reunion_6 | AB38: MedicoPsiq_Reunion_7 | AC38: MedicoPsiq_Reunion_8 | AD38: MedicoPsiq_Reunion_9 | AE38: MedicoPsiq_Reunion_10 | AF38: Psicol_Reunion_1 | AG38: Psicol_Reunion_2 | AH38: Psicol_Reunion_3 | AI38: Psicol_Reunion_4 | AJ38: Psicol_Reunion_5 | AK38: Psicol_Reunion_6 | AL38: Psicol_Reunion_7 | AM38: Psicol_Reunion_8 | AN38: Psicol_Reunion_9 | AO38: Psicol_Reunion_10 | AP38: Enferm_Reunion_1 | AQ38: Enferm_Reunion_2 | AR38: Enferm_Reunion_3 | AS38: Enferm_Reunion_4 | AT38: Enferm_Reunion_5 | AU38: Enferm_Reunion_6 | AV38: Enferm_Reunion_7 | AW38: Enferm_Reunion_8 | AX38: Enferm_Reunion_9 | AY38: Enferm_Reunion_10 | AZ38: TSocial_Reunion_1 | BA38: TSocial_Reunion_2 | BB38: TSocial_Reunion_3 | BC38: TSocial_Reunion_4 | BD38: TSocial_Reunion_5 | BE38: TSocial_Reunion_6 | BF38: TSocial_Reunion_7 | BG38: TSocial_Reunion_8 | BH38: TSocial_Reunion_9 | BI38: TSocial_Reunion_10 | BJ38: MedicoFam_Reunion_1 | BK38: MedicoFam_Reunion_2 | BL38: MedicoFam_Reunion_3 | BM38: MedicoFam_Reunion_4 | BN38: MedicoFam_Reunion_5 | BO38: MedicoFam_Reunion_6 | BP38: MedicoFam_Reunion_7 | BQ38: MedicoFam_Reunion_8 | BR38: MedicoFam_Reunion_9 | BS38: MedicoFam_Reunion_10 | BT38: Otro_Reunion_1 | BU38: Otro_Reunion_2 | BV38: Otro_Reunion_3 | BW38: Otro_Reunion_4 | BX38: Otro_Reunion_5 | BY38: Otro_Reunion_6 | BZ38: Otro_Reunion_7 | CA38: Otro_Reunion_8 | CB38: Otro_Reunion_9 | CC38: Otro_Reunion_10 | CD38: Tam_VIF_0_2F | CE38: Tam_VIF_0_2M | CF38: Tam_VIF_3_5F | CG38: Tam_VIF_3_5M | CH38: Tam_VIF_6_9F | CI38: Tam_VIF_6_9M | CJ38: Tam_VIF_10_11F | CK38: Tam_VIF_10_11M | CL38: Tam_VIF_12_14F | CM38: Tam_VIF_12_14M | CN38: Tam_VIF_15_17F | CO38: Tam_VIF_15_17M | CP38: Tam_VIF_18_24F | CQ38: Tam_VIF_18_24M | CR38: Tam_VIF_25_29F | CS38: Tam_VIF_25_29M | CT38: Tam_VIF_30_39F | CU38: Tam_VIF_30_39M | CV38: Tam_VIF_40_59F | CW38: Tam_VIF_40_59M | CX38: Tam_VIF_60_79F | CY38: Tam_VIF_60_79M | CZ38: Tam_VIF_80F | DA38: Tam_VIF_80M | DB38: Tam_VIF_TOTAL | DC38: Tam_VIF_g_10_11F | DD38: Tam_VIF_g_12_14F | DE38: Tam_VIF_g_15_17F | DF38: Tam_VIF_g_18_24F | DG38: Tam_VIF_g_25_29F | DH38: Tam_VIF_g_30_39F | DI38: Tam_VIF_g_40_59F | DJ38: Tam_TD_10_11F | DK38: Tam_TD_10_11M | DL38: Tam_TD_12_14F | DM38: Tam_TD_12_14M | DN38: Tam_TD_15_17F | DO38: Tam_TD_15_17M | DP38: Tam_TD_18_24F | DQ38: Tam_TD_18_24M | DR38: Tam_TD_25_29F | DS38: Tam_TD_25_29M | DT38: Tam_TD_30_39F | DU38: Tam_TD_30_39M | DV38: Tam_TD_40_59F | DW38: Tam_TD_40_59M | DX38: Tam_TD_60_79F | DY38: Tam_TD_60_79M | DZ38: Tam_TD_80F | EA38: Tam_TD_80M | EB38: Tam_TD_TOTAL | EC38: Tam_TD_g_10_11F | ED38: Tam_TD_g_12_14F | EE38: Tam_TD_g_15_17F | EF38: Tam_TD_g_18_24F | EG38: Tam_TD_g_25_29F | EH38: Tam_TD_g_30_39F | EI38: Tam_TD_g_40_59F | EJ38: Tam_AD_6_9F | EK38: Tam_AD_6_9M | EL38: Tam_AD_10_11F | EM38: Tam_AD_10_11M | EN38: Tam_AD_12_14F | EO38: Tam_AD_12_14M | EP38: Tam_AD_15_17F | EQ38: Tam_AD_15_17M | ER38: Tam_AD_18_24F | ES38: Tam_AD_18_24M | ET38: Tam_AD_25_29F | EU38: Tam_AD_25_29M | EV38: Tam_AD_30_39F | EW38: Tam_AD_30_39M | EX38: Tam_AD_40_59F | EY38: Tam_AD_40_59M | EZ38: Tam_AD_60_79F | FA38: Tam_AD_60_79M | FB38: Tam_AD_80F | FC38: Tam_AD_80M | FD38: Tam_AD_TOTAL | FE38: Tam_EP_12_14F | FF38: Tam_EP_12_14M | FG38: Tam_EP_15_17F | FH38: Tam_EP_15_17M | FI38: Tam_EP_18_24F | FJ38: Tam_EP_18_24M | FK38: Tam_EP_25_29F | FL38: Tam_EP_25_29M | FM38: Tam_EP_30_39F | FN38: Tam_EP_30_39M | FO38: Tam_EP_40_59F | FP38: Tam_EP_40_59M | FQ38: Tam_EP_60_79F | FR38: Tam_EP_60_79M | FS38: Tam_EP_80F | FT38: Tam_EP_80M | FU38: Tam_EP_TOTAL | FV38: Tam_PND_0_2F | FW38: Tam_PND_0_2M | FX38: Tam_PND_TOTAL | FY38: Tam_DCognitivo_60_79F | FZ38: Tam_DCognitivo_60_79M | GA38: Tam_DCognitivo_80F | GB38: Tam_DCognitivo_80M | GC38: Tam_DCognitivo_TOTAL | GD38: Tam_TMentalComp_3_5F | GE38: Tam_TMentalComp_3_5M | GF38: Tam_TMentalComp_6_9F | GG38: Tam_TMentalComp_6_9M | GH38: Tam_TMentalComp_10_11F | GI38: Tam_TMentalComp_10_11M | GJ38: Tam_TMentalComp_12_14F | GK38: Tam_TMentalComp_12_14M | GL38: Tam_TMentalComp_15_17F | GM38: Tam_TMentalComp_15_17M | GN38: Suma de Tam_TMentalComp_TOTAL | GO38: Tam_VIFPOS_0_2F | GP38: Tam_VIFPOS_0_2M | GQ38: Tam_VIFPOS_3_5F | GR38: Tam_VIFPOS_3_5M | GS38: Tam_VIFPOS_6_9F | GT38: Tam_VIFPOS_6_9M | GU38: Tam_VIFPOS_10_11F | GV38: Tam_VIFPOS_10_11M | GW38: Tam_VIFPOS_12_14F | GX38: Tam_VIFPOS_12_14M | GY38: Tam_VIFPOS_15_17F | GZ38: Tam_VIFPOS_15_17M | HA38: Tam_VIFPOS_18_24F | HB38: Tam_VIFPOS_18_24M | HC38: Tam_VIFPOS_25_29F | HD38: Tam_VIFPOS_25_29M | HE38: Tam_VIFPOS_30_39F | HF38: Tam_VIFPOS_30_39M | HG38: Tam_VIFPOS_40_59F | HH38: Tam_VIFPOS_40_59M | HI38: Tam_VIFPOS_60_79F | HJ38: Tam_VIFPOS_60_79M | HK38: Tam_VIFPOS_80F | HL38: Tam_VIFPOS_80M | HM38: Tam_VIFPOS_TOTAL | HN38: Tam_VIFPOS_g_10_11F | HO38: Tam_VIFPOS_g_12_14F | HP38: Tam_VIFPOS_g_15_17F | HQ38: Tam_VIFPOS_g_18_24F | HR38: Tam_VIFPOS_g_25_29F | HS38: Tam_VIFPOS_g_30_39F | HT38: Tam_VIFPOS_g_40_59F | HU38: Tam_VIFPOS_g_Total | HV38: Tam_TDPOS_10_11F | HW38: Tam_TDPOS_10_11M | HX38: Tam_TDPOS_12_14F | HY38: Tam_TDPOS_12_14M | HZ38: Tam_TDPOS_15_17F | IA38: Tam_TDPOS_15_17M | IB38: Tam_TDPOS_18_24F | IC38: Tam_TDPOS_18_24M | ID38: Tam_TDPOS_25_29F | IE38: Tam_TDPOS_25_29M | IF38: Tam_TDPOS_30_39F | IG38: Tam_TDPOS_30_39M | IH38: Tam_TDPOS_40_59F | II38: Tam_TDPOS_40_59M | IJ38: Tam_TDPOS_60_79F | IK38: Tam_TDPOS_60_79M | IL38: Tam_TDPOS_80F | IM38: Tam_TDPOS_80M | IN38: Tam_TDPOS_TOTAL
A39: 1 | B39: 0 | C39: 0 | D39: 0 | E39: 0 | F39: 0 | G39: 0 | H39: 0 | I39: 0 | J39: 0 | K39: 0 | L39: 0 | M39: 0 | N39: 0 | O39: 0 | P39: 0 | Q39: 0 | R39: 0 | S39: 0 | T39: 0 | U39: 0 | V39: 0 | W39: 0 | X39: 0 | Y39: 0 | Z39: 0 | AA39: 0 | AB39: 0 | AC39: 0 | AD39: 0 | AE39: 0 | AF39: 0 | AG39: 0 | AH39: 0 | AI39: 0 | AJ39: 0 | AK39: 0 | AL39: 0 | AM39: 0 | AN39: 0 | AO39: 0 | AP39: 0 | AQ39: 0 | AR39: 0 | AS39: 0 | AT39: 0 | AU39: 0 | AV39: 0 | AW39: 0 | AX39: 0 | AY39: 0 | AZ39: 0 | BA39: 0 | BB39: 0 | BC39: 0 | BD39: 0 | BE39: 0 | BF39: 0 | BG39: 0 | BH39: 0 | BI39: 0 | BJ39: 0 | BK39: 0 | BL39: 0 | BM39: 0 | BN39: 0 | BO39: 0 | BP39: 0 | BQ39: 0 | BR39: 0 | BS39: 0 | BT39: 0 | BU39: 0 | BV39: 0 | BW39: 0 | BX39: 0 | BY39: 0 | BZ39: 0 | CA39: 0 | CB39: 0 | CC39: 0 | CD39: 659 | CE39: 676 | CF39: 383 | CG39: 406 | CH39: 37 | CI39: 51 | CJ39: 10 | CK39: 10 | CL39: 26 | CM39: 15 | CN39: 85 | CO39: 21 | CP39: 450 | CQ39: 32 | CR39: 377 | CS39: 19 | CT39: 825 | CU39: 48 | CV39: 510 | CW39: 92 | CX39: 80 | CY39: 67 | CZ39: 9 | DA39: 9 | DB39: 4897 | DC39: 0 | DD39: 3 | DE39: 14 | DF39: 51 | DG39: 25 | DH39: 53 | DI39: 6 | DJ39: 0 | DK39: 0 | DL39: 4 | DM39: 2 | DN39: 6 | DO39: 3 | DP39: 29 | DQ39: 29 | DR39: 15 | DS39: 3 | DT39: 46 | DU39: 7 | DV39: 59 | DW39: 32 | DX39: 35 | DY39: 21 | DZ39: 4 | EA39: 5 | EB39: 300 | EC39: 0 | ED39: 0 | EE39: 0 | EF39: 2 | EG39: 1 | EH39: 5 | EI39: 1 | EJ39: 0 | EK39: 0 | EL39: 0 | EM39: 0 | EN39: 1 | EO39: 0 | EP39: 4 | EQ39: 2 | ER39: 43 | ES39: 32 | ET39: 8 | EU39: 8 | EV39: 28 | EW39: 19 | EX39: 35 | EY39: 25 | EZ39: 20 | FA39: 14 | FB39: 1 | FC39: 1 | FD39: 241 | FE39: 0 | FF39: 0 | FG39: 9 | FH39: 0 | FI39: 13 | FJ39: 4 | FK39: 11 | FL39: 1 | FM39: 29 | FN39: 3 | FO39: 17 | FP39: 13 | FQ39: 15 | FR39: 6 | FS39: 0 | FT39: 1 | FU39: 122 | FV39: 5 | FW39: 5 | FX39: 10 | FY39: 23 | FZ39: 17 | GA39: 2 | GB39: 8 | GC39: 50 | GD39: 4 | GE39: 3 | GF39: 9 | GG39: 13 | GH39: 6 | GI39: 3 | GJ39: 6 | GK39: 10 | GL39: 6 | GM39: 4 | GN39: 64 | GO39: 0 | GP39: 0 | GQ39: 0 | GR39: 3 | GS39: 3 | GT39: 4 | GU39: 2 | GV39: 0 | GW39: 7 | GX39: 1 | GY39: 2 | GZ39: 2 | HA39: 7 | HB39: 1 | HC39: 11 | HD39: 0 | HE39: 21 | HF39: 3 | HG39: 16 | HH39: 3 | HI39: 1 | HJ39: 0 | HK39: 0 | HL39: 0 | HM39: 87 | HN39: 0 | HO39: 0 | HP39: 0 | HQ39: 0 | HR39: 1 | HS39: 0 | HT39: 0 | HU39: 1 | HV39: 0 | HW39: 0 | HX39: 1 | HY39: 0 | HZ39: 2 | IA39: 1 | IB39: 10 | IC39: 6 | ID39: 3 | IE39: 2 | IF39: 10 | IG39: 2 | IH39: 17 | II39: 11 | IJ39: 10 | IK39: 4 | IL39: 1 | IM39: 1 | IN39: 81
A40: 2 | B40: 0 | C40: 0 | D40: 0 | E40: 0 | F40: 0 | G40: 0 | H40: 0 | I40: 0 | J40: 0 | K40: 0 | L40: 0 | M40: 0 | N40: 0 | O40: 0 | P40: 0 | Q40: 0 | R40: 0 | S40: 0 | T40: 0 | U40: 0 | V40: 0 | W40: 0 | X40: 0 | Y40: 0 | Z40: 0 | AA40: 0 | AB40: 0 | AC40: 0 | AD40: 0 | AE40: 0 | AF40: 0 | AG40: 0 | AH40: 0 | AI40: 0 | AJ40: 0 | AK40: 0 | AL40: 0 | AM40: 0 | AN40: 0 | AO40: 0 | AP40: 0 | AQ40: 0 | AR40: 0 | AS40: 0 | AT40: 0 | AU40: 0 | AV40: 0 | AW40: 0 | AX40: 0 | AY40: 0 | AZ40: 0 | BA40: 0 | BB40: 0 | BC40: 0 | BD40: 0 | BE40: 0 | BF40: 0 | BG40: 0 | BH40: 0 | BI40: 0 | BJ40: 0 | BK40: 0 | BL40: 0 | BM40: 0 | BN40: 0 | BO40: 0 | BP40: 0 | BQ40: 0 | BR40: 0 | BS40: 0 | BT40: 0 | BU40: 0 | BV40: 0 | BW40: 0 | BX40: 0 | BY40: 0 | BZ40: 0 | CA40: 0 | CB40: 0 | CC40: 0 | CD40: 572 | CE40: 624 | CF40: 353 | CG40: 347 | CH40: 63 | CI40: 58 | CJ40: 36 | CK40: 26 | CL40: 37 | CM40: 12 | CN40: 98 | CO40: 15 | CP40: 414 | CQ40: 42 | CR40: 368 | CS40: 18 | CT40: 717 | CU40: 42 | CV40: 497 | CW40: 94 | CX40: 68 | CY40: 61 | CZ40: 8 | DA40: 8 | DB40: 4578 | DC40: 0 | DD40: 1 | DE40: 17 | DF40: 38 | DG40: 24 | DH40: 34 | DI40: 4 | DJ40: 0 | DK40: 1 | DL40: 7 | DM40: 4 | DN40: 8 | DO40: 4 | DP40: 39 | DQ40: 21 | DR40: 26 | DS40: 6 | DT40: 52 | DU40: 11 | DV40: 71 | DW40: 33 | DX40: 36 | DY40: 35 | DZ40: 7 | EA40: 5 | EB40: 366 | EC40: 0 | ED40: 0 | EE40: 0 | EF40: 4 | EG40: 4 | EH40: 7 | EI40: 0 | EJ40: 0 | EK40: 0 | EL40: 0 | EM40: 0 | EN40: 5 | EO40: 3 | EP40: 8 | EQ40: 3 | ER40: 21 | ES40: 21 | ET40: 13 | EU40: 9 | EV40: 27 | EW40: 10 | EX40: 37 | EY40: 39 | EZ40: 27 | FA40: 23 | FB40: 2 | FC40: 0 | FD40: 248 | FE40: 2 | FF40: 1 | FG40: 3 | FH40: 3 | FI40: 20 | FJ40: 34 | FK40: 8 | FL40: 3 | FM40: 23 | FN40: 3 | FO40: 24 | FP40: 14 | FQ40: 19 | FR40: 18 | FS40: 3 | FT40: 1 | FU40: 179 | FV40: 4 | FW40: 3 | FX40: 7 | FY40: 30 | FZ40: 23 | GA40: 9 | GB40: 13 | GC40: 75 | GD40: 5 | GE40: 6 | GF40: 12 | GG40: 25 | GH40: 7 | GI40: 8 | GJ40: 5 | GK40: 8 | GL40: 1 | GM40: 1 | GN40: 78 | GO40: 0 | GP40: 0 | GQ40: 0 | GR40: 0 | GS40: 3 | GT40: 2 | GU40: 1 | GV40: 3 | GW40: 3 | GX40: 2 | GY40: 3 | GZ40: 1 | HA40: 9 | HB40: 0 | HC40: 10 | HD40: 1 | HE40: 19 | HF40: 1 | HG40: 16 | HH40: 1 | HI40: 2 | HJ40: 2 | HK40: 2 | HL40: 0 | HM40: 81 | HN40: 0 | HO40: 0 | HP40: 0 | HQ40: 1 | HR40: 0 | HS40: 0 | HT40: 0 | HU40: 1 | HV40: 0 | HW40: 0 | HX40: 0 | HY40: 1 | HZ40: 3 | IA40: 2 | IB40: 9 | IC40: 1 | ID40: 8 | IE40: 2 | IF40: 15 | IG40: 4 | IH40: 13 | II40: 4 | IJ40: 7 | IK40: 3 | IL40: 0 | IM40: 0 | IN40: 72
A41: 3 | B41: 4 | C41: 0 | D41: 0 | E41: 0 | F41: 0 | G41: 0 | H41: 0 | I41: 0 | J41: 0 | K41: 0 | L41: 25 | M41: 0 | N41: 0 | O41: 0 | P41: 0 | Q41: 0 | R41: 0 | S41: 0 | T41: 0 | U41: 0 | V41: 1 | W41: 0 | X41: 0 | Y41: 0 | Z41: 0 | AA41: 0 | AB41: 0 | AC41: 0 | AD41: 0 | AE41: 0 | AF41: 4 | AG41: 0 | AH41: 0 | AI41: 0 | AJ41: 0 | AK41: 0 | AL41: 0 | AM41: 0 | AN41: 0 | AO41: 0 | AP41: 4 | AQ41: 0 | AR41: 0 | AS41: 0 | AT41: 0 | AU41: 0 | AV41: 0 | AW41: 0 | AX41: 0 | AY41: 0 | AZ41: 0 | BA41: 0 | BB41: 0 | BC41: 0 | BD41: 0 | BE41: 0 | BF41: 0 | BG41: 0 | BH41: 0 | BI41: 0 | BJ41: 0 | BK41: 0 | BL41: 0 | BM41: 0 | BN41: 0 | BO41: 0 | BP41: 0 | BQ41: 0 | BR41: 0 | BS41: 0 | BT41: 3 | BU41: 0 | BV41: 0 | BW41: 0 | BX41: 0 | BY41: 0 | BZ41: 0 | CA41: 0 | CB41: 0 | CC41: 0 | CD41: 544 | CE41: 662 | CF41: 338 | CG41: 355 | CH41: 41 | CI41: 47 | CJ41: 16 | CK41: 10 | CL41: 47 | CM41: 20 | CN41: 88 | CO41: 10 | CP41: 360 | CQ41: 19 | CR41: 327 | CS41: 20 | CT41: 659 | CU41: 33 | CV41: 411 | CW41: 75 | CX41: 66 | CY41: 50 | CZ41: 7 | DA41: 3 | DB41: 4208 | DC41: 0 | DD41: 3 | DE41: 7 | DF41: 57 | DG41: 31 | DH41: 46 | DI41: 10 | DJ41: 2 | DK41: 1 | DL41: 6 | DM41: 3 | DN41: 12 | DO41: 2 | DP41: 62 | DQ41: 19 | DR41: 30 | DS41: 5 | DT41: 77 | DU41: 17 | DV41: 66 | DW41: 37 | DX41: 47 | DY41: 44 | DZ41: 6 | EA41: 8 | EB41: 444 | EC41: 0 | ED41: 0 | EE41: 2 | EF41: 7 | EG41: 3 | EH41: 6 | EI41: 1 | EJ41: 0 | EK41: 0 | EL41: 1 | EM41: 0 | EN41: 4 | EO41: 5 | EP41: 5 | EQ41: 3 | ER41: 37 | ES41: 19 | ET41: 17 | EU41: 10 | EV41: 63 | EW41: 23 | EX41: 52 | EY41: 51 | EZ41: 30 | FA41: 35 | FB41: 2 | FC41: 2 | FD41: 359 | FE41: 4 | FF41: 3 | FG41: 3 | FH41: 2 | FI41: 20 | FJ41: 14 | FK41: 12 | FL41: 4 | FM41: 38 | FN41: 9 | FO41: 31 | FP41: 11 | FQ41: 20 | FR41: 19 | FS41: 2 | FT41: 2 | FU41: 194 | FV41: 1 | FW41: 4 | FX41: 5 | FY41: 40 | FZ41: 36 | GA41: 12 | GB41: 5 | GC41: 93 | GD41: 6 | GE41: 7 | GF41: 8 | GG41: 14 | GH41: 9 | GI41: 1 | GJ41: 5 | GK41: 8 | GL41: 6 | GM41: 1 | GN41: 65 | GO41: 0 | GP41: 1 | GQ41: 0 | GR41: 2 | GS41: 4 | GT41: 3 | GU41: 3 | GV41: 1 | GW41: 6 | GX41: 1 | GY41: 2 | GZ41: 2 | HA41: 10 | HB41: 2 | HC41: 6 | HD41: 1 | HE41: 21 | HF41: 5 | HG41: 13 | HH41: 1 | HI41: 3 | HJ41: 0 | HK41: 1 | HL41: 0 | HM41: 88 | HN41: 0 | HO41: 0 | HP41: 0 | HQ41: 0 | HR41: 0 | HS41: 0 | HT41: 0 | HU41: 0 | HV41: 0 | HW41: 0 | HX41: 0 | HY41: 0 | HZ41: 5 | IA41: 0 | IB41: 10 | IC41: 2 | ID41: 6 | IE41: 0 | IF41: 16 | IG41: 4 | IH41: 15 | II41: 4 | IJ41: 12 | IK41: 7 | IL41: 1 | IM41: 3 | IN41: 85
A42: 4 | B42: 0 | C42: 4 | D42: 0 | E42: 0 | F42: 0 | G42: 0 | H42: 0 | I42: 0 | J42: 0 | K42: 0 | L42: 0 | M42: 34 | N42: 0 | O42: 0 | P42: 0 | Q42: 0 | R42: 0 | S42: 0 | T42: 0 | U42: 0 | V42: 0 | W42: 3 | X42: 0 | Y42: 0 | Z42: 0 | AA42: 0 | AB42: 0 | AC42: 0 | AD42: 0 | AE42: 0 | AF42: 0 | AG42: 4 | AH42: 0 | AI42: 0 | AJ42: 0 | AK42: 0 | AL42: 0 | AM42: 0 | AN42: 0 | AO42: 0 | AP42: 0 | AQ42: 4 | AR42: 0 | AS42: 0 | AT42: 0 | AU42: 0 | AV42: 0 | AW42: 0 | AX42: 0 | AY42: 0 | AZ42: 0 | BA42: 0 | BB42: 0 | BC42: 0 | BD42: 0 | BE42: 0 | BF42: 0 | BG42: 0 | BH42: 0 | BI42: 0 | BJ42: 0 | BK42: 0 | BL42: 0 | BM42: 0 | BN42: 0 | BO42: 0 | BP42: 0 | BQ42: 0 | BR42: 0 | BS42: 0 | BT42: 0 | BU42: 1 | BV42: 0 | BW42: 0 | BX42: 0 | BY42: 0 | BZ42: 0 | CA42: 0 | CB42: 0 | CC42: 0 | CD42: 604 | CE42: 670 | CF42: 358 | CG42: 378 | CH42: 146 | CI42: 167 | CJ42: 100 | CK42: 87 | CL42: 147 | CM42: 120 | CN42: 129 | CO42: 61 | CP42: 260 | CQ42: 22 | CR42: 246 | CS42: 11 | CT42: 455 | CU42: 31 | CV42: 291 | CW42: 55 | CX42: 72 | CY42: 50 | CZ42: 9 | DA42: 19 | DB42: 4488 | DC42: 0 | DD42: 2 | DE42: 14 | DF42: 47 | DG42: 43 | DH42: 62 | DI42: 10 | DJ42: 1 | DK42: 1 | DL42: 92 | DM42: 89 | DN42: 36 | DO42: 35 | DP42: 36 | DQ42: 12 | DR42: 40 | DS42: 7 | DT42: 57 | DU42: 11 | DV42: 78 | DW42: 24 | DX42: 48 | DY42: 50 | DZ42: 11 | EA42: 9 | EB42: 637 | EC42: 0 | ED42: 0 | EE42: 3 | EF42: 5 | EG42: 8 | EH42: 10 | EI42: 2 | EJ42: 0 | EK42: 1 | EL42: 0 | EM42: 1 | EN42: 35 | EO42: 37 | EP42: 24 | EQ42: 30 | ER42: 35 | ES42: 20 | ET42: 37 | EU42: 8 | EV42: 72 | EW42: 27 | EX42: 85 | EY42: 44 | EZ42: 31 | FA42: 43 | FB42: 7 | FC42: 7 | FD42: 544 | FE42: 58 | FF42: 42 | FG42: 30 | FH42: 34 | FI42: 8 | FJ42: 10 | FK42: 9 | FL42: 2 | FM42: 15 | FN42: 4 | FO42: 22 | FP42: 6 | FQ42: 18 | FR42: 14 | FS42: 2 | FT42: 3 | FU42: 277 | FV42: 0 | FW42: 1 | FX42: 1 | FY42: 21 | FZ42: 20 | GA42: 3 | GB42: 5 | GC42: 49 | GD42: 2 | GE42: 8 | GF42: 9 | GG42: 12 | GH42: 6 | GI42: 4 | GJ42: 44 | GK42: 37 | GL42: 28 | GM42: 25 | GN42: 175 | GO42: 1 | GP42: 0 | GQ42: 1 | GR42: 1 | GS42: 0 | GT42: 3 | GU42: 2 | GV42: 4 | GW42: 4 | GX42: 2 | GY42: 5 | GZ42: 2 | HA42: 9 | HB42: 2 | HC42: 8 | HD42: 0 | HE42: 15 | HF42: 3 | HG42: 19 | HH42: 2 | HI42: 2 | HJ42: 1 | HK42: 0 | HL42: 1 | HM42: 87 | HN42: 0 | HO42: 0 | HP42: 0 | HQ42: 0 | HR42: 0 | HS42: 1 | HT42: 0 | HU42: 1 | HV42: 0 | HW42: 0 | HX42: 4 | HY42: 1 | HZ42: 4 | IA42: 2 | IB42: 10 | IC42: 5 | ID42: 7 | IE42: 5 | IF42: 13 | IG42: 2 | IH42: 18 | II42: 2 | IJ42: 14 | IK42: 8 | IL42: 3 | IM42: 4 | IN42: 102
A43: 5 | B43: 0 | C43: 0 | D43: 4 | E43: 0 | F43: 0 | G43: 0 | H43: 0 | I43: 0 | J43: 0 | K43: 0 | L43: 0 | M43: 0 | N43: 29 | O43: 0 | P43: 0 | Q43: 0 | R43: 0 | S43: 0 | T43: 0 | U43: 0 | V43: 0 | W43: 0 | X43: 2 | Y43: 0 | Z43: 0 | AA43: 0 | AB43: 0 | AC43: 0 | AD43: 0 | AE43: 0 | AF43: 0 | AG43: 0 | AH43: 4 | AI43: 0 | AJ43: 0 | AK43: 0 | AL43: 0 | AM43: 0 | AN43: 0 | AO43: 0 | AP43: 0 | AQ43: 0 | AR43: 4 | AS43: 0 | AT43: 0 | AU43: 0 | AV43: 0 | AW43: 0 | AX43: 0 | AY43: 0 | AZ43: 0 | BA43: 0 | BB43: 0 | BC43: 0 | BD43: 0 | BE43: 0 | BF43: 0 | BG43: 0 | BH43: 0 | BI43: 0 | BJ43: 0 | BK43: 0 | BL43: 0 | BM43: 0 | BN43: 0 | BO43: 0 | BP43: 0 | BQ43: 0 | BR43: 0 | BS43: 0 | BT43: 0 | BU43: 0 | BV43: 2 | BW43: 0 | BX43: 0 | BY43: 0 | BZ43: 0 | CA43: 0 | CB43: 0 | CC43: 0 | CD43: 580 | CE43: 662 | CF43: 408 | CG43: 376 | CH43: 71 | CI43: 77 | CJ43: 14 | CK43: 15 | CL43: 225 | CM43: 98 | CN43: 202 | CO43: 73 | CP43: 198 | CQ43: 9 | CR43: 167 | CS43: 9 | CT43: 259 | CU43: 27 | CV43: 186 | CW43: 49 | CX43: 35 | CY43: 37 | CZ43: 3 | DA43: 4 | DB43: 3784 | DC43: 0 | DD43: 1 | DE43: 13 | DF43: 52 | DG43: 24 | DH43: 48 | DI43: 6 | DJ43: 0 | DK43: 2 | DL43: 23 | DM43: 17 | DN43: 9 | DO43: 4 | DP43: 22 | DQ43: 11 | DR43: 27 | DS43: 6 | DT43: 54 | DU43: 17 | DV43: 61 | DW43: 26 | DX43: 39 | DY43: 34 | DZ43: 7 | EA43: 4 | EB43: 363 | EC43: 0 | ED43: 0 | EE43: 0 | EF43: 6 | EG43: 5 | EH43: 8 | EI43: 1 | EJ43: 2 | EK43: 0 | EL43: 0 | EM43: 0 | EN43: 51 | EO43: 6 | EP43: 18 | EQ43: 3 | ER43: 35 | ES43: 6 | ET43: 34 | EU43: 3 | EV43: 55 | EW43: 19 | EX43: 54 | EY43: 35 | EZ43: 10 | FA43: 15 | FB43: 2 | FC43: 3 | FD43: 351 | FE43: 17 | FF43: 15 | FG43: 2 | FH43: 1 | FI43: 2 | FJ43: 0 | FK43: 2 | FL43: 1 | FM43: 3 | FN43: 0 | FO43: 8 | FP43: 1 | FQ43: 3 | FR43: 2 | FS43: 0 | FT43: 0 | FU43: 57 | FV43: 1 | FW43: 3 | FX43: 4 | FY43: 6 | FZ43: 6 | GA43: 3 | GB43: 2 | GC43: 17 | GD43: 0 | GE43: 2 | GF43: 2 | GG43: 5 | GH43: 2 | GI43: 5 | GJ43: 3 | GK43: 3 | GL43: 9 | GM43: 8 | GN43: 39 | GO43: 0 | GP43: 0 | GQ43: 1 | GR43: 4 | GS43: 3 | GT43: 3 | GU43: 1 | GV43: 2 | GW43: 4 | GX43: 0 | GY43: 4 | GZ43: 4 | HA43: 6 | HB43: 1 | HC43: 9 | HD43: 0 | HE43: 10 | HF43: 0 | HG43: 11 | HH43: 1 | HI43: 2 | HJ43: 0 | HK43: 0 | HL43: 0 | HM43: 66 | HN43: 0 | HO43: 0 | HP43: 0 | HQ43: 0 | HR43: 0 | HS43: 0 | HT43: 0 | HU43: 0 | HV43: 0 | HW43: 0 | HX43: 1 | HY43: 1 | HZ43: 5 | IA43: 0 | IB43: 8 | IC43: 2 | ID43: 10 | IE43: 2 | IF43: 14 | IG43: 4 | IH43: 20 | II43: 5 | IJ43: 12 | IK43: 8 | IL43: 3 | IM43: 2 | IN43: 97
A44: 6 | B44: 0 | C44: 0 | D44: 0 | E44: 4 | F44: 0 | G44: 0 | H44: 0 | I44: 0 | J44: 0 | K44: 0 | L44: 0 | M44: 0 | N44: 0 | O44: 34 | P44: 0 | Q44: 0 | R44: 0 | S44: 0 | T44: 0 | U44: 0 | V44: 0 | W44: 0 | X44: 0 | Y44: 3 | Z44: 0 | AA44: 0 | AB44: 0 | AC44: 0 | AD44: 0 | AE44: 0 | AF44: 0 | AG44: 0 | AH44: 0 | AI44: 4 | AJ44: 0 | AK44: 0 | AL44: 0 | AM44: 0 | AN44: 0 | AO44: 0 | AP44: 0 | AQ44: 0 | AR44: 0 | AS44: 4 | AT44: 0 | AU44: 0 | AV44: 0 | AW44: 0 | AX44: 0 | AY44: 0 | AZ44: 0 | BA44: 0 | BB44: 0 | BC44: 0 | BD44: 0 | BE44: 0 | BF44: 0 | BG44: 0 | BH44: 0 | BI44: 0 | BJ44: 0 | BK44: 0 | BL44: 0 | BM44: 0 | BN44: 0 | BO44: 0 | BP44: 0 | BQ44: 0 | BR44: 0 | BS44: 0 | BT44: 0 | BU44: 0 | BV44: 0 | BW44: 0 | BX44: 0 | BY44: 0 | BZ44: 0 | CA44: 0 | CB44: 0 | CC44: 0 | CD44: 596 | CE44: 639 | CF44: 335 | CG44: 364 | CH44: 62 | CI44: 62 | CJ44: 18 | CK44: 34 | CL44: 144 | CM44: 156 | CN44: 256 | CO44: 237 | CP44: 216 | CQ44: 23 | CR44: 147 | CS44: 18 | CT44: 290 | CU44: 25 | CV44: 145 | CW44: 36 | CX44: 39 | CY44: 18 | CZ44: 3 | DA44: 0 | DB44: 3863 | DC44: 0 | DD44: 0 | DE44: 14 | DF44: 44 | DG44: 30 | DH44: 72 | DI44: 7 | DJ44: 2 | DK44: 0 | DL44: 35 | DM44: 19 | DN44: 40 | DO44: 31 | DP44: 24 | DQ44: 6 | DR44: 26 | DS44: 5 | DT44: 43 | DU44: 16 | DV44: 53 | DW44: 28 | DX44: 29 | DY44: 16 | DZ44: 3 | EA44: 6 | EB44: 382 | EC44: 0 | ED44: 0 | EE44: 2 | EF44: 2 | EG44: 1 | EH44: 1 | EI44: 0 | EJ44: 1 | EK44: 0 | EL44: 1 | EM44: 0 | EN44: 88 | EO44: 86 | EP44: 111 | EQ44: 107 | ER44: 29 | ES44: 7 | ET44: 30 | EU44: 7 | EV44: 69 | EW44: 9 | EX44: 45 | EY44: 30 | EZ44: 13 | FA44: 16 | FB44: 1 | FC44: 4 | FD44: 654 | FE44: 22 | FF44: 19 | FG44: 25 | FH44: 32 | FI44: 2 | FJ44: 0 | FK44: 1 | FL44: 1 | FM44: 4 | FN44: 4 | FO44: 11 | FP44: 6 | FQ44: 3 | FR44: 5 | FS44: 2 | FT44: 2 | FU44: 139 | FV44: 0 | FW44: 2 | FX44: 2 | FY44: 16 | FZ44: 18 | GA44: 3 | GB44: 2 | GC44: 39 | GD44: 0 | GE44: 2 | GF44: 4 | GG44: 9 | GH44: 2 | GI44: 1 | GJ44: 1 | GK44: 4 | GL44: 1 | GM44: 4 | GN44: 28 | GO44: 0 | GP44: 0 | GQ44: 0 | GR44: 1 | GS44: 2 | GT44: 3 | GU44: 1 | GV44: 0 | GW44: 4 | GX44: 4 | GY44: 7 | GZ44: 2 | HA44: 6 | HB44: 0 | HC44: 3 | HD44: 0 | HE44: 21 | HF44: 2 | HG44: 10 | HH44: 0 | HI44: 4 | HJ44: 1 | HK44: 0 | HL44: 0 | HM44: 71 | HN44: 0 | HO44: 0 | HP44: 0 | HQ44: 1 | HR44: 0 | HS44: 2 | HT44: 0 | HU44: 3 | HV44: 1 | HW44: 0 | HX44: 6 | HY44: 0 | HZ44: 6 | IA44: 0 | IB44: 8 | IC44: 1 | ID44: 7 | IE44: 3 | IF44: 16 | IG44: 5 | IH44: 9 | II44: 10 | IJ44: 6 | IK44: 1 | IL44: 0 | IM44: 0 | IN44: 79
A45: 7 | B45: 0 | C45: 0 | D45: 0 | E45: 0 | F45: 4 | G45: 0 | H45: 0 | I45: 0 | J45: 0 | K45: 0 | L45: 0 | M45: 0 | N45: 0 | O45: 0 | P45: 35 | Q45: 0 | R45: 0 | S45: 0 | T45: 0 | U45: 0 | V45: 0 | W45: 0 | X45: 0 | Y45: 0 | Z45: 2 | AA45: 0 | AB45: 0 | AC45: 0 | AD45: 0 | AE45: 0 | AF45: 0 | AG45: 0 | AH45: 0 | AI45: 0 | AJ45: 4 | AK45: 0 | AL45: 0 | AM45: 0 | AN45: 0 | AO45: 0 | AP45: 0 | AQ45: 0 | AR45: 0 | AS45: 0 | AT45: 4 | AU45: 0 | AV45: 0 | AW45: 0 | AX45: 0 | AY45: 0 | AZ45: 0 | BA45: 0 | BB45: 0 | BC45: 0 | BD45: 0 | BE45: 0 | BF45: 0 | BG45: 0 | BH45: 0 | BI45: 0 | BJ45: 0 | BK45: 0 | BL45: 0 | BM45: 0 | BN45: 0 | BO45: 0 | BP45: 0 | BQ45: 0 | BR45: 0 | BS45: 0 | BT45: 0 | BU45: 0 | BV45: 0 | BW45: 0 | BX45: 0 | BY45: 0 | BZ45: 0 | CA45: 0 | CB45: 0 | CC45: 0 | CD45: 630 | CE45: 639 | CF45: 344 | CG45: 360 | CH45: 33 | CI45: 44 | CJ45: 14 | CK45: 13 | CL45: 108 | CM45: 92 | CN45: 230 | CO45: 174 | CP45: 167 | CQ45: 19 | CR45: 127 | CS45: 6 | CT45: 262 | CU45: 18 | CV45: 120 | CW45: 39 | CX45: 33 | CY45: 36 | CZ45: 7 | DA45: 4 | DB45: 3519 | DC45: 0 | DD45: 1 | DE45: 9 | DF45: 51 | DG45: 36 | DH45: 65 | DI45: 6 | DJ45: 1 | DK45: 0 | DL45: 11 | DM45: 10 | DN45: 16 | DO45: 8 | DP45: 32 | DQ45: 8 | DR45: 31 | DS45: 6 | DT45: 45 | DU45: 12 | DV45: 56 | DW45: 33 | DX45: 30 | DY45: 17 | DZ45: 1 | EA45: 1 | EB45: 318 | EC45: 0 | ED45: 0 | EE45: 0 | EF45: 3 | EG45: 2 | EH45: 1 | EI45: 1 | EJ45: 0 | EK45: 0 | EL45: 0 | EM45: 0 | EN45: 35 | EO45: 24 | EP45: 21 | EQ45: 19 | ER45: 20 | ES45: 11 | ET45: 23 | EU45: 4 | EV45: 41 | EW45: 16 | EX45: 53 | EY45: 29 | EZ45: 17 | FA45: 23 | FB45: 4 | FC45: 0 | FD45: 340 | FE45: 5 | FF45: 3 | FG45: 5 | FH45: 4 | FI45: 1 | FJ45: 1 | FK45: 4 | FL45: 0 | FM45: 4 | FN45: 3 | FO45: 10 | FP45: 9 | FQ45: 3 | FR45: 6 | FS45: 0 | FT45: 1 | FU45: 59 | FV45: 0 | FW45: 0 | FX45: 0 | FY45: 13 | FZ45: 19 | GA45: 4 | GB45: 3 | GC45: 39 | GD45: 7 | GE45: 16 | GF45: 9 | GG45: 6 | GH45: 1 | GI45: 1 | GJ45: 4 | GK45: 3 | GL45: 3 | GM45: 1 | GN45: 51 | GO45: 1 | GP45: 0 | GQ45: 2 | GR45: 0 | GS45: 0 | GT45: 2 | GU45: 1 | GV45: 0 | GW45: 3 | GX45: 2 | GY45: 6 | GZ45: 3 | HA45: 10 | HB45: 0 | HC45: 8 | HD45: 0 | HE45: 18 | HF45: 3 | HG45: 18 | HH45: 5 | HI45: 1 | HJ45: 0 | HK45: 0 | HL45: 0 | HM45: 83 | HN45: 0 | HO45: 0 | HP45: 1 | HQ45: 0 | HR45: 0 | HS45: 0 | HT45: 0 | HU45: 1 | HV45: 0 | HW45: 0 | HX45: 2 | HY45: 2 | HZ45: 5 | IA45: 0 | IB45: 8 | IC45: 1 | ID45: 7 | IE45: 1 | IF45: 9 | IG45: 4 | IH45: 12 | II45: 5 | IJ45: 6 | IK45: 2 | IL45: 0 | IM45: 0 | IN45: 64
A46: 8 | B46: 0 | C46: 0 | D46: 0 | E46: 0 | F46: 0 | G46: 4 | H46: 0 | I46: 0 | J46: 0 | K46: 0 | L46: 0 | M46: 0 | N46: 0 | O46: 0 | P46: 0 | Q46: 32 | R46: 0 | S46: 0 | T46: 0 | U46: 0 | V46: 0 | W46: 0 | X46: 0 | Y46: 0 | Z46: 0 | AA46: 1 | AB46: 0 | AC46: 0 | AD46: 0 | AE46: 0 | AF46: 0 | AG46: 0 | AH46: 0 | AI46: 0 | AJ46: 0 | AK46: 4 | AL46: 0 | AM46: 0 | AN46: 0 | AO46: 0 | AP46: 0 | AQ46: 0 | AR46: 0 | AS46: 0 | AT46: 0 | AU46: 4 | AV46: 0 | AW46: 0 | AX46: 0 | AY46: 0 | AZ46: 0 | BA46: 0 | BB46: 0 | BC46: 0 | BD46: 0 | BE46: 0 | BF46: 0 | BG46: 0 | BH46: 0 | BI46: 0 | BJ46: 0 | BK46: 0 | BL46: 0 | BM46: 0 | BN46: 0 | BO46: 0 | BP46: 0 | BQ46: 0 | BR46: 0 | BS46: 0 | BT46: 0 | BU46: 0 | BV46: 0 | BW46: 0 | BX46: 0 | BY46: 0 | BZ46: 0 | CA46: 0 | CB46: 0 | CC46: 0 | CD46: 563 | CE46: 606 | CF46: 371 | CG46: 351 | CH46: 26 | CI46: 19 | CJ46: 3 | CK46: 10 | CL46: 51 | CM46: 32 | CN46: 98 | CO46: 41 | CP46: 143 | CQ46: 18 | CR46: 129 | CS46: 11 | CT46: 250 | CU46: 38 | CV46: 153 | CW46: 42 | CX46: 34 | CY46: 24 | CZ46: 9 | DA46: 5 | DB46: 3027 | DC46: 0 | DD46: 5 | DE46: 13 | DF46: 37 | DG46: 32 | DH46: 58 | DI46: 6 | DJ46: 0 | DK46: 0 | DL46: 9 | DM46: 5 | DN46: 7 | DO46: 14 | DP46: 33 | DQ46: 6 | DR46: 31 | DS46: 7 | DT46: 67 | DU46: 15 | DV46: 64 | DW46: 15 | DX46: 21 | DY46: 20 | DZ46: 4 | EA46: 8 | EB46: 326 | EC46: 0 | ED46: 0 | EE46: 0 | EF46: 5 | EG46: 2 | EH46: 3 | EI46: 0 | EJ46: 0 | EK46: 0 | EL46: 0 | EM46: 0 | EN46: 19 | EO46: 8 | EP46: 17 | EQ46: 14 | ER46: 27 | ES46: 3 | ET46: 30 | EU46: 9 | EV46: 54 | EW46: 17 | EX46: 66 | EY46: 23 | EZ46: 20 | FA46: 19 | FB46: 1 | FC46: 7 | FD46: 334 | FE46: 7 | FF46: 6 | FG46: 5 | FH46: 8 | FI46: 1 | FJ46: 1 | FK46: 1 | FL46: 0 | FM46: 4 | FN46: 0 | FO46: 5 | FP46: 6 | FQ46: 5 | FR46: 7 | FS46: 0 | FT46: 1 | FU46: 57 | FV46: 0 | FW46: 1 | FX46: 1 | FY46: 18 | FZ46: 19 | GA46: 5 | GB46: 8 | GC46: 50 | GD46: 1 | GE46: 6 | GF46: 8 | GG46: 12 | GH46: 2 | GI46: 5 | GJ46: 4 | GK46: 5 | GL46: 3 | GM46: 0 | GN46: 46 | GO46: 0 | GP46: 0 | GQ46: 2 | GR46: 3 | GS46: 1 | GT46: 2 | GU46: 0 | GV46: 1 | GW46: 5 | GX46: 3 | GY46: 5 | GZ46: 1 | HA46: 3 | HB46: 0 | HC46: 5 | HD46: 0 | HE46: 20 | HF46: 1 | HG46: 21 | HH46: 5 | HI46: 3 | HJ46: 0 | HK46: 0 | HL46: 0 | HM46: 81 | HN46: 0 | HO46: 0 | HP46: 0 | HQ46: 1 | HR46: 0 | HS46: 0 | HT46: 1 | HU46: 2 | HV46: 0 | HW46: 0 | HX46: 1 | HY46: 1 | HZ46: 1 | IA46: 1 | IB46: 6 | IC46: 0 | ID46: 6 | IE46: 3 | IF46: 9 | IG46: 4 | IH46: 11 | II46: 0 | IJ46: 5 | IK46: 0 | IL46: 0 | IM46: 0 | IN46: 48
A47: 9 | B47: 0 | C47: 0 | D47: 0 | E47: 0 | F47: 0 | G47: 0 | H47: 4 | I47: 0 | J47: 0 | K47: 0 | L47: 0 | M47: 0 | N47: 0 | O47: 0 | P47: 0 | Q47: 0 | R47: 34 | S47: 0 | T47: 0 | U47: 0 | V47: 0 | W47: 0 | X47: 0 | Y47: 0 | Z47: 0 | AA47: 0 | AB47: 1 | AC47: 0 | AD47: 0 | AE47: 0 | AF47: 0 | AG47: 0 | AH47: 0 | AI47: 0 | AJ47: 0 | AK47: 0 | AL47: 4 | AM47: 0 | AN47: 0 | AO47: 0 | AP47: 0 | AQ47: 0 | AR47: 0 | AS47: 0 | AT47: 0 | AU47: 0 | AV47: 4 | AW47: 0 | AX47: 0 | AY47: 0 | AZ47: 0 | BA47: 0 | BB47: 0 | BC47: 0 | BD47: 0 | BE47: 0 | BF47: 0 | BG47: 0 | BH47: 0 | BI47: 0 | BJ47: 0 | BK47: 0 | BL47: 0 | BM47: 0 | BN47: 0 | BO47: 0 | BP47: 0 | BQ47: 0 | BR47: 0 | BS47: 0 | BT47: 0 | BU47: 0 | BV47: 0 | BW47: 0 | BX47: 0 | BY47: 0 | BZ47: 3 | CA47: 0 | CB47: 0 | CC47: 0 | CD47: 604 | CE47: 606 | CF47: 347 | CG47: 397 | CH47: 19 | CI47: 19 | CJ47: 7 | CK47: 7 | CL47: 196 | CM47: 164 | CN47: 150 | CO47: 127 | CP47: 148 | CQ47: 13 | CR47: 123 | CS47: 14 | CT47: 226 | CU47: 22 | CV47: 148 | CW47: 42 | CX47: 31 | CY47: 26 | CZ47: 1 | DA47: 2 | DB47: 3439 | DC47: 0 | DD47: 3 | DE47: 13 | DF47: 41 | DG47: 34 | DH47: 42 | DI47: 9 | DJ47: 0 | DK47: 1 | DL47: 49 | DM47: 26 | DN47: 54 | DO47: 41 | DP47: 41 | DQ47: 14 | DR47: 51 | DS47: 7 | DT47: 116 | DU47: 23 | DV47: 96 | DW47: 32 | DX47: 39 | DY47: 27 | DZ47: 9 | EA47: 11 | EB47: 637 | EC47: 0 | ED47: 0 | EE47: 2 | EF47: 6 | EG47: 4 | EH47: 6 | EI47: 2 | EJ47: 1 | EK47: 0 | EL47: 0 | EM47: 0 | EN47: 76 | EO47: 55 | EP47: 79 | EQ47: 72 | ER47: 34 | ES47: 12 | ET47: 33 | EU47: 12 | EV47: 86 | EW47: 30 | EX47: 62 | EY47: 57 | EZ47: 19 | FA47: 32 | FB47: 3 | FC47: 3 | FD47: 666 | FE47: 51 | FF47: 39 | FG47: 57 | FH47: 55 | FI47: 3 | FJ47: 3 | FK47: 5 | FL47: 1 | FM47: 12 | FN47: 4 | FO47: 13 | FP47: 12 | FQ47: 4 | FR47: 5 | FS47: 0 | FT47: 1 | FU47: 265 | FV47: 1 | FW47: 1 | FX47: 2 | FY47: 13 | FZ47: 17 | GA47: 3 | GB47: 6 | GC47: 39 | GD47: 2 | GE47: 6 | GF47: 13 | GG47: 10 | GH47: 2 | GI47: 3 | GJ47: 3 | GK47: 2 | GL47: 3 | GM47: 5 | GN47: 49 | GO47: 0 | GP47: 0 | GQ47: 0 | GR47: 0 | GS47: 0 | GT47: 3 | GU47: 2 | GV47: 0 | GW47: 2 | GX47: 1 | GY47: 4 | GZ47: 1 | HA47: 11 | HB47: 1 | HC47: 9 | HD47: 0 | HE47: 21 | HF47: 2 | HG47: 20 | HH47: 3 | HI47: 1 | HJ47: 0 | HK47: 0 | HL47: 0 | HM47: 81 | HN47: 0 | HO47: 0 | HP47: 1 | HQ47: 0 | HR47: 0 | HS47: 1 | HT47: 0 | HU47: 2 | HV47: 0 | HW47: 1 | HX47: 2 | HY47: 0 | HZ47: 6 | IA47: 1 | IB47: 17 | IC47: 3 | ID47: 7 | IE47: 0 | IF47: 18 | IG47: 1 | IH47: 17 | II47: 3 | IJ47: 7 | IK47: 2 | IL47: 0 | IM47: 2 | IN47: 87
A48: 10 | B48: 0 | C48: 0 | D48: 0 | E48: 0 | F48: 0 | G48: 0 | H48: 0 | I48: 3 | J48: 0 | K48: 0 | L48: 0 | M48: 0 | N48: 0 | O48: 0 | P48: 0 | Q48: 0 | R48: 0 | S48: 20 | T48: 0 | U48: 0 | V48: 0 | W48: 0 | X48: 0 | Y48: 0 | Z48: 0 | AA48: 0 | AB48: 0 | AC48: 2 | AD48: 0 | AE48: 0 | AF48: 0 | AG48: 0 | AH48: 0 | AI48: 0 | AJ48: 0 | AK48: 0 | AL48: 0 | AM48: 4 | AN48: 0 | AO48: 0 | AP48: 0 | AQ48: 0 | AR48: 0 | AS48: 0 | AT48: 0 | AU48: 0 | AV48: 0 | AW48: 3 | AX48: 0 | AY48: 0 | AZ48: 0 | BA48: 0 | BB48: 0 | BC48: 0 | BD48: 0 | BE48: 0 | BF48: 0 | BG48: 0 | BH48: 0 | BI48: 0 | BJ48: 0 | BK48: 0 | BL48: 0 | BM48: 0 | BN48: 0 | BO48: 0 | BP48: 0 | BQ48: 0 | BR48: 0 | BS48: 0 | BT48: 0 | BU48: 0 | BV48: 0 | BW48: 0 | BX48: 0 | BY48: 0 | BZ48: 0 | CA48: 2 | CB48: 0 | CC48: 0 | CD48: 596 | CE48: 620 | CF48: 394 | CG48: 395 | CH48: 27 | CI48: 28 | CJ48: 6 | CK48: 11 | CL48: 106 | CM48: 76 | CN48: 112 | CO48: 86 | CP48: 170 | CQ48: 15 | CR48: 148 | CS48: 5 | CT48: 239 | CU48: 15 | CV48: 159 | CW48: 37 | CX48: 39 | CY48: 29 | CZ48: 2 | DA48: 7 | DB48: 3322 | DC48: 0 | DD48: 1 | DE48: 11 | DF48: 40 | DG48: 46 | DH48: 42 | DI48: 7 | DJ48: 0 | DK48: 0 | DL48: 19 | DM48: 22 | DN48: 11 | DO48: 17 | DP48: 35 | DQ48: 8 | DR48: 47 | DS48: 2 | DT48: 82 | DU48: 13 | DV48: 97 | DW48: 39 | DX48: 47 | DY48: 29 | DZ48: 6 | EA48: 7 | EB48: 481 | EC48: 0 | ED48: 0 | EE48: 1 | EF48: 3 | EG48: 3 | EH48: 4 | EI48: 1 | EJ48: 0 | EK48: 0 | EL48: 0 | EM48: 1 | EN48: 65 | EO48: 80 | EP48: 38 | EQ48: 42 | ER48: 20 | ES48: 20 | ET48: 22 | EU48: 12 | EV48: 64 | EW48: 25 | EX48: 70 | EY48: 43 | EZ48: 31 | FA48: 42 | FB48: 1 | FC48: 7 | FD48: 583 | FE48: 22 | FF48: 34 | FG48: 22 | FH48: 38 | FI48: 16 | FJ48: 6 | FK48: 12 | FL48: 4 | FM48: 17 | FN48: 3 | FO48: 37 | FP48: 4 | FQ48: 18 | FR48: 13 | FS48: 2 | FT48: 2 | FU48: 250 | FV48: 4 | FW48: 3 | FX48: 7 | FY48: 20 | FZ48: 25 | GA48: 3 | GB48: 2 | GC48: 50 | GD48: 3 | GE48: 12 | GF48: 7 | GG48: 7 | GH48: 4 | GI48: 9 | GJ48: 21 | GK48: 29 | GL48: 10 | GM48: 22 | GN48: 124 | GO48: 0 | GP48: 0 | GQ48: 1 | GR48: 0 | GS48: 3 | GT48: 0 | GU48: 1 | GV48: 3 | GW48: 2 | GX48: 2 | GY48: 3 | GZ48: 1 | HA48: 8 | HB48: 0 | HC48: 4 | HD48: 0 | HE48: 15 | HF48: 0 | HG48: 13 | HH48: 3 | HI48: 0 | HJ48: 0 | HK48: 0 | HL48: 0 | HM48: 59 | HN48: 0 | HO48: 0 | HP48: 0 | HQ48: 1 | HR48: 0 | HS48: 0 | HT48: 0 | HU48: 1 | HV48: 0 | HW48: 0 | HX48: 2 | HY48: 0 | HZ48: 0 | IA48: 3 | IB48: 8 | IC48: 0 | ID48: 2 | IE48: 0 | IF48: 9 | IG48: 1 | IH48: 13 | II48: 0 | IJ48: 8 | IK48: 0 | IL48: 1 | IM48: 1 | IN48: 48
A49: 11 | B49: 0 | C49: 0 | D49: 0 | E49: 0 | F49: 0 | G49: 0 | H49: 0 | I49: 0 | J49: 4 | K49: 0 | L49: 0 | M49: 0 | N49: 0 | O49: 0 | P49: 0 | Q49: 0 | R49: 0 | S49: 0 | T49: 40 | U49: 0 | V49: 0 | W49: 0 | X49: 0 | Y49: 0 | Z49: 0 | AA49: 0 | AB49: 0 | AC49: 0 | AD49: 2 | AE49: 0 | AF49: 0 | AG49: 0 | AH49: 0 | AI49: 0 | AJ49: 0 | AK49: 0 | AL49: 0 | AM49: 0 | AN49: 4 | AO49: 0 | AP49: 0 | AQ49: 0 | AR49: 0 | AS49: 0 | AT49: 0 | AU49: 0 | AV49: 0 | AW49: 0 | AX49: 4 | AY49: 0 | AZ49: 0 | BA49: 0 | BB49: 0 | BC49: 0 | BD49: 0 | BE49: 0 | BF49: 0 | BG49: 0 | BH49: 0 | BI49: 0 | BJ49: 0 | BK49: 0 | BL49: 0 | BM49: 0 | BN49: 0 | BO49: 0 | BP49: 0 | BQ49: 0 | BR49: 0 | BS49: 0 | BT49: 0 | BU49: 0 | BV49: 0 | BW49: 0 | BX49: 0 | BY49: 0 | BZ49: 0 | CA49: 0 | CB49: 2 | CC49: 0 | CD49: 483 | CE49: 599 | CF49: 341 | CG49: 338 | CH49: 32 | CI49: 36 | CJ49: 19 | CK49: 24 | CL49: 157 | CM49: 137 | CN49: 206 | CO49: 193 | CP49: 122 | CQ49: 15 | CR49: 109 | CS49: 12 | CT49: 202 | CU49: 19 | CV49: 147 | CW49: 43 | CX49: 50 | CY49: 27 | CZ49: 9 | DA49: 5 | DB49: 3325 | DC49: 0 | DD49: 0 | DE49: 10 | DF49: 36 | DG49: 24 | DH49: 43 | DI49: 2 | DJ49: 2 | DK49: 0 | DL49: 35 | DM49: 35 | DN49: 31 | DO49: 35 | DP49: 55 | DQ49: 15 | DR49: 38 | DS49: 7 | DT49: 51 | DU49: 13 | DV49: 78 | DW49: 31 | DX49: 26 | DY49: 29 | DZ49: 2 | EA49: 1 | EB49: 484 | EC49: 0 | ED49: 0 | EE49: 1 | EF49: 4 | EG49: 2 | EH49: 5 | EI49: 0 | EJ49: 0 | EK49: 0 | EL49: 0 | EM49: 0 | EN49: 67 | EO49: 44 | EP49: 71 | EQ49: 54 | ER49: 20 | ES49: 6 | ET49: 24 | EU49: 3 | EV49: 38 | EW49: 26 | EX49: 62 | EY49: 42 | EZ49: 12 | FA49: 18 | FB49: 1 | FC49: 2 | FD49: 490 | FE49: 17 | FF49: 14 | FG49: 19 | FH49: 8 | FI49: 15 | FJ49: 2 | FK49: 16 | FL49: 3 | FM49: 35 | FN49: 13 | FO49: 23 | FP49: 10 | FQ49: 14 | FR49: 19 | FS49: 3 | FT49: 2 | FU49: 213 | FV49: 0 | FW49: 3 | FX49: 3 | FY49: 6 | FZ49: 7 | GA49: 3 | GB49: 2 | GC49: 18 | GD49: 2 | GE49: 5 | GF49: 8 | GG49: 18 | GH49: 7 | GI49: 16 | GJ49: 3 | GK49: 8 | GL49: 4 | GM49: 2 | GN49: 73 | GO49: 0 | GP49: 0 | GQ49: 1 | GR49: 0 | GS49: 1 | GT49: 3 | GU49: 0 | GV49: 0 | GW49: 4 | GX49: 0 | GY49: 4 | GZ49: 1 | HA49: 10 | HB49: 0 | HC49: 11 | HD49: 2 | HE49: 12 | HF49: 1 | HG49: 9 | HH49: 1 | HI49: 0 | HJ49: 0 | HK49: 0 | HL49: 0 | HM49: 60 | HN49: 0 | HO49: 0 | HP49: 0 | HQ49: 0 | HR49: 0 | HS49: 0 | HT49: 0 | HU49: 0 | HV49: 1 | HW49: 0 | HX49: 1 | HY49: 2 | HZ49: 0 | IA49: 1 | IB49: 10 | IC49: 0 | ID49: 6 | IE49: 3 | IF49: 6 | IG49: 0 | IH49: 16 | II49: 2 | IJ49: 5 | IK49: 3 | IL49: 0 | IM49: 0 | IN49: 56
A50: Total general | B50: 4 | C50: 4 | D50: 4 | E50: 4 | F50: 4 | G50: 4 | H50: 4 | I50: 3 | J50: 4 | K50: 0 | L50: 25 | M50: 34 | N50: 29 | O50: 34 | P50: 35 | Q50: 32 | R50: 34 | S50: 20 | T50: 40 | U50: 0 | V50: 1 | W50: 3 | X50: 2 | Y50: 3 | Z50: 2 | AA50: 1 | AB50: 1 | AC50: 2 | AD50: 2 | AE50: 0 | AF50: 4 | AG50: 4 | AH50: 4 | AI50: 4 | AJ50: 4 | AK50: 4 | AL50: 4 | AM50: 4 | AN50: 4 | AO50: 0 | AP50: 4 | AQ50: 4 | AR50: 4 | AS50: 4 | AT50: 4 | AU50: 4 | AV50: 4 | AW50: 3 | AX50: 4 | AY50: 0 | AZ50: 0 | BA50: 0 | BB50: 0 | BC50: 0 | BD50: 0 | BE50: 0 | BF50: 0 | BG50: 0 | BH50: 0 | BI50: 0 | BJ50: 0 | BK50: 0 | BL50: 0 | BM50: 0 | BN50: 0 | BO50: 0 | BP50: 0 | BQ50: 0 | BR50: 0 | BS50: 0 | BT50: 3 | BU50: 1 | BV50: 2 | BW50: 0 | BX50: 0 | BY50: 0 | BZ50: 3 | CA50: 2 | CB50: 2 | CC50: 0 | CD50: 6431 | CE50: 7003 | CF50: 3972 | CG50: 4067 | CH50: 557 | CI50: 608 | CJ50: 243 | CK50: 247 | CL50: 1244 | CM50: 922 | CN50: 1654 | CO50: 1038 | CP50: 2648 | CQ50: 227 | CR50: 2268 | CS50: 143 | CT50: 4384 | CU50: 318 | CV50: 2767 | CW50: 604 | CX50: 547 | CY50: 425 | CZ50: 67 | DA50: 66 | DB50: 42450 | DC50: 0 | DD50: 20 | DE50: 135 | DF50: 494 | DG50: 349 | DH50: 565 | DI50: 73 | DJ50: 8 | DK50: 6 | DL50: 290 | DM50: 232 | DN50: 230 | DO50: 194 | DP50: 408 | DQ50: 149 | DR50: 362 | DS50: 61 | DT50: 690 | DU50: 155 | DV50: 779 | DW50: 330 | DX50: 397 | DY50: 322 | DZ50: 60 | EA50: 65 | EB50: 4738 | EC50: 0 | ED50: 0 | EE50: 11 | EF50: 47 | EG50: 35 | EH50: 56 | EI50: 9 | EJ50: 4 | EK50: 1 | EL50: 2 | EM50: 2 | EN50: 446 | EO50: 348 | EP50: 396 | EQ50: 349 | ER50: 321 | ES50: 157 | ET50: 271 | EU50: 85 | EV50: 597 | EW50: 221 | EX50: 621 | EY50: 418 | EZ50: 230 | FA50: 280 | FB50: 25 | FC50: 36 | FD50: 4810 | FE50: 205 | FF50: 176 | FG50: 180 | FH50: 185 | FI50: 101 | FJ50: 75 | FK50: 81 | FL50: 20 | FM50: 184 | FN50: 46 | FO50: 201 | FP50: 92 | FQ50: 122 | FR50: 114 | FS50: 14 | FT50: 16 | FU50: 1812 | FV50: 16 | FW50: 26 | FX50: 42 | FY50: 206 | FZ50: 207 | GA50: 50 | GB50: 56 | GC50: 519 | GD50: 32 | GE50: 73 | GF50: 89 | GG50: 131 | GH50: 48 | GI50: 56 | GJ50: 99 | GK50: 117 | GL50: 74 | GM50: 73 | GN50: 792 | GO50: 2 | GP50: 1 | GQ50: 8 | GR50: 14 | GS50: 20 | GT50: 28 | GU50: 14 | GV50: 14 | GW50: 44 | GX50: 18 | GY50: 45 | GZ50: 20 | HA50: 89 | HB50: 7 | HC50: 84 | HD50: 4 | HE50: 193 | HF50: 21 | HG50: 166 | HH50: 25 | HI50: 19 | HJ50: 4 | HK50: 3 | HL50: 1 | HM50: 844 | HN50: 0 | HO50: 0 | HP50: 2 | HQ50: 4 | HR50: 1 | HS50: 4 | HT50: 1 | HU50: 12 | HV50: 2 | HW50: 1 | HX50: 20 | HY50: 8 | HZ50: 37 | IA50: 11 | IB50: 104 | IC50: 21 | ID50: 69 | IE50: 21 | IF50: 135 | IG50: 31 | IH50: 161 | II50: 46 | IJ50: 92 | IK50: 38 | IL50: 9 | IM50: 13 | IN50: 819
A53: Salud Mental 2
A54: Anio | B54: 2024
A55: UE | B55: (Todas)
A56: Red | B56: LA CONVENCION
A57: MicroRed | B57: (Todas)
A58: EESS | B58: (Todas)
A59: Provincia | B59: (Todas)
A60: Distrito | B60: (Todas)
A62: Etiquetas de fila | B62: Tam_TDPOS_g_10_11F | C62: Tam_TDPOS_g_12_14F | D62: Tam_TDPOS_g_15_17F | E62: Tam_TDPOS_g_18_24F | F62: Tam_TDPOS_g_25_29F | G62: Tam_TDPOS_g_30_39F | H62: Tam_TDPOS_g_40_59F | I62: Tam_TDPOS_g_TOTAL | J62: Tam_TCAPOS_10_11F | K62: Tam_TCAPOS_10_11M | L62: Tam_TCAPOS_12_14F | M62: Tam_TCAPOS_12_14M | N62: Tam_TCAPOS_15_17F | O62: Tam_TCAPOS_15_17M | P62: Tam_TCAPOS_18_24F | Q62: Tam_TCAPOS_18_24M | R62: Tam_TCAPOS_25_29F | S62: Tam_TCAPOS_25_29M | T62: Tam_TCAPOS_30_39F | U62: Tam_TCAPOS_30_39M | V62: Tam_TCAPOS_40_59F | W62: Tam_TCAPOS_40_59M | X62: Tam_TCAPOS_60_79F | Y62: Tam_TCAPOS_60_79M | Z62: Tam_TCAPOS_80F | AA62: Tam_TCAPOS_80M | AB62: Tam_TCAPOS_TOTAL | AC62: Tam_TCTPOS_10_11F | AD62: Tam_TCTPOS_10_11M | AE62: Tam_TCTPOS_12_14F | AF62: Tam_TCTPOS_12_14M | AG62: Tam_TCTPOS_15_17F | AH62: Tam_TCTPOS_15_17M | AI62: Tam_TCTPOS_18_24F | AJ62: Tam_TCTPOS_18_24M | AK62: Tam_TCTPOS_25_29F | AL62: Tam_TCTPOS_25_29M | AM62: Tam_TCTPOS_30_39F | AN62: Tam_TCTPOS_30_39M | AO62: Tam_TCTPOS_40_59F | AP62: Tam_TCTPOS_40_59M | AQ62: Tam_TCTPOS_60_79F | AR62: Tam_TCTPOS_60_79M | AS62: Tam_TCTPOS_80F | AT62: Tam_TCTPOS_80M | AU62: Tam_TCTPOS_TOTAL | AV62: Tam_TCDPOS_10_11F | AW62: Tam_TCDPOS_10_11M | AX62: Tam_TCDPOS_12_14F | AY62: Tam_TCDPOS_12_14M | AZ62: Tam_TCDPOS_15_17F | BA62: Tam_TCDPOS_15_17M | BB62: Tam_TCDPOS_18_24F | BC62: Tam_TCDPOS_18_24M | BD62: Tam_TCDPOS_25_29F | BE62: Tam_TCDPOS_25_29M | BF62: Tam_TCDPOS_30_39F | BG62: Tam_TCDPOS_30_39M | BH62: Tam_TCDPOS_40_59F | BI62: Tam_TCDPOS_40_59M | BJ62: Tam_TCDPOS_60_79F | BK62: Tam_TCDPOS_60_79M | BL62: Tam_TCDPOS_80F | BM62: Tam_TCDPOS_80M | BN62: Tam_TCDPOS_TOTAL | BO62: Tam_EPPOS_12_14F | BP62: Tam_EPPOS_12_14M | BQ62: Tam_EPPOS_15_17F | BR62: Tam_EPPOS_15_17M | BS62: Tam_EPPOS_18_24F | BT62: Tam_EPPOS_18_24M | BU62: Tam_EPPOS_25_29F | BV62: Tam_EPPOS_25_29M | BW62: Tam_EPPOS_30_39F | BX62: Tam_EPPOS_30_39M | BY62: Tam_EPPOS_40_59F | BZ62: Tam_EPPOS_40_59M | CA62: Tam_EPPOS_60_79F | CB62: Tam_EPPOS_60_79M | CC62: Tam_EPPOS_80F | CD62: Tam_EPPOS_80M | CE62: Tam_EPPOS_TOTAL | CF62: Tam_PND_POS_0_2F | CG62: Tam_PND_POS_0_2M | CH62: Tam_PND_POS_TOTAL | CI62: Tam_DCognitivo_POS_60_79F | CJ62: Tam_DCognitivo_POS_60_79M | CK62: Tam_DCognitivo_POS_80F | CL62: Tam_DCognitivo_POS_80M | CM62: Tam_DCognitivo_POS_TOTAL | CN62: Tam_TMentalComp_POS_3_5F | CO62: Tam_TMentalComp_POS_3_5M | CP62: Tam_TMentalComp_POS_6_9F | CQ62: Tam_TMentalComp_POS_6_9M | CR62: Tam_TMentalComp_POS_10_11F | CS62: Tam_TMentalComp_POS_10_11M | CT62: Tam_TMentalComp_POS_12_14F | CU62: Tam_TMentalComp_POS_12_14M | CV62: Tam_TMentalComp_POS_15_17F | CW62: Tam_TMentalComp_POS_15_17M | CX62: Tam_TMentalComp_POS_TOTAL | CY62: Tam_AVP_VIF_F | CZ62: Tam_AVP_VIF_M | DA62: Tam_AVP_TD_F | DB62: Tam_AVP_TD_M | DC62: Tam_AVP_AD_F | DD62: Tam_AVP_AD_M | DE62: Tam_AVP_EP_F | DF62: Tam_AVP_EP_M | DG62: Tam_AVP_PND_F | DH62: Tam_AVP_PND_M | DI62: Tam_AVP_DCognitivo_F | DJ62: Tam_AVP_DCognitivo_M | DK62: Tam_AVP_TMentalComp_F | DL62: Tam_AVP_TMentalComp_M | DM62: Tam_AVP_VIFPOS_F | DN62: Tam_AVP_VIFPOS_M | DO62: Tam_AVP_TDPOS_F | DP62: Tam_AVP_TDPOS_M | DQ62: Tam_AVP_ALCOHOLPOS_F | DR62: Tam_AVP_ALCOHOLPOS_M | DS62: Tam_AVP_TABACOPOS_F | DT62: Tam_AVP_TABACOPOS_M | DU62: Tam_AVP_DROGAPOS_F | DV62: Tam_AVP_DROGAPOS_M | DW62: Tam_AVP_EPPOS_F | DX62: Tam_AVP_EPPOS_M | DY62: Tam_AVP_PNDPOS_F | DZ62: Tam_AVP_PNDPOS_M | EA62: Tam_AVP_DCognitivoPOS_F | EB62: Tam_AVP_DCognitivoPOS_M | EC62: Tam_AVP_TMentalCompPOS_F | ED62: Tam_AVP_TMentalCompPOS_M | EE62: Tam_TrasMental_PE_3_11F | EF62: Tam_TrasMental_PE_3_11M | EG62: Tam_TrasMental_PE_12_17F | EH62: Tam_TrasMental_PE_12_17M | EI62: Tam_TrasMental_PA_3_11F | EJ62: Tam_TrasMental_PA_3_11M | EK62: Tam_TrasMental_PA_12_17F | EL62: Tam_TrasMental_PA_12_17M | EM62: Tam_TrasMental_PC_3_11F | EN62: Tam_TrasMental_PC_3_11M | EO62: Tam_TrasMental_PC_12_17F | EP62: Tam_TrasMental_PC_12_17M | EQ62: Atd_acogida_csm_0_2F | ER62: Atd_acogida_csm_0_2M | ES62: Atd_acogida_csm_3_5F | ET62: Atd_acogida_csm_3_5M | EU62: Atd_acogida_csm_6_9F | EV62: Atd_acogida_csm_6_9M | EW62: Atd_acogida_csm_10_11F | EX62: Atd_acogida_csm_10_11M | EY62: Atd_acogida_csm_12_14F | EZ62: Atd_acogida_csm_12_14M | FA62: Atd_acogida_csm_15_17F | FB62: Atd_acogida_csm_15_17M | FC62: Atd_acogida_csm_18_24F | FD62: Atd_acogida_csm_18_24M | FE62: Atd_acogida_csm_25_29F | FF62: Atd_acogida_csm_25_29M | FG62: Atd_acogida_csm_30_39F | FH62: Atd_acogida_csm_30_39M | FI62: Atd_acogida_csm_40_59F | FJ62: Atd_acogida_csm_40_59M | FK62: Atd_acogida_csm_60_79F | FL62: Atd_acogida_csm_60_79M | FM62: Atd_acogida_csm_80F | FN62: Atd_acogida_csm_80M | FO62: Atd_acogida_csm_TotalF | FP62: Atd_acogida_csm_TotalM | FQ62: Atd_VIF_0_2F | FR62: Atd_VIF_0_2M | FS62: Atd_VIF_3_5F | FT62: Atd_VIF_3_5M | FU62: Atd_VIF_6_9F | FV62: Atd_VIF_6_9M | FW62: Atd_VIF_10_11F | FX62: Atd_VIF_10_11M | FY62: Atd_VIF_12_14F | FZ62: Atd_VIF_12_14M | GA62: Atd_VIF_15_17F | GB62: Atd_VIF_15_17M | GC62: Atd_VIF_18_24F | GD62: Atd_VIF_18_24M | GE62: Atd_VIF_25_29F | GF62: Atd_VIF_25_29M | GG62: Atd_VIF_30_39F | GH62: Atd_VIF_30_39M | GI62: Atd_VIF_40_59F | GJ62: Atd_VIF_40_59M | GK62: Atd_VIF_60_79F | GL62: Atd_VIF_60_79M | GM62: Atd_VIF_80F | GN62: Atd_VIF_80M | GO62: Atd_VIF_TOTALF | GP62: Atd_VIF_TOTALM | GQ62: Atc_VIF_TOTALF | GR62: Atc_VIF_TOTALM | GS62: Atd_VIF_g_10_11F | GT62: Atd_VIF_g_12_14F | GU62: Atd_VIF_g_15_17F | GV62: Atd_VIF_g_18_24F | GW62: Atd_VIF_g_25_29F | GX62: Atd_VIF_g_30_39F | GY62: Atd_VIF_g_40_59F | GZ62: Atd_VIF_g_Total | HA62: Atc_VIF_g_TOTALF | HB62: Atd_AbusoS_0_2F | HC62: Atd_AbusoS_0_2M | HD62: Atd_AbusoS_3_5F | HE62: Atd_AbusoS_3_5M | HF62: Atd_AbusoS_6_9F | HG62: Atd_AbusoS_6_9M | HH62: Atd_AbusoS_10_11F | HI62: Atd_AbusoS_10_11M | HJ62: Atd_AbusoS_12_14F | HK62: Atd_AbusoS_12_14M | HL62: Atd_AbusoS_15_17F | HM62: Atd_AbusoS_15_17M | HN62: Atd_AbusoS_18_24F | HO62: Atd_AbusoS_18_24M | HP62: Atd_AbusoS_25_29F | HQ62: Atd_AbusoS_25_29M | HR62: Atd_AbusoS_30_39F | HS62: Atd_AbusoS_30_39M | HT62: Atd_AbusoS_40_59F | HU62: Atd_AbusoS_40_59M | HV62: Atd_AbusoS_60_79F | HW62: Atd_AbusoS_60_79M | HX62: Atd_AbusoS_80F | HY62: Atd_AbusoS_80M | HZ62: Atd_AbusoS_TOTALF | IA62: Atd_AbusoS_TOTALM | IB62: Atc_AbusoS_TOTALF | IC62: Atc_AbusoS_TOTALM | ID62: Atd_AbusoS_g_10_11F | IE62: Atd_AbusoS_g_12_14F | IF62: Atd_AbusoS_g_15_17F | IG62: Atd_AbusoS_g_18_24F | IH62: Atd_AbusoS_g_25_29F | II62: Atd_AbusoS_g_30_39F | IJ62: Atd_AbusoS_g_40_59F | IK62: Atd_AbusoS_g_Total | IL62: Atc_AbusoS_g_TOTALF | IM62: Tam_AVP_VIF_g_F | IN62: Tam_AVP_TD_g_F | IO62: Tam_AVP_VIFPOS_g_F | IP62: Tam_AVP_TDPOS_g_F
A63: 1 | B63: 0 | C63: 0 | D63: 0 | E63: 1 | F63: 0 | G63: 0 | H63: 0 | I63: 1 | J63: 0 | K63: 0 | L63: 1 | M63: 0 | N63: 0 | O63: 1 | P63: 0 | Q63: 2 | R63: 0 | S63: 2 | T63: 0 | U63: 7 | V63: 0 | W63: 7 | X63: 0 | Y63: 0 | Z63: 0 | AA63: 0 | AB63: 20 | AC63: 0 | AD63: 0 | AE63: 0 | AF63: 0 | AG63: 0 | AH63: 0 | AI63: 0 | AJ63: 0 | AK63: 0 | AL63: 0 | AM63: 0 | AN63: 0 | AO63: 0 | AP63: 0 | AQ63: 0 | AR63: 0 | AS63: 0 | AT63: 0 | AU63: 0 | AV63: 0 | AW63: 0 | AX63: 0 | AY63: 0 | AZ63: 0 | BA63: 1 | BB63: 0 | BC63: 0 | BD63: 0 | BE63: 0 | BF63: 0 | BG63: 0 | BH63: 0 | BI63: 0 | BJ63: 0 | BK63: 0 | BL63: 0 | BM63: 0 | BN63: 1 | BO63: 0 | BP63: 0 | BQ63: 1 | BR63: 0 | BS63: 1 | BT63: 1 | BU63: 1 | BV63: 0 | BW63: 1 | BX63: 0 | BY63: 1 | BZ63: 2 | CA63: 4 | CB63: 1 | CC63: 0 | CD63: 0 | CE63: 13 | CF63: 0 | CG63: 0 | CH63: 0 | CI63: 2 | CJ63: 1 | CK63: 0 | CL63: 1 | CM63: 4 | CN63: 1 | CO63: 3 | CP63: 5 | CQ63: 7 | CR63: 3 | CS63: 3 | CT63: 2 | CU63: 6 | CV63: 4 | CW63: 2 | CX63: 36 | CY63: 4 | CZ63: 0 | DA63: 3 | DB63: 20 | DC63: 0 | DD63: 0 | DE63: 0 | DF63: 0 | DG63: 0 | DH63: 0 | DI63: 3 | DJ63: 0 | DK63: 0 | DL63: 0 | DM63: 3 | DN63: 0 | DO63: 3 | DP63: 2 | DQ63: 0 | DR63: 0 | DS63: 0 | DT63: 0 | DU63: 0 | DV63: 0 | DW63: 0 | DX63: 0 | DY63: 0 | DZ63: 0 | EA63: 0 | EB63: 0 | EC63: 0 | ED63: 0 | EE63: 3 | EF63: 3 | EG63: 3 | EH63: 6 | EI63: 1 | EJ63: 4 | EK63: 0 | EL63: 1 | EM63: 4 | EN63: 2 | EO63: 2 | EP63: 1 | EQ63: 1 | ER63: 2 | ES63: 1 | ET63: 8 | EU63: 3 | EV63: 4 | EW63: 0 | EX63: 4 | EY63: 1 | EZ63: 4 | FA63: 1 | FB63: 1 | FC63: 8 | FD63: 7 | FE63: 3 | FF63: 8 | FG63: 7 | FH63: 8 | FI63: 11 | FJ63: 9 | FK63: 0 | FL63: 4 | FM63: 0 | FN63: 0 | FO63: 36 | FP63: 59 | FQ63: 1 | FR63: 0 | FS63: 0 | FT63: 1 | FU63: 3 | FV63: 4 | FW63: 0 | FX63: 0 | FY63: 5 | FZ63: 1 | GA63: 4 | GB63: 2 | GC63: 8 | GD63: 1 | GE63: 8 | GF63: 0 | GG63: 15 | GH63: 4 | GI63: 11 | GJ63: 1 | GK63: 2 | GL63: 0 | GM63: 0 | GN63: 0 | GO63: 57 | GP63: 14 | GQ63: 156 | GR63: 38 | GS63: 0 | GT63: 0 | GU63: 0 | GV63: 0 | GW63: 0 | GX63: 0 | GY63: 0 | GZ63: 0 | HA63: 0 | HB63: 0 | HC63: 0 | HD63: 0 | HE63: 0 | HF63: 1 | HG63: 0 | HH63: 2 | HI63: 1 | HJ63: 1 | HK63: 0 | HL63: 2 | HM63: 0 | HN63: 0 | HO63: 0 | HP63: 1 | HQ63: 0 | HR63: 1 | HS63: 0 | HT63: 0 | HU63: 0 | HV63: 0 | HW63: 0 | HX63: 0 | HY63: 0 | HZ63: 8 | IA63: 1 | IB63: 33 | IC63: 3 | ID63: 0 | IE63: 0 | IF63: 0 | IG63: 0 | IH63: 0 | II63: 0 | IJ63: 0 | IK63: 0 | IL63: 0 | IM63: 0 | IN63: 0 | IO63: 0 | IP63: 0
A64: 2 | B64: 0 | C64: 0 | D64: 0 | E64: 0 | F64: 0 | G64: 0 | H64: 0 | I64: 0 | J64: 0 | K64: 0 | L64: 0 | M64: 0 | N64: 0 | O64: 0 | P64: 0 | Q64: 2 | R64: 0 | S64: 2 | T64: 0 | U64: 2 | V64: 0 | W64: 3 | X64: 0 | Y64: 0 | Z64: 0 | AA64: 0 | AB64: 9 | AC64: 0 | AD64: 0 | AE64: 0 | AF64: 0 | AG64: 0 | AH64: 0 | AI64: 0 | AJ64: 0 | AK64: 0 | AL64: 0 | AM64: 0 | AN64: 0 | AO64: 0 | AP64: 0 | AQ64: 0 | AR64: 0 | AS64: 0 | AT64: 0 | AU64: 0 | AV64: 0 | AW64: 0 | AX64: 0 | AY64: 0 | AZ64: 0 | BA64: 0 | BB64: 0 | BC64: 1 | BD64: 0 | BE64: 0 | BF64: 0 | BG64: 0 | BH64: 0 | BI64: 0 | BJ64: 0 | BK64: 0 | BL64: 0 | BM64: 0 | BN64: 1 | BO64: 0 | BP64: 0 | BQ64: 0 | BR64: 0 | BS64: 0 | BT64: 0 | BU64: 0 | BV64: 0 | BW64: 7 | BX64: 2 | BY64: 4 | BZ64: 0 | CA64: 2 | CB64: 0 | CC64: 0 | CD64: 0 | CE64: 15 | CF64: 0 | CG64: 0 | CH64: 0 | CI64: 2 | CJ64: 0 | CK64: 2 | CL64: 1 | CM64: 5 | CN64: 3 | CO64: 1 | CP64: 4 | CQ64: 12 | CR64: 1 | CS64: 4 | CT64: 2 | CU64: 1 | CV64: 1 | CW64: 1 | CX64: 30 | CY64: 13 | CZ64: 26 | DA64: 13 | DB64: 16 | DC64: 8 | DD64: 13 | DE64: 8 | DF64: 31 | DG64: 0 | DH64: 0 | DI64: 1 | DJ64: 1 | DK64: 0 | DL64: 1 | DM64: 4 | DN64: 3 | DO64: 2 | DP64: 4 | DQ64: 0 | DR64: 0 | DS64: 0 | DT64: 0 | DU64: 0 | DV64: 0 | DW64: 0 | DX64: 0 | DY64: 0 | DZ64: 0 | EA64: 0 | EB64: 0 | EC64: 0 | ED64: 1 | EE64: 3 | EF64: 4 | EG64: 1 | EH64: 1 | EI64: 0 | EJ64: 6 | EK64: 0 | EL64: 0 | EM64: 3 | EN64: 3 | EO64: 0 | EP64: 0 | EQ64: 0 | ER64: 0 | ES64: 3 | ET64: 3 | EU64: 2 | EV64: 3 | EW64: 0 | EX64: 2 | EY64: 1 | EZ64: 4 | FA64: 3 | FB64: 2 | FC64: 8 | FD64: 3 | FE64: 2 | FF64: 3 | FG64: 9 | FH64: 2 | FI64: 4 | FJ64: 9 | FK64: 2 | FL64: 2 | FM64: 0 | FN64: 0 | FO64: 34 | FP64: 33 | FQ64: 0 | FR64: 0 | FS64: 0 | FT64: 1 | FU64: 4 | FV64: 1 | FW64: 0 | FX64: 3 | FY64: 4 | FZ64: 2 | GA64: 3 | GB64: 0 | GC64: 13 | GD64: 0 | GE64: 12 | GF64: 1 | GG64: 13 | GH64: 0 | GI64: 17 | GJ64: 0 | GK64: 3 | GL64: 0 | GM64: 1 | GN64: 0 | GO64: 70 | GP64: 8 | GQ64: 170 | GR64: 31 | GS64: 0 | GT64: 0 | GU64: 0 | GV64: 0 | GW64: 0 | GX64: 0 | GY64: 0 | GZ64: 0 | HA64: 0 | HB64: 0 | HC64: 0 | HD64: 0 | HE64: 0 | HF64: 0 | HG64: 0 | HH64: 1 | HI64: 0 | HJ64: 1 | HK64: 0 | HL64: 4 | HM64: 0 | HN64: 0 | HO64: 0 | HP64: 0 | HQ64: 0 | HR64: 1 | HS64: 0 | HT64: 0 | HU64: 0 | HV64: 0 | HW64: 0 | HX64: 0 | HY64: 0 | HZ64: 7 | IA64: 0 | IB64: 27 | IC64: 1 | ID64: 0 | IE64: 0 | IF64: 0 | IG64: 0 | IH64: 0 | II64: 0 | IJ64: 0 | IK64: 0 | IL64: 0 | IM64: 0 | IN64: 0 | IO64: 0 | IP64: 0
A65: 3 | B65: 0 | C65: 0 | D65: 0 | E65: 0 | F65: 0 | G65: 1 | H65: 0 | I65: 1 | J65: 0 | K65: 0 | L65: 0 | M65: 0 | N65: 0 | O65: 0 | P65: 0 | Q65: 0 | R65: 0 | S65: 1 | T65: 0 | U65: 5 | V65: 1 | W65: 7 | X65: 1 | Y65: 2 | Z65: 0 | AA65: 0 | AB65: 17 | AC65: 0 | AD65: 0 | AE65: 0 | AF65: 0 | AG65: 0 | AH65: 0 | AI65: 0 | AJ65: 0 | AK65: 0 | AL65: 0 | AM65: 0 | AN65: 0 | AO65: 0 | AP65: 0 | AQ65: 0 | AR65: 0 | AS65: 0 | AT65: 0 | AU65: 0 | AV65: 0 | AW65: 0 | AX65: 0 | AY65: 0 | AZ65: 0 | BA65: 0 | BB65: 0 | BC65: 0 | BD65: 0 | BE65: 0 | BF65: 0 | BG65: 0 | BH65: 0 | BI65: 0 | BJ65: 0 | BK65: 0 | BL65: 0 | BM65: 0 | BN65: 0 | BO65: 0 | BP65: 0 | BQ65: 0 | BR65: 0 | BS65: 1 | BT65: 3 | BU65: 1 | BV65: 1 | BW65: 6 | BX65: 2 | BY65: 4 | BZ65: 0 | CA65: 7 | CB65: 3 | CC65: 0 | CD65: 0 | CE65: 28 | CF65: 0 | CG65: 0 | CH65: 0 | CI65: 7 | CJ65: 2 | CK65: 1 | CL65: 0 | CM65: 10 | CN65: 4 | CO65: 3 | CP65: 5 | CQ65: 8 | CR65: 4 | CS65: 0 | CT65: 3 | CU65: 6 | CV65: 3 | CW65: 1 | CX65: 37 | CY65: 7 | CZ65: 0 | DA65: 15 | DB65: 6 | DC65: 0 | DD65: 0 | DE65: 8 | DF65: 7 | DG65: 0 | DH65: 0 | DI65: 1 | DJ65: 0 | DK65: 0 | DL65: 0 | DM65: 5 | DN65: 0 | DO65: 7 | DP65: 3 | DQ65: 0 | DR65: 0 | DS65: 0 | DT65: 0 | DU65: 0 | DV65: 0 | DW65: 0 | DX65: 0 | DY65: 0 | DZ65: 0 | EA65: 0 | EB65: 0 | EC65: 0 | ED65: 0 | EE65: 3 | EF65: 3 | EG65: 1 | EH65: 2 | EI65: 2 | EJ65: 2 | EK65: 1 | EL65: 2 | EM65: 6 | EN65: 1 | EO65: 0 | EP65: 0 | EQ65: 0 | ER65: 0 | ES65: 4 | ET65: 3 | EU65: 2 | EV65: 2 | EW65: 0 | EX65: 0 | EY65: 4 | EZ65: 1 | FA65: 3 | FB65: 1 | FC65: 2 | FD65: 1 | FE65: 6 | FF65: 6 | FG65: 4 | FH65: 7 | FI65: 6 | FJ65: 14 | FK65: 2 | FL65: 1 | FM65: 0 | FN65: 0 | FO65: 33 | FP65: 36 | FQ65: 0 | FR65: 1 | FS65: 1 | FT65: 1 | FU65: 1 | FV65: 1 | FW65: 2 | FX65: 1 | FY65: 6 | FZ65: 0 | GA65: 3 | GB65: 1 | GC65: 14 | GD65: 2 | GE65: 5 | GF65: 0 | GG65: 18 | GH65: 3 | GI65: 18 | GJ65: 1 | GK65: 4 | GL65: 0 | GM65: 1 | GN65: 0 | GO65: 73 | GP65: 11 | GQ65: 169 | GR65: 39 | GS65: 0 | GT65: 0 | GU65: 0 | GV65: 0 | GW65: 0 | GX65: 0 | GY65: 0 | GZ65: 0 | HA65: 0 | HB65: 0 | HC65: 0 | HD65: 0 | HE65: 0 | HF65: 1 | HG65: 0 | HH65: 0 | HI65: 0 | HJ65: 5 | HK65: 0 | HL65: 2 | HM65: 0 | HN65: 0 | HO65: 0 | HP65: 3 | HQ65: 0 | HR65: 0 | HS65: 1 | HT65: 1 | HU65: 0 | HV65: 0 | HW65: 0 | HX65: 0 | HY65: 0 | HZ65: 12 | IA65: 1 | IB65: 38 | IC65: 1 | ID65: 0 | IE65: 0 | IF65: 0 | IG65: 0 | IH65: 0 | II65: 0 | IJ65: 0 | IK65: 0 | IL65: 0 | IM65: 0 | IN65: 0 | IO65: 0 | IP65: 0
A66: 4 | B66: 0 | C66: 0 | D66: 1 | E66: 1 | F66: 1 | G66: 1 | H66: 0 | I66: 4 | J66: 0 | K66: 0 | L66: 0 | M66: 0 | N66: 0 | O66: 0 | P66: 0 | Q66: 0 | R66: 0 | S66: 3 | T66: 0 | U66: 5 | V66: 1 | W66: 10 | X66: 0 | Y66: 2 | Z66: 0 | AA66: 0 | AB66: 21 | AC66: 0 | AD66: 0 | AE66: 0 | AF66: 0 | AG66: 0 | AH66: 0 | AI66: 0 | AJ66: 0 | AK66: 0 | AL66: 0 | AM66: 0 | AN66: 0 | AO66: 0 | AP66: 0 | AQ66: 0 | AR66: 0 | AS66: 0 | AT66: 0 | AU66: 0 | AV66: 0 | AW66: 0 | AX66: 0 | AY66: 0 | AZ66: 0 | BA66: 0 | BB66: 1 | BC66: 0 | BD66: 0 | BE66: 0 | BF66: 0 | BG66: 0 | BH66: 0 | BI66: 0 | BJ66: 0 | BK66: 0 | BL66: 0 | BM66: 0 | BN66: 1 | BO66: 0 | BP66: 0 | BQ66: 0 | BR66: 2 | BS66: 2 | BT66: 0 | BU66: 0 | BV66: 2 | BW66: 2 | BX66: 1 | BY66: 1 | BZ66: 1 | CA66: 1 | CB66: 2 | CC66: 0 | CD66: 1 | CE66: 15 | CF66: 0 | CG66: 0 | CH66: 0 | CI66: 1 | CJ66: 2 | CK66: 0 | CL66: 2 | CM66: 5 | CN66: 0 | CO66: 5 | CP66: 6 | CQ66: 10 | CR66: 5 | CS66: 2 | CT66: 5 | CU66: 6 | CV66: 6 | CW66: 2 | CX66: 47 | CY66: 22 | CZ66: 16 | DA66: 10 | DB66: 10 | DC66: 0 | DD66: 0 | DE66: 5 | DF66: 11 | DG66: 0 | DH66: 0 | DI66: 0 | DJ66: 0 | DK66: 0 | DL66: 0 | DM66: 4 | DN66: 2 | DO66: 2 | DP66: 3 | DQ66: 0 | DR66: 0 | DS66: 0 | DT66: 0 | DU66: 0 | DV66: 0 | DW66: 0 | DX66: 0 | DY66: 0 | DZ66: 0 | EA66: 0 | EB66: 0 | EC66: 0 | ED66: 0 | EE66: 5 | EF66: 3 | EG66: 9 | EH66: 5 | EI66: 2 | EJ66: 2 | EK66: 1 | EL66: 1 | EM66: 2 | EN66: 10 | EO66: 0 | EP66: 0 | EQ66: 1 | ER66: 1 | ES66: 2 | ET66: 5 | EU66: 7 | EV66: 5 | EW66: 2 | EX66: 1 | EY66: 6 | EZ66: 1 | FA66: 3 | FB66: 4 | FC66: 12 | FD66: 7 | FE66: 5 | FF66: 0 | FG66: 8 | FH66: 7 | FI66: 9 | FJ66: 8 | FK66: 1 | FL66: 3 | FM66: 1 | FN66: 2 | FO66: 57 | FP66: 44 | FQ66: 1 | FR66: 0 | FS66: 2 | FT66: 1 | FU66: 3 | FV66: 4 | FW66: 2 | FX66: 4 | FY66: 3 | FZ66: 1 | GA66: 4 | GB66: 1 | GC66: 11 | GD66: 1 | GE66: 10 | GF66: 1 | GG66: 14 | GH66: 3 | GI66: 17 | GJ66: 1 | GK66: 2 | GL66: 0 | GM66: 0 | GN66: 1 | GO66: 69 | GP66: 18 | GQ66: 151 | GR66: 37 | GS66: 0 | GT66: 0 | GU66: 0 | GV66: 0 | GW66: 0 | GX66: 0 | GY66: 0 | GZ66: 0 | HA66: 0 | HB66: 0 | HC66: 0 | HD66: 0 | HE66: 0 | HF66: 0 | HG66: 0 | HH66: 1 | HI66: 0 | HJ66: 3 | HK66: 0 | HL66: 1 | HM66: 0 | HN66: 3 | HO66: 0 | HP66: 0 | HQ66: 0 | HR66: 0 | HS66: 0 | HT66: 0 | HU66: 0 | HV66: 0 | HW66: 0 | HX66: 0 | HY66: 0 | HZ66: 8 | IA66: 0 | IB66: 35 | IC66: 1 | ID66: 0 | IE66: 0 | IF66: 0 | IG66: 0 | IH66: 0 | II66: 0 | IJ66: 0 | IK66: 0 | IL66: 0 | IM66: 0 | IN66: 1 | IO66: 0 | IP66: 0
A67: 5 | B67: 0 | C67: 0 | D67: 0 | E67: 0 | F67: 1 | G67: 0 | H67: 0 | I67: 1 | J67: 0 | K67: 0 | L67: 1 | M67: 0 | N67: 0 | O67: 0 | P67: 0 | Q67: 5 | R67: 0 | S67: 0 | T67: 0 | U67: 3 | V67: 1 | W67: 2 | X67: 0 | Y67: 2 | Z67: 0 | AA67: 0 | AB67: 14 | AC67: 0 | AD67: 0 | AE67: 0 | AF67: 0 | AG67: 0 | AH67: 0 | AI67: 0 | AJ67: 0 | AK67: 0 | AL67: 0 | AM67: 0 | AN67: 0 | AO67: 0 | AP67: 0 | AQ67: 0 | AR67: 0 | AS67: 0 | AT67: 0 | AU67: 0 | AV67: 0 | AW67: 0 | AX67: 0 | AY67: 0 | AZ67: 0 | BA67: 0 | BB67: 0 | BC67: 0 | BD67: 0 | BE67: 0 | BF67: 0 | BG67: 0 | BH67: 0 | BI67: 0 | BJ67: 0 | BK67: 0 | BL67: 0 | BM67: 0 | BN67: 0 | BO67: 0 | BP67: 0 | BQ67: 0 | BR67: 0 | BS67: 1 | BT67: 0 | BU67: 0 | BV67: 0 | BW67: 0 | BX67: 0 | BY67: 1 | BZ67: 0 | CA67: 0 | CB67: 0 | CC67: 0 | CD67: 0 | CE67: 2 | CF67: 0 | CG67: 0 | CH67: 0 | CI67: 1 | CJ67: 2 | CK67: 0 | CL67: 0 | CM67: 3 | CN67: 0 | CO67: 0 | CP67: 0 | CQ67: 3 | CR67: 1 | CS67: 2 | CT67: 1 | CU67: 2 | CV67: 3 | CW67: 2 | CX67: 14 | CY67: 0 | CZ67: 0 | DA67: 29 | DB67: 21 | DC67: 0 | DD67: 0 | DE67: 15 | DF67: 15 | DG67: 0 | DH67: 0 | DI67: 0 | DJ67: 1 | DK67: 0 | DL67: 0 | DM67: 0 | DN67: 0 | DO67: 14 | DP67: 5 | DQ67: 0 | DR67: 0 | DS67: 0 | DT67: 0 | DU67: 0 | DV67: 0 | DW67: 0 | DX67: 0 | DY67: 0 | DZ67: 0 | EA67: 0 | EB67: 0 | EC67: 0 | ED67: 0 | EE67: 1 | EF67: 2 | EG67: 2 | EH67: 2 | EI67: 0 | EJ67: 0 | EK67: 0 | EL67: 0 | EM67: 0 | EN67: 2 | EO67: 1 | EP67: 1 | EQ67: 0 | ER67: 2 | ES67: 2 | ET67: 3 | EU67: 1 | EV67: 3 | EW67: 2 | EX67: 1 | EY67: 2 | EZ67: 3 | FA67: 1 | FB67: 1 | FC67: 2 | FD67: 3 | FE67: 3 | FF67: 5 | FG67: 6 | FH67: 7 | FI67: 8 | FJ67: 11 | FK67: 3 | FL67: 6 | FM67: 0 | FN67: 1 | FO67: 30 | FP67: 46 | FQ67: 0 | FR67: 0 | FS67: 2 | FT67: 3 | FU67: 5 | FV67: 2 | FW67: 1 | FX67: 3 | FY67: 4 | FZ67: 0 | GA67: 2 | GB67: 4 | GC67: 9 | GD67: 0 | GE67: 12 | GF67: 0 | GG67: 21 | GH67: 2 | GI67: 18 | GJ67: 1 | GK67: 1 | GL67: 0 | GM67: 0 | GN67: 0 | GO67: 75 | GP67: 15 | GQ67: 160 | GR67: 52 | GS67: 0 | GT67: 0 | GU67: 0 | GV67: 0 | GW67: 0 | GX67: 0 | GY67: 0 | GZ67: 0 | HA67: 0 | HB67: 0 | HC67: 0 | HD67: 1 | HE67: 0 | HF67: 0 | HG67: 0 | HH67: 1 | HI67: 0 | HJ67: 2 | HK67: 0 | HL67: 0 | HM67: 0 | HN67: 1 | HO67: 0 | HP67: 2 | HQ67: 0 | HR67: 0 | HS67: 0 | HT67: 1 | HU67: 0 | HV67: 0 | HW67: 0 | HX67: 0 | HY67: 0 | HZ67: 8 | IA67: 0 | IB67: 32 | IC67: 0 | ID67: 0 | IE67: 0 | IF67: 0 | IG67: 0 | IH67: 0 | II67: 0 | IJ67: 0 | IK67: 0 | IL67: 0 | IM67: 0 | IN67: 0 | IO67: 0 | IP67: 0
A68: 6 | B68: 0 | C68: 0 | D68: 0 | E68: 1 | F68: 0 | G68: 0 | H68: 0 | I68: 1 | J68: 0 | K68: 0 | L68: 0 | M68: 0 | N68: 1 | O68: 1 | P68: 0 | Q68: 0 | R68: 0 | S68: 0 | T68: 1 | U68: 0 | V68: 0 | W68: 1 | X68: 0 | Y68: 1 | Z68: 0 | AA68: 0 | AB68: 5 | AC68: 0 | AD68: 0 | AE68: 0 | AF68: 0 | AG68: 0 | AH68: 1 | AI68: 0 | AJ68: 0 | AK68: 0 | AL68: 0 | AM68: 0 | AN68: 0 | AO68: 0 | AP68: 0 | AQ68: 0 | AR68: 0 | AS68: 0 | AT68: 0 | AU68: 1 | AV68: 0 | AW68: 0 | AX68: 0 | AY68: 0 | AZ68: 0 | BA68: 0 | BB68: 0 | BC68: 0 | BD68: 0 | BE68: 0 | BF68: 0 | BG68: 0 | BH68: 0 | BI68: 0 | BJ68: 0 | BK68: 0 | BL68: 0 | BM68: 0 | BN68: 0 | BO68: 0 | BP68: 0 | BQ68: 0 | BR68: 0 | BS68: 0 | BT68: 0 | BU68: 0 | BV68: 0 | BW68: 0 | BX68: 1 | BY68: 1 | BZ68: 0 | CA68: 0 | CB68: 0 | CC68: 0 | CD68: 0 | CE68: 2 | CF68: 0 | CG68: 1 | CH68: 1 | CI68: 1 | CJ68: 0 | CK68: 0 | CL68: 0 | CM68: 1 | CN68: 0 | CO68: 0 | CP68: 2 | CQ68: 4 | CR68: 0 | CS68: 1 | CT68: 1 | CU68: 2 | CV68: 1 | CW68: 2 | CX68: 13 | CY68: 1 | CZ68: 0 | DA68: 7 | DB68: 3 | DC68: 0 | DD68: 0 | DE68: 0 | DF68: 0 | DG68: 0 | DH68: 0 | DI68: 0 | DJ68: 0 | DK68: 0 | DL68: 0 | DM68: 1 | DN68: 0 | DO68: 4 | DP68: 3 | DQ68: 0 | DR68: 0 | DS68: 0 | DT68: 0 | DU68: 0 | DV68: 0 | DW68: 0 | DX68: 0 | DY68: 0 | DZ68: 0 | EA68: 0 | EB68: 0 | EC68: 0 | ED68: 0 | EE68: 1 | EF68: 1 | EG68: 0 | EH68: 0 | EI68: 0 | EJ68: 1 | EK68: 0 | EL68: 2 | EM68: 1 | EN68: 2 | EO68: 0 | EP68: 1 | EQ68: 0 | ER68: 2 | ES68: 4 | ET68: 4 | EU68: 0 | EV68: 6 | EW68: 1 | EX68: 1 | EY68: 2 | EZ68: 3 | FA68: 2 | FB68: 2 | FC68: 3 | FD68: 3 | FE68: 3 | FF68: 5 | FG68: 9 | FH68: 5 | FI68: 6 | FJ68: 7 | FK68: 2 | FL68: 4 | FM68: 0 | FN68: 0 | FO68: 32 | FP68: 42 | FQ68: 0 | FR68: 0 | FS68: 0 | FT68: 1 | FU68: 2 | FV68: 3 | FW68: 2 | FX68: 0 | FY68: 3 | FZ68: 4 | GA68: 1 | GB68: 1 | GC68: 7 | GD68: 1 | GE68: 5 | GF68: 0 | GG68: 22 | GH68: 3 | GI68: 14 | GJ68: 2 | GK68: 2 | GL68: 1 | GM68: 0 | GN68: 0 | GO68: 58 | GP68: 16 | GQ68: 180 | GR68: 54 | GS68: 0 | GT68: 0 | GU68: 0 | GV68: 0 | GW68: 0 | GX68: 0 | GY68: 0 | GZ68: 0 | HA68: 0 | HB68: 0 | HC68: 0 | HD68: 0 | HE68: 0 | HF68: 1 | HG68: 0 | HH68: 0 | HI68: 0 | HJ68: 3 | HK68: 0 | HL68: 0 | HM68: 0 | HN68: 0 | HO68: 0 | HP68: 0 | HQ68: 0 | HR68: 4 | HS68: 0 | HT68: 1 | HU68: 0 | HV68: 0 | HW68: 0 | HX68: 0 | HY68: 0 | HZ68: 9 | IA68: 0 | IB68: 35 | IC68: 1 | ID68: 0 | IE68: 0 | IF68: 0 | IG68: 0 | IH68: 0 | II68: 0 | IJ68: 0 | IK68: 0 | IL68: 0 | IM68: 0 | IN68: 0 | IO68: 0 | IP68: 0
A69: 7 | B69: 0 | C69: 0 | D69: 0 | E69: 0 | F69: 1 | G69: 0 | H69: 0 | I69: 1 | J69: 0 | K69: 0 | L69: 1 | M69: 0 | N69: 1 | O69: 2 | P69: 0 | Q69: 2 | R69: 0 | S69: 0 | T69: 0 | U69: 1 | V69: 0 | W69: 3 | X69: 0 | Y69: 2 | Z69: 0 | AA69: 0 | AB69: 12 | AC69: 0 | AD69: 0 | AE69: 0 | AF69: 0 | AG69: 0 | AH69: 0 | AI69: 0 | AJ69: 0 | AK69: 0 | AL69: 0 | AM69: 0 | AN69: 0 | AO69: 0 | AP69: 0 | AQ69: 0 | AR69: 0 | AS69: 0 | AT69: 0 | AU69: 0 | AV69: 0 | AW69: 0 | AX69: 0 | AY69: 0 | AZ69: 0 | BA69: 0 | BB69: 0 | BC69: 0 | BD69: 0 | BE69: 0 | BF69: 0 | BG69: 0 | BH69: 0 | BI69: 0 | BJ69: 0 | BK69: 0 | BL69: 0 | BM69: 0 | BN69: 0 | BO69: 0 | BP69: 0 | BQ69: 0 | BR69: 0 | BS69: 0 | BT69: 0 | BU69: 0 | BV69: 0 | BW69: 0 | BX69: 0 | BY69: 0 | BZ69: 0 | CA69: 0 | CB69: 0 | CC69: 0 | CD69: 0 | CE69: 0 | CF69: 0 | CG69: 0 | CH69: 0 | CI69: 3 | CJ69: 1 | CK69: 1 | CL69: 0 | CM69: 5 | CN69: 0 | CO69: 4 | CP69: 3 | CQ69: 2 | CR69: 0 | CS69: 1 | CT69: 2 | CU69: 2 | CV69: 2 | CW69: 0 | CX69: 16 | CY69: 5 | CZ69: 2 | DA69: 9 | DB69: 3 | DC69: 1 | DD69: 2 | DE69: 0 | DF69: 0 | DG69: 0 | DH69: 0 | DI69: 1 | DJ69: 0 | DK69: 0 | DL69: 0 | DM69: 5 | DN69: 2 | DO69: 6 | DP69: 3 | DQ69: 0 | DR69: 1 | DS69: 0 | DT69: 0 | DU69: 0 | DV69: 0 | DW69: 0 | DX69: 0 | DY69: 0 | DZ69: 0 | EA69: 0 | EB69: 0 | EC69: 0 | ED69: 0 | EE69: 1 | EF69: 0 | EG69: 3 | EH69: 0 | EI69: 0 | EJ69: 0 | EK69: 0 | EL69: 1 | EM69: 1 | EN69: 2 | EO69: 0 | EP69: 0 | EQ69: 0 | ER69: 0 | ES69: 2 | ET69: 2 | EU69: 1 | EV69: 3 | EW69: 2 | EX69: 1 | EY69: 3 | EZ69: 1 | FA69: 6 | FB69: 2 | FC69: 2 | FD69: 6 | FE69: 1 | FF69: 2 | FG69: 5 | FH69: 5 | FI69: 1 | FJ69: 5 | FK69: 1 | FL69: 2 | FM69: 0 | FN69: 0 | FO69: 24 | FP69: 29 | FQ69: 1 | FR69: 0 | FS69: 2 | FT69: 0 | FU69: 0 | FV69: 3 | FW69: 2 | FX69: 2 | FY69: 2 | FZ69: 1 | GA69: 7 | GB69: 4 | GC69: 10 | GD69: 0 | GE69: 9 | GF69: 0 | GG69: 21 | GH69: 5 | GI69: 22 | GJ69: 5 | GK69: 2 | GL69: 0 | GM69: 0 | GN69: 0 | GO69: 78 | GP69: 20 | GQ69: 175 | GR69: 43 | GS69: 0 | GT69: 0 | GU69: 0 | GV69: 0 | GW69: 0 | GX69: 0 | GY69: 0 | GZ69: 0 | HA69: 0 | HB69: 0 | HC69: 0 | HD69: 0 | HE69: 0 | HF69: 0 | HG69: 0 | HH69: 1 | HI69: 0 | HJ69: 2 | HK69: 2 | HL69: 4 | HM69: 0 | HN69: 0 | HO69: 0 | HP69: 0 | HQ69: 0 | HR69: 0 | HS69: 0 | HT69: 0 | HU69: 0 | HV69: 0 | HW69: 0 | HX69: 0 | HY69: 0 | HZ69: 7 | IA69: 2 | IB69: 34 | IC69: 2 | ID69: 0 | IE69: 0 | IF69: 0 | IG69: 0 | IH69: 0 | II69: 0 | IJ69: 0 | IK69: 0 | IL69: 0 | IM69: 0 | IN69: 0 | IO69: 0 | IP69: 0
A70: 8 | B70: 0 | C70: 0 | D70: 0 | E70: 0 | F70: 0 | G70: 0 | H70: 0 | I70: 0 | J70: 0 | K70: 0 | L70: 0 | M70: 0 | N70: 0 | O70: 0 | P70: 0 | Q70: 1 | R70: 0 | S70: 0 | T70: 0 | U70: 1 | V70: 0 | W70: 1 | X70: 0 | Y70: 2 | Z70: 0 | AA70: 0 | AB70: 5 | AC70: 0 | AD70: 0 | AE70: 0 | AF70: 0 | AG70: 0 | AH70: 0 | AI70: 0 | AJ70: 0 | AK70: 0 | AL70: 0 | AM70: 0 | AN70: 0 | AO70: 0 | AP70: 0 | AQ70: 0 | AR70: 0 | AS70: 0 | AT70: 0 | AU70: 0 | AV70: 0 | AW70: 0 | AX70: 0 | AY70: 0 | AZ70: 0 | BA70: 0 | BB70: 0 | BC70: 0 | BD70: 0 | BE70: 0 | BF70: 0 | BG70: 0 | BH70: 0 | BI70: 0 | BJ70: 0 | BK70: 0 | BL70: 0 | BM70: 0 | BN70: 0 | BO70: 1 | BP70: 4 | BQ70: 0 | BR70: 1 | BS70: 0 | BT70: 0 | BU70: 0 | BV70: 0 | BW70: 0 | BX70: 0 | BY70: 0 | BZ70: 0 | CA70: 0 | CB70: 1 | CC70: 0 | CD70: 0 | CE70: 7 | CF70: 0 | CG70: 0 | CH70: 0 | CI70: 1 | CJ70: 1 | CK70: 1 | CL70: 1 | CM70: 4 | CN70: 0 | CO70: 4 | CP70: 2 | CQ70: 8 | CR70: 2 | CS70: 3 | CT70: 1 | CU70: 2 | CV70: 2 | CW70: 0 | CX70: 24 | CY70: 4 | CZ70: 1 | DA70: 16 | DB70: 2 | DC70: 0 | DD70: 0 | DE70: 0 | DF70: 0 | DG70: 0 | DH70: 0 | DI70: 1 | DJ70: 2 | DK70: 0 | DL70: 0 | DM70: 1 | DN70: 1 | DO70: 2 | DP70: 0 | DQ70: 0 | DR70: 0 | DS70: 0 | DT70: 0 | DU70: 0 | DV70: 0 | DW70: 0 | DX70: 0 | DY70: 0 | DZ70: 0 | EA70: 0 | EB70: 0 | EC70: 0 | ED70: 0 | EE70: 2 | EF70: 7 | EG70: 1 | EH70: 0 | EI70: 0 | EJ70: 5 | EK70: 0 | EL70: 1 | EM70: 2 | EN70: 2 | EO70: 0 | EP70: 0 | EQ70: 0 | ER70: 1 | ES70: 0 | ET70: 5 | EU70: 2 | EV70: 4 | EW70: 0 | EX70: 2 | EY70: 3 | EZ70: 1 | FA70: 3 | FB70: 0 | FC70: 6 | FD70: 4 | FE70: 4 | FF70: 3 | FG70: 7 | FH70: 5 | FI70: 3 | FJ70: 11 | FK70: 0 | FL70: 0 | FM70: 0 | FN70: 1 | FO70: 28 | FP70: 37 | FQ70: 0 | FR70: 0 | FS70: 2 | FT70: 3 | FU70: 2 | FV70: 5 | FW70: 1 | FX70: 4 | FY70: 8 | FZ70: 4 | GA70: 8 | GB70: 2 | GC70: 7 | GD70: 2 | GE70: 7 | GF70: 0 | GG70: 30 | GH70: 1 | GI70: 21 | GJ70: 5 | GK70: 5 | GL70: 0 | GM70: 0 | GN70: 0 | GO70: 91 | GP70: 26 | GQ70: 193 | GR70: 48 | GS70: 0 | GT70: 0 | GU70: 0 | GV70: 0 | GW70: 0 | GX70: 0 | GY70: 0 | GZ70: 0 | HA70: 0 | HB70: 0 | HC70: 0 | HD70: 0 | HE70: 0 | HF70: 0 | HG70: 0 | HH70: 1 | HI70: 0 | HJ70: 2 | HK70: 1 | HL70: 5 | HM70: 0 | HN70: 1 | HO70: 0 | HP70: 0 | HQ70: 0 | HR70: 1 | HS70: 0 | HT70: 0 | HU70: 0 | HV70: 0 | HW70: 0 | HX70: 0 | HY70: 0 | HZ70: 10 | IA70: 1 | IB70: 39 | IC70: 2 | ID70: 0 | IE70: 0 | IF70: 0 | IG70: 0 | IH70: 0 | II70: 0 | IJ70: 0 | IK70: 0 | IL70: 0 | IM70: 0 | IN70: 0 | IO70: 0 | IP70: 0
A71: 9 | B71: 0 | C71: 0 | D71: 0 | E71: 1 | F71: 0 | G71: 0 | H71: 0 | I71: 1 | J71: 0 | K71: 0 | L71: 0 | M71: 0 | N71: 2 | O71: 1 | P71: 0 | Q71: 4 | R71: 1 | S71: 2 | T71: 3 | U71: 4 | V71: 0 | W71: 4 | X71: 0 | Y71: 0 | Z71: 0 | AA71: 0 | AB71: 21 | AC71: 0 | AD71: 0 | AE71: 0 | AF71: 0 | AG71: 0 | AH71: 0 | AI71: 0 | AJ71: 0 | AK71: 0 | AL71: 0 | AM71: 0 | AN71: 0 | AO71: 0 | AP71: 0 | AQ71: 0 | AR71: 0 | AS71: 0 | AT71: 0 | AU71: 0 | AV71: 0 | AW71: 0 | AX71: 0 | AY71: 0 | AZ71: 0 | BA71: 0 | BB71: 0 | BC71: 0 | BD71: 0 | BE71: 0 | BF71: 0 | BG71: 0 | BH71: 0 | BI71: 0 | BJ71: 0 | BK71: 0 | BL71: 0 | BM71: 0 | BN71: 0 | BO71: 0 | BP71: 0 | BQ71: 2 | BR71: 1 | BS71: 0 | BT71: 0 | BU71: 0 | BV71: 0 | BW71: 0 | BX71: 0 | BY71: 0 | BZ71: 0 | CA71: 0 | CB71: 0 | CC71: 0 | CD71: 0 | CE71: 3 | CF71: 0 | CG71: 0 | CH71: 0 | CI71: 1 | CJ71: 1 | CK71: 0 | CL71: 2 | CM71: 4 | CN71: 0 | CO71: 3 | CP71: 5 | CQ71: 6 | CR71: 0 | CS71: 1 | CT71: 3 | CU71: 1 | CV71: 2 | CW71: 1 | CX71: 22 | CY71: 0 | CZ71: 1 | DA71: 5 | DB71: 6 | DC71: 0 | DD71: 0 | DE71: 0 | DF71: 0 | DG71: 0 | DH71: 0 | DI71: 0 | DJ71: 0 | DK71: 0 | DL71: 0 | DM71: 0 | DN71: 1 | DO71: 5 | DP71: 0 | DQ71: 0 | DR71: 0 | DS71: 0 | DT71: 0 | DU71: 0 | DV71: 0 | DW71: 0 | DX71: 0 | DY71: 0 | DZ71: 0 | EA71: 0 | EB71: 0 | EC71: 0 | ED71: 0 | EE71: 1 | EF71: 4 | EG71: 2 | EH71: 0 | EI71: 1 | EJ71: 1 | EK71: 0 | EL71: 1 | EM71: 2 | EN71: 3 | EO71: 1 | EP71: 0 | EQ71: 0 | ER71: 0 | ES71: 0 | ET71: 5 | EU71: 1 | EV71: 2 | EW71: 1 | EX71: 1 | EY71: 3 | EZ71: 6 | FA71: 4 | FB71: 1 | FC71: 6 | FD71: 0 | FE71: 4 | FF71: 4 | FG71: 6 | FH71: 2 | FI71: 10 | FJ71: 11 | FK71: 1 | FL71: 3 | FM71: 0 | FN71: 0 | FO71: 36 | FP71: 35 | FQ71: 0 | FR71: 0 | FS71: 1 | FT71: 2 | FU71: 4 | FV71: 6 | FW71: 5 | FX71: 4 | FY71: 7 | FZ71: 3 | GA71: 9 | GB71: 1 | GC71: 16 | GD71: 2 | GE71: 13 | GF71: 0 | GG71: 29 | GH71: 5 | GI71: 25 | GJ71: 3 | GK71: 0 | GL71: 0 | GM71: 0 | GN71: 0 | GO71: 109 | GP71: 26 | GQ71: 204 | GR71: 59 | GS71: 0 | GT71: 0 | GU71: 0 | GV71: 0 | GW71: 0 | GX71: 0 | GY71: 0 | GZ71: 0 | HA71: 0 | HB71: 0 | HC71: 0 | HD71: 0 | HE71: 0 | HF71: 1 | HG71: 0 | HH71: 2 | HI71: 0 | HJ71: 4 | HK71: 0 | HL71: 2 | HM71: 0 | HN71: 1 | HO71: 0 | HP71: 0 | HQ71: 0 | HR71: 2 | HS71: 0 | HT71: 1 | HU71: 0 | HV71: 0 | HW71: 0 | HX71: 0 | HY71: 0 | HZ71: 13 | IA71: 0 | IB71: 46 | IC71: 5 | ID71: 0 | IE71: 0 | IF71: 0 | IG71: 0 | IH71: 0 | II71: 0 | IJ71: 0 | IK71: 0 | IL71: 0 | IM71: 0 | IN71: 0 | IO71: 0 | IP71: 0
A72: 10 | B72: 0 | C72: 0 | D72: 0 | E72: 0 | F72: 0 | G72: 0 | H72: 0 | I72: 0 | J72: 0 | K72: 0 | L72: 0 | M72: 0 | N72: 0 | O72: 0 | P72: 0 | Q72: 2 | R72: 0 | S72: 0 | T72: 1 | U72: 2 | V72: 0 | W72: 4 | X72: 0 | Y72: 1 | Z72: 0 | AA72: 0 | AB72: 10 | AC72: 0 | AD72: 0 | AE72: 0 | AF72: 0 | AG72: 0 | AH72: 2 | AI72: 0 | AJ72: 0 | AK72: 0 | AL72: 0 | AM72: 0 | AN72: 0 | AO72: 0 | AP72: 0 | AQ72: 0 | AR72: 0 | AS72: 0 | AT72: 0 | AU72: 2 | AV72: 0 | AW72: 0 | AX72: 0 | AY72: 0 | AZ72: 0 | BA72: 0 | BB72: 0 | BC72: 0 | BD72: 0 | BE72: 0 | BF72: 0 | BG72: 0 | BH72: 0 | BI72: 0 | BJ72: 0 | BK72: 0 | BL72: 0 | BM72: 0 | BN72: 0 | BO72: 0 | BP72: 1 | BQ72: 0 | BR72: 0 | BS72: 0 | BT72: 0 | BU72: 0 | BV72: 0 | BW72: 0 | BX72: 0 | BY72: 0 | BZ72: 0 | CA72: 1 | CB72: 1 | CC72: 0 | CD72: 0 | CE72: 3 | CF72: 0 | CG72: 1 | CH72: 1 | CI72: 0 | CJ72: 3 | CK72: 0 | CL72: 0 | CM72: 3 | CN72: 1 | CO72: 3 | CP72: 3 | CQ72: 4 | CR72: 2 | CS72: 2 | CT72: 4 | CU72: 2 | CV72: 0 | CW72: 3 | CX72: 24 | CY72: 4 | CZ72: 0 | DA72: 2 | DB72: 5 | DC72: 0 | DD72: 0 | DE72: 0 | DF72: 0 | DG72: 0 | DH72: 0 | DI72: 0 | DJ72: 0 | DK72: 0 | DL72: 0 | DM72: 3 | DN72: 0 | DO72: 2 | DP72: 2 | DQ72: 0 | DR72: 0 | DS72: 0 | DT72: 0 | DU72: 0 | DV72: 0 | DW72: 0 | DX72: 0 | DY72: 0 | DZ72: 0 | EA72: 0 | EB72: 0 | EC72: 0 | ED72: 0 | EE72: 1 | EF72: 0 | EG72: 4 | EH72: 3 | EI72: 3 | EJ72: 3 | EK72: 0 | EL72: 0 | EM72: 2 | EN72: 1 | EO72: 0 | EP72: 0 | EQ72: 0 | ER72: 1 | ES72: 2 | ET72: 4 | EU72: 1 | EV72: 2 | EW72: 1 | EX72: 1 | EY72: 8 | EZ72: 2 | FA72: 1 | FB72: 2 | FC72: 3 | FD72: 5 | FE72: 2 | FF72: 4 | FG72: 9 | FH72: 7 | FI72: 10 | FJ72: 5 | FK72: 3 | FL72: 0 | FM72: 0 | FN72: 0 | FO72: 40 | FP72: 33 | FQ72: 0 | FR72: 1 | FS72: 1 | FT72: 3 | FU72: 7 | FV72: 0 | FW72: 2 | FX72: 6 | FY72: 3 | FZ72: 4 | GA72: 3 | GB72: 1 | GC72: 14 | GD72: 1 | GE72: 11 | GF72: 0 | GG72: 18 | GH72: 2 | GI72: 17 | GJ72: 3 | GK72: 0 | GL72: 0 | GM72: 0 | GN72: 0 | GO72: 76 | GP72: 21 | GQ72: 184 | GR72: 57 | GS72: 0 | GT72: 0 | GU72: 0 | GV72: 0 | GW72: 0 | GX72: 0 | GY72: 0 | GZ72: 0 | HA72: 0 | HB72: 0 | HC72: 0 | HD72: 0 | HE72: 0 | HF72: 0 | HG72: 0 | HH72: 1 | HI72: 0 | HJ72: 3 | HK72: 1 | HL72: 2 | HM72: 0 | HN72: 1 | HO72: 0 | HP72: 0 | HQ72: 0 | HR72: 1 | HS72: 0 | HT72: 1 | HU72: 0 | HV72: 0 | HW72: 0 | HX72: 0 | HY72: 0 | HZ72: 9 | IA72: 1 | IB72: 33 | IC72: 4 | ID72: 0 | IE72: 0 | IF72: 0 | IG72: 0 | IH72: 0 | II72: 0 | IJ72: 0 | IK72: 0 | IL72: 0 | IM72: 0 | IN72: 0 | IO72: 0 | IP72: 0
A73: 11 | B73: 0 | C73: 0 | D73: 0 | E73: 0 | F73: 0 | G73: 0 | H73: 0 | I73: 0 | J73: 0 | K73: 0 | L73: 0 | M73: 0 | N73: 1 | O73: 2 | P73: 1 | Q73: 0 | R73: 1 | S73: 0 | T73: 1 | U73: 4 | V73: 0 | W73: 9 | X73: 0 | Y73: 0 | Z73: 0 | AA73: 0 | AB73: 19 | AC73: 0 | AD73: 0 | AE73: 0 | AF73: 0 | AG73: 0 | AH73: 0 | AI73: 0 | AJ73: 0 | AK73: 0 | AL73: 0 | AM73: 0 | AN73: 0 | AO73: 0 | AP73: 0 | AQ73: 0 | AR73: 0 | AS73: 0 | AT73: 0 | AU73: 0 | AV73: 0 | AW73: 0 | AX73: 0 | AY73: 0 | AZ73: 0 | BA73: 0 | BB73: 1 | BC73: 1 | BD73: 0 | BE73: 0 | BF73: 0 | BG73: 0 | BH73: 0 | BI73: 0 | BJ73: 0 | BK73: 0 | BL73: 0 | BM73: 0 | BN73: 2 | BO73: 0 | BP73: 0 | BQ73: 0 | BR73: 0 | BS73: 0 | BT73: 0 | BU73: 0 | BV73: 0 | BW73: 0 | BX73: 2 | BY73: 2 | BZ73: 1 | CA73: 0 | CB73: 0 | CC73: 0 | CD73: 0 | CE73: 5 | CF73: 0 | CG73: 1 | CH73: 1 | CI73: 0 | CJ73: 1 | CK73: 0 | CL73: 0 | CM73: 1 | CN73: 1 | CO73: 3 | CP73: 2 | CQ73: 7 | CR73: 1 | CS73: 1 | CT73: 0 | CU73: 4 | CV73: 0 | CW73: 1 | CX73: 20 | CY73: 0 | CZ73: 0 | DA73: 0 | DB73: 0 | DC73: 0 | DD73: 0 | DE73: 0 | DF73: 0 | DG73: 0 | DH73: 0 | DI73: 0 | DJ73: 0 | DK73: 0 | DL73: 0 | DM73: 0 | DN73: 0 | DO73: 0 | DP73: 0 | DQ73: 0 | DR73: 0 | DS73: 0 | DT73: 0 | DU73: 0 | DV73: 0 | DW73: 0 | DX73: 0 | DY73: 0 | DZ73: 0 | EA73: 0 | EB73: 0 | EC73: 0 | ED73: 0 | EE73: 1 | EF73: 2 | EG73: 0 | EH73: 4 | EI73: 1 | EJ73: 2 | EK73: 0 | EL73: 0 | EM73: 1 | EN73: 2 | EO73: 0 | EP73: 0 | EQ73: 1 | ER73: 1 | ES73: 1 | ET73: 3 | EU73: 3 | EV73: 2 | EW73: 2 | EX73: 2 | EY73: 10 | EZ73: 1 | FA73: 4 | FB73: 2 | FC73: 6 | FD73: 3 | FE73: 5 | FF73: 0 | FG73: 12 | FH73: 5 | FI73: 7 | FJ73: 8 | FK73: 3 | FL73: 1 | FM73: 0 | FN73: 0 | FO73: 54 | FP73: 28 | FQ73: 0 | FR73: 0 | FS73: 1 | FT73: 2 | FU73: 6 | FV73: 3 | FW73: 1 | FX73: 3 | FY73: 9 | FZ73: 5 | GA73: 4 | GB73: 1 | GC73: 16 | GD73: 0 | GE73: 14 | GF73: 2 | GG73: 18 | GH73: 1 | GI73: 10 | GJ73: 0 | GK73: 1 | GL73: 0 | GM73: 1 | GN73: 0 | GO73: 81 | GP73: 17 | GQ73: 186 | GR73: 52 | GS73: 0 | GT73: 0 | GU73: 0 | GV73: 0 | GW73: 0 | GX73: 0 | GY73: 0 | GZ73: 0 | HA73: 0 | HB73: 0 | HC73: 0 | HD73: 0 | HE73: 0 | HF73: 0 | HG73: 0 | HH73: 1 | HI73: 0 | HJ73: 4 | HK73: 0 | HL73: 1 | HM73: 1 | HN73: 1 | HO73: 0 | HP73: 0 | HQ73: 0 | HR73: 0 | HS73: 0 | HT73: 0 | HU73: 0 | HV73: 0 | HW73: 0 | HX73: 0 | HY73: 0 | HZ73: 7 | IA73: 1 | IB73: 39 | IC73: 3 | ID73: 0 | IE73: 0 | IF73: 0 | IG73: 0 | IH73: 0 | II73: 0 | IJ73: 0 | IK73: 0 | IL73: 0 | IM73: 0 | IN73: 0 | IO73: 0 | IP73: 0
A74: Total general | B74: 0 | C74: 0 | D74: 1 | E74: 4 | F74: 3 | G74: 2 | H74: 0 | I74: 10 | J74: 0 | K74: 0 | L74: 3 | M74: 0 | N74: 5 | O74: 7 | P74: 1 | Q74: 18 | R74: 2 | S74: 10 | T74: 6 | U74: 34 | V74: 3 | W74: 51 | X74: 1 | Y74: 12 | Z74: 0 | AA74: 0 | AB74: 153 | AC74: 0 | AD74: 0 | AE74: 0 | AF74: 0 | AG74: 0 | AH74: 3 | AI74: 0 | AJ74: 0 | AK74: 0 | AL74: 0 | AM74: 0 | AN74: 0 | AO74: 0 | AP74: 0 | AQ74: 0 | AR74: 0 | AS74: 0 | AT74: 0 | AU74: 3 | AV74: 0 | AW74: 0 | AX74: 0 | AY74: 0 | AZ74: 0 | BA74: 1 | BB74: 2 | BC74: 2 | BD74: 0 | BE74: 0 | BF74: 0 | BG74: 0 | BH74: 0 | BI74: 0 | BJ74: 0 | BK74: 0 | BL74: 0 | BM74: 0 | BN74: 5 | BO74: 1 | BP74: 5 | BQ74: 3 | BR74: 4 | BS74: 5 | BT74: 4 | BU74: 2 | BV74: 3 | BW74: 16 | BX74: 8 | BY74: 14 | BZ74: 4 | CA74: 15 | CB74: 8 | CC74: 0 | CD74: 1 | CE74: 93 | CF74: 0 | CG74: 3 | CH74: 3 | CI74: 19 | CJ74: 14 | CK74: 5 | CL74: 7 | CM74: 45 | CN74: 10 | CO74: 29 | CP74: 37 | CQ74: 71 | CR74: 19 | CS74: 20 | CT74: 24 | CU74: 34 | CV74: 24 | CW74: 15 | CX74: 283 | CY74: 60 | CZ74: 46 | DA74: 109 | DB74: 92 | DC74: 9 | DD74: 15 | DE74: 36 | DF74: 64 | DG74: 0 | DH74: 0 | DI74: 7 | DJ74: 4 | DK74: 0 | DL74: 1 | DM74: 26 | DN74: 9 | DO74: 47 | DP74: 25 | DQ74: 0 | DR74: 1 | DS74: 0 | DT74: 0 | DU74: 0 | DV74: 0 | DW74: 0 | DX74: 0 | DY74: 0 | DZ74: 0 | EA74: 0 | EB74: 0 | EC74: 0 | ED74: 1 | EE74: 22 | EF74: 29 | EG74: 26 | EH74: 23 | EI74: 10 | EJ74: 26 | EK74: 2 | EL74: 9 | EM74: 24 | EN74: 30 | EO74: 4 | EP74: 3 | EQ74: 3 | ER74: 10 | ES74: 21 | ET74: 45 | EU74: 23 | EV74: 36 | EW74: 11 | EX74: 16 | EY74: 43 | EZ74: 27 | FA74: 31 | FB74: 18 | FC74: 58 | FD74: 42 | FE74: 38 | FF74: 40 | FG74: 82 | FH74: 60 | FI74: 75 | FJ74: 98 | FK74: 18 | FL74: 26 | FM74: 1 | FN74: 4 | FO74: 404 | FP74: 422 | FQ74: 3 | FR74: 2 | FS74: 12 | FT74: 18 | FU74: 37 | FV74: 32 | FW74: 18 | FX74: 30 | FY74: 54 | FZ74: 25 | GA74: 48 | GB74: 18 | GC74: 125 | GD74: 10 | GE74: 106 | GF74: 4 | GG74: 219 | GH74: 29 | GI74: 190 | GJ74: 22 | GK74: 22 | GL74: 1 | GM74: 3 | GN74: 1 | GO74: 837 | GP74: 192 | GQ74: 1928 | GR74: 510 | GS74: 0 | GT74: 0 | GU74: 0 | GV74: 0 | GW74: 0 | GX74: 0 | GY74: 0 | GZ74: 0 | HA74: 0 | HB74: 0 | HC74: 0 | HD74: 1 | HE74: 0 | HF74: 4 | HG74: 0 | HH74: 11 | HI74: 1 | HJ74: 30 | HK74: 4 | HL74: 23 | HM74: 1 | HN74: 8 | HO74: 0 | HP74: 6 | HQ74: 0 | HR74: 10 | HS74: 1 | HT74: 5 | HU74: 0 | HV74: 0 | HW74: 0 | HX74: 0 | HY74: 0 | HZ74: 98 | IA74: 7 | IB74: 391 | IC74: 23 | ID74: 0 | IE74: 0 | IF74: 0 | IG74: 0 | IH74: 0 | II74: 0 | IJ74: 0 | IK74: 0 | IL74: 0 | IM74: 0 | IN74: 1 | IO74: 0 | IP74: 0
A77: Salud Mental 3
A78: Anio | B78: 2024
A79: UE | B79: (Todas)
A80: Red | B80: LA CONVENCION
A81: MicroRed | B81: (Todas)
A82: EESS | B82: (Todas)
A83: Provincia | B83: (Todas)
A84: Distrito | B84: (Todas)
A86: Etiquetas de fila | B86: Atd_EAutista_0_2F | C86: Atd_EAutista_0_2M | D86: Atd_EAutista_3_5F | E86: Atd_EAutista_3_5M | F86: Atd_EAutista_6_9F | G86: Atd_EAutista_6_9M | H86: Atd_EAutista_10_11F | I86: Atd_EAutista_10_11M | J86: Atd_EAutista_12_14F | K86: Atd_EAutista_12_14M | L86: Atd_EAutista_15_17F | M86: Atd_EAutista_15_17M | N86: Atd_EAutista_18_24F | O86: Atd_EAutista_18_24M | P86: Atd_EAutista_25_29F | Q86: Atd_EAutista_25_29M | R86: Atd_EAutista_30_39F | S86: Atd_EAutista_30_39M | T86: Atd_EAutista_40_59F | U86: Atd_EAutista_40_59M | V86: Atd_EAutista_60_79F | W86: Atd_EAutista_60_79M | X86: Atd_EAutista_80F | Y86: Atd_EAutista_80M | Z86: Atd_EAutista_TOTALF | AA86: Atd_EAutista_TOTALM | AB86: Atc_EAutista_TOTALF | AC86: Atc_EAutista_TOTALM | AD86: Atd_TmentalC_0_2F | AE86: Atd_TmentalC_0_2M | AF86: Atd_TmentalC_3_5F | AG86: Atd_TmentalC_3_5M | AH86: Atd_TmentalC_6_9F | AI86: Atd_TmentalC_6_9M | AJ86: Atd_TmentalC_10_11F | AK86: Atd_TmentalC_10_11M | AL86: Atd_TmentalC_12_14F | AM86: Atd_TmentalC_12_14M | AN86: Atd_TmentalC_15_17F | AO86: Atd_TmentalC_15_17M | AP86: Atd_TmentalC_TOTALF | AQ86: Atd_TmentalC_TOTALM | AR86: Atc_TmentalC_TOTALF | AS86: Atc_TmentalC_TOTALM | AT86: Atd_TD_0_2F | AU86: Atd_TD_0_2M | AV86: Atd_TD_3_5F | AW86: Atd_TD_3_5M | AX86: Atd_TD_6_9F | AY86: Atd_TD_6_9M | AZ86: Atd_TD_10_11F | BA86: Atd_TD_10_11M | BB86: Atd_TD_12_14F | BC86: Atd_TD_12_14M | BD86: Atd_TD_15_17F | BE86: Atd_TD_15_17M | BF86: Atd_TD_18_24F | BG86: Atd_TD_18_24M | BH86: Atd_TD_25_29F | BI86: Atd_TD_25_29M | BJ86: Atd_TD_30_39F | BK86: Atd_TD_30_39M | BL86: Atd_TD_40_59F | BM86: Atd_TD_40_59M | BN86: Atd_TD_60_79F | BO86: Atd_TD_60_79M | BP86: Atd_TD_80F | BQ86: Atd_TD_80M | BR86: Atd_TD_TOTALF | BS86: Atd_TD_TOTALM | BT86: Atc_TD_TOTALF | BU86: Atc_TD_TOTALM | BV86: Atd_TD_g_10_11F | BW86: Atd_TD_g_12_14F | BX86: Atd_TD_g_15_17F | BY86: Atd_TD_g_18_24F | BZ86: Atd_TD_g_25_29F | CA86: Atd_TD_g_30_39F | CB86: Atd_TD_g_40_59F | CC86: Atd_TD_g_totalF | CD86: Atc_TD_g_totalF | CE86: Atd_TAN_0_2F | CF86: Atd_TAN_0_2M | CG86: Atd_TAN_3_5F | CH86: Atd_TAN_3_5M | CI86: Atd_TAN_6_9F | CJ86: Atd_TAN_6_9M | CK86: Atd_TAN_10_11F | CL86: Atd_TAN_10_11M | CM86: Atd_TAN_12_14F | CN86: Atd_TAN_12_14M | CO86: Atd_TAN_15_17F | CP86: Atd_TAN_15_17M | CQ86: Atd_TAN_18_24F | CR86: Atd_TAN_18_24M | CS86: Atd_TAN_25_29F | CT86: Atd_TAN_25_29M | CU86: Atd_TAN_30_39F | CV86: Atd_TAN_30_39M | CW86: Atd_TAN_40_59F | CX86: Atd_TAN_40_59M | CY86: Atd_TAN_60_79F | CZ86: Atd_TAN_60_79M | DA86: Atd_TAN_80F | DB86: Atd_TAN_80M | DC86: Atd_TAN_TOTALF | DD86: Atd_TAN_TOTALM | DE86: Atc_TAN_TOTALF | DF86: Atc_TAN_TOTALM | DG86: Atd_Csuicida_3_5F | DH86: Atd_Csuicida_3_5M | DI86: Atd_Csuicida_6_9F | DJ86: Atd_Csuicida_6_9M | DK86: Atd_Csuicida_10_11F | DL86: Atd_Csuicida_10_11M | DM86: Atd_Csuicida_12_14F | DN86: Atd_TCsuicida_12_14M | DO86: Atd_Csuicida_15_17F | DP86: Atd_Csuicida_15_17M | DQ86: Atd_Csuicida_18_24F | DR86: Atd_Csuicida_18_24M | DS86: Atd_Csuicida_25_29F | DT86: Atd_Csuicida_25_29M | DU86: Atd_Csuicida_30_39F | DV86: Atd_Csuicida_30_39M | DW86: Atd_Csuicida_40_59F | DX86: Atd_Csuicida_40_59M | DY86: Atd_Csuicida_60_79F | DZ86: Atd_Csuicida_60_79M | EA86: Atd_Csuicida_80F | EB86: Atd_Csuicida_80M | EC86: Atd_Csuicida_TOTALF | ED86: Atd_Csuicida_TOTALM | EE86: Atc_Csuicida_TOTALF | EF86: Atc_Csuicida_TOTALM | EG86: Atd_TCA_0_2F | EH86: Atd_TCA_0_2M | EI86: Atd_TCA_3_5F | EJ86: Atd_TCA_3_5M | EK86: Atd_TCA_6_9F | EL86: Atd_TCA_6_9M | EM86: Atd_TCA_10_11F | EN86: Atd_TCA_10_11M | EO86: Atd_TCA_12_14F | EP86: Atd_TCA_12_14M | EQ86: Atd_TCA_15_17F | ER86: Atd_TCA_15_17M | ES86: Atd_TCA_18_24F | ET86: Atd_TCA_18_24M | EU86: Atd_TCA_25_29F | EV86: Atd_TCA_25_29M | EW86: Atd_TCA_30_39F | EX86: Atd_TCA_30_39M | EY86: Atd_TCA_40_59F | EZ86: Atd_TCA_40_59M | FA86: Atd_TCA_60_79F | FB86: Atd_TCA_60_79M | FC86: Atd_TCA_80F | FD86: Atd_TCA_80M | FE86: Atd_TCA_TOTALF | FF86: Atd_TCA_TOTALM | FG86: Atc_TCA_TOTALF | FH86: Atc_TCA_TOTALM | FI86: Atd_DAOD_0_2F | FJ86: Atd_DAOD_0_2M | FK86: Atd_DAOD_3_5F | FL86: Atd_DAOD_3_5M | FM86: Atd_DAOD_6_9F | FN86: Atd_DAOD_6_9M | FO86: Atd_DAOD_10_11F | FP86: Atd_DAOD_10_11M | FQ86: Atd_DAOD_12_14F | FR86: Atd_DAOD_12_14M | FS86: Atd_DAOD_15_17F | FT86: Atd_DAOD_15_17M | FU86: Atd_DAOD_18_24F | FV86: Atd_DAOD_18_24M | FW86: Atd_DAOD_25_29F | FX86: Atd_DAOD_25_29M | FY86: Atd_DAOD_30_39F | FZ86: Atd_DAOD_30_39M | GA86: Atd_DAOD_40_59F | GB86: Atd_DAOD_40_59M | GC86: Atd_DAOD_60_79F | GD86: Atd_DAOD_60_79M | GE86: Atd_DAOD_80F | GF86: Atd_DAOD_80M | GG86: Atd_DAOD_TOTALF | GH86: Atd_DAOD_TOTALM | GI86: Atc_DAOD_TOTALF | GJ86: Atc_DAOD_TOTALM | GK86: Atd_TPS_0_2F | GL86: Atd_TPS_0_2M | GM86: Atd_TPS_3_5F | GN86: Atd_TPS_3_5M | GO86: Atd_TPS_6_9F | GP86: Atd_TPS_6_9M | GQ86: Atd_TPS_10_11F | GR86: Atd_TPS_10_11M | GS86: Atd_TPS_12_14F | GT86: Atd_TPS_12_14M | GU86: Atd_TPS_15_17F | GV86: Atd_TPS_15_17M | GW86: Atd_TPS_18_24F | GX86: Atd_TPS_18_24M | GY86: Atd_TPS_25_29F | GZ86: Atd_TPS_25_29M | HA86: Atd_TPS_30_39F | HB86: Atd_TPS_30_39M | HC86: Atd_TPS_40_59F | HD86: Atd_TPS_40_59M | HE86: Atd_TPS_60_79F | HF86: Atd_TPS_60_79M | HG86: Atd_TPS_80F | HH86: Atd_TPS_80M | HI86: Atd_TPS_TOTALF | HJ86: Atd_TPS_TOTALM | HK86: Atc_TPS_TOTALF | HL86: Atc_TPS_TOTALM | HM86: Atd_TPS1_0_2F | HN86: Atd_TPS1_0_2M | HO86: Atd_TPS1_3_5F | HP86: Atd_TPS1_3_5M | HQ86: Atd_TPS1_6_9F | HR86: Atd_TPS1_6_9M | HS86: Atd_TPS1_10_11F | HT86: Atd_TPS1_10_11M | HU86: Atd_TPS1_12_14F | HV86: Atd_TPS1_12_14M | HW86: Atd_TPS1_15_17F | HX86: Atd_TPS1_15_17M | HY86: Atd_TPS1_18_24F | HZ86: Atd_TPS1_18_24M | IA86: Atd_TPS1_25_29F | IB86: Atd_TPS1_25_29M | IC86: Atd_TPS1_30_39F | ID86: Atd_TPS1_30_39M | IE86: Atd_TPS1_40_59F | IF86: Atd_TPS1_40_59M | IG86: Atd_TPS1_60_79F | IH86: Atd_TPS1_60_79M | II86: Atd_TPS1_80F | IJ86: Atd_TPS1_80M | IK86: Atd_TPS1_TOTALF | IL86: Atd_TPS1_TOTALM | IM86: Atc_TPS1_TOTALF | IN86: Atc_TPS1_TOTALM
A87: 1 | B87: 0 | C87: 0 | D87: 0 | E87: 3 | F87: 0 | G87: 0 | H87: 0 | I87: 0 | J87: 0 | K87: 0 | L87: 1 | M87: 0 | N87: 0 | O87: 1 | P87: 0 | Q87: 0 | R87: 0 | S87: 0 | T87: 0 | U87: 0 | V87: 0 | W87: 0 | X87: 0 | Y87: 0 | Z87: 1 | AA87: 4 | AB87: 11 | AC87: 37 | AD87: 4 | AE87: 1 | AF87: 2 | AG87: 11 | AH87: 11 | AI87: 7 | AJ87: 6 | AK87: 6 | AL87: 10 | AM87: 8 | AN87: 3 | AO87: 1 | AP87: 36 | AQ87: 34 | AR87: 67 | AS87: 131 | AT87: 0 | AU87: 0 | AV87: 0 | AW87: 0 | AX87: 1 | AY87: 0 | AZ87: 0 | BA87: 0 | BB87: 5 | BC87: 0 | BD87: 7 | BE87: 2 | BF87: 22 | BG87: 6 | BH87: 6 | BI87: 2 | BJ87: 18 | BK87: 4 | BL87: 10 | BM87: 7 | BN87: 5 | BO87: 2 | BP87: 0 | BQ87: 0 | BR87: 74 | BS87: 23 | BT87: 191 | BU87: 52 | BV87: 0 | BW87: 0 | BX87: 0 | BY87: 0 | BZ87: 0 | CA87: 0 | CB87: 0 | CC87: 0 | CD87: 0 | CE87: 0 | CF87: 0 | CG87: 0 | CH87: 0 | CI87: 0 | CJ87: 0 | CK87: 1 | CL87: 0 | CM87: 3 | CN87: 2 | CO87: 3 | CP87: 0 | CQ87: 3 | CR87: 7 | CS87: 3 | CT87: 3 | CU87: 5 | CV87: 3 | CW87: 7 | CX87: 4 | CY87: 3 | CZ87: 3 | DA87: 0 | DB87: 1 | DC87: 28 | DD87: 23 | DE87: 101 | DF87: 55 | DG87: 0 | DH87: 0 | DI87: 0 | DJ87: 0 | DK87: 0 | DL87: 0 | DM87: 0 | DN87: 1 | DO87: 0 | DP87: 0 | DQ87: 1 | DR87: 0 | DS87: 0 | DT87: 0 | DU87: 0 | DV87: 0 | DW87: 0 | DX87: 0 | DY87: 0 | DZ87: 0 | EA87: 0 | EB87: 0 | EC87: 1 | ED87: 1 | EE87: 1 | EF87: 1 | EG87: 0 | EH87: 0 | EI87: 0 | EJ87: 0 | EK87: 0 | EL87: 0 | EM87: 0 | EN87: 0 | EO87: 0 | EP87: 0 | EQ87: 0 | ER87: 2 | ES87: 0 | ET87: 1 | EU87: 0 | EV87: 0 | EW87: 0 | EX87: 2 | EY87: 0 | EZ87: 0 | FA87: 0 | FB87: 0 | FC87: 0 | FD87: 0 | FE87: 0 | FF87: 5 | FG87: 1 | FH87: 16 | FI87: 0 | FJ87: 0 | FK87: 0 | FL87: 0 | FM87: 0 | FN87: 0 | FO87: 0 | FP87: 0 | FQ87: 0 | FR87: 0 | FS87: 0 | FT87: 0 | FU87: 0 | FV87: 1 | FW87: 0 | FX87: 0 | FY87: 0 | FZ87: 1 | GA87: 0 | GB87: 2 | GC87: 0 | GD87: 1 | GE87: 0 | GF87: 0 | GG87: 0 | GH87: 5 | GI87: 5 | GJ87: 30 | GK87: 0 | GL87: 0 | GM87: 0 | GN87: 0 | GO87: 0 | GP87: 0 | GQ87: 0 | GR87: 0 | GS87: 0 | GT87: 0 | GU87: 0 | GV87: 0 | GW87: 2 | GX87: 1 | GY87: 0 | GZ87: 2 | HA87: 3 | HB87: 1 | HC87: 2 | HD87: 3 | HE87: 0 | HF87: 0 | HG87: 0 | HH87: 0 | HI87: 7 | HJ87: 7 | HK87: 49 | HL87: 79 | HM87: 0 | HN87: 0 | HO87: 0 | HP87: 0 | HQ87: 0 | HR87: 0 | HS87: 0 | HT87: 0 | HU87: 0 | HV87: 0 | HW87: 0 | HX87: 0 | HY87: 0 | HZ87: 0 | IA87: 0 | IB87: 0 | IC87: 0 | ID87: 0 | IE87: 0 | IF87: 0 | IG87: 0 | IH87: 0 | II87: 0 | IJ87: 0 | IK87: 0 | IL87: 0 | IM87: 0 | IN87: 0
A88: 2 | B88: 0 | C88: 0 | D88: 1 | E88: 1 | F88: 1 | G88: 0 | H88: 0 | I88: 1 | J88: 0 | K88: 0 | L88: 1 | M88: 0 | N88: 1 | O88: 0 | P88: 0 | Q88: 0 | R88: 0 | S88: 0 | T88: 0 | U88: 0 | V88: 0 | W88: 0 | X88: 0 | Y88: 0 | Z88: 4 | AA88: 2 | AB88: 9 | AC88: 31 | AD88: 1 | AE88: 0 | AF88: 3 | AG88: 4 | AH88: 7 | AI88: 7 | AJ88: 5 | AK88: 3 | AL88: 9 | AM88: 3 | AN88: 1 | AO88: 3 | AP88: 26 | AQ88: 20 | AR88: 58 | AS88: 77 | AT88: 0 | AU88: 0 | AV88: 0 | AW88: 0 | AX88: 1 | AY88: 0 | AZ88: 0 | BA88: 1 | BB88: 3 | BC88: 2 | BD88: 11 | BE88: 4 | BF88: 23 | BG88: 6 | BH88: 5 | BI88: 2 | BJ88: 21 | BK88: 5 | BL88: 14 | BM88: 5 | BN88: 6 | BO88: 6 | BP88: 1 | BQ88: 0 | BR88: 85 | BS88: 31 | BT88: 190 | BU88: 51 | BV88: 0 | BW88: 0 | BX88: 0 | BY88: 0 | BZ88: 0 | CA88: 0 | CB88: 0 | CC88: 0 | CD88: 0 | CE88: 0 | CF88: 0 | CG88: 0 | CH88: 0 | CI88: 0 | CJ88: 0 | CK88: 0 | CL88: 0 | CM88: 1 | CN88: 0 | CO88: 3 | CP88: 1 | CQ88: 6 | CR88: 4 | CS88: 7 | CT88: 3 | CU88: 12 | CV88: 6 | CW88: 11 | CX88: 6 | CY88: 2 | CZ88: 5 | DA88: 1 | DB88: 0 | DC88: 43 | DD88: 25 | DE88: 104 | DF88: 56 | DG88: 0 | DH88: 0 | DI88: 0 | DJ88: 0 | DK88: 0 | DL88: 0 | DM88: 0 | DN88: 0 | DO88: 0 | DP88: 0 | DQ88: 0 | DR88: 0 | DS88: 1 | DT88: 0 | DU88: 0 | DV88: 0 | DW88: 0 | DX88: 0 | DY88: 0 | DZ88: 0 | EA88: 0 | EB88: 0 | EC88: 1 | ED88: 0 | EE88: 1 | EF88: 2 | EG88: 0 | EH88: 0 | EI88: 0 | EJ88: 0 | EK88: 0 | EL88: 0 | EM88: 0 | EN88: 0 | EO88: 0 | EP88: 0 | EQ88: 0 | ER88: 0 | ES88: 0 | ET88: 2 | EU88: 0 | EV88: 3 | EW88: 0 | EX88: 2 | EY88: 0 | EZ88: 5 | FA88: 0 | FB88: 0 | FC88: 0 | FD88: 0 | FE88: 0 | FF88: 12 | FG88: 2 | FH88: 25 | FI88: 0 | FJ88: 0 | FK88: 0 | FL88: 0 | FM88: 0 | FN88: 0 | FO88: 0 | FP88: 0 | FQ88: 0 | FR88: 0 | FS88: 0 | FT88: 0 | FU88: 0 | FV88: 0 | FW88: 1 | FX88: 1 | FY88: 1 | FZ88: 1 | GA88: 1 | GB88: 3 | GC88: 0 | GD88: 1 | GE88: 0 | GF88: 0 | GG88: 3 | GH88: 6 | GI88: 9 | GJ88: 25 | GK88: 0 | GL88: 0 | GM88: 0 | GN88: 0 | GO88: 0 | GP88: 0 | GQ88: 0 | GR88: 0 | GS88: 0 | GT88: 1 | GU88: 0 | GV88: 0 | GW88: 3 | GX88: 3 | GY88: 1 | GZ88: 2 | HA88: 3 | HB88: 8 | HC88: 1 | HD88: 5 | HE88: 0 | HF88: 1 | HG88: 0 | HH88: 0 | HI88: 8 | HJ88: 20 | HK88: 48 | HL88: 73 | HM88: 0 | HN88: 0 | HO88: 0 | HP88: 0 | HQ88: 0 | HR88: 0 | HS88: 0 | HT88: 0 | HU88: 0 | HV88: 0 | HW88: 0 | HX88: 0 | HY88: 0 | HZ88: 0 | IA88: 0 | IB88: 0 | IC88: 0 | ID88: 0 | IE88: 0 | IF88: 0 | IG88: 0 | IH88: 0 | II88: 0 | IJ88: 0 | IK88: 0 | IL88: 0 | IM88: 0 | IN88: 0
A89: 3 | B89: 0 | C89: 1 | D89: 0 | E89: 2 | F89: 0 | G89: 1 | H89: 0 | I89: 1 | J89: 0 | K89: 1 | L89: 0 | M89: 1 | N89: 0 | O89: 1 | P89: 0 | Q89: 0 | R89: 0 | S89: 0 | T89: 0 | U89: 0 | V89: 0 | W89: 0 | X89: 0 | Y89: 0 | Z89: 0 | AA89: 8 | AB89: 11 | AC89: 38 | AD89: 0 | AE89: 0 | AF89: 6 | AG89: 5 | AH89: 3 | AI89: 11 | AJ89: 6 | AK89: 1 | AL89: 4 | AM89: 9 | AN89: 2 | AO89: 2 | AP89: 21 | AQ89: 28 | AR89: 53 | AS89: 98 | AT89: 0 | AU89: 0 | AV89: 0 | AW89: 0 | AX89: 0 | AY89: 0 | AZ89: 0 | BA89: 1 | BB89: 2 | BC89: 0 | BD89: 6 | BE89: 3 | BF89: 14 | BG89: 3 | BH89: 10 | BI89: 0 | BJ89: 10 | BK89: 6 | BL89: 27 | BM89: 5 | BN89: 8 | BO89: 4 | BP89: 1 | BQ89: 1 | BR89: 78 | BS89: 23 | BT89: 189 | BU89: 55 | BV89: 0 | BW89: 0 | BX89: 0 | BY89: 0 | BZ89: 0 | CA89: 0 | CB89: 0 | CC89: 0 | CD89: 0 | CE89: 0 | CF89: 0 | CG89: 0 | CH89: 0 | CI89: 1 | CJ89: 0 | CK89: 0 | CL89: 0 | CM89: 1 | CN89: 2 | CO89: 3 | CP89: 1 | CQ89: 7 | CR89: 7 | CS89: 7 | CT89: 5 | CU89: 14 | CV89: 4 | CW89: 14 | CX89: 5 | CY89: 9 | CZ89: 3 | DA89: 1 | DB89: 0 | DC89: 57 | DD89: 27 | DE89: 136 | DF89: 65 | DG89: 0 | DH89: 0 | DI89: 0 | DJ89: 0 | DK89: 0 | DL89: 0 | DM89: 0 | DN89: 0 | DO89: 0 | DP89: 0 | DQ89: 0 | DR89: 0 | DS89: 0 | DT89: 0 | DU89: 0 | DV89: 0 | DW89: 0 | DX89: 0 | DY89: 0 | DZ89: 0 | EA89: 0 | EB89: 0 | EC89: 0 | ED89: 0 | EE89: 0 | EF89: 0 | EG89: 0 | EH89: 0 | EI89: 0 | EJ89: 0 | EK89: 0 | EL89: 0 | EM89: 0 | EN89: 0 | EO89: 0 | EP89: 0 | EQ89: 0 | ER89: 0 | ES89: 0 | ET89: 0 | EU89: 0 | EV89: 1 | EW89: 0 | EX89: 2 | EY89: 0 | EZ89: 6 | FA89: 0 | FB89: 1 | FC89: 0 | FD89: 0 | FE89: 0 | FF89: 10 | FG89: 3 | FH89: 37 | FI89: 0 | FJ89: 0 | FK89: 0 | FL89: 0 | FM89: 0 | FN89: 0 | FO89: 0 | FP89: 0 | FQ89: 0 | FR89: 0 | FS89: 0 | FT89: 0 | FU89: 1 | FV89: 1 | FW89: 1 | FX89: 1 | FY89: 0 | FZ89: 1 | GA89: 1 | GB89: 4 | GC89: 0 | GD89: 0 | GE89: 0 | GF89: 0 | GG89: 3 | GH89: 7 | GI89: 8 | GJ89: 21 | GK89: 0 | GL89: 0 | GM89: 0 | GN89: 0 | GO89: 0 | GP89: 0 | GQ89: 0 | GR89: 0 | GS89: 0 | GT89: 1 | GU89: 1 | GV89: 2 | GW89: 0 | GX89: 3 | GY89: 3 | GZ89: 5 | HA89: 2 | HB89: 5 | HC89: 4 | HD89: 5 | HE89: 0 | HF89: 3 | HG89: 0 | HH89: 0 | HI89: 10 | HJ89: 24 | HK89: 47 | HL89: 89 | HM89: 0 | HN89: 0 | HO89: 0 | HP89: 0 | HQ89: 0 | HR89: 0 | HS89: 0 | HT89: 0 | HU89: 0 | HV89: 0 | HW89: 0 | HX89: 0 | HY89: 0 | HZ89: 0 | IA89: 0 | IB89: 0 | IC89: 0 | ID89: 0 | IE89: 0 | IF89: 0 | IG89: 0 | IH89: 0 | II89: 0 | IJ89: 0 | IK89: 0 | IL89: 0 | IM89: 0 | IN89: 0
A90: 4 | B90: 0 | C90: 1 | D90: 0 | E90: 3 | F90: 1 | G90: 0 | H90: 0 | I90: 0 | J90: 0 | K90: 1 | L90: 0 | M90: 0 | N90: 0 | O90: 1 | P90: 0 | Q90: 0 | R90: 0 | S90: 0 | T90: 0 | U90: 0 | V90: 0 | W90: 0 | X90: 0 | Y90: 0 | Z90: 1 | AA90: 6 | AB90: 10 | AC90: 41 | AD90: 0 | AE90: 1 | AF90: 5 | AG90: 4 | AH90: 4 | AI90: 17 | AJ90: 6 | AK90: 5 | AL90: 6 | AM90: 9 | AN90: 3 | AO90: 2 | AP90: 24 | AQ90: 38 | AR90: 67 | AS90: 114 | AT90: 0 | AU90: 0 | AV90: 0 | AW90: 0 | AX90: 0 | AY90: 0 | AZ90: 0 | BA90: 0 | BB90: 6 | BC90: 3 | BD90: 9 | BE90: 2 | BF90: 17 | BG90: 10 | BH90: 15 | BI90: 4 | BJ90: 20 | BK90: 6 | BL90: 23 | BM90: 7 | BN90: 10 | BO90: 6 | BP90: 1 | BQ90: 2 | BR90: 101 | BS90: 40 | BT90: 210 | BU90: 70 | BV90: 0 | BW90: 0 | BX90: 0 | BY90: 0 | BZ90: 0 | CA90: 0 | CB90: 0 | CC90: 0 | CD90: 0 | CE90: 0 | CF90: 0 | CG90: 0 | CH90: 0 | CI90: 0 | CJ90: 0 | CK90: 0 | CL90: 0 | CM90: 1 | CN90: 2 | CO90: 3 | CP90: 0 | CQ90: 6 | CR90: 9 | CS90: 11 | CT90: 5 | CU90: 8 | CV90: 3 | CW90: 12 | CX90: 7 | CY90: 8 | CZ90: 3 | DA90: 1 | DB90: 1 | DC90: 50 | DD90: 30 | DE90: 118 | DF90: 57 | DG90: 0 | DH90: 0 | DI90: 0 | DJ90: 0 | DK90: 0 | DL90: 0 | DM90: 0 | DN90: 0 | DO90: 1 | DP90: 1 | DQ90: 0 | DR90: 0 | DS90: 0 | DT90: 0 | DU90: 0 | DV90: 0 | DW90: 0 | DX90: 0 | DY90: 0 | DZ90: 0 | EA90: 0 | EB90: 0 | EC90: 1 | ED90: 1 | EE90: 2 | EF90: 1 | EG90: 0 | EH90: 0 | EI90: 0 | EJ90: 0 | EK90: 0 | EL90: 0 | EM90: 0 | EN90: 0 | EO90: 0 | EP90: 0 | EQ90: 0 | ER90: 1 | ES90: 1 | ET90: 1 | EU90: 1 | EV90: 1 | EW90: 0 | EX90: 1 | EY90: 0 | EZ90: 9 | FA90: 0 | FB90: 1 | FC90: 0 | FD90: 0 | FE90: 2 | FF90: 14 | FG90: 5 | FH90: 37 | FI90: 0 | FJ90: 0 | FK90: 0 | FL90: 0 | FM90: 0 | FN90: 0 | FO90: 0 | FP90: 0 | FQ90: 0 | FR90: 0 | FS90: 0 | FT90: 0 | FU90: 1 | FV90: 0 | FW90: 1 | FX90: 1 | FY90: 0 | FZ90: 1 | GA90: 1 | GB90: 8 | GC90: 0 | GD90: 0 | GE90: 0 | GF90: 0 | GG90: 3 | GH90: 10 | GI90: 7 | GJ90: 32 | GK90: 0 | GL90: 0 | GM90: 0 | GN90: 0 | GO90: 0 | GP90: 0 | GQ90: 0 | GR90: 0 | GS90: 0 | GT90: 0 | GU90: 0 | GV90: 2 | GW90: 1 | GX90: 1 | GY90: 0 | GZ90: 3 | HA90: 2 | HB90: 3 | HC90: 1 | HD90: 5 | HE90: 3 | HF90: 2 | HG90: 0 | HH90: 0 | HI90: 7 | HJ90: 16 | HK90: 45 | HL90: 88 | HM90: 0 | HN90: 0 | HO90: 0 | HP90: 0 | HQ90: 0 | HR90: 0 | HS90: 0 | HT90: 0 | HU90: 0 | HV90: 0 | HW90: 0 | HX90: 0 | HY90: 0 | HZ90: 0 | IA90: 0 | IB90: 0 | IC90: 0 | ID90: 0 | IE90: 0 | IF90: 0 | IG90: 0 | IH90: 0 | II90: 0 | IJ90: 0 | IK90: 0 | IL90: 0 | IM90: 0 | IN90: 0
A91: 5 | B91: 0 | C91: 1 | D91: 0 | E91: 2 | F91: 1 | G91: 0 | H91: 0 | I91: 0 | J91: 0 | K91: 0 | L91: 0 | M91: 0 | N91: 1 | O91: 1 | P91: 0 | Q91: 0 | R91: 0 | S91: 1 | T91: 0 | U91: 0 | V91: 0 | W91: 0 | X91: 0 | Y91: 0 | Z91: 2 | AA91: 5 | AB91: 13 | AC91: 37 | AD91: 0 | AE91: 2 | AF91: 4 | AG91: 6 | AH91: 9 | AI91: 15 | AJ91: 7 | AK91: 5 | AL91: 4 | AM91: 9 | AN91: 3 | AO91: 1 | AP91: 27 | AQ91: 38 | AR91: 61 | AS91: 123 | AT91: 0 | AU91: 0 | AV91: 0 | AW91: 0 | AX91: 0 | AY91: 0 | AZ91: 1 | BA91: 0 | BB91: 2 | BC91: 1 | BD91: 5 | BE91: 2 | BF91: 15 | BG91: 2 | BH91: 8 | BI91: 1 | BJ91: 18 | BK91: 5 | BL91: 22 | BM91: 9 | BN91: 9 | BO91: 8 | BP91: 1 | BQ91: 0 | BR91: 81 | BS91: 28 | BT91: 196 | BU91: 65 | BV91: 0 | BW91: 0 | BX91: 0 | BY91: 0 | BZ91: 0 | CA91: 0 | CB91: 0 | CC91: 0 | CD91: 0 | CE91: 0 | CF91: 0 | CG91: 0 | CH91: 0 | CI91: 0 | CJ91: 0 | CK91: 1 | CL91: 0 | CM91: 1 | CN91: 3 | CO91: 3 | CP91: 2 | CQ91: 2 | CR91: 3 | CS91: 1 | CT91: 2 | CU91: 5 | CV91: 5 | CW91: 8 | CX91: 7 | CY91: 7 | CZ91: 2 | DA91: 0 | DB91: 1 | DC91: 28 | DD91: 25 | DE91: 101 | DF91: 56 | DG91: 0 | DH91: 0 | DI91: 0 | DJ91: 0 | DK91: 0 | DL91: 0 | DM91: 0 | DN91: 0 | DO91: 0 | DP91: 0 | DQ91: 0 | DR91: 0 | DS91: 0 | DT91: 0 | DU91: 0 | DV91: 0 | DW91: 0 | DX91: 0 | DY91: 0 | DZ91: 0 | EA91: 0 | EB91: 0 | EC91: 0 | ED91: 0 | EE91: 0 | EF91: 1 | EG91: 0 | EH91: 0 | EI91: 0 | EJ91: 0 | EK91: 0 | EL91: 0 | EM91: 0 | EN91: 0 | EO91: 1 | EP91: 0 | EQ91: 0 | ER91: 1 | ES91: 2 | ET91: 0 | EU91: 0 | EV91: 2 | EW91: 0 | EX91: 8 | EY91: 0 | EZ91: 0 | FA91: 0 | FB91: 0 | FC91: 0 | FD91: 0 | FE91: 3 | FF91: 11 | FG91: 6 | FH91: 32 | FI91: 0 | FJ91: 0 | FK91: 0 | FL91: 0 | FM91: 0 | FN91: 0 | FO91: 0 | FP91: 0 | FQ91: 0 | FR91: 0 | FS91: 0 | FT91: 0 | FU91: 0 | FV91: 1 | FW91: 0 | FX91: 0 | FY91: 0 | FZ91: 2 | GA91: 0 | GB91: 5 | GC91: 0 | GD91: 2 | GE91: 0 | GF91: 0 | GG91: 0 | GH91: 10 | GI91: 4 | GJ91: 36 | GK91: 0 | GL91: 0 | GM91: 0 | GN91: 0 | GO91: 0 | GP91: 0 | GQ91: 0 | GR91: 0 | GS91: 0 | GT91: 0 | GU91: 0 | GV91: 2 | GW91: 0 | GX91: 2 | GY91: 0 | GZ91: 3 | HA91: 0 | HB91: 2 | HC91: 0 | HD91: 1 | HE91: 0 | HF91: 0 | HG91: 0 | HH91: 0 | HI91: 0 | HJ91: 10 | HK91: 43 | HL91: 82 | HM91: 0 | HN91: 0 | HO91: 0 | HP91: 0 | HQ91: 0 | HR91: 0 | HS91: 0 | HT91: 0 | HU91: 0 | HV91: 0 | HW91: 0 | HX91: 0 | HY91: 0 | HZ91: 0 | IA91: 0 | IB91: 0 | IC91: 0 | ID91: 0 | IE91: 0 | IF91: 0 | IG91: 0 | IH91: 0 | II91: 0 | IJ91: 0 | IK91: 0 | IL91: 0 | IM91: 0 | IN91: 0
A92: 6 | B92: 0 | C92: 1 | D92: 1 | E92: 1 | F92: 0 | G92: 2 | H92: 0 | I92: 0 | J92: 0 | K92: 0 | L92: 0 | M92: 0 | N92: 0 | O92: 2 | P92: 0 | Q92: 0 | R92: 0 | S92: 1 | T92: 0 | U92: 0 | V92: 0 | W92: 0 | X92: 0 | Y92: 0 | Z92: 1 | AA92: 7 | AB92: 15 | AC92: 41 | AD92: 0 | AE92: 2 | AF92: 2 | AG92: 11 | AH92: 7 | AI92: 17 | AJ92: 8 | AK92: 2 | AL92: 6 | AM92: 11 | AN92: 4 | AO92: 6 | AP92: 27 | AQ92: 49 | AR92: 70 | AS92: 135 | AT92: 0 | AU92: 0 | AV92: 0 | AW92: 0 | AX92: 0 | AY92: 0 | AZ92: 1 | BA92: 0 | BB92: 8 | BC92: 1 | BD92: 10 | BE92: 1 | BF92: 11 | BG92: 1 | BH92: 9 | BI92: 2 | BJ92: 18 | BK92: 8 | BL92: 20 | BM92: 8 | BN92: 6 | BO92: 5 | BP92: 1 | BQ92: 0 | BR92: 84 | BS92: 26 | BT92: 215 | BU92: 71 | BV92: 0 | BW92: 0 | BX92: 0 | BY92: 0 | BZ92: 0 | CA92: 0 | CB92: 0 | CC92: 0 | CD92: 0 | CE92: 0 | CF92: 0 | CG92: 0 | CH92: 0 | CI92: 0 | CJ92: 0 | CK92: 1 | CL92: 0 | CM92: 0 | CN92: 1 | CO92: 3 | CP92: 1 | CQ92: 8 | CR92: 4 | CS92: 7 | CT92: 2 | CU92: 6 | CV92: 4 | CW92: 9 | CX92: 8 | CY92: 5 | CZ92: 5 | DA92: 0 | DB92: 1 | DC92: 39 | DD92: 26 | DE92: 109 | DF92: 62 | DG92: 0 | DH92: 0 | DI92: 0 | DJ92: 0 | DK92: 0 | DL92: 0 | DM92: 0 | DN92: 0 | DO92: 0 | DP92: 0 | DQ92: 0 | DR92: 0 | DS92: 0 | DT92: 0 | DU92: 0 | DV92: 0 | DW92: 0 | DX92: 0 | DY92: 0 | DZ92: 0 | EA92: 0 | EB92: 0 | EC92: 0 | ED92: 0 | EE92: 0 | EF92: 0 | EG92: 0 | EH92: 0 | EI92: 0 | EJ92: 0 | EK92: 0 | EL92: 0 | EM92: 0 | EN92: 0 | EO92: 0 | EP92: 0 | EQ92: 1 | ER92: 2 | ES92: 0 | ET92: 1 | EU92: 1 | EV92: 0 | EW92: 1 | EX92: 1 | EY92: 0 | EZ92: 1 | FA92: 0 | FB92: 0 | FC92: 0 | FD92: 0 | FE92: 3 | FF92: 5 | FG92: 9 | FH92: 30 | FI92: 0 | FJ92: 0 | FK92: 0 | FL92: 0 | FM92: 0 | FN92: 0 | FO92: 0 | FP92: 0 | FQ92: 0 | FR92: 0 | FS92: 0 | FT92: 0 | FU92: 0 | FV92: 0 | FW92: 1 | FX92: 0 | FY92: 0 | FZ92: 0 | GA92: 0 | GB92: 3 | GC92: 0 | GD92: 1 | GE92: 0 | GF92: 0 | GG92: 1 | GH92: 4 | GI92: 2 | GJ92: 30 | GK92: 0 | GL92: 0 | GM92: 0 | GN92: 0 | GO92: 0 | GP92: 0 | GQ92: 0 | GR92: 0 | GS92: 0 | GT92: 0 | GU92: 0 | GV92: 1 | GW92: 0 | GX92: 2 | GY92: 2 | GZ92: 1 | HA92: 4 | HB92: 4 | HC92: 2 | HD92: 3 | HE92: 0 | HF92: 1 | HG92: 0 | HH92: 0 | HI92: 8 | HJ92: 12 | HK92: 46 | HL92: 68 | HM92: 0 | HN92: 0 | HO92: 0 | HP92: 0 | HQ92: 0 | HR92: 0 | HS92: 0 | HT92: 0 | HU92: 0 | HV92: 0 | HW92: 0 | HX92: 0 | HY92: 0 | HZ92: 0 | IA92: 0 | IB92: 0 | IC92: 0 | ID92: 0 | IE92: 0 | IF92: 0 | IG92: 0 | IH92: 0 | II92: 0 | IJ92: 0 | IK92: 0 | IL92: 0 | IM92: 0 | IN92: 0
A93: 7 | B93: 0 | C93: 2 | D93: 1 | E93: 1 | F93: 0 | G93: 0 | H93: 0 | I93: 0 | J93: 0 | K93: 1 | L93: 0 | M93: 0 | N93: 0 | O93: 1 | P93: 0 | Q93: 0 | R93: 0 | S93: 1 | T93: 0 | U93: 0 | V93: 0 | W93: 0 | X93: 0 | Y93: 0 | Z93: 1 | AA93: 6 | AB93: 13 | AC93: 40 | AD93: 0 | AE93: 1 | AF93: 3 | AG93: 9 | AH93: 11 | AI93: 15 | AJ93: 4 | AK93: 5 | AL93: 8 | AM93: 11 | AN93: 2 | AO93: 5 | AP93: 28 | AQ93: 46 | AR93: 71 | AS93: 130 | AT93: 0 | AU93: 0 | AV93: 0 | AW93: 0 | AX93: 0 | AY93: 0 | AZ93: 1 | BA93: 0 | BB93: 3 | BC93: 1 | BD93: 11 | BE93: 1 | BF93: 16 | BG93: 2 | BH93: 9 | BI93: 1 | BJ93: 22 | BK93: 6 | BL93: 30 | BM93: 11 | BN93: 10 | BO93: 2 | BP93: 0 | BQ93: 0 | BR93: 102 | BS93: 24 | BT93: 260 | BU93: 62 | BV93: 0 | BW93: 0 | BX93: 0 | BY93: 0 | BZ93: 0 | CA93: 0 | CB93: 0 | CC93: 0 | CD93: 0 | CE93: 0 | CF93: 0 | CG93: 0 | CH93: 0 | CI93: 0 | CJ93: 0 | CK93: 0 | CL93: 0 | CM93: 1 | CN93: 1 | CO93: 2 | CP93: 1 | CQ93: 8 | CR93: 5 | CS93: 7 | CT93: 5 | CU93: 8 | CV93: 8 | CW93: 7 | CX93: 8 | CY93: 3 | CZ93: 2 | DA93: 0 | DB93: 1 | DC93: 36 | DD93: 31 | DE93: 103 | DF93: 59 | DG93: 0 | DH93: 0 | DI93: 0 | DJ93: 0 | DK93: 0 | DL93: 0 | DM93: 0 | DN93: 0 | DO93: 0 | DP93: 0 | DQ93: 1 | DR93: 0 | DS93: 1 | DT93: 0 | DU93: 0 | DV93: 0 | DW93: 0 | DX93: 1 | DY93: 0 | DZ93: 0 | EA93: 0 | EB93: 0 | EC93: 2 | ED93: 1 | EE93: 2 | EF93: 1 | EG93: 0 | EH93: 0 | EI93: 0 | EJ93: 0 | EK93: 0 | EL93: 0 | EM93: 0 | EN93: 0 | EO93: 1 | EP93: 0 | EQ93: 1 | ER93: 3 | ES93: 0 | ET93: 0 | EU93: 0 | EV93: 0 | EW93: 0 | EX93: 2 | EY93: 2 | EZ93: 4 | FA93: 0 | FB93: 2 | FC93: 0 | FD93: 0 | FE93: 4 | FF93: 11 | FG93: 11 | FH93: 46 | FI93: 0 | FJ93: 0 | FK93: 0 | FL93: 0 | FM93: 0 | FN93: 0 | FO93: 0 | FP93: 0 | FQ93: 0 | FR93: 0 | FS93: 0 | FT93: 0 | FU93: 0 | FV93: 0 | FW93: 0 | FX93: 1 | FY93: 0 | FZ93: 4 | GA93: 0 | GB93: 0 | GC93: 0 | GD93: 0 | GE93: 0 | GF93: 0 | GG93: 0 | GH93: 5 | GI93: 3 | GJ93: 31 | GK93: 0 | GL93: 0 | GM93: 0 | GN93: 0 | GO93: 0 | GP93: 0 | GQ93: 0 | GR93: 0 | GS93: 0 | GT93: 0 | GU93: 3 | GV93: 0 | GW93: 0 | GX93: 1 | GY93: 1 | GZ93: 2 | HA93: 1 | HB93: 1 | HC93: 2 | HD93: 2 | HE93: 0 | HF93: 0 | HG93: 0 | HH93: 0 | HI93: 7 | HJ93: 6 | HK93: 41 | HL93: 69 | HM93: 0 | HN93: 0 | HO93: 0 | HP93: 0 | HQ93: 0 | HR93: 0 | HS93: 0 | HT93: 0 | HU93: 0 | HV93: 0 | HW93: 0 | HX93: 0 | HY93: 0 | HZ93: 0 | IA93: 0 | IB93: 0 | IC93: 0 | ID93: 0 | IE93: 0 | IF93: 0 | IG93: 0 | IH93: 0 | II93: 0 | IJ93: 0 | IK93: 0 | IL93: 0 | IM93: 0 | IN93: 0
A94: 8 | B94: 0 | C94: 1 | D94: 0 | E94: 5 | F94: 1 | G94: 0 | H94: 0 | I94: 0 | J94: 0 | K94: 0 | L94: 0 | M94: 0 | N94: 0 | O94: 0 | P94: 0 | Q94: 0 | R94: 0 | S94: 0 | T94: 0 | U94: 0 | V94: 0 | W94: 0 | X94: 0 | Y94: 0 | Z94: 1 | AA94: 6 | AB94: 10 | AC94: 42 | AD94: 0 | AE94: 3 | AF94: 5 | AG94: 11 | AH94: 6 | AI94: 13 | AJ94: 4 | AK94: 4 | AL94: 7 | AM94: 10 | AN94: 5 | AO94: 4 | AP94: 27 | AQ94: 45 | AR94: 58 | AS94: 136 | AT94: 0 | AU94: 0 | AV94: 0 | AW94: 0 | AX94: 0 | AY94: 0 | AZ94: 1 | BA94: 0 | BB94: 4 | BC94: 1 | BD94: 5 | BE94: 1 | BF94: 10 | BG94: 6 | BH94: 10 | BI94: 1 | BJ94: 16 | BK94: 10 | BL94: 20 | BM94: 8 | BN94: 7 | BO94: 2 | BP94: 0 | BQ94: 0 | BR94: 73 | BS94: 29 | BT94: 213 | BU94: 63 | BV94: 0 | BW94: 0 | BX94: 0 | BY94: 0 | BZ94: 0 | CA94: 0 | CB94: 0 | CC94: 0 | CD94: 0 | CE94: 0 | CF94: 0 | CG94: 0 | CH94: 0 | CI94: 0 | CJ94: 2 | CK94: 1 | CL94: 0 | CM94: 1 | CN94: 1 | CO94: 5 | CP94: 0 | CQ94: 4 | CR94: 5 | CS94: 6 | CT94: 4 | CU94: 4 | CV94: 5 | CW94: 11 | CX94: 7 | CY94: 5 | CZ94: 2 | DA94: 1 | DB94: 1 | DC94: 38 | DD94: 27 | DE94: 94 | DF94: 55 | DG94: 0 | DH94: 0 | DI94: 0 | DJ94: 0 | DK94: 0 | DL94: 0 | DM94: 1 | DN94: 0 | DO94: 0 | DP94: 0 | DQ94: 0 | DR94: 0 | DS94: 0 | DT94: 0 | DU94: 0 | DV94: 0 | DW94: 0 | DX94: 0 | DY94: 0 | DZ94: 0 | EA94: 0 | EB94: 0 | EC94: 1 | ED94: 0 | EE94: 2 | EF94: 1 | EG94: 0 | EH94: 0 | EI94: 0 | EJ94: 0 | EK94: 0 | EL94: 0 | EM94: 0 | EN94: 0 | EO94: 0 | EP94: 0 | EQ94: 0 | ER94: 0 | ES94: 0 | ET94: 0 | EU94: 0 | EV94: 0 | EW94: 0 | EX94: 1 | EY94: 0 | EZ94: 6 | FA94: 0 | FB94: 1 | FC94: 0 | FD94: 0 | FE94: 0 | FF94: 8 | FG94: 4 | FH94: 29 | FI94: 0 | FJ94: 0 | FK94: 0 | FL94: 0 | FM94: 0 | FN94: 0 | FO94: 0 | FP94: 0 | FQ94: 0 | FR94: 0 | FS94: 0 | FT94: 0 | FU94: 0 | FV94: 0 | FW94: 0 | FX94: 4 | FY94: 0 | FZ94: 2 | GA94: 1 | GB94: 4 | GC94: 0 | GD94: 1 | GE94: 0 | GF94: 0 | GG94: 1 | GH94: 11 | GI94: 2 | GJ94: 29 | GK94: 0 | GL94: 0 | GM94: 0 | GN94: 0 | GO94: 0 | GP94: 1 | GQ94: 0 | GR94: 0 | GS94: 1 | GT94: 0 | GU94: 1 | GV94: 0 | GW94: 0 | GX94: 3 | GY94: 0 | GZ94: 1 | HA94: 1 | HB94: 1 | HC94: 3 | HD94: 0 | HE94: 1 | HF94: 2 | HG94: 0 | HH94: 0 | HI94: 7 | HJ94: 8 | HK94: 43 | HL94: 67 | HM94: 0 | HN94: 0 | HO94: 0 | HP94: 0 | HQ94: 0 | HR94: 0 | HS94: 0 | HT94: 0 | HU94: 0 | HV94: 0 | HW94: 0 | HX94: 0 | HY94: 0 | HZ94: 0 | IA94: 0 | IB94: 0 | IC94: 0 | ID94: 0 | IE94: 0 | IF94: 0 | IG94: 0 | IH94: 0 | II94: 0 | IJ94: 0 | IK94: 0 | IL94: 0 | IM94: 0 | IN94: 0
A95: 9 | B95: 0 | C95: 1 | D95: 0 | E95: 3 | F95: 0 | G95: 1 | H95: 0 | I95: 0 | J95: 0 | K95: 0 | L95: 0 | M95: 0 | N95: 0 | O95: 0 | P95: 0 | Q95: 0 | R95: 0 | S95: 0 | T95: 0 | U95: 0 | V95: 0 | W95: 1 | X95: 0 | Y95: 0 | Z95: 0 | AA95: 6 | AB95: 12 | AC95: 44 | AD95: 0 | AE95: 4 | AF95: 5 | AG95: 15 | AH95: 9 | AI95: 20 | AJ95: 1 | AK95: 5 | AL95: 6 | AM95: 13 | AN95: 1 | AO95: 6 | AP95: 22 | AQ95: 63 | AR95: 59 | AS95: 150 | AT95: 0 | AU95: 0 | AV95: 0 | AW95: 0 | AX95: 0 | AY95: 0 | AZ95: 0 | BA95: 0 | BB95: 5 | BC95: 0 | BD95: 9 | BE95: 2 | BF95: 19 | BG95: 10 | BH95: 10 | BI95: 2 | BJ95: 19 | BK95: 8 | BL95: 20 | BM95: 11 | BN95: 8 | BO95: 2 | BP95: 0 | BQ95: 1 | BR95: 90 | BS95: 36 | BT95: 217 | BU95: 67 | BV95: 0 | BW95: 0 | BX95: 0 | BY95: 0 | BZ95: 0 | CA95: 0 | CB95: 0 | CC95: 0 | CD95: 0 | CE95: 0 | CF95: 0 | CG95: 0 | CH95: 0 | CI95: 1 | CJ95: 0 | CK95: 1 | CL95: 0 | CM95: 1 | CN95: 0 | CO95: 2 | CP95: 1 | CQ95: 10 | CR95: 4 | CS95: 8 | CT95: 1 | CU95: 10 | CV95: 7 | CW95: 11 | CX95: 5 | CY95: 3 | CZ95: 2 | DA95: 0 | DB95: 0 | DC95: 47 | DD95: 20 | DE95: 102 | DF95: 48 | DG95: 0 | DH95: 0 | DI95: 0 | DJ95: 0 | DK95: 0 | DL95: 0 | DM95: 0 | DN95: 1 | DO95: 0 | DP95: 0 | DQ95: 2 | DR95: 0 | DS95: 0 | DT95: 0 | DU95: 0 | DV95: 0 | DW95: 1 | DX95: 0 | DY95: 0 | DZ95: 0 | EA95: 0 | EB95: 0 | EC95: 3 | ED95: 1 | EE95: 4 | EF95: 3 | EG95: 0 | EH95: 0 | EI95: 0 | EJ95: 0 | EK95: 0 | EL95: 0 | EM95: 0 | EN95: 0 | EO95: 0 | EP95: 0 | EQ95: 1 | ER95: 0 | ES95: 1 | ET95: 5 | EU95: 0 | EV95: 1 | EW95: 0 | EX95: 3 | EY95: 0 | EZ95: 2 | FA95: 0 | FB95: 0 | FC95: 0 | FD95: 0 | FE95: 2 | FF95: 11 | FG95: 4 | FH95: 45 | FI95: 0 | FJ95: 0 | FK95: 0 | FL95: 0 | FM95: 0 | FN95: 0 | FO95: 0 | FP95: 0 | FQ95: 0 | FR95: 0 | FS95: 0 | FT95: 0 | FU95: 2 | FV95: 0 | FW95: 0 | FX95: 0 | FY95: 0 | FZ95: 3 | GA95: 0 | GB95: 6 | GC95: 0 | GD95: 2 | GE95: 0 | GF95: 0 | GG95: 2 | GH95: 11 | GI95: 7 | GJ95: 35 | GK95: 0 | GL95: 0 | GM95: 0 | GN95: 0 | GO95: 0 | GP95: 0 | GQ95: 0 | GR95: 0 | GS95: 0 | GT95: 0 | GU95: 0 | GV95: 1 | GW95: 0 | GX95: 2 | GY95: 0 | GZ95: 0 | HA95: 2 | HB95: 1 | HC95: 2 | HD95: 1 | HE95: 0 | HF95: 1 | HG95: 0 | HH95: 0 | HI95: 4 | HJ95: 6 | HK95: 53 | HL95: 70 | HM95: 0 | HN95: 0 | HO95: 0 | HP95: 0 | HQ95: 0 | HR95: 0 | HS95: 0 | HT95: 0 | HU95: 0 | HV95: 0 | HW95: 0 | HX95: 0 | HY95: 0 | HZ95: 0 | IA95: 0 | IB95: 0 | IC95: 0 | ID95: 0 | IE95: 0 | IF95: 0 | IG95: 0 | IH95: 0 | II95: 0 | IJ95: 0 | IK95: 0 | IL95: 0 | IM95: 0 | IN95: 0
A96: 10 | B96: 0 | C96: 0 | D96: 0 | E96: 3 | F96: 1 | G96: 0 | H96: 0 | I96: 0 | J96: 1 | K96: 0 | L96: 0 | M96: 0 | N96: 0 | O96: 1 | P96: 0 | Q96: 0 | R96: 0 | S96: 1 | T96: 0 | U96: 0 | V96: 0 | W96: 0 | X96: 0 | Y96: 0 | Z96: 2 | AA96: 5 | AB96: 13 | AC96: 35 | AD96: 1 | AE96: 5 | AF96: 3 | AG96: 12 | AH96: 9 | AI96: 17 | AJ96: 0 | AK96: 6 | AL96: 3 | AM96: 7 | AN96: 2 | AO96: 2 | AP96: 18 | AQ96: 49 | AR96: 53 | AS96: 137 | AT96: 0 | AU96: 0 | AV96: 0 | AW96: 0 | AX96: 0 | AY96: 0 | AZ96: 0 | BA96: 0 | BB96: 5 | BC96: 0 | BD96: 7 | BE96: 1 | BF96: 7 | BG96: 9 | BH96: 4 | BI96: 1 | BJ96: 12 | BK96: 8 | BL96: 24 | BM96: 4 | BN96: 9 | BO96: 3 | BP96: 1 | BQ96: 0 | BR96: 69 | BS96: 26 | BT96: 202 | BU96: 58 | BV96: 0 | BW96: 0 | BX96: 0 | BY96: 0 | BZ96: 0 | CA96: 0 | CB96: 0 | CC96: 0 | CD96: 0 | CE96: 0 | CF96: 0 | CG96: 0 | CH96: 0 | CI96: 0 | CJ96: 1 | CK96: 1 | CL96: 1 | CM96: 0 | CN96: 1 | CO96: 2 | CP96: 1 | CQ96: 11 | CR96: 2 | CS96: 5 | CT96: 4 | CU96: 8 | CV96: 3 | CW96: 9 | CX96: 1 | CY96: 7 | CZ96: 3 | DA96: 0 | DB96: 0 | DC96: 43 | DD96: 17 | DE96: 101 | DF96: 41 | DG96: 0 | DH96: 0 | DI96: 0 | DJ96: 0 | DK96: 0 | DL96: 0 | DM96: 0 | DN96: 0 | DO96: 0 | DP96: 0 | DQ96: 0 | DR96: 0 | DS96: 0 | DT96: 0 | DU96: 0 | DV96: 1 | DW96: 0 | DX96: 0 | DY96: 0 | DZ96: 0 | EA96: 0 | EB96: 0 | EC96: 0 | ED96: 1 | EE96: 1 | EF96: 1 | EG96: 0 | EH96: 0 | EI96: 0 | EJ96: 0 | EK96: 0 | EL96: 0 | EM96: 0 | EN96: 0 | EO96: 0 | EP96: 0 | EQ96: 0 | ER96: 1 | ES96: 0 | ET96: 4 | EU96: 0 | EV96: 1 | EW96: 1 | EX96: 1 | EY96: 0 | EZ96: 3 | FA96: 0 | FB96: 1 | FC96: 0 | FD96: 0 | FE96: 1 | FF96: 11 | FG96: 3 | FH96: 41 | FI96: 0 | FJ96: 0 | FK96: 0 | FL96: 0 | FM96: 0 | FN96: 0 | FO96: 0 | FP96: 0 | FQ96: 0 | FR96: 0 | FS96: 0 | FT96: 0 | FU96: 1 | FV96: 0 | FW96: 0 | FX96: 0 | FY96: 1 | FZ96: 0 | GA96: 0 | GB96: 7 | GC96: 0 | GD96: 1 | GE96: 0 | GF96: 0 | GG96: 2 | GH96: 8 | GI96: 6 | GJ96: 26 | GK96: 0 | GL96: 0 | GM96: 0 | GN96: 0 | GO96: 0 | GP96: 0 | GQ96: 0 | GR96: 0 | GS96: 0 | GT96: 1 | GU96: 0 | GV96: 0 | GW96: 2 | GX96: 1 | GY96: 0 | GZ96: 1 | HA96: 3 | HB96: 1 | HC96: 1 | HD96: 0 | HE96: 1 | HF96: 0 | HG96: 0 | HH96: 0 | HI96: 7 | HJ96: 4 | HK96: 50 | HL96: 59 | HM96: 0 | HN96: 0 | HO96: 0 | HP96: 0 | HQ96: 0 | HR96: 0 | HS96: 0 | HT96: 0 | HU96: 0 | HV96: 0 | HW96: 0 | HX96: 0 | HY96: 0 | HZ96: 0 | IA96: 0 | IB96: 0 | IC96: 0 | ID96: 0 | IE96: 0 | IF96: 0 | IG96: 0 | IH96: 0 | II96: 0 | IJ96: 0 | IK96: 0 | IL96: 0 | IM96: 0 | IN96: 0
A97: 11 | B97: 0 | C97: 1 | D97: 0 | E97: 2 | F97: 2 | G97: 0 | H97: 0 | I97: 0 | J97: 0 | K97: 1 | L97: 0 | M97: 0 | N97: 0 | O97: 0 | P97: 0 | Q97: 0 | R97: 0 | S97: 1 | T97: 0 | U97: 0 | V97: 0 | W97: 0 | X97: 0 | Y97: 0 | Z97: 2 | AA97: 5 | AB97: 13 | AC97: 33 | AD97: 0 | AE97: 2 | AF97: 1 | AG97: 10 | AH97: 6 | AI97: 14 | AJ97: 0 | AK97: 5 | AL97: 11 | AM97: 15 | AN97: 3 | AO97: 5 | AP97: 21 | AQ97: 51 | AR97: 59 | AS97: 150 | AT97: 0 | AU97: 0 | AV97: 0 | AW97: 0 | AX97: 0 | AY97: 0 | AZ97: 1 | BA97: 0 | BB97: 5 | BC97: 0 | BD97: 7 | BE97: 2 | BF97: 11 | BG97: 5 | BH97: 5 | BI97: 6 | BJ97: 10 | BK97: 5 | BL97: 14 | BM97: 3 | BN97: 6 | BO97: 2 | BP97: 1 | BQ97: 0 | BR97: 60 | BS97: 23 | BT97: 208 | BU97: 53 | BV97: 0 | BW97: 0 | BX97: 0 | BY97: 0 | BZ97: 0 | CA97: 0 | CB97: 0 | CC97: 0 | CD97: 0 | CE97: 0 | CF97: 0 | CG97: 1 | CH97: 0 | CI97: 0 | CJ97: 0 | CK97: 1 | CL97: 0 | CM97: 1 | CN97: 1 | CO97: 0 | CP97: 1 | CQ97: 6 | CR97: 3 | CS97: 9 | CT97: 5 | CU97: 3 | CV97: 5 | CW97: 9 | CX97: 4 | CY97: 2 | CZ97: 1 | DA97: 0 | DB97: 0 | DC97: 32 | DD97: 20 | DE97: 81 | DF97: 42 | DG97: 0 | DH97: 0 | DI97: 0 | DJ97: 0 | DK97: 0 | DL97: 0 | DM97: 0 | DN97: 0 | DO97: 0 | DP97: 0 | DQ97: 0 | DR97: 0 | DS97: 0 | DT97: 0 | DU97: 1 | DV97: 0 | DW97: 0 | DX97: 0 | DY97: 0 | DZ97: 0 | EA97: 0 | EB97: 0 | EC97: 1 | ED97: 0 | EE97: 2 | EF97: 0 | EG97: 0 | EH97: 0 | EI97: 0 | EJ97: 0 | EK97: 0 | EL97: 0 | EM97: 0 | EN97: 0 | EO97: 0 | EP97: 0 | EQ97: 0 | ER97: 2 | ES97: 0 | ET97: 2 | EU97: 0 | EV97: 2 | EW97: 1 | EX97: 1 | EY97: 0 | EZ97: 13 | FA97: 0 | FB97: 0 | FC97: 0 | FD97: 0 | FE97: 1 | FF97: 20 | FG97: 6 | FH97: 39 | FI97: 0 | FJ97: 0 | FK97: 0 | FL97: 0 | FM97: 0 | FN97: 0 | FO97: 0 | FP97: 0 | FQ97: 0 | FR97: 0 | FS97: 0 | FT97: 0 | FU97: 1 | FV97: 0 | FW97: 0 | FX97: 0 | FY97: 1 | FZ97: 0 | GA97: 1 | GB97: 5 | GC97: 0 | GD97: 0 | GE97: 0 | GF97: 0 | GG97: 3 | GH97: 5 | GI97: 8 | GJ97: 20 | GK97: 0 | GL97: 0 | GM97: 0 | GN97: 0 | GO97: 0 | GP97: 0 | GQ97: 0 | GR97: 0 | GS97: 1 | GT97: 1 | GU97: 1 | GV97: 1 | GW97: 0 | GX97: 1 | GY97: 0 | GZ97: 1 | HA97: 3 | HB97: 2 | HC97: 4 | HD97: 2 | HE97: 0 | HF97: 1 | HG97: 0 | HH97: 0 | HI97: 9 | HJ97: 9 | HK97: 47 | HL97: 70 | HM97: 0 | HN97: 0 | HO97: 0 | HP97: 0 | HQ97: 0 | HR97: 0 | HS97: 0 | HT97: 0 | HU97: 0 | HV97: 0 | HW97: 0 | HX97: 0 | HY97: 0 | HZ97: 0 | IA97: 0 | IB97: 0 | IC97: 0 | ID97: 0 | IE97: 0 | IF97: 0 | IG97: 0 | IH97: 0 | II97: 0 | IJ97: 0 | IK97: 0 | IL97: 0 | IM97: 0 | IN97: 0
A98: Total general | B98: 0 | C98: 9 | D98: 3 | E98: 26 | F98: 7 | G98: 4 | H98: 0 | I98: 2 | J98: 1 | K98: 4 | L98: 2 | M98: 1 | N98: 2 | O98: 8 | P98: 0 | Q98: 0 | R98: 0 | S98: 5 | T98: 0 | U98: 0 | V98: 0 | W98: 1 | X98: 0 | Y98: 0 | Z98: 15 | AA98: 60 | AB98: 130 | AC98: 419 | AD98: 6 | AE98: 21 | AF98: 39 | AG98: 98 | AH98: 82 | AI98: 153 | AJ98: 47 | AK98: 47 | AL98: 74 | AM98: 105 | AN98: 29 | AO98: 37 | AP98: 277 | AQ98: 461 | AR98: 676 | AS98: 1381 | AT98: 0 | AU98: 0 | AV98: 0 | AW98: 0 | AX98: 2 | AY98: 0 | AZ98: 5 | BA98: 2 | BB98: 48 | BC98: 9 | BD98: 87 | BE98: 21 | BF98: 165 | BG98: 60 | BH98: 91 | BI98: 22 | BJ98: 184 | BK98: 71 | BL98: 224 | BM98: 78 | BN98: 84 | BO98: 42 | BP98: 7 | BQ98: 4 | BR98: 897 | BS98: 309 | BT98: 2291 | BU98: 667 | BV98: 0 | BW98: 0 | BX98: 0 | BY98: 0 | BZ98: 0 | CA98: 0 | CB98: 0 | CC98: 0 | CD98: 0 | CE98: 0 | CF98: 0 | CG98: 1 | CH98: 0 | CI98: 2 | CJ98: 3 | CK98: 7 | CL98: 1 | CM98: 11 | CN98: 14 | CO98: 29 | CP98: 9 | CQ98: 71 | CR98: 53 | CS98: 71 | CT98: 39 | CU98: 83 | CV98: 53 | CW98: 108 | CX98: 62 | CY98: 54 | CZ98: 31 | DA98: 4 | DB98: 6 | DC98: 441 | DD98: 271 | DE98: 1150 | DF98: 596 | DG98: 0 | DH98: 0 | DI98: 0 | DJ98: 0 | DK98: 0 | DL98: 0 | DM98: 1 | DN98: 2 | DO98: 1 | DP98: 1 | DQ98: 4 | DR98: 0 | DS98: 2 | DT98: 0 | DU98: 1 | DV98: 1 | DW98: 1 | DX98: 1 | DY98: 0 | DZ98: 0 | EA98: 0 | EB98: 0 | EC98: 10 | ED98: 5 | EE98: 15 | EF98: 11 | EG98: 0 | EH98: 0 | EI98: 0 | EJ98: 0 | EK98: 0 | EL98: 0 | EM98: 0 | EN98: 0 | EO98: 2 | EP98: 0 | EQ98: 3 | ER98: 12 | ES98: 4 | ET98: 16 | EU98: 2 | EV98: 11 | EW98: 3 | EX98: 24 | EY98: 2 | EZ98: 49 | FA98: 0 | FB98: 6 | FC98: 0 | FD98: 0 | FE98: 16 | FF98: 118 | FG98: 54 | FH98: 377 | FI98: 0 | FJ98: 0 | FK98: 0 | FL98: 0 | FM98: 0 | FN98: 0 | FO98: 0 | FP98: 0 | FQ98: 0 | FR98: 0 | FS98: 0 | FT98: 0 | FU98: 6 | FV98: 3 | FW98: 4 | FX98: 8 | FY98: 3 | FZ98: 15 | GA98: 5 | GB98: 47 | GC98: 0 | GD98: 9 | GE98: 0 | GF98: 0 | GG98: 18 | GH98: 82 | GI98: 61 | GJ98: 315 | GK98: 0 | GL98: 0 | GM98: 0 | GN98: 0 | GO98: 0 | GP98: 1 | GQ98: 0 | GR98: 0 | GS98: 2 | GT98: 4 | GU98: 6 | GV98: 9 | GW98: 8 | GX98: 20 | GY98: 7 | GZ98: 21 | HA98: 24 | HB98: 29 | HC98: 22 | HD98: 27 | HE98: 5 | HF98: 11 | HG98: 0 | HH98: 0 | HI98: 74 | HJ98: 122 | HK98: 512 | HL98: 814 | HM98: 0 | HN98: 0 | HO98: 0 | HP98: 0 | HQ98: 0 | HR98: 0 | HS98: 0 | HT98: 0 | HU98: 0 | HV98: 0 | HW98: 0 | HX98: 0 | HY98: 0 | HZ98: 0 | IA98: 0 | IB98: 0 | IC98: 0 | ID98: 0 | IE98: 0 | IF98: 0 | IG98: 0 | IH98: 0 | II98: 0 | IJ98: 0 | IK98: 0 | IL98: 0 | IM98: 0 | IN98: 0
A101: Salud Mental 4
A102: Anio | B102: 2024
A103: UE | B103: (Todas)
A104: Red | B104: LA CONVENCION
A105: MicroRed | B105: (Todas)
A106: EESS | B106: (Todas)
A107: Provincia | B107: (Todas)
A108: Distrito | B108: (Todas)
A110: Etiquetas de fila | B110: Atc_BUL_TOTALF | C110: Atc_BUL_TOTALM | D110: Atc_DCog_TOTALF | E110: Atc_DCog_TOTALM | F110: Atc_Gestante_TOTALF | G110: Atc_Judi_TOTALF | H110: Atc_Judi_TOTALM | I110: Atc_Pauxi_TOTALF | J110: Atc_Pauxi_TOTALM | K110: Atc_Tperso_TOTALF | L110: Atc_Tperso_TOTALM | M110: Atc_TPS_Grav_TOTALF | N110: Atc_TPS_Grav_TOTALM | O110: Atc_ViolenciaP_TOTALF | P110: Atc_ViolenciaP_TOTALM | Q110: Atd_BUL_0_2F | R110: Atd_BUL_0_2M | S110: Atd_BUL_10_11F | T110: Atd_BUL_10_11M | U110: Atd_BUL_12_14F | V110: Atd_BUL_12_14M | W110: Atd_BUL_15_17F | X110: Atd_BUL_15_17M | Y110: Atd_BUL_18_24F | Z110: Atd_BUL_18_24M | AA110: Atd_BUL_25_29F | AB110: Atd_BUL_25_29M | AC110: Atd_BUL_3_5F | AD110: Atd_BUL_3_5M | AE110: Atd_BUL_30_39F | AF110: Atd_BUL_30_39M | AG110: Atd_BUL_40_59F | AH110: Atd_BUL_40_59M | AI110: Atd_BUL_6_9F | AJ110: Atd_BUL_6_9M | AK110: Atd_BUL_60_79F | AL110: Atd_BUL_60_79M | AM110: Atd_BUL_80F | AN110: Atd_BUL_80M | AO110: Atd_BUL_TOTALF | AP110: Atd_BUL_TOTALM | AQ110: Atd_DCog_0_2F | AR110: Atd_DCog_0_2M | AS110: Atd_DCog_10_11F | AT110: Atd_DCog_10_11M | AU110: Atd_DCog_12_14F | AV110: Atd_DCog_12_14M | AW110: Atd_DCog_15_17F | AX110: Atd_DCog_15_17M | AY110: Atd_DCog_18_24F | AZ110: Atd_DCog_18_24M | BA110: Atd_DCog_25_29F | BB110: Atd_DCog_25_29M | BC110: Atd_DCog_3_5F | BD110: Atd_DCog_3_5M | BE110: Atd_DCog_30_39F | BF110: Atd_DCog_30_39M | BG110: Atd_DCog_40_59F | BH110: Atd_DCog_40_59M | BI110: Atd_DCog_6_9F | BJ110: Atd_DCog_6_9M | BK110: Atd_DCog_60_79F | BL110: Atd_DCog_60_79M | BM110: Atd_DCog_80F | BN110: Atd_DCog_80M | BO110: Atd_DCog_TOTALF | BP110: Atd_DCog_TOTALM | BQ110: Atd_Gestante_10_11F | BR110: Atd_Gestante_12_14F | BS110: Atd_Gestante_15_17F | BT110: Atd_Gestante_18_24F | BU110: Atd_Gestante_25_29F | BV110: Atd_Gestante_30_39F | BW110: Atd_Gestante_40_59F | BX110: Atd_Gestante_TOTALF | BY110: Atd_Judi_0_2F | BZ110: Atd_Judi_0_2M | CA110: Atd_Judi_10_11F | CB110: Atd_Judi_10_11M | CC110: Atd_Judi_12_14F | CD110: Atd_Judi_12_14M | CE110: Atd_Judi_15_17F | CF110: Atd_Judi_15_17M | CG110: Atd_Judi_18_24F | CH110: Atd_Judi_18_24M | CI110: Atd_Judi_25_29F | CJ110: Atd_Judi_25_29M | CK110: Atd_Judi_3_5F | CL110: Atd_Judi_3_5M | CM110: Atd_Judi_30_39F | CN110: Atd_Judi_30_39M | CO110: Atd_Judi_40_59F | CP110: Atd_Judi_40_59M | CQ110: Atd_Judi_6_9F | CR110: Atd_Judi_6_9M | CS110: Atd_Judi_60_79F | CT110: Atd_Judi_60_79M | CU110: Atd_Judi_80F | CV110: Atd_Judi_80M | CW110: Atd_Judi_TOTALF | CX110: Atd_Judi_TOTALM | CY110: Atd_PapoyoFam_Total | CZ110: Atd_PapoyoFam_TotalF | DA110: Atd_PapoyoFam_TotalM | DB110: Atd_PausenciaFam_Total | DC110: Atd_PausenciaFam_TotalF | DD110: Atd_PausenciaFam_TotalM | DE110: Atd_Pauxi_0_2F | DF110: Atd_Pauxi_0_2M | DG110: Atd_Pauxi_10_11F | DH110: Atd_Pauxi_10_11M | DI110: Atd_Pauxi_12_14F | DJ110: Atd_Pauxi_12_14M | DK110: Atd_Pauxi_15_17F | DL110: Atd_Pauxi_15_17M | DM110: Atd_Pauxi_18_24F | DN110: Atd_Pauxi_18_24M | DO110: Atd_Pauxi_25_29F | DP110: Atd_Pauxi_25_29M | DQ110: Atd_Pauxi_3_5F | DR110: Atd_Pauxi_3_5M | DS110: Atd_Pauxi_30_39F | DT110: Atd_Pauxi_30_39M | DU110: Atd_Pauxi_40_59F | DV110: Atd_Pauxi_40_59M | DW110: Atd_Pauxi_6_9F | DX110: Atd_Pauxi_6_9M | DY110: Atd_Pauxi_60_79F | DZ110: Atd_Pauxi_60_79M | EA110: Atd_Pauxi_80F | EB110: Atd_Pauxi_80M | EC110: Atd_Pauxi_TOTALF | ED110: Atd_Pauxi_TOTALM | EE110: Atd_PdesapareceFam_Total | EF110: Atd_PdesapareceFam_TotalF | EG110: Atd_PdesapareceFam_TotalM | EH110: Atd_PfamiliarDepende_Total | EI110: Atd_PfamiliarDepende_TotalF | EJ110: Atd_PfamiliarDepende_TotalM | EK110: Atd_PpadresFam_Total | EL110: Atd_PpadresFam_TotalF | EM110: Atd_PpadresFam_TotalM | EN110: Atd_Ppareja_Total | EO110: Atd_Ppareja_TotalF | EP110: Atd_Ppareja_TotalM | EQ110: Atd_PrupturaFam_Total | ER110: Atd_PrupturaFam_TotalF | ES110: Atd_PrupturaFam_TotalM | ET110: Atd_PVictimaCrimen_Total | EU110: Atd_PVictimaCrimen_TotalF | EV110: Atd_PVictimaCrimen_TotalM | EW110: Atd_Tperso_0_2F | EX110: Atd_Tperso_0_2M | EY110: Atd_Tperso_10_11F | EZ110: Atd_Tperso_10_11M | FA110: Atd_Tperso_12_14F | FB110: Atd_Tperso_12_14M | FC110: Atd_Tperso_15_17F | FD110: Atd_Tperso_15_17M | FE110: Atd_Tperso_18_24F | FF110: Atd_Tperso_18_24M | FG110: Atd_Tperso_25_29F | FH110: Atd_Tperso_25_29M | FI110: Atd_Tperso_3_5F | FJ110: Atd_Tperso_3_5M | FK110: Atd_Tperso_30_39F | FL110: Atd_Tperso_30_39M | FM110: Atd_Tperso_40_59F | FN110: Atd_Tperso_40_59M | FO110: Atd_Tperso_6_9F | FP110: Atd_Tperso_6_9M | FQ110: Atd_Tperso_60_79F | FR110: Atd_Tperso_60_79M | FS110: Atd_Tperso_80F | FT110: Atd_Tperso_80M | FU110: Atd_Tperso_TOTALF | FV110: Atd_Tperso_TOTALM | FW110: Atd_TPS_Grav_0_2F | FX110: Atd_TPS_Grav_0_2M | FY110: Atd_TPS_Grav_10_11F | FZ110: Atd_TPS_Grav_10_11M | GA110: Atd_TPS_Grav_12_14F | GB110: Atd_TPS_Grav_12_14M | GC110: Atd_TPS_Grav_15_17F | GD110: Atd_TPS_Grav_15_17M | GE110: Atd_TPS_Grav_18_24F | GF110: Atd_TPS_Grav_18_24M | GG110: Atd_TPS_Grav_25_29F | GH110: Atd_TPS_Grav_25_29M | GI110: Atd_TPS_Grav_3_5F | GJ110: Atd_TPS_Grav_3_5M | GK110: Atd_TPS_Grav_30_39F | GL110: Atd_TPS_Grav_30_39M | GM110: Atd_TPS_Grav_40_59F | GN110: Atd_TPS_Grav_40_59M | GO110: Atd_TPS_Grav_6_9F | GP110: Atd_TPS_Grav_6_9M | GQ110: Atd_TPS_Grav_60_79F | GR110: Atd_TPS_Grav_60_79M | GS110: Atd_TPS_Grav_80F | GT110: Atd_TPS_Grav_80M | GU110: Atd_TPS_Grav_TOTALF | GV110: Atd_TPS_Grav_TOTALM | GW110: Atd_ViolenciaP_12_14F | GX110: Atd_ViolenciaP_12_14M | GY110: Atd_ViolenciaP_15_17F | GZ110: Atd_ViolenciaP_15_17M | HA110: Atd_ViolenciaP_18_24F | HB110: Atd_ViolenciaP_18_24M | HC110: Atd_ViolenciaP_25_29F | HD110: Atd_ViolenciaP_25_29M | HE110: Atd_ViolenciaP_30_39F | HF110: Atd_ViolenciaP_30_39M | HG110: Atd_ViolenciaP_40_59F | HH110: Atd_ViolenciaP_40_59M | HI110: Atd_ViolenciaP_60_79F | HJ110: Atd_ViolenciaP_60_79M | HK110: Atd_ViolenciaP_80F | HL110: Atd_ViolenciaP_80M | HM110: Atd_ViolenciaP_TOTALF | HN110: Atd_ViolenciaP_TOTALM | HO110: Atd_VRiesgo_0_2F | HP110: Atd_VRiesgo_0_2M | HQ110: Atd_VRiesgo_10_11F | HR110: Atd_VRiesgo_10_11M | HS110: Atd_VRiesgo_12_14F | HT110: Atd_VRiesgo_12_14M | HU110: Atd_VRiesgo_15_17F | HV110: Atd_VRiesgo_15_17M | HW110: Atd_VRiesgo_18_24F | HX110: Atd_VRiesgo_18_24M | HY110: Atd_VRiesgo_25_29F | HZ110: Atd_VRiesgo_25_29M | IA110: Atd_VRiesgo_3_5F | IB110: Atd_VRiesgo_3_5M | IC110: Atd_VRiesgo_30_39F | ID110: Atd_VRiesgo_30_39M | IE110: Atd_VRiesgo_40_59F | IF110: Atd_VRiesgo_40_59M | IG110: Atd_VRiesgo_6_9F | IH110: Atd_VRiesgo_6_9M | II110: Atd_VRiesgo_60_79F | IJ110: Atd_VRiesgo_60_79M | IK110: Atd_VRiesgo_80F | IL110: Atd_VRiesgo_80M | IM110: Atd_VRiesgo_TOTALF | IN110: Atd_VRiesgo_TOTALM
A111: 1 | B111: 1 | C111: 0 | D111: 18 | E111: 19 | F111: 12 | G111: 73 | H111: 15 | I111: 8 | J111: 4 | K111: 0 | L111: 0 | M111: 16 | N111: 33 | O111: 9 | P111: 6 | Q111: 0 | R111: 0 | S111: 0 | T111: 0 | U111: 0 | V111: 0 | W111: 0 | X111: 0 | Y111: 0 | Z111: 0 | AA111: 0 | AB111: 0 | AC111: 0 | AD111: 0 | AE111: 0 | AF111: 0 | AG111: 0 | AH111: 0 | AI111: 0 | AJ111: 0 | AK111: 0 | AL111: 0 | AM111: 0 | AN111: 0 | AO111: 0 | AP111: 0 | AQ111: 0 | AR111: 0 | AS111: 0 | AT111: 0 | AU111: 0 | AV111: 0 | AW111: 1 | AX111: 0 | AY111: 0 | AZ111: 0 | BA111: 1 | BB111: 1 | BC111: 0 | BD111: 0 | BE111: 0 | BF111: 0 | BG111: 0 | BH111: 0 | BI111: 0 | BJ111: 0 | BK111: 3 | BL111: 3 | BM111: 2 | BN111: 2 | BO111: 7 | BP111: 6 | BQ111: 0 | BR111: 1 | BS111: 1 | BT111: 0 | BU111: 2 | BV111: 2 | BW111: 0 | BX111: 6 | BY111: 0 | BZ111: 0 | CA111: 0 | CB111: 0 | CC111: 3 | CD111: 0 | CE111: 2 | CF111: 0 | CG111: 2 | CH111: 0 | CI111: 0 | CJ111: 0 | CK111: 0 | CL111: 0 | CM111: 8 | CN111: 2 | CO111: 4 | CP111: 1 | CQ111: 1 | CR111: 0 | CS111: 0 | CT111: 0 | CU111: 0 | CV111: 0 | CW111: 20 | CX111: 3 | CY111: 1 | CZ111: 1 | DA111: 0 | DB111: 0 | DC111: 0 | DD111: 0 | DE111: 0 | DF111: 0 | DG111: 0 | DH111: 0 | DI111: 1 | DJ111: 0 | DK111: 0 | DL111: 0 | DM111: 2 | DN111: 0 | DO111: 0 | DP111: 0 | DQ111: 0 | DR111: 1 | DS111: 2 | DT111: 1 | DU111: 2 | DV111: 1 | DW111: 1 | DX111: 1 | DY111: 0 | DZ111: 0 | EA111: 0 | EB111: 0 | EC111: 8 | ED111: 4 | EE111: 0 | EF111: 0 | EG111: 0 | EH111: 0 | EI111: 0 | EJ111: 0 | EK111: 0 | EL111: 0 | EM111: 0 | EN111: 3 | EO111: 3 | EP111: 0 | EQ111: 0 | ER111: 0 | ES111: 0 | ET111: 0 | EU111: 0 | EV111: 0 | EW111: 0 | EX111: 0 | EY111: 0 | EZ111: 0 | FA111: 0 | FB111: 0 | FC111: 0 | FD111: 0 | FE111: 0 | FF111: 0 | FG111: 0 | FH111: 0 | FI111: 0 | FJ111: 0 | FK111: 0 | FL111: 0 | FM111: 0 | FN111: 0 | FO111: 0 | FP111: 0 | FQ111: 0 | FR111: 0 | FS111: 0 | FT111: 0 | FU111: 0 | FV111: 0 | FW111: 0 | FX111: 0 | FY111: 0 | FZ111: 0 | GA111: 0 | GB111: 0 | GC111: 0 | GD111: 0 | GE111: 0 | GF111: 0 | GG111: 0 | GH111: 0 | GI111: 0 | GJ111: 0 | GK111: 0 | GL111: 0 | GM111: 0 | GN111: 0 | GO111: 0 | GP111: 0 | GQ111: 0 | GR111: 0 | GS111: 0 | GT111: 0 | GU111: 0 | GV111: 0 | GW111: 0 | GX111: 0 | GY111: 0 | GZ111: 0 | HA111: 0 | HB111: 0 | HC111: 0 | HD111: 0 | HE111: 1 | HF111: 0 | HG111: 0 | HH111: 0 | HI111: 0 | HJ111: 0 | HK111: 0 | HL111: 0 | HM111: 1 | HN111: 0 | HO111: 0 | HP111: 0 | HQ111: 0 | HR111: 0 | HS111: 3 | HT111: 0 | HU111: 2 | HV111: 0 | HW111: 5 | HX111: 0 | HY111: 8 | HZ111: 0 | IA111: 0 | IB111: 1 | IC111: 12 | ID111: 1 | IE111: 6 | IF111: 0 | IG111: 1 | IH111: 0 | II111: 2 | IJ111: 0 | IK111: 0 | IL111: 0 | IM111: 39 | IN111: 2
A112: 2 | B112: 0 | C112: 1 | D112: 15 | E112: 20 | F112: 14 | G112: 70 | H112: 21 | I112: 10 | J112: 3 | K112: 0 | L112: 0 | M112: 8 | N112: 22 | O112: 12 | P112: 7 | Q112: 0 | R112: 0 | S112: 0 | T112: 1 | U112: 0 | V112: 0 | W112: 0 | X112: 0 | Y112: 0 | Z112: 0 | AA112: 0 | AB112: 0 | AC112: 0 | AD112: 0 | AE112: 0 | AF112: 0 | AG112: 0 | AH112: 0 | AI112: 0 | AJ112: 0 | AK112: 0 | AL112: 0 | AM112: 0 | AN112: 0 | AO112: 0 | AP112: 1 | AQ112: 0 | AR112: 0 | AS112: 0 | AT112: 0 | AU112: 1 | AV112: 0 | AW112: 0 | AX112: 0 | AY112: 1 | AZ112: 0 | BA112: 0 | BB112: 0 | BC112: 0 | BD112: 0 | BE112: 0 | BF112: 1 | BG112: 0 | BH112: 1 | BI112: 0 | BJ112: 0 | BK112: 1 | BL112: 2 | BM112: 4 | BN112: 3 | BO112: 7 | BP112: 7 | BQ112: 0 | BR112: 1 | BS112: 1 | BT112: 3 | BU112: 1 | BV112: 1 | BW112: 0 | BX112: 7 | BY112: 0 | BZ112: 0 | CA112: 0 | CB112: 0 | CC112: 0 | CD112: 0 | CE112: 3 | CF112: 0 | CG112: 3 | CH112: 3 | CI112: 4 | CJ112: 3 | CK112: 0 | CL112: 0 | CM112: 2 | CN112: 0 | CO112: 4 | CP112: 4 | CQ112: 1 | CR112: 0 | CS112: 0 | CT112: 2 | CU112: 0 | CV112: 0 | CW112: 17 | CX112: 12 | CY112: 2 | CZ112: 2 | DA112: 0 | DB112: 0 | DC112: 0 | DD112: 0 | DE112: 0 | DF112: 0 | DG112: 0 | DH112: 0 | DI112: 0 | DJ112: 0 | DK112: 2 | DL112: 0 | DM112: 2 | DN112: 0 | DO112: 0 | DP112: 1 | DQ112: 0 | DR112: 0 | DS112: 1 | DT112: 1 | DU112: 3 | DV112: 1 | DW112: 0 | DX112: 0 | DY112: 1 | DZ112: 0 | EA112: 0 | EB112: 0 | EC112: 9 | ED112: 3 | EE112: 0 | EF112: 0 | EG112: 0 | EH112: 0 | EI112: 0 | EJ112: 0 | EK112: 0 | EL112: 0 | EM112: 0 | EN112: 4 | EO112: 4 | EP112: 0 | EQ112: 0 | ER112: 0 | ES112: 0 | ET112: 0 | EU112: 0 | EV112: 0 | EW112: 0 | EX112: 0 | EY112: 0 | EZ112: 0 | FA112: 0 | FB112: 0 | FC112: 0 | FD112: 0 | FE112: 0 | FF112: 0 | FG112: 0 | FH112: 0 | FI112: 0 | FJ112: 0 | FK112: 0 | FL112: 0 | FM112: 0 | FN112: 0 | FO112: 0 | FP112: 0 | FQ112: 0 | FR112: 0 | FS112: 0 | FT112: 0 | FU112: 0 | FV112: 0 | FW112: 0 | FX112: 0 | FY112: 0 | FZ112: 0 | GA112: 0 | GB112: 0 | GC112: 0 | GD112: 0 | GE112: 0 | GF112: 0 | GG112: 1 | GH112: 0 | GI112: 0 | GJ112: 0 | GK112: 0 | GL112: 3 | GM112: 0 | GN112: 1 | GO112: 0 | GP112: 0 | GQ112: 0 | GR112: 0 | GS112: 0 | GT112: 0 | GU112: 1 | GV112: 4 | GW112: 0 | GX112: 1 | GY112: 2 | GZ112: 1 | HA112: 0 | HB112: 0 | HC112: 0 | HD112: 0 | HE112: 2 | HF112: 0 | HG112: 3 | HH112: 1 | HI112: 0 | HJ112: 1 | HK112: 0 | HL112: 0 | HM112: 7 | HN112: 4 | HO112: 0 | HP112: 0 | HQ112: 0 | HR112: 0 | HS112: 2 | HT112: 0 | HU112: 3 | HV112: 0 | HW112: 5 | HX112: 0 | HY112: 7 | HZ112: 0 | IA112: 0 | IB112: 0 | IC112: 9 | ID112: 0 | IE112: 9 | IF112: 0 | IG112: 1 | IH112: 0 | II112: 1 | IJ112: 0 | IK112: 0 | IL112: 0 | IM112: 37 | IN112: 0
A113: 3 | B113: 0 | C113: 1 | D113: 19 | E113: 17 | F113: 11 | G113: 68 | H113: 11 | I113: 9 | J113: 1 | K113: 0 | L113: 0 | M113: 13 | N113: 15 | O113: 9 | P113: 5 | Q113: 0 | R113: 0 | S113: 0 | T113: 0 | U113: 0 | V113: 0 | W113: 0 | X113: 0 | Y113: 0 | Z113: 0 | AA113: 0 | AB113: 0 | AC113: 0 | AD113: 0 | AE113: 0 | AF113: 0 | AG113: 0 | AH113: 0 | AI113: 0 | AJ113: 0 | AK113: 0 | AL113: 0 | AM113: 0 | AN113: 0 | AO113: 0 | AP113: 0 | AQ113: 0 | AR113: 0 | AS113: 0 | AT113: 0 | AU113: 0 | AV113: 0 | AW113: 0 | AX113: 0 | AY113: 0 | AZ113: 0 | BA113: 1 | BB113: 0 | BC113: 0 | BD113: 0 | BE113: 0 | BF113: 0 | BG113: 1 | BH113: 0 | BI113: 1 | BJ113: 0 | BK113: 3 | BL113: 4 | BM113: 2 | BN113: 2 | BO113: 8 | BP113: 6 | BQ113: 0 | BR113: 0 | BS113: 0 | BT113: 3 | BU113: 3 | BV113: 0 | BW113: 0 | BX113: 6 | BY113: 0 | BZ113: 0 | CA113: 0 | CB113: 0 | CC113: 2 | CD113: 0 | CE113: 1 | CF113: 0 | CG113: 1 | CH113: 0 | CI113: 1 | CJ113: 0 | CK113: 0 | CL113: 0 | CM113: 2 | CN113: 1 | CO113: 4 | CP113: 1 | CQ113: 0 | CR113: 0 | CS113: 0 | CT113: 0 | CU113: 0 | CV113: 0 | CW113: 11 | CX113: 2 | CY113: 0 | CZ113: 0 | DA113: 0 | DB113: 0 | DC113: 0 | DD113: 0 | DE113: 0 | DF113: 0 | DG113: 0 | DH113: 0 | DI113: 0 | DJ113: 0 | DK113: 1 | DL113: 0 | DM113: 1 | DN113: 0 | DO113: 0 | DP113: 0 | DQ113: 0 | DR113: 0 | DS113: 5 | DT113: 0 | DU113: 1 | DV113: 0 | DW113: 0 | DX113: 1 | DY113: 0 | DZ113: 0 | EA113: 0 | EB113: 0 | EC113: 8 | ED113: 1 | EE113: 2 | EF113: 2 | EG113: 0 | EH113: 0 | EI113: 0 | EJ113: 0 | EK113: 0 | EL113: 0 | EM113: 0 | EN113: 0 | EO113: 0 | EP113: 0 | EQ113: 2 | ER113: 2 | ES113: 0 | ET113: 0 | EU113: 0 | EV113: 0 | EW113: 0 | EX113: 0 | EY113: 0 | EZ113: 0 | FA113: 0 | FB113: 0 | FC113: 0 | FD113: 0 | FE113: 0 | FF113: 0 | FG113: 0 | FH113: 0 | FI113: 0 | FJ113: 0 | FK113: 0 | FL113: 0 | FM113: 0 | FN113: 0 | FO113: 0 | FP113: 0 | FQ113: 0 | FR113: 0 | FS113: 0 | FT113: 0 | FU113: 0 | FV113: 0 | FW113: 0 | FX113: 0 | FY113: 0 | FZ113: 0 | GA113: 0 | GB113: 0 | GC113: 0 | GD113: 0 | GE113: 0 | GF113: 0 | GG113: 0 | GH113: 1 | GI113: 0 | GJ113: 0 | GK113: 2 | GL113: 0 | GM113: 0 | GN113: 0 | GO113: 0 | GP113: 0 | GQ113: 0 | GR113: 0 | GS113: 0 | GT113: 0 | GU113: 2 | GV113: 1 | GW113: 0 | GX113: 0 | GY113: 0 | GZ113: 0 | HA113: 0 | HB113: 0 | HC113: 0 | HD113: 0 | HE113: 1 | HF113: 0 | HG113: 0 | HH113: 0 | HI113: 0 | HJ113: 0 | HK113: 0 | HL113: 0 | HM113: 1 | HN113: 0 | HO113: 0 | HP113: 0 | HQ113: 1 | HR113: 0 | HS113: 2 | HT113: 0 | HU113: 2 | HV113: 0 | HW113: 5 | HX113: 0 | HY113: 5 | HZ113: 0 | IA113: 0 | IB113: 0 | IC113: 11 | ID113: 0 | IE113: 9 | IF113: 0 | IG113: 0 | IH113: 0 | II113: 3 | IJ113: 0 | IK113: 0 | IL113: 0 | IM113: 38 | IN113: 0
A114: 4 | B114: 2 | C114: 3 | D114: 19 | E114: 24 | F114: 20 | G114: 63 | H114: 19 | I114: 11 | J114: 2 | K114: 0 | L114: 0 | M114: 5 | N114: 12 | O114: 9 | P114: 2 | Q114: 0 | R114: 0 | S114: 0 | T114: 2 | U114: 1 | V114: 0 | W114: 0 | X114: 0 | Y114: 0 | Z114: 0 | AA114: 0 | AB114: 0 | AC114: 0 | AD114: 0 | AE114: 0 | AF114: 0 | AG114: 0 | AH114: 0 | AI114: 0 | AJ114: 0 | AK114: 0 | AL114: 0 | AM114: 0 | AN114: 0 | AO114: 1 | AP114: 2 | AQ114: 0 | AR114: 0 | AS114: 0 | AT114: 0 | AU114: 1 | AV114: 0 | AW114: 0 | AX114: 0 | AY114: 0 | AZ114: 0 | BA114: 0 | BB114: 0 | BC114: 0 | BD114: 0 | BE114: 0 | BF114: 1 | BG114: 0 | BH114: 1 | BI114: 0 | BJ114: 0 | BK114: 2 | BL114: 3 | BM114: 2 | BN114: 3 | BO114: 5 | BP114: 8 | BQ114: 1 | BR114: 0 | BS114: 4 | BT114: 5 | BU114: 4 | BV114: 1 | BW114: 1 | BX114: 16 | BY114: 0 | BZ114: 0 | CA114: 0 | CB114: 0 | CC114: 1 | CD114: 0 | CE114: 1 | CF114: 0 | CG114: 2 | CH114: 1 | CI114: 1 | CJ114: 0 | CK114: 0 | CL114: 0 | CM114: 0 | CN114: 1 | CO114: 3 | CP114: 1 | CQ114: 2 | CR114: 1 | CS114: 1 | CT114: 0 | CU114: 0 | CV114: 0 | CW114: 11 | CX114: 4 | CY114: 0 | CZ114: 0 | DA114: 0 | DB114: 0 | DC114: 0 | DD114: 0 | DE114: 0 | DF114: 1 | DG114: 0 | DH114: 0 | DI114: 0 | DJ114: 0 | DK114: 0 | DL114: 0 | DM114: 2 | DN114: 1 | DO114: 1 | DP114: 0 | DQ114: 0 | DR114: 0 | DS114: 2 | DT114: 0 | DU114: 1 | DV114: 0 | DW114: 1 | DX114: 0 | DY114: 1 | DZ114: 0 | EA114: 3 | EB114: 0 | EC114: 11 | ED114: 2 | EE114: 0 | EF114: 0 | EG114: 0 | EH114: 0 | EI114: 0 | EJ114: 0 | EK114: 1 | EL114: 1 | EM114: 0 | EN114: 2 | EO114: 2 | EP114: 0 | EQ114: 2 | ER114: 2 | ES114: 0 | ET114: 0 | EU114: 0 | EV114: 0 | EW114: 0 | EX114: 0 | EY114: 0 | EZ114: 0 | FA114: 0 | FB114: 0 | FC114: 0 | FD114: 0 | FE114: 0 | FF114: 0 | FG114: 0 | FH114: 0 | FI114: 0 | FJ114: 0 | FK114: 0 | FL114: 0 | FM114: 0 | FN114: 0 | FO114: 0 | FP114: 0 | FQ114: 0 | FR114: 0 | FS114: 0 | FT114: 0 | FU114: 0 | FV114: 0 | FW114: 0 | FX114: 0 | FY114: 0 | FZ114: 0 | GA114: 0 | GB114: 0 | GC114: 0 | GD114: 0 | GE114: 0 | GF114: 0 | GG114: 0 | GH114: 0 | GI114: 0 | GJ114: 0 | GK114: 0 | GL114: 0 | GM114: 0 | GN114: 0 | GO114: 0 | GP114: 0 | GQ114: 1 | GR114: 1 | GS114: 0 | GT114: 0 | GU114: 1 | GV114: 1 | GW114: 0 | GX114: 0 | GY114: 0 | GZ114: 0 | HA114: 0 | HB114: 0 | HC114: 0 | HD114: 0 | HE114: 0 | HF114: 0 | HG114: 0 | HH114: 0 | HI114: 0 | HJ114: 0 | HK114: 0 | HL114: 0 | HM114: 0 | HN114: 0 | HO114: 1 | HP114: 0 | HQ114: 0 | HR114: 2 | HS114: 2 | HT114: 0 | HU114: 2 | HV114: 0 | HW114: 9 | HX114: 1 | HY114: 5 | HZ114: 0 | IA114: 1 | IB114: 0 | IC114: 10 | ID114: 0 | IE114: 9 | IF114: 0 | IG114: 0 | IH114: 1 | II114: 1 | IJ114: 0 | IK114: 0 | IL114: 0 | IM114: 40 | IN114: 4
A115: 5 | B115: 2 | C115: 2 | D115: 21 | E115: 21 | F115: 14 | G115: 66 | H115: 24 | I115: 2 | J115: 0 | K115: 0 | L115: 0 | M115: 2 | N115: 13 | O115: 18 | P115: 7 | Q115: 0 | R115: 0 | S115: 0 | T115: 0 | U115: 1 | V115: 0 | W115: 0 | X115: 0 | Y115: 0 | Z115: 0 | AA115: 0 | AB115: 0 | AC115: 0 | AD115: 0 | AE115: 0 | AF115: 0 | AG115: 0 | AH115: 0 | AI115: 0 | AJ115: 0 | AK115: 0 | AL115: 0 | AM115: 0 | AN115: 0 | AO115: 1 | AP115: 0 | AQ115: 0 | AR115: 0 | AS115: 0 | AT115: 0 | AU115: 0 | AV115: 0 | AW115: 0 | AX115: 0 | AY115: 0 | AZ115: 0 | BA115: 0 | BB115: 0 | BC115: 0 | BD115: 0 | BE115: 0 | BF115: 0 | BG115: 3 | BH115: 1 | BI115: 0 | BJ115: 0 | BK115: 6 | BL115: 4 | BM115: 1 | BN115: 2 | BO115: 10 | BP115: 7 | BQ115: 0 | BR115: 1 | BS115: 1 | BT115: 3 | BU115: 0 | BV115: 7 | BW115: 0 | BX115: 12 | BY115: 0 | BZ115: 0 | CA115: 0 | CB115: 0 | CC115: 0 | CD115: 0 | CE115: 0 | CF115: 1 | CG115: 1 | CH115: 0 | CI115: 2 | CJ115: 0 | CK115: 0 | CL115: 0 | CM115: 6 | CN115: 3 | CO115: 4 | CP115: 1 | CQ115: 1 | CR115: 0 | CS115: 1 | CT115: 0 | CU115: 0 | CV115: 0 | CW115: 15 | CX115: 5 | CY115: 0 | CZ115: 0 | DA115: 0 | DB115: 0 | DC115: 0 | DD115: 0 | DE115: 0 | DF115: 0 | DG115: 0 | DH115: 0 | DI115: 0 | DJ115: 0 | DK115: 0 | DL115: 0 | DM115: 0 | DN115: 0 | DO115: 0 | DP115: 0 | DQ115: 0 | DR115: 0 | DS115: 2 | DT115: 0 | DU115: 0 | DV115: 0 | DW115: 0 | DX115: 0 | DY115: 0 | DZ115: 0 | EA115: 0 | EB115: 0 | EC115: 2 | ED115: 0 | EE115: 0 | EF115: 0 | EG115: 0 | EH115: 0 | EI115: 0 | EJ115: 0 | EK115: 0 | EL115: 0 | EM115: 0 | EN115: 0 | EO115: 0 | EP115: 0 | EQ115: 2 | ER115: 2 | ES115: 0 | ET115: 0 | EU115: 0 | EV115: 0 | EW115: 0 | EX115: 0 | EY115: 0 | EZ115: 0 | FA115: 0 | FB115: 0 | FC115: 0 | FD115: 0 | FE115: 0 | FF115: 0 | FG115: 0 | FH115: 0 | FI115: 0 | FJ115: 0 | FK115: 0 | FL115: 0 | FM115: 0 | FN115: 0 | FO115: 0 | FP115: 0 | FQ115: 0 | FR115: 0 | FS115: 0 | FT115: 0 | FU115: 0 | FV115: 0 | FW115: 0 | FX115: 0 | FY115: 0 | FZ115: 0 | GA115: 0 | GB115: 0 | GC115: 0 | GD115: 0 | GE115: 0 | GF115: 0 | GG115: 0 | GH115: 0 | GI115: 0 | GJ115: 0 | GK115: 0 | GL115: 0 | GM115: 0 | GN115: 0 | GO115: 0 | GP115: 0 | GQ115: 0 | GR115: 0 | GS115: 0 | GT115: 0 | GU115: 0 | GV115: 0 | GW115: 0 | GX115: 0 | GY115: 0 | GZ115: 0 | HA115: 0 | HB115: 0 | HC115: 0 | HD115: 0 | HE115: 0 | HF115: 0 | HG115: 0 | HH115: 1 | HI115: 0 | HJ115: 0 | HK115: 0 | HL115: 0 | HM115: 0 | HN115: 1 | HO115: 0 | HP115: 0 | HQ115: 0 | HR115: 2 | HS115: 2 | HT115: 0 | HU115: 2 | HV115: 1 | HW115: 4 | HX115: 0 | HY115: 7 | HZ115: 0 | IA115: 0 | IB115: 1 | IC115: 9 | ID115: 0 | IE115: 8 | IF115: 0 | IG115: 2 | IH115: 1 | II115: 1 | IJ115: 0 | IK115: 0 | IL115: 0 | IM115: 35 | IN115: 5
A116: 6 | B116: 2 | C116: 1 | D116: 13 | E116: 11 | F116: 20 | G116: 84 | H116: 28 | I116: 0 | J116: 0 | K116: 0 | L116: 0 | M116: 6 | N116: 16 | O116: 17 | P116: 11 | Q116: 0 | R116: 0 | S116: 0 | T116: 0 | U116: 0 | V116: 0 | W116: 0 | X116: 0 | Y116: 0 | Z116: 0 | AA116: 0 | AB116: 0 | AC116: 0 | AD116: 0 | AE116: 0 | AF116: 0 | AG116: 0 | AH116: 0 | AI116: 0 | AJ116: 0 | AK116: 0 | AL116: 0 | AM116: 0 | AN116: 0 | AO116: 0 | AP116: 0 | AQ116: 0 | AR116: 0 | AS116: 0 | AT116: 0 | AU116: 0 | AV116: 0 | AW116: 0 | AX116: 0 | AY116: 0 | AZ116: 0 | BA116: 0 | BB116: 0 | BC116: 0 | BD116: 0 | BE116: 1 | BF116: 1 | BG116: 0 | BH116: 1 | BI116: 0 | BJ116: 0 | BK116: 3 | BL116: 2 | BM116: 0 | BN116: 0 | BO116: 4 | BP116: 4 | BQ116: 0 | BR116: 1 | BS116: 1 | BT116: 3 | BU116: 2 | BV116: 6 | BW116: 1 | BX116: 14 | BY116: 0 | BZ116: 0 | CA116: 1 | CB116: 0 | CC116: 2 | CD116: 0 | CE116: 0 | CF116: 0 | CG116: 2 | CH116: 0 | CI116: 0 | CJ116: 0 | CK116: 0 | CL116: 0 | CM116: 5 | CN116: 1 | CO116: 2 | CP116: 0 | CQ116: 1 | CR116: 0 | CS116: 0 | CT116: 0 | CU116: 0 | CV116: 0 | CW116: 13 | CX116: 1 | CY116: 0 | CZ116: 0 | DA116: 0 | DB116: 0 | DC116: 0 | DD116: 0 | DE116: 0 | DF116: 0 | DG116: 0 | DH116: 0 | DI116: 0 | DJ116: 0 | DK116: 0 | DL116: 0 | DM116: 0 | DN116: 0 | DO116: 0 | DP116: 0 | DQ116: 0 | DR116: 0 | DS116: 0 | DT116: 0 | DU116: 0 | DV116: 0 | DW116: 0 | DX116: 0 | DY116: 0 | DZ116: 0 | EA116: 0 | EB116: 0 | EC116: 0 | ED116: 0 | EE116: 0 | EF116: 0 | EG116: 0 | EH116: 0 | EI116: 0 | EJ116: 0 | EK116: 0 | EL116: 0 | EM116: 0 | EN116: 0 | EO116: 0 | EP116: 0 | EQ116: 0 | ER116: 0 | ES116: 0 | ET116: 0 | EU116: 0 | EV116: 0 | EW116: 0 | EX116: 0 | EY116: 0 | EZ116: 0 | FA116: 0 | FB116: 0 | FC116: 0 | FD116: 0 | FE116: 0 | FF116: 0 | FG116: 0 | FH116: 0 | FI116: 0 | FJ116: 0 | FK116: 0 | FL116: 0 | FM116: 0 | FN116: 0 | FO116: 0 | FP116: 0 | FQ116: 0 | FR116: 0 | FS116: 0 | FT116: 0 | FU116: 0 | FV116: 0 | FW116: 0 | FX116: 0 | FY116: 0 | FZ116: 0 | GA116: 0 | GB116: 0 | GC116: 0 | GD116: 0 | GE116: 0 | GF116: 0 | GG116: 0 | GH116: 0 | GI116: 0 | GJ116: 0 | GK116: 0 | GL116: 1 | GM116: 0 | GN116: 0 | GO116: 0 | GP116: 0 | GQ116: 0 | GR116: 0 | GS116: 0 | GT116: 0 | GU116: 0 | GV116: 1 | GW116: 0 | GX116: 0 | GY116: 0 | GZ116: 0 | HA116: 0 | HB116: 1 | HC116: 0 | HD116: 0 | HE116: 0 | HF116: 0 | HG116: 0 | HH116: 0 | HI116: 0 | HJ116: 0 | HK116: 0 | HL116: 0 | HM116: 0 | HN116: 1 | HO116: 0 | HP116: 0 | HQ116: 1 | HR116: 0 | HS116: 0 | HT116: 1 | HU116: 0 | HV116: 0 | HW116: 3 | HX116: 0 | HY116: 3 | HZ116: 0 | IA116: 0 | IB116: 0 | IC116: 12 | ID116: 0 | IE116: 7 | IF116: 0 | IG116: 0 | IH116: 1 | II116: 2 | IJ116: 0 | IK116: 0 | IL116: 0 | IM116: 28 | IN116: 2
A117: 7 | B117: 3 | C117: 3 | D117: 17 | E117: 14 | F117: 22 | G117: 74 | H117: 29 | I117: 1 | J117: 0 | K117: 1 | L117: 0 | M117: 6 | N117: 11 | O117: 21 | P117: 13 | Q117: 0 | R117: 0 | S117: 0 | T117: 0 | U117: 0 | V117: 1 | W117: 0 | X117: 0 | Y117: 0 | Z117: 0 | AA117: 0 | AB117: 0 | AC117: 1 | AD117: 0 | AE117: 0 | AF117: 0 | AG117: 0 | AH117: 0 | AI117: 0 | AJ117: 0 | AK117: 0 | AL117: 0 | AM117: 0 | AN117: 0 | AO117: 1 | AP117: 1 | AQ117: 0 | AR117: 0 | AS117: 0 | AT117: 0 | AU117: 0 | AV117: 0 | AW117: 0 | AX117: 0 | AY117: 0 | AZ117: 0 | BA117: 0 | BB117: 0 | BC117: 0 | BD117: 0 | BE117: 0 | BF117: 0 | BG117: 0 | BH117: 0 | BI117: 0 | BJ117: 0 | BK117: 1 | BL117: 3 | BM117: 2 | BN117: 0 | BO117: 3 | BP117: 3 | BQ117: 0 | BR117: 0 | BS117: 2 | BT117: 4 | BU117: 3 | BV117: 4 | BW117: 0 | BX117: 13 | BY117: 0 | BZ117: 0 | CA117: 3 | CB117: 2 | CC117: 1 | CD117: 0 | CE117: 2 | CF117: 0 | CG117: 2 | CH117: 2 | CI117: 1 | CJ117: 0 | CK117: 0 | CL117: 0 | CM117: 2 | CN117: 2 | CO117: 2 | CP117: 1 | CQ117: 0 | CR117: 1 | CS117: 1 | CT117: 0 | CU117: 0 | CV117: 0 | CW117: 14 | CX117: 8 | CY117: 0 | CZ117: 0 | DA117: 0 | DB117: 0 | DC117: 0 | DD117: 0 | DE117: 0 | DF117: 0 | DG117: 0 | DH117: 0 | DI117: 0 | DJ117: 0 | DK117: 0 | DL117: 0 | DM117: 0 | DN117: 0 | DO117: 0 | DP117: 0 | DQ117: 0 | DR117: 0 | DS117: 1 | DT117: 0 | DU117: 0 | DV117: 0 | DW117: 0 | DX117: 0 | DY117: 0 | DZ117: 0 | EA117: 0 | EB117: 0 | EC117: 1 | ED117: 0 | EE117: 0 | EF117: 0 | EG117: 0 | EH117: 0 | EI117: 0 | EJ117: 0 | EK117: 0 | EL117: 0 | EM117: 0 | EN117: 0 | EO117: 0 | EP117: 0 | EQ117: 0 | ER117: 0 | ES117: 0 | ET117: 0 | EU117: 0 | EV117: 0 | EW117: 0 | EX117: 0 | EY117: 1 | EZ117: 0 | FA117: 0 | FB117: 0 | FC117: 0 | FD117: 0 | FE117: 0 | FF117: 0 | FG117: 0 | FH117: 0 | FI117: 0 | FJ117: 0 | FK117: 0 | FL117: 0 | FM117: 0 | FN117: 0 | FO117: 0 | FP117: 0 | FQ117: 0 | FR117: 0 | FS117: 0 | FT117: 0 | FU117: 1 | FV117: 0 | FW117: 0 | FX117: 0 | FY117: 0 | FZ117: 0 | GA117: 0 | GB117: 0 | GC117: 0 | GD117: 0 | GE117: 0 | GF117: 0 | GG117: 0 | GH117: 0 | GI117: 0 | GJ117: 0 | GK117: 0 | GL117: 0 | GM117: 0 | GN117: 0 | GO117: 0 | GP117: 0 | GQ117: 0 | GR117: 0 | GS117: 0 | GT117: 0 | GU117: 0 | GV117: 0 | GW117: 0 | GX117: 0 | GY117: 0 | GZ117: 0 | HA117: 0 | HB117: 0 | HC117: 0 | HD117: 0 | HE117: 0 | HF117: 0 | HG117: 0 | HH117: 0 | HI117: 0 | HJ117: 0 | HK117: 0 | HL117: 0 | HM117: 0 | HN117: 0 | HO117: 0 | HP117: 0 | HQ117: 0 | HR117: 0 | HS117: 1 | HT117: 0 | HU117: 4 | HV117: 0 | HW117: 5 | HX117: 0 | HY117: 5 | HZ117: 0 | IA117: 0 | IB117: 0 | IC117: 14 | ID117: 0 | IE117: 15 | IF117: 0 | IG117: 0 | IH117: 0 | II117: 1 | IJ117: 0 | IK117: 0 | IL117: 0 | IM117: 45 | IN117: 0
A118: 8 | B118: 6 | C118: 1 | D118: 28 | E118: 19 | F118: 20 | G118: 71 | H118: 37 | I118: 1 | J118: 0 | K118: 1 | L118: 0 | M118: 1 | N118: 3 | O118: 7 | P118: 5 | Q118: 0 | R118: 0 | S118: 0 | T118: 0 | U118: 1 | V118: 0 | W118: 0 | X118: 0 | Y118: 0 | Z118: 0 | AA118: 0 | AB118: 0 | AC118: 0 | AD118: 0 | AE118: 0 | AF118: 0 | AG118: 0 | AH118: 0 | AI118: 1 | AJ118: 0 | AK118: 0 | AL118: 0 | AM118: 0 | AN118: 0 | AO118: 2 | AP118: 0 | AQ118: 0 | AR118: 0 | AS118: 0 | AT118: 0 | AU118: 0 | AV118: 1 | AW118: 0 | AX118: 0 | AY118: 0 | AZ118: 0 | BA118: 0 | BB118: 0 | BC118: 0 | BD118: 0 | BE118: 0 | BF118: 0 | BG118: 0 | BH118: 0 | BI118: 0 | BJ118: 0 | BK118: 2 | BL118: 1 | BM118: 5 | BN118: 2 | BO118: 7 | BP118: 4 | BQ118: 0 | BR118: 0 | BS118: 1 | BT118: 1 | BU118: 1 | BV118: 3 | BW118: 1 | BX118: 7 | BY118: 0 | BZ118: 0 | CA118: 3 | CB118: 1 | CC118: 2 | CD118: 1 | CE118: 3 | CF118: 0 | CG118: 3 | CH118: 2 | CI118: 2 | CJ118: 0 | CK118: 0 | CL118: 0 | CM118: 5 | CN118: 6 | CO118: 4 | CP118: 6 | CQ118: 0 | CR118: 0 | CS118: 0 | CT118: 0 | CU118: 0 | CV118: 0 | CW118: 22 | CX118: 16 | CY118: 0 | CZ118: 0 | DA118: 0 | DB118: 0 | DC118: 0 | DD118: 0 | DE118: 0 | DF118: 0 | DG118: 0 | DH118: 0 | DI118: 0 | DJ118: 0 | DK118: 0 | DL118: 0 | DM118: 0 | DN118: 0 | DO118: 0 | DP118: 0 | DQ118: 0 | DR118: 0 | DS118: 0 | DT118: 0 | DU118: 1 | DV118: 0 | DW118: 0 | DX118: 0 | DY118: 0 | DZ118: 0 | EA118: 0 | EB118: 0 | EC118: 1 | ED118: 0 | EE118: 0 | EF118: 0 | EG118: 0 | EH118: 0 | EI118: 0 | EJ118: 0 | EK118: 0 | EL118: 0 | EM118: 0 | EN118: 0 | EO118: 0 | EP118: 0 | EQ118: 0 | ER118: 0 | ES118: 0 | ET118: 0 | EU118: 0 | EV118: 0 | EW118: 0 | EX118: 0 | EY118: 0 | EZ118: 0 | FA118: 0 | FB118: 0 | FC118: 0 | FD118: 0 | FE118: 0 | FF118: 0 | FG118: 0 | FH118: 0 | FI118: 0 | FJ118: 0 | FK118: 0 | FL118: 0 | FM118: 0 | FN118: 0 | FO118: 0 | FP118: 0 | FQ118: 0 | FR118: 0 | FS118: 0 | FT118: 0 | FU118: 0 | FV118: 0 | FW118: 0 | FX118: 0 | FY118: 0 | FZ118: 0 | GA118: 0 | GB118: 0 | GC118: 0 | GD118: 0 | GE118: 0 | GF118: 0 | GG118: 0 | GH118: 1 | GI118: 0 | GJ118: 0 | GK118: 0 | GL118: 0 | GM118: 0 | GN118: 0 | GO118: 0 | GP118: 0 | GQ118: 0 | GR118: 0 | GS118: 0 | GT118: 0 | GU118: 0 | GV118: 1 | GW118: 0 | GX118: 0 | GY118: 0 | GZ118: 0 | HA118: 0 | HB118: 0 | HC118: 0 | HD118: 0 | HE118: 0 | HF118: 0 | HG118: 0 | HH118: 1 | HI118: 0 | HJ118: 0 | HK118: 0 | HL118: 0 | HM118: 0 | HN118: 1 | HO118: 0 | HP118: 0 | HQ118: 0 | HR118: 1 | HS118: 3 | HT118: 0 | HU118: 3 | HV118: 0 | HW118: 3 | HX118: 1 | HY118: 4 | HZ118: 0 | IA118: 0 | IB118: 0 | IC118: 14 | ID118: 1 | IE118: 15 | IF118: 0 | IG118: 0 | IH118: 0 | II118: 1 | IJ118: 0 | IK118: 0 | IL118: 0 | IM118: 43 | IN118: 3
A119: 9 | B119: 3 | C119: 2 | D119: 14 | E119: 23 | F119: 18 | G119: 72 | H119: 35 | I119: 2 | J119: 0 | K119: 1 | L119: 0 | M119: 1 | N119: 0 | O119: 6 | P119: 8 | Q119: 0 | R119: 0 | S119: 0 | T119: 0 | U119: 1 | V119: 0 | W119: 1 | X119: 0 | Y119: 0 | Z119: 0 | AA119: 0 | AB119: 0 | AC119: 0 | AD119: 0 | AE119: 0 | AF119: 0 | AG119: 0 | AH119: 0 | AI119: 1 | AJ119: 0 | AK119: 0 | AL119: 0 | AM119: 0 | AN119: 0 | AO119: 3 | AP119: 0 | AQ119: 0 | AR119: 0 | AS119: 0 | AT119: 0 | AU119: 0 | AV119: 1 | AW119: 0 | AX119: 0 | AY119: 0 | AZ119: 1 | BA119: 0 | BB119: 0 | BC119: 0 | BD119: 0 | BE119: 0 | BF119: 0 | BG119: 0 | BH119: 0 | BI119: 0 | BJ119: 0 | BK119: 1 | BL119: 3 | BM119: 1 | BN119: 2 | BO119: 2 | BP119: 7 | BQ119: 0 | BR119: 0 | BS119: 1 | BT119: 3 | BU119: 1 | BV119: 2 | BW119: 1 | BX119: 8 | BY119: 0 | BZ119: 0 | CA119: 1 | CB119: 0 | CC119: 3 | CD119: 0 | CE119: 2 | CF119: 0 | CG119: 2 | CH119: 2 | CI119: 2 | CJ119: 0 | CK119: 0 | CL119: 0 | CM119: 4 | CN119: 5 | CO119: 2 | CP119: 6 | CQ119: 1 | CR119: 2 | CS119: 0 | CT119: 0 | CU119: 0 | CV119: 0 | CW119: 17 | CX119: 15 | CY119: 1 | CZ119: 1 | DA119: 0 | DB119: 0 | DC119: 0 | DD119: 0 | DE119: 0 | DF119: 0 | DG119: 0 | DH119: 0 | DI119: 0 | DJ119: 0 | DK119: 0 | DL119: 0 | DM119: 1 | DN119: 0 | DO119: 0 | DP119: 0 | DQ119: 0 | DR119: 0 | DS119: 0 | DT119: 0 | DU119: 1 | DV119: 0 | DW119: 0 | DX119: 0 | DY119: 0 | DZ119: 0 | EA119: 0 | EB119: 0 | EC119: 2 | ED119: 0 | EE119: 0 | EF119: 0 | EG119: 0 | EH119: 0 | EI119: 0 | EJ119: 0 | EK119: 0 | EL119: 0 | EM119: 0 | EN119: 0 | EO119: 0 | EP119: 0 | EQ119: 0 | ER119: 0 | ES119: 0 | ET119: 0 | EU119: 0 | EV119: 0 | EW119: 0 | EX119: 0 | EY119: 0 | EZ119: 0 | FA119: 0 | FB119: 0 | FC119: 0 | FD119: 0 | FE119: 0 | FF119: 0 | FG119: 0 | FH119: 0 | FI119: 0 | FJ119: 0 | FK119: 0 | FL119: 0 | FM119: 0 | FN119: 0 | FO119: 0 | FP119: 0 | FQ119: 0 | FR119: 0 | FS119: 0 | FT119: 0 | FU119: 0 | FV119: 0 | FW119: 0 | FX119: 0 | FY119: 0 | FZ119: 0 | GA119: 0 | GB119: 0 | GC119: 0 | GD119: 0 | GE119: 0 | GF119: 0 | GG119: 0 | GH119: 0 | GI119: 0 | GJ119: 0 | GK119: 0 | GL119: 0 | GM119: 0 | GN119: 0 | GO119: 0 | GP119: 0 | GQ119: 0 | GR119: 0 | GS119: 0 | GT119: 0 | GU119: 0 | GV119: 0 | GW119: 0 | GX119: 0 | GY119: 0 | GZ119: 0 | HA119: 0 | HB119: 0 | HC119: 0 | HD119: 0 | HE119: 0 | HF119: 0 | HG119: 0 | HH119: 0 | HI119: 0 | HJ119: 0 | HK119: 0 | HL119: 0 | HM119: 0 | HN119: 0 | HO119: 0 | HP119: 0 | HQ119: 1 | HR119: 0 | HS119: 2 | HT119: 1 | HU119: 4 | HV119: 1 | HW119: 11 | HX119: 0 | HY119: 6 | HZ119: 0 | IA119: 0 | IB119: 0 | IC119: 14 | ID119: 0 | IE119: 13 | IF119: 0 | IG119: 0 | IH119: 1 | II119: 1 | IJ119: 0 | IK119: 0 | IL119: 0 | IM119: 52 | IN119: 3
A120: 10 | B120: 3 | C120: 4 | D120: 14 | E120: 20 | F120: 12 | G120: 74 | H120: 29 | I120: 1 | J120: 0 | K120: 1 | L120: 0 | M120: 1 | N120: 1 | O120: 12 | P120: 13 | Q120: 0 | R120: 0 | S120: 0 | T120: 1 | U120: 1 | V120: 0 | W120: 1 | X120: 0 | Y120: 0 | Z120: 0 | AA120: 0 | AB120: 0 | AC120: 0 | AD120: 0 | AE120: 0 | AF120: 0 | AG120: 0 | AH120: 0 | AI120: 1 | AJ120: 0 | AK120: 0 | AL120: 0 | AM120: 0 | AN120: 0 | AO120: 3 | AP120: 1 | AQ120: 0 | AR120: 0 | AS120: 0 | AT120: 0 | AU120: 0 | AV120: 0 | AW120: 0 | AX120: 0 | AY120: 0 | AZ120: 0 | BA120: 0 | BB120: 0 | BC120: 0 | BD120: 0 | BE120: 0 | BF120: 0 | BG120: 0 | BH120: 1 | BI120: 0 | BJ120: 0 | BK120: 3 | BL120: 2 | BM120: 1 | BN120: 3 | BO120: 4 | BP120: 6 | BQ120: 0 | BR120: 0 | BS120: 0 | BT120: 3 | BU120: 1 | BV120: 1 | BW120: 0 | BX120: 5 | BY120: 0 | BZ120: 0 | CA120: 0 | CB120: 1 | CC120: 1 | CD120: 0 | CE120: 1 | CF120: 0 | CG120: 0 | CH120: 0 | CI120: 2 | CJ120: 0 | CK120: 0 | CL120: 0 | CM120: 2 | CN120: 5 | CO120: 4 | CP120: 4 | CQ120: 0 | CR120: 0 | CS120: 0 | CT120: 0 | CU120: 0 | CV120: 0 | CW120: 10 | CX120: 10 | CY120: 0 | CZ120: 0 | DA120: 0 | DB120: 0 | DC120: 0 | DD120: 0 | DE120: 0 | DF120: 0 | DG120: 0 | DH120: 0 | DI120: 0 | DJ120: 0 | DK120: 0 | DL120: 0 | DM120: 1 | DN120: 0 | DO120: 0 | DP120: 0 | DQ120: 0 | DR120: 0 | DS120: 0 | DT120: 0 | DU120: 0 | DV120: 0 | DW120: 0 | DX120: 0 | DY120: 0 | DZ120: 0 | EA120: 0 | EB120: 0 | EC120: 1 | ED120: 0 | EE120: 0 | EF120: 0 | EG120: 0 | EH120: 0 | EI120: 0 | EJ120: 0 | EK120: 0 | EL120: 0 | EM120: 0 | EN120: 0 | EO120: 0 | EP120: 0 | EQ120: 0 | ER120: 0 | ES120: 0 | ET120: 0 | EU120: 0 | EV120: 0 | EW120: 0 | EX120: 0 | EY120: 0 | EZ120: 0 | FA120: 0 | FB120: 0 | FC120: 0 | FD120: 0 | FE120: 0 | FF120: 0 | FG120: 0 | FH120: 0 | FI120: 0 | FJ120: 0 | FK120: 0 | FL120: 0 | FM120: 0 | FN120: 0 | FO120: 0 | FP120: 0 | FQ120: 0 | FR120: 0 | FS120: 0 | FT120: 0 | FU120: 0 | FV120: 0 | FW120: 0 | FX120: 0 | FY120: 0 | FZ120: 0 | GA120: 0 | GB120: 0 | GC120: 0 | GD120: 0 | GE120: 0 | GF120: 0 | GG120: 0 | GH120: 0 | GI120: 0 | GJ120: 0 | GK120: 0 | GL120: 0 | GM120: 0 | GN120: 0 | GO120: 0 | GP120: 0 | GQ120: 0 | GR120: 0 | GS120: 0 | GT120: 0 | GU120: 0 | GV120: 0 | GW120: 0 | GX120: 0 | GY120: 0 | GZ120: 0 | HA120: 0 | HB120: 0 | HC120: 0 | HD120: 0 | HE120: 0 | HF120: 0 | HG120: 0 | HH120: 0 | HI120: 0 | HJ120: 0 | HK120: 0 | HL120: 0 | HM120: 0 | HN120: 0 | HO120: 0 | HP120: 0 | HQ120: 0 | HR120: 1 | HS120: 1 | HT120: 1 | HU120: 1 | HV120: 1 | HW120: 7 | HX120: 0 | HY120: 3 | HZ120: 0 | IA120: 0 | IB120: 0 | IC120: 6 | ID120: 0 | IE120: 11 | IF120: 0 | IG120: 1 | IH120: 0 | II120: 0 | IJ120: 1 | IK120: 0 | IL120: 0 | IM120: 30 | IN120: 4
A121: 11 | B121: 1 | C121: 3 | D121: 18 | E121: 13 | F121: 15 | G121: 80 | H121: 44 | I121: 1 | J121: 0 | K121: 0 | L121: 0 | M121: 1 | N121: 0 | O121: 2 | P121: 6 | Q121: 0 | R121: 0 | S121: 0 | T121: 0 | U121: 0 | V121: 1 | W121: 1 | X121: 0 | Y121: 0 | Z121: 0 | AA121: 0 | AB121: 0 | AC121: 0 | AD121: 0 | AE121: 0 | AF121: 0 | AG121: 0 | AH121: 0 | AI121: 0 | AJ121: 0 | AK121: 0 | AL121: 0 | AM121: 0 | AN121: 0 | AO121: 1 | AP121: 1 | AQ121: 0 | AR121: 0 | AS121: 0 | AT121: 0 | AU121: 0 | AV121: 0 | AW121: 0 | AX121: 0 | AY121: 0 | AZ121: 0 | BA121: 0 | BB121: 0 | BC121: 0 | BD121: 0 | BE121: 0 | BF121: 0 | BG121: 3 | BH121: 0 | BI121: 0 | BJ121: 0 | BK121: 0 | BL121: 1 | BM121: 0 | BN121: 0 | BO121: 3 | BP121: 1 | BQ121: 0 | BR121: 0 | BS121: 1 | BT121: 2 | BU121: 1 | BV121: 1 | BW121: 0 | BX121: 5 | BY121: 0 | BZ121: 0 | CA121: 2 | CB121: 1 | CC121: 4 | CD121: 0 | CE121: 2 | CF121: 0 | CG121: 1 | CH121: 2 | CI121: 4 | CJ121: 0 | CK121: 0 | CL121: 0 | CM121: 3 | CN121: 3 | CO121: 4 | CP121: 5 | CQ121: 0 | CR121: 0 | CS121: 1 | CT121: 0 | CU121: 0 | CV121: 0 | CW121: 21 | CX121: 11 | CY121: 0 | CZ121: 0 | DA121: 0 | DB121: 0 | DC121: 0 | DD121: 0 | DE121: 0 | DF121: 0 | DG121: 0 | DH121: 0 | DI121: 0 | DJ121: 0 | DK121: 0 | DL121: 0 | DM121: 0 | DN121: 0 | DO121: 0 | DP121: 0 | DQ121: 0 | DR121: 0 | DS121: 0 | DT121: 0 | DU121: 0 | DV121: 0 | DW121: 1 | DX121: 0 | DY121: 0 | DZ121: 0 | EA121: 0 | EB121: 0 | EC121: 1 | ED121: 0 | EE121: 0 | EF121: 0 | EG121: 0 | EH121: 0 | EI121: 0 | EJ121: 0 | EK121: 0 | EL121: 0 | EM121: 0 | EN121: 0 | EO121: 0 | EP121: 0 | EQ121: 0 | ER121: 0 | ES121: 0 | ET121: 0 | EU121: 0 | EV121: 0 | EW121: 0 | EX121: 0 | EY121: 0 | EZ121: 0 | FA121: 0 | FB121: 0 | FC121: 0 | FD121: 0 | FE121: 0 | FF121: 0 | FG121: 0 | FH121: 0 | FI121: 0 | FJ121: 0 | FK121: 0 | FL121: 0 | FM121: 0 | FN121: 0 | FO121: 0 | FP121: 0 | FQ121: 0 | FR121: 0 | FS121: 0 | FT121: 0 | FU121: 0 | FV121: 0 | FW121: 0 | FX121: 0 | FY121: 0 | FZ121: 0 | GA121: 0 | GB121: 0 | GC121: 0 | GD121: 0 | GE121: 0 | GF121: 0 | GG121: 0 | GH121: 0 | GI121: 0 | GJ121: 0 | GK121: 0 | GL121: 0 | GM121: 0 | GN121: 0 | GO121: 0 | GP121: 0 | GQ121: 0 | GR121: 0 | GS121: 0 | GT121: 0 | GU121: 0 | GV121: 0 | GW121: 0 | GX121: 0 | GY121: 0 | GZ121: 0 | HA121: 0 | HB121: 0 | HC121: 0 | HD121: 0 | HE121: 0 | HF121: 0 | HG121: 0 | HH121: 0 | HI121: 0 | HJ121: 0 | HK121: 0 | HL121: 0 | HM121: 0 | HN121: 0 | HO121: 0 | HP121: 0 | HQ121: 0 | HR121: 0 | HS121: 1 | HT121: 0 | HU121: 2 | HV121: 0 | HW121: 8 | HX121: 0 | HY121: 8 | HZ121: 0 | IA121: 0 | IB121: 0 | IC121: 11 | ID121: 0 | IE121: 6 | IF121: 0 | IG121: 0 | IH121: 1 | II121: 0 | IJ121: 0 | IK121: 0 | IL121: 0 | IM121: 36 | IN121: 1
A122: Total general | B122: 23 | C122: 21 | D122: 196 | E122: 201 | F122: 178 | G122: 795 | H122: 292 | I122: 46 | J122: 10 | K122: 4 | L122: 0 | M122: 60 | N122: 126 | O122: 122 | P122: 83 | Q122: 0 | R122: 0 | S122: 0 | T122: 4 | U122: 5 | V122: 2 | W122: 3 | X122: 0 | Y122: 0 | Z122: 0 | AA122: 0 | AB122: 0 | AC122: 1 | AD122: 0 | AE122: 0 | AF122: 0 | AG122: 0 | AH122: 0 | AI122: 3 | AJ122: 0 | AK122: 0 | AL122: 0 | AM122: 0 | AN122: 0 | AO122: 12 | AP122: 6 | AQ122: 0 | AR122: 0 | AS122: 0 | AT122: 0 | AU122: 2 | AV122: 2 | AW122: 1 | AX122: 0 | AY122: 1 | AZ122: 1 | BA122: 2 | BB122: 1 | BC122: 0 | BD122: 0 | BE122: 1 | BF122: 3 | BG122: 7 | BH122: 5 | BI122: 1 | BJ122: 0 | BK122: 25 | BL122: 28 | BM122: 20 | BN122: 19 | BO122: 60 | BP122: 59 | BQ122: 1 | BR122: 4 | BS122: 13 | BT122: 30 | BU122: 19 | BV122: 28 | BW122: 4 | BX122: 99 | BY122: 0 | BZ122: 0 | CA122: 10 | CB122: 5 | CC122: 19 | CD122: 1 | CE122: 17 | CF122: 1 | CG122: 19 | CH122: 12 | CI122: 19 | CJ122: 3 | CK122: 0 | CL122: 0 | CM122: 39 | CN122: 29 | CO122: 37 | CP122: 30 | CQ122: 7 | CR122: 4 | CS122: 4 | CT122: 2 | CU122: 0 | CV122: 0 | CW122: 171 | CX122: 87 | CY122: 4 | CZ122: 4 | DA122: 0 | DB122: 0 | DC122: 0 | DD122: 0 | DE122: 0 | DF122: 1 | DG122: 0 | DH122: 0 | DI122: 1 | DJ122: 0 | DK122: 3 | DL122: 0 | DM122: 9 | DN122: 1 | DO122: 1 | DP122: 1 | DQ122: 0 | DR122: 1 | DS122: 13 | DT122: 2 | DU122: 9 | DV122: 2 | DW122: 3 | DX122: 2 | DY122: 2 | DZ122: 0 | EA122: 3 | EB122: 0 | EC122: 44 | ED122: 10 | EE122: 2 | EF122: 2 | EG122: 0 | EH122: 0 | EI122: 0 | EJ122: 0 | EK122: 1 | EL122: 1 | EM122: 0 | EN122: 9 | EO122: 9 | EP122: 0 | EQ122: 6 | ER122: 6 | ES122: 0 | ET122: 0 | EU122: 0 | EV122: 0 | EW122: 0 | EX122: 0 | EY122: 1 | EZ122: 0 | FA122: 0 | FB122: 0 | FC122: 0 | FD122: 0 | FE122: 0 | FF122: 0 | FG122: 0 | FH122: 0 | FI122: 0 | FJ122: 0 | FK122: 0 | FL122: 0 | FM122: 0 | FN122: 0 | FO122: 0 | FP122: 0 | FQ122: 0 | FR122: 0 | FS122: 0 | FT122: 0 | FU122: 1 | FV122: 0 | FW122: 0 | FX122: 0 | FY122: 0 | FZ122: 0 | GA122: 0 | GB122: 0 | GC122: 0 | GD122: 0 | GE122: 0 | GF122: 0 | GG122: 1 | GH122: 2 | GI122: 0 | GJ122: 0 | GK122: 2 | GL122: 4 | GM122: 0 | GN122: 1 | GO122: 0 | GP122: 0 | GQ122: 1 | GR122: 1 | GS122: 0 | GT122: 0 | GU122: 4 | GV122: 8 | GW122: 0 | GX122: 1 | GY122: 2 | GZ122: 1 | HA122: 0 | HB122: 1 | HC122: 0 | HD122: 0 | HE122: 4 | HF122: 0 | HG122: 3 | HH122: 3 | HI122: 0 | HJ122: 1 | HK122: 0 | HL122: 0 | HM122: 9 | HN122: 7 | HO122: 1 | HP122: 0 | HQ122: 3 | HR122: 6 | HS122: 19 | HT122: 3 | HU122: 25 | HV122: 3 | HW122: 65 | HX122: 2 | HY122: 61 | HZ122: 0 | IA122: 1 | IB122: 2 | IC122: 122 | ID122: 2 | IE122: 108 | IF122: 0 | IG122: 5 | IH122: 5 | II122: 13 | IJ122: 1 | IK122: 0 | IL122: 0 | IM122: 423 | IN122: 24
A125: Salud Mental 5
A126: Anio | B126: 2024
A127: UE | B127: (Todas)
A128: Red | B128: LA CONVENCION
A129: MicroRed | B129: (Todas)
A130: EESS | B130: (Todas)
A131: Provincia | B131: (Todas)
A132: Distrito | B132: (Todas)
A134: Etiquetas de fila | B134: Atd_NVRiesgoL_NiñoF | C134: Atd_NVRiesgoL_NiñoM | D134: Atd_NVRiesgoL_AdoslF | E134: Atd_NVRiesgoL_AdoslM | F134: Atd_NVRiesgoL_JovenF | G134: Atd_NVRiesgoL_JovenM | H134: Atd_NVRiesgoL_AdultoF | I134: Atd_NVRiesgoL_AdultoM | J134: Atd_NVRiesgoL_AdultomaF | K134: Atd_NVRiesgoL_AdultomaM | L134: Atd_NVRiesgoL_TOTALF | M134: Atd_NVRiesgoL_TOTALM | N134: Atd_NVRiesgoM_NiñoF | O134: Atd_NVRiesgoM_NiñoM | P134: Atd_NVRiesgoM_AdoslF | Q134: Atd_NVRiesgoM_AdoslM | R134: Atd_NVRiesgoM_JovenF | S134: Atd_NVRiesgoM_JovenM | T134: Atd_NVRiesgoM_AdultoF | U134: Atd_NVRiesgoM_AdultoM | V134: Atd_NVRiesgoM_AdultomaF | W134: Atd_NVRiesgoM_AdultomaM | X134: Atd_NVRiesgoM_TOTALF | Y134: Atd_NVRiesgoM_TOTALM | Z134: Atd_NVRiesgoS_NiñoF | AA134: Atd_NVRiesgoS_NiñoM | AB134: Atd_NVRiesgoS_AdoslF | AC134: Atd_NVRiesgoS_AdoslM | AD134: Atd_NVRiesgoS_JovenF | AE134: Atd_NVRiesgoS_JovenM | AF134: Atd_NVRiesgoS_AdultoF | AG134: Atd_NVRiesgoS_AdultoM | AH134: Atd_NVRiesgoS_AdultomaF | AI134: Atd_NVRiesgoS_AdultomaM | AJ134: Atd_NVRiesgoS_TOTALF | AK134: Atd_NVRiesgoS_TOTALM | AL134: Atd_NVRiesgo_CasoDerivado | AM134: Atd_NVRiesgo_CasoReferido | AN134: Atd_EIID_VIF_NiñoF | AO134: Atd_EIID_VIF_NiñoM | AP134: Atd_EIID_VIF_AdoslF | AQ134: Atd_EIID_VIF_AdoslM | AR134: Atd_EIID_VIF_JovenF | AS134: Atd_EIID_VIF_JovenM | AT134: Atd_EIID_VIF_AdultoF | AU134: Atd_EIID_VIF_AdultoM | AV134: Atd_EIID_VIF_AdultomaF | AW134: Atd_EIID_VIF_AdultomaM | AX134: Atd_EIID_VIF_TOTALF | AY134: Atd_EIID_VIF_TOTALM | AZ134: Atd_EIID_AS_NiñoF | BA134: Atd_EIID_AS_NiñoM | BB134: Atd_EIID_AS_AdoslF | BC134: Atd_EIID_AS_AdoslM | BD134: Atd_EIID_AS_JovenF | BE134: Atd_EIID_AS_JovenM | BF134: Atd_EIID_AS_AdultoF | BG134: Atd_EIID_AS_AdultoM | BH134: Atd_EIID_AS_AdultomaF | BI134: Atd_EIID_AS_AdultomaM | BJ134: Atd_EIID_AS_TOTALF | BK134: Atd_EIID_AS_TOTALM | BL134: Atd_EIID_TEA_NiñoF | BM134: Atd_EIID_TEA_NiñoM | BN134: Atd_EIID_TEA_AdoslF | BO134: Atd_EIID_TEA_AdoslM | BP134: Atd_EIID_TEA_JovenF | BQ134: Atd_EIID_TEA_JovenM | BR134: Atd_EIID_TEA_AdultoF | BS134: Atd_EIID_TEA_AdultoM | BT134: Atd_EIID_TEA_AdultomaF | BU134: Atd_EIID_TEA_AdultomaM | BV134: Atd_EIID_TEA_TOTALF | BW134: Atd_EIID_TEA_TOTALM | BX134: Atd_EIID_TMC_NiñoF | BY134: Atd_EIID_TMC_NiñoM | BZ134: Atd_EIID_TMC_AdoslF | CA134: Atd_EIID_TMC_AdoslM | CB134: Atd_EIID_TMC_TOTALF | CC134: Atd_EIID_TMC_TOTALM | CD134: Atd_EIID_TD_NiñoF | CE134: Atd_EIID_TD_NiñoM | CF134: Atd_EIID_TD_AdoslF | CG134: Atd_EIID_TD_AdoslM | CH134: Atd_EIID_TD_JovenF | CI134: Atd_EIID_TD_JovenM | CJ134: Atd_EIID_TD_AdultoF | CK134: Atd_EIID_TD_AdultoM | CL134: Atd_EIID_TD_AdultomaF | CM134: Atd_EIID_TD_AdultomaM | CN134: Atd_EIID_TD_TOTALF | CO134: Atd_EIID_TD_TOTALM | CP134: Atd_EIID_TA_NiñoF | CQ134: Atd_EIID_TA_NiñoM | CR134: Atd_EIID_TA_AdoslF | CS134: Atd_EIID_TA_AdoslM | CT134: Atd_EIID_TA_JovenF | CU134: Atd_EIID_TA_JovenM | CV134: Atd_EIID_TA_AdultoF | CW134: Atd_EIID_TA_AdultoM | CX134: Atd_EIID_TA_AdultomaF | CY134: Atd_EIID_TA_AdultomaM | CZ134: Atd_EIID_TA_TOTALF | DA134: Atd_EIID_TA_TOTALM | DB134: Atd_EIID_CS_NiñoF | DC134: Atd_EIID_CS_NiñoM | DD134: Atd_EIID_CS_AdoslF | DE134: Atd_EIID_CS_AdoslM | DF134: Atd_EIID_CS_JovenF | DG134: Atd_EIID_CS_JovenM | DH134: Atd_EIID_CS_AdultoF | DI134: Atd_EIID_CS_AdultoM | DJ134: Atd_EIID_CS_AdultomaF | DK134: Atd_EIID_CS_AdultomaM | DL134: Atd_EIID_CS_TOTALF | DM134: Atd_EIID_CS_TOTALM | DN134: Atd_EIID_ATD_NiñoF | DO134: Atd_EIID_ATD_NiñoM | DP134: Atd_EIID_ATD_AdoslF | DQ134: Atd_EIID_ATD_AdoslM | DR134: Atd_EIID_ATD_JovenF | DS134: Atd_EIID_ATD_JovenM | DT134: Atd_EIID_ATD_AdultoF | DU134: Atd_EIID_ATD_AdultoM | DV134: Atd_EIID_ATD_AdultomaF | DW134: Atd_EIID_ATD_AdultomaM | DX134: Atd_EIID_ATD_TOTALF | DY134: Atd_EIID_ATD_TOTALM | DZ134: Atd_EIID_DATD_NiñoF | EA134: Atd_EIID_DATD_NiñoM | EB134: Atd_EIID_DATD_AdoslF | EC134: Atd_EIID_DATD_AdoslM | ED134: Atd_EIID_DATD_JovenF | EE134: Atd_EIID_DATD_JovenM | EF134: Atd_EIID_DATD_AdultoF | EG134: Atd_EIID_DATD_AdultoM | EH134: Atd_EIID_DATD_AdultomaF | EI134: Atd_EIID_DATD_AdultomaM | EJ134: Atd_EIID_DATD_TOTALF | EK134: Atd_EIID_DATD_TOTALM | EL134: Atd_EIID_TPS_NiñoF | EM134: Atd_EIID_TPS_NiñoM | EN134: Atd_EIID_TPS_AdoslF | EO134: Atd_EIID_TPS_AdoslM | EP134: Atd_EIID_TPS_JovenF | EQ134: Atd_EIID_TPS_JovenM | ER134: Atd_EIID_TPS_AdultoF | ES134: Atd_EIID_TPS_AdultoM | ET134: Atd_EIID_TPS_AdultomaF | EU134: Atd_EIID_TPS_AdultomaM | EV134: Atd_EIID_TPS_TOTALF | EW134: Atd_EIID_TPS_TOTALM | EX134: Atd_EIID_1EPS_NiñoF | EY134: Atd_EIID_1EPS_NiñoM | EZ134: Atd_EIID_1EPS_AdoslF | FA134: Atd_EIID_1EPS_AdoslM | FB134: Atd_EIID_1EPS_JovenF | FC134: Atd_EIID_1EPS_JovenM | FD134: Atd_EIID_1EPS_AdultoF | FE134: Atd_EIID_1EPS_AdultoM | FF134: Atd_EIID_1EPS_AdultomaF | FG134: Atd_EIID_1EPS_AdultomaM | FH134: Atd_EIID_1EPS_TOTALF | FI134: Atd_EIID_1EPS_TOTALM | FJ134: Atd_EIID_TMG_NiñoF | FK134: Atd_EIID_TMG_NiñoM | FL134: Atd_EIID_TMG_AdoslF | FM134: Atd_EIID_TMG_AdoslM | FN134: Atd_EIID_TMG_JovenF | FO134: Atd_EIID_TMG_JovenM | FP134: Atd_EIID_TMG_AdultoF | FQ134: Atd_EIID_TMG_AdultoM | FR134: Atd_EIID_TMG_AdultomaF | FS134: Atd_EIID_TMG_AdultomaM | FT134: Atd_EIID_TMG_TOTALF | FU134: Atd_EIID_TMG_TOTALM | FV134: Atd_EIID_DC_NiñoF | FW134: Atd_EIID_DC_NiñoM | FX134: Atd_EIID_DC_AdoslF | FY134: Atd_EIID_DC_AdoslM | FZ134: Atd_EIID_DC_JovenF | GA134: Atd_EIID_DC_JovenM | GB134: Atd_EIID_DC_AdultoF | GC134: Atd_EIID_DC_AdultoM | GD134: Atd_EIID_DC_AdultomaF | GE134: Atd_EIID_DC_AdultomaM | GF134: Atd_EIID_DC_TOTALF | GG134: Atd_EIID_DC_TOTALM | GH134: Act_HP_IngUsua_JovenF | GI134: Act_HP_IngUsua_JovenM | GJ134: Act_HP_IngUsua_AdultoF | GK134: Act_HP_IngUsua_AdultoM | GL134: Act_HP_IngUsua_AdultomaF | GM134: Act_HP_IngUsua_AdultomaM | GN134: Act_HP_IngUsua_TOTALF | GO134: Act_HP_IngUsua_TOTALM | GP134: Plan_indi_CuidadoF_JovenF | GQ134: Plan_indi_CuidadoF_JovenM | GR134: Plan_indi_CuidadoF_AdultoF | GS134: Plan_indi_CuidadoF_AdultoM | GT134: Plan_indi_CuidadoF_AdultomaF | GU134: Plan_indi_CuidadoF_AdultomaM | GV134: Plan_indi_CuidadoF_TOTALF | GW134: Plan_indi_CuidadoF_TOTALM | GX134: Act_HP_EgrUsua_JovenF | GY134: Act_HP_EgrUsua_JovenM | GZ134: Act_HP_EgrUsua_AdultoF | HA134: Act_HP_EgrUsua_AdultoM | HB134: Act_HP_EgrUsua_AdultomaF | HC134: Act_HP_EgrUsua_AdultomaM | HD134: Act_HP_EgrUsua_TOTALF | HE134: Act_HP_EgrUsua_TOTALM | HF134: monitoreo_reunion | HG134: monitoreo_persona | HH134: capacita_reunion | HI134: capacita_persona | HJ134: moviliza_reunion | HK134: moviliza_persona | HL134: partipaComuni_reunion | HM134: partipaComuni_persona | HN134: admMedica_reunion | HO134: admMedica_persona | HP134: Conseja_ACuiada_HP_S1 | HQ134: Conseja_ACuiada_HP_S2 | HR134: Conseja_ACuiada_HP_S3 | HS134: Conseja_ACuiada_HP_S4 | HT134: Conseja_ACuiada_HP_S5 | HU134: Conseja_ACuiada_HP_S6 | HV134: Conseja_ACuiada_HP_S7 | HW134: Conseja_ACuiada_HP_S8 | HX134: EstiloVida_AmbienteSalud_S1 | HY134: EstiloVida_AmbienteSalud_S2 | HZ134: EstiloVida_AmbienteSalud_S3 | IA134: EstiloVida_AmbienteSalud_S4 | IB134: EstiloVida_AmbienteSalud_S5 | IC134: EstiloVida_AmbienteSalud_S6 | ID134: EstiloVida_AmbienteSalud_S7 | IE134: EstiloVida_AmbienteSalud_S8 | IF134: Emp_DerechoSalud_S1 | IG134: Emp_DerechoSalud_S2 | IH134: Emp_DerechoSalud_S3 | II134: Emp_DerechoSalud_S4 | IJ134: Emp_DerechoSalud_S5 | IK134: Emp_DerechoSalud_S6 | IL134: Emp_DerechoSalud_S7 | IM134: Emp_DerechoSalud_S8 | IN134: Part_Formula_PAI_Psiq | IO134: Part_Formula_PAI_Psic | IP134: Part_Formula_PAI_Enf | IQ134: Part_Formula_PAI_TrabS | IR134: Part_Formula_PAI_MedF | IS134: Part_Formula_PAI_Otro | IT134: Emp_DerechoSalud_S9 | IU134: Conseja_ACuiada_HP_S9 | IV134: EstiloVida_AmbienteSalud_S9
A135: 1 | B135: 1 | C135: 1 | D135: 4 | E135: 0 | F135: 11 | G135: 0 | H135: 15 | I135: 1 | J135: 1 | K135: 0 | L135: 32 | M135: 2 | N135: 0 | O135: 0 | P135: 1 | Q135: 0 | R135: 1 | S135: 0 | T135: 2 | U135: 0 | V135: 1 | W135: 0 | X135: 5 | Y135: 0 | Z135: 0 | AA135: 0 | AB135: 0 | AC135: 0 | AD135: 0 | AE135: 0 | AF135: 0 | AG135: 0 | AH135: 0 | AI135: 0 | AJ135: 0 | AK135: 0 | AL135: 2 | AM135: 0 | AN135: 2 | AO135: 2 | AP135: 2 | AQ135: 1 | AR135: 0 | AS135: 0 | AT135: 3 | AU135: 0 | AV135: 0 | AW135: 0 | AX135: 7 | AY135: 3 | AZ135: 0 | BA135: 0 | BB135: 1 | BC135: 0 | BD135: 0 | BE135: 0 | BF135: 0 | BG135: 0 | BH135: 0 | BI135: 0 | BJ135: 1 | BK135: 0 | BL135: 0 | BM135: 1 | BN135: 0 | BO135: 0 | BP135: 0 | BQ135: 0 | BR135: 0 | BS135: 0 | BT135: 0 | BU135: 0 | BV135: 0 | BW135: 1 | BX135: 1 | BY135: 4 | BZ135: 1 | CA135: 1 | CB135: 2 | CC135: 5 | CD135: 0 | CE135: 0 | CF135: 2 | CG135: 0 | CH135: 0 | CI135: 0 | CJ135: 4 | CK135: 0 | CL135: 1 | CM135: 0 | CN135: 7 | CO135: 0 | CP135: 0 | CQ135: 0 | CR135: 2 | CS135: 0 | CT135: 1 | CU135: 0 | CV135: 3 | CW135: 0 | CX135: 0 | CY135: 2 | CZ135: 6 | DA135: 2 | DB135: 0 | DC135: 0 | DD135: 0 | DE135: 0 | DF135: 0 | DG135: 0 | DH135: 0 | DI135: 0 | DJ135: 0 | DK135: 0 | DL135: 0 | DM135: 0 | DN135: 0 | DO135: 0 | DP135: 0 | DQ135: 0 | DR135: 0 | DS135: 1 | DT135: 0 | DU135: 1 | DV135: 0 | DW135: 0 | DX135: 0 | DY135: 2 | DZ135: 0 | EA135: 0 | EB135: 0 | EC135: 0 | ED135: 0 | EE135: 0 | EF135: 0 | EG135: 0 | EH135: 0 | EI135: 0 | EJ135: 0 | EK135: 0 | EL135: 0 | EM135: 0 | EN135: 0 | EO135: 0 | EP135: 0 | EQ135: 0 | ER135: 1 | ES135: 1 | ET135: 0 | EU135: 0 | EV135: 1 | EW135: 1 | EX135: 0 | EY135: 0 | EZ135: 0 | FA135: 0 | FB135: 0 | FC135: 0 | FD135: 0 | FE135: 0 | FF135: 0 | FG135: 0 | FH135: 0 | FI135: 0 | FJ135: 0 | FK135: 0 | FL135: 0 | FM135: 0 | FN135: 0 | FO135: 0 | FP135: 1 | FQ135: 0 | FR135: 0 | FS135: 0 | FT135: 1 | FU135: 0 | FV135: 0 | FW135: 0 | FX135: 0 | FY135: 0 | FZ135: 0 | GA135: 0 | GB135: 0 | GC135: 0 | GD135: 0 | GE135: 0 | GF135: 0 | GG135: 0 | GH135: 0 | GI135: 1 | GJ135: 2 | GK135: 1 | GL135: 0 | GM135: 0 | GN135: 2 | GO135: 2 | GP135: 0 | GQ135: 0 | GR135: 0 | GS135: 0 | GT135: 0 | GU135: 0 | GV135: 0 | GW135: 0 | GX135: 0 | GY135: 0 | GZ135: 0 | HA135: 0 | HB135: 0 | HC135: 0 | HD135: 0 | HE135: 0 | HF135: 0 | HG135: 0 | HH135: 1 | HI135: 8 | HJ135: 0 | HK135: 0 | HL135: 0 | HM135: 0 | HN135: 0 | HO135: 0 | HP135: 0 | HQ135: 0 | HR135: 0 | HS135: 0 | HT135: 0 | HU135: 0 | HV135: 0 | HW135: 0 | HX135: 0 | HY135: 0 | HZ135: 0 | IA135: 0 | IB135: 0 | IC135: 0 | ID135: 0 | IE135: 0 | IF135: 0 | IG135: 0 | IH135: 0 | II135: 0 | IJ135: 0 | IK135: 0 | IL135: 0 | IM135: 0 | IN135: 0 | IO135: 25 | IP135: 26 | IQ135: 7 | IR135: 22 | IS135: 0 | IT135: 0 | IU135: 0 | IV135: 0
A136: 2 | B136: 1 | C136: 0 | D136: 2 | E136: 0 | F136: 4 | G136: 0 | H136: 11 | I136: 0 | J136: 0 | K136: 0 | L136: 18 | M136: 0 | N136: 0 | O136: 0 | P136: 2 | Q136: 0 | R136: 6 | S136: 0 | T136: 2 | U136: 0 | V136: 1 | W136: 0 | X136: 11 | Y136: 0 | Z136: 0 | AA136: 0 | AB136: 1 | AC136: 0 | AD136: 1 | AE136: 0 | AF136: 4 | AG136: 0 | AH136: 0 | AI136: 0 | AJ136: 6 | AK136: 0 | AL136: 3 | AM136: 0 | AN136: 0 | AO136: 0 | AP136: 0 | AQ136: 0 | AR136: 0 | AS136: 0 | AT136: 1 | AU136: 0 | AV136: 0 | AW136: 0 | AX136: 1 | AY136: 0 | AZ136: 0 | BA136: 0 | BB136: 0 | BC136: 0 | BD136: 0 | BE136: 0 | BF136: 0 | BG136: 0 | BH136: 0 | BI136: 0 | BJ136: 0 | BK136: 0 | BL136: 0 | BM136: 0 | BN136: 0 | BO136: 0 | BP136: 0 | BQ136: 0 | BR136: 0 | BS136: 0 | BT136: 0 | BU136: 0 | BV136: 0 | BW136: 0 | BX136: 0 | BY136: 0 | BZ136: 0 | CA136: 0 | CB136: 0 | CC136: 0 | CD136: 0 | CE136: 0 | CF136: 0 | CG136: 0 | CH136: 1 | CI136: 0 | CJ136: 0 | CK136: 0 | CL136: 0 | CM136: 1 | CN136: 1 | CO136: 1 | CP136: 0 | CQ136: 0 | CR136: 0 | CS136: 0 | CT136: 1 | CU136: 1 | CV136: 1 | CW136: 0 | CX136: 0 | CY136: 1 | CZ136: 2 | DA136: 2 | DB136: 0 | DC136: 0 | DD136: 0 | DE136: 0 | DF136: 0 | DG136: 0 | DH136: 0 | DI136: 0 | DJ136: 0 | DK136: 0 | DL136: 0 | DM136: 0 | DN136: 0 | DO136: 0 | DP136: 0 | DQ136: 0 | DR136: 0 | DS136: 0 | DT136: 0 | DU136: 0 | DV136: 0 | DW136: 0 | DX136: 0 | DY136: 0 | DZ136: 0 | EA136: 0 | EB136: 0 | EC136: 0 | ED136: 0 | EE136: 0 | EF136: 0 | EG136: 0 | EH136: 0 | EI136: 0 | EJ136: 0 | EK136: 0 | EL136: 0 | EM136: 0 | EN136: 0 | EO136: 0 | EP136: 0 | EQ136: 0 | ER136: 0 | ES136: 0 | ET136: 0 | EU136: 0 | EV136: 0 | EW136: 0 | EX136: 0 | EY136: 0 | EZ136: 0 | FA136: 0 | FB136: 0 | FC136: 0 | FD136: 0 | FE136: 0 | FF136: 0 | FG136: 0 | FH136: 0 | FI136: 0 | FJ136: 0 | FK136: 0 | FL136: 0 | FM136: 0 | FN136: 0 | FO136: 0 | FP136: 0 | FQ136: 0 | FR136: 0 | FS136: 0 | FT136: 0 | FU136: 0 | FV136: 0 | FW136: 0 | FX136: 0 | FY136: 0 | FZ136: 0 | GA136: 0 | GB136: 0 | GC136: 0 | GD136: 0 | GE136: 0 | GF136: 0 | GG136: 0 | GH136: 0 | GI136: 0 | GJ136: 0 | GK136: 1 | GL136: 0 | GM136: 0 | GN136: 0 | GO136: 1 | GP136: 0 | GQ136: 0 | GR136: 0 | GS136: 0 | GT136: 0 | GU136: 0 | GV136: 0 | GW136: 0 | GX136: 0 | GY136: 0 | GZ136: 0 | HA136: 1 | HB136: 0 | HC136: 0 | HD136: 0 | HE136: 1 | HF136: 0 | HG136: 0 | HH136: 1 | HI136: 8 | HJ136: 0 | HK136: 0 | HL136: 0 | HM136: 0 | HN136: 0 | HO136: 0 | HP136: 0 | HQ136: 0 | HR136: 0 | HS136: 0 | HT136: 0 | HU136: 0 | HV136: 0 | HW136: 0 | HX136: 0 | HY136: 0 | HZ136: 0 | IA136: 0 | IB136: 0 | IC136: 0 | ID136: 0 | IE136: 0 | IF136: 0 | IG136: 0 | IH136: 0 | II136: 0 | IJ136: 0 | IK136: 0 | IL136: 0 | IM136: 0 | IN136: 0 | IO136: 6 | IP136: 0 | IQ136: 0 | IR136: 0 | IS136: 0 | IT136: 0 | IU136: 0 | IV136: 0
A137: 3 | B137: 1 | C137: 0 | D137: 3 | E137: 0 | F137: 9 | G137: 0 | H137: 13 | I137: 0 | J137: 3 | K137: 0 | L137: 29 | M137: 0 | N137: 0 | O137: 0 | P137: 1 | Q137: 0 | R137: 1 | S137: 0 | T137: 4 | U137: 0 | V137: 0 | W137: 0 | X137: 6 | Y137: 0 | Z137: 0 | AA137: 0 | AB137: 0 | AC137: 0 | AD137: 0 | AE137: 0 | AF137: 0 | AG137: 0 | AH137: 0 | AI137: 0 | AJ137: 0 | AK137: 0 | AL137: 1 | AM137: 1 | AN137: 1 | AO137: 1 | AP137: 0 | AQ137: 0 | AR137: 1 | AS137: 0 | AT137: 2 | AU137: 0 | AV137: 0 | AW137: 0 | AX137: 4 | AY137: 1 | AZ137: 0 | BA137: 0 | BB137: 1 | BC137: 0 | BD137: 0 | BE137: 0 | BF137: 0 | BG137: 0 | BH137: 0 | BI137: 0 | BJ137: 1 | BK137: 0 | BL137: 0 | BM137: 0 | BN137: 0 | BO137: 0 | BP137: 0 | BQ137: 0 | BR137: 0 | BS137: 0 | BT137: 0 | BU137: 0 | BV137: 0 | BW137: 0 | BX137: 1 | BY137: 1 | BZ137: 0 | CA137: 0 | CB137: 1 | CC137: 1 | CD137: 0 | CE137: 0 | CF137: 1 | CG137: 0 | CH137: 0 | CI137: 0 | CJ137: 4 | CK137: 0 | CL137: 0 | CM137: 1 | CN137: 5 | CO137: 1 | CP137: 0 | CQ137: 0 | CR137: 0 | CS137: 0 | CT137: 2 | CU137: 0 | CV137: 1 | CW137: 1 | CX137: 0 | CY137: 0 | CZ137: 3 | DA137: 1 | DB137: 0 | DC137: 0 | DD137: 0 | DE137: 0 | DF137: 0 | DG137: 0 | DH137: 0 | DI137: 0 | DJ137: 0 | DK137: 0 | DL137: 0 | DM137: 0 | DN137: 0 | DO137: 0 | DP137: 0 | DQ137: 0 | DR137: 0 | DS137: 0 | DT137: 0 | DU137: 0 | DV137: 0 | DW137: 0 | DX137: 0 | DY137: 0 | DZ137: 0 | EA137: 0 | EB137: 0 | EC137: 0 | ED137: 0 | EE137: 0 | EF137: 0 | EG137: 0 | EH137: 0 | EI137: 0 | EJ137: 0 | EK137: 0 | EL137: 0 | EM137: 0 | EN137: 0 | EO137: 0 | EP137: 0 | EQ137: 0 | ER137: 3 | ES137: 3 | ET137: 0 | EU137: 0 | EV137: 3 | EW137: 3 | EX137: 0 | EY137: 0 | EZ137: 0 | FA137: 0 | FB137: 0 | FC137: 0 | FD137: 0 | FE137: 0 | FF137: 0 | FG137: 0 | FH137: 0 | FI137: 0 | FJ137: 0 | FK137: 0 | FL137: 0 | FM137: 0 | FN137: 0 | FO137: 0 | FP137: 0 | FQ137: 0 | FR137: 0 | FS137: 0 | FT137: 0 | FU137: 0 | FV137: 0 | FW137: 0 | FX137: 0 | FY137: 0 | FZ137: 0 | GA137: 0 | GB137: 0 | GC137: 0 | GD137: 0 | GE137: 0 | GF137: 0 | GG137: 0 | GH137: 0 | GI137: 0 | GJ137: 0 | GK137: 1 | GL137: 0 | GM137: 0 | GN137: 0 | GO137: 1 | GP137: 0 | GQ137: 0 | GR137: 3 | GS137: 3 | GT137: 0 | GU137: 0 | GV137: 3 | GW137: 3 | GX137: 0 | GY137: 0 | GZ137: 0 | HA137: 0 | HB137: 0 | HC137: 0 | HD137: 0 | HE137: 0 | HF137: 2 | HG137: 2 | HH137: 1 | HI137: 8 | HJ137: 6 | HK137: 6 | HL137: 7 | HM137: 7 | HN137: 1 | HO137: 1 | HP137: 2 | HQ137: 2 | HR137: 2 | HS137: 2 | HT137: 2 | HU137: 2 | HV137: 2 | HW137: 2 | HX137: 0 | HY137: 0 | HZ137: 0 | IA137: 0 | IB137: 0 | IC137: 0 | ID137: 0 | IE137: 0 | IF137: 0 | IG137: 0 | IH137: 0 | II137: 0 | IJ137: 0 | IK137: 0 | IL137: 0 | IM137: 0 | IN137: 0 | IO137: 11 | IP137: 9 | IQ137: 0 | IR137: 0 | IS137: 3 | IT137: 0 | IU137: 0 | IV137: 0
A138: 4 | B138: 1 | C138: 3 | D138: 3 | E138: 0 | F138: 7 | G138: 0 | H138: 15 | I138: 0 | J138: 1 | K138: 0 | L138: 27 | M138: 3 | N138: 1 | O138: 0 | P138: 1 | Q138: 0 | R138: 5 | S138: 0 | T138: 1 | U138: 0 | V138: 0 | W138: 0 | X138: 8 | Y138: 0 | Z138: 0 | AA138: 0 | AB138: 0 | AC138: 0 | AD138: 1 | AE138: 0 | AF138: 1 | AG138: 0 | AH138: 0 | AI138: 0 | AJ138: 2 | AK138: 0 | AL138: 2 | AM138: 0 | AN138: 1 | AO138: 1 | AP138: 0 | AQ138: 0 | AR138: 1 | AS138: 0 | AT138: 0 | AU138: 0 | AV138: 0 | AW138: 0 | AX138: 2 | AY138: 1 | AZ138: 0 | BA138: 0 | BB138: 0 | BC138: 0 | BD138: 0 | BE138: 0 | BF138: 0 | BG138: 0 | BH138: 0 | BI138: 0 | BJ138: 0 | BK138: 0 | BL138: 0 | BM138: 0 | BN138: 0 | BO138: 0 | BP138: 0 | BQ138: 0 | BR138: 0 | BS138: 0 | BT138: 0 | BU138: 0 | BV138: 0 | BW138: 0 | BX138: 1 | BY138: 0 | BZ138: 0 | CA138: 0 | CB138: 1 | CC138: 0 | CD138: 0 | CE138: 0 | CF138: 0 | CG138: 2 | CH138: 1 | CI138: 2 | CJ138: 0 | CK138: 1 | CL138: 2 | CM138: 2 | CN138: 3 | CO138: 7 | CP138: 0 | CQ138: 0 | CR138: 0 | CS138: 0 | CT138: 1 | CU138: 2 | CV138: 0 | CW138: 0 | CX138: 1 | CY138: 0 | CZ138: 2 | DA138: 2 | DB138: 0 | DC138: 0 | DD138: 0 | DE138: 0 | DF138: 0 | DG138: 0 | DH138: 0 | DI138: 0 | DJ138: 0 | DK138: 0 | DL138: 0 | DM138: 0 | DN138: 0 | DO138: 0 | DP138: 0 | DQ138: 0 | DR138: 1 | DS138: 1 | DT138: 0 | DU138: 3 | DV138: 0 | DW138: 0 | DX138: 1 | DY138: 4 | DZ138: 0 | EA138: 0 | EB138: 0 | EC138: 0 | ED138: 0 | EE138: 0 | EF138: 0 | EG138: 0 | EH138: 0 | EI138: 0 | EJ138: 0 | EK138: 0 | EL138: 0 | EM138: 0 | EN138: 0 | EO138: 0 | EP138: 0 | EQ138: 0 | ER138: 0 | ES138: 0 | ET138: 1 | EU138: 0 | EV138: 1 | EW138: 0 | EX138: 0 | EY138: 0 | EZ138: 0 | FA138: 0 | FB138: 0 | FC138: 0 | FD138: 0 | FE138: 0 | FF138: 0 | FG138: 0 | FH138: 0 | FI138: 0 | FJ138: 0 | FK138: 0 | FL138: 0 | FM138: 0 | FN138: 0 | FO138: 0 | FP138: 0 | FQ138: 0 | FR138: 0 | FS138: 0 | FT138: 0 | FU138: 0 | FV138: 0 | FW138: 0 | FX138: 0 | FY138: 0 | FZ138: 0 | GA138: 0 | GB138: 0 | GC138: 0 | GD138: 0 | GE138: 0 | GF138: 0 | GG138: 0 | GH138: 0 | GI138: 0 | GJ138: 0 | GK138: 0 | GL138: 0 | GM138: 0 | GN138: 0 | GO138: 0 | GP138: 0 | GQ138: 0 | GR138: 0 | GS138: 0 | GT138: 0 | GU138: 0 | GV138: 0 | GW138: 0 | GX138: 0 | GY138: 0 | GZ138: 0 | HA138: 1 | HB138: 0 | HC138: 0 | HD138: 0 | HE138: 1 | HF138: 0 | HG138: 0 | HH138: 0 | HI138: 0 | HJ138: 0 | HK138: 0 | HL138: 0 | HM138: 0 | HN138: 7 | HO138: 0 | HP138: 2 | HQ138: 2 | HR138: 2 | HS138: 0 | HT138: 0 | HU138: 0 | HV138: 0 | HW138: 0 | HX138: 0 | HY138: 0 | HZ138: 0 | IA138: 0 | IB138: 0 | IC138: 0 | ID138: 0 | IE138: 0 | IF138: 0 | IG138: 0 | IH138: 0 | II138: 0 | IJ138: 0 | IK138: 0 | IL138: 0 | IM138: 0 | IN138: 0 | IO138: 17 | IP138: 9 | IQ138: 3 | IR138: 0 | IS138: 4 | IT138: 0 | IU138: 0 | IV138: 0
A139: 5 | B139: 1 | C139: 2 | D139: 4 | E139: 1 | F139: 10 | G139: 0 | H139: 12 | I139: 0 | J139: 1 | K139: 0 | L139: 28 | M139: 3 | N139: 0 | O139: 2 | P139: 0 | Q139: 0 | R139: 0 | S139: 0 | T139: 4 | U139: 0 | V139: 0 | W139: 0 | X139: 4 | Y139: 2 | Z139: 0 | AA139: 0 | AB139: 0 | AC139: 0 | AD139: 0 | AE139: 0 | AF139: 0 | AG139: 0 | AH139: 0 | AI139: 0 | AJ139: 0 | AK139: 0 | AL139: 1 | AM139: 0 | AN139: 2 | AO139: 1 | AP139: 0 | AQ139: 0 | AR139: 1 | AS139: 0 | AT139: 3 | AU139: 0 | AV139: 1 | AW139: 0 | AX139: 7 | AY139: 1 | AZ139: 1 | BA139: 0 | BB139: 0 | BC139: 0 | BD139: 0 | BE139: 0 | BF139: 0 | BG139: 0 | BH139: 0 | BI139: 0 | BJ139: 1 | BK139: 0 | BL139: 1 | BM139: 1 | BN139: 0 | BO139: 0 | BP139: 0 | BQ139: 0 | BR139: 0 | BS139: 0 | BT139: 0 | BU139: 0 | BV139: 1 | BW139: 1 | BX139: 3 | BY139: 0 | BZ139: 0 | CA139: 0 | CB139: 3 | CC139: 0 | CD139: 0 | CE139: 0 | CF139: 0 | CG139: 0 | CH139: 0 | CI139: 0 | CJ139: 1 | CK139: 1 | CL139: 1 | CM139: 0 | CN139: 2 | CO139: 1 | CP139: 0 | CQ139: 0 | CR139: 0 | CS139: 0 | CT139: 0 | CU139: 0 | CV139: 3 | CW139: 0 | CX139: 1 | CY139: 0 | CZ139: 4 | DA139: 0 | DB139: 0 | DC139: 0 | DD139: 0 | DE139: 0 | DF139: 0 | DG139: 0 | DH139: 0 | DI139: 0 | DJ139: 0 | DK139: 0 | DL139: 0 | DM139: 0 | DN139: 0 | DO139: 0 | DP139: 0 | DQ139: 0 | DR139: 0 | DS139: 1 | DT139: 0 | DU139: 0 | DV139: 0 | DW139: 1 | DX139: 0 | DY139: 2 | DZ139: 0 | EA139: 0 | EB139: 0 | EC139: 0 | ED139: 0 | EE139: 0 | EF139: 0 | EG139: 0 | EH139: 0 | EI139: 0 | EJ139: 0 | EK139: 0 | EL139: 0 | EM139: 0 | EN139: 0 | EO139: 0 | EP139: 0 | EQ139: 0 | ER139: 0 | ES139: 0 | ET139: 0 | EU139: 0 | EV139: 0 | EW139: 0 | EX139: 0 | EY139: 0 | EZ139: 0 | FA139: 0 | FB139: 0 | FC139: 0 | FD139: 0 | FE139: 0 | FF139: 0 | FG139: 0 | FH139: 0 | FI139: 0 | FJ139: 0 | FK139: 0 | FL139: 0 | FM139: 0 | FN139: 0 | FO139: 0 | FP139: 0 | FQ139: 0 | FR139: 0 | FS139: 0 | FT139: 0 | FU139: 0 | FV139: 0 | FW139: 0 | FX139: 0 | FY139: 0 | FZ139: 0 | GA139: 0 | GB139: 0 | GC139: 0 | GD139: 0 | GE139: 0 | GF139: 0 | GG139: 0 | GH139: 0 | GI139: 0 | GJ139: 1 | GK139: 0 | GL139: 0 | GM139: 0 | GN139: 1 | GO139: 0 | GP139: 0 | GQ139: 0 | GR139: 0 | GS139: 0 | GT139: 0 | GU139: 0 | GV139: 0 | GW139: 0 | GX139: 0 | GY139: 1 | GZ139: 0 | HA139: 0 | HB139: 0 | HC139: 0 | HD139: 0 | HE139: 1 | HF139: 0 | HG139: 0 | HH139: 0 | HI139: 0 | HJ139: 0 | HK139: 0 | HL139: 0 | HM139: 0 | HN139: 1 | HO139: 1 | HP139: 5 | HQ139: 2 | HR139: 2 | HS139: 3 | HT139: 3 | HU139: 1 | HV139: 1 | HW139: 1 | HX139: 3 | HY139: 3 | HZ139: 3 | IA139: 3 | IB139: 3 | IC139: 0 | ID139: 0 | IE139: 0 | IF139: 0 | IG139: 0 | IH139: 0 | II139: 0 | IJ139: 0 | IK139: 0 | IL139: 0 | IM139: 0 | IN139: 6 | IO139: 16 | IP139: 11 | IQ139: 1 | IR139: 0 | IS139: 6 | IT139: 0 | IU139: 0 | IV139: 0
A140: 6 | B140: 0 | C140: 1 | D140: 0 | E140: 1 | F140: 2 | G140: 0 | H140: 13 | I140: 0 | J140: 2 | K140: 0 | L140: 17 | M140: 2 | N140: 1 | O140: 0 | P140: 0 | Q140: 0 | R140: 3 | S140: 0 | T140: 3 | U140: 0 | V140: 0 | W140: 0 | X140: 7 | Y140: 0 | Z140: 0 | AA140: 0 | AB140: 0 | AC140: 0 | AD140: 1 | AE140: 0 | AF140: 3 | AG140: 0 | AH140: 0 | AI140: 0 | AJ140: 4 | AK140: 0 | AL140: 0 | AM140: 0 | AN140: 0 | AO140: 0 | AP140: 1 | AQ140: 0 | AR140: 1 | AS140: 0 | AT140: 0 | AU140: 0 | AV140: 0 | AW140: 0 | AX140: 2 | AY140: 0 | AZ140: 0 | BA140: 0 | BB140: 0 | BC140: 0 | BD140: 0 | BE140: 0 | BF140: 0 | BG140: 0 | BH140: 0 | BI140: 0 | BJ140: 0 | BK140: 0 | BL140: 0 | BM140: 0 | BN140: 0 | BO140: 0 | BP140: 0 | BQ140: 0 | BR140: 0 | BS140: 0 | BT140: 0 | BU140: 0 | BV140: 0 | BW140: 0 | BX140: 0 | BY140: 2 | BZ140: 1 | CA140: 0 | CB140: 1 | CC140: 2 | CD140: 0 | CE140: 0 | CF140: 1 | CG140: 0 | CH140: 3 | CI140: 0 | CJ140: 2 | CK140: 1 | CL140: 1 | CM140: 0 | CN140: 7 | CO140: 1 | CP140: 0 | CQ140: 0 | CR140: 1 | CS140: 0 | CT140: 0 | CU140: 0 | CV140: 0 | CW140: 2 | CX140: 0 | CY140: 0 | CZ140: 1 | DA140: 2 | DB140: 0 | DC140: 0 | DD140: 0 | DE140: 0 | DF140: 0 | DG140: 0 | DH140: 0 | DI140: 0 | DJ140: 0 | DK140: 0 | DL140: 0 | DM140: 0 | DN140: 0 | DO140: 0 | DP140: 0 | DQ140: 0 | DR140: 0 | DS140: 0 | DT140: 0 | DU140: 0 | DV140: 0 | DW140: 0 | DX140: 0 | DY140: 0 | DZ140: 0 | EA140: 0 | EB140: 0 | EC140: 0 | ED140: 0 | EE140: 0 | EF140: 0 | EG140: 0 | EH140: 0 | EI140: 0 | EJ140: 0 | EK140: 0 | EL140: 0 | EM140: 0 | EN140: 0 | EO140: 0 | EP140: 0 | EQ140: 0 | ER140: 1 | ES140: 0 | ET140: 0 | EU140: 0 | EV140: 1 | EW140: 0 | EX140: 0 | EY140: 0 | EZ140: 0 | FA140: 0 | FB140: 0 | FC140: 0 | FD140: 0 | FE140: 0 | FF140: 0 | FG140: 0 | FH140: 0 | FI140: 0 | FJ140: 0 | FK140: 0 | FL140: 0 | FM140: 0 | FN140: 0 | FO140: 0 | FP140: 0 | FQ140: 0 | FR140: 0 | FS140: 0 | FT140: 0 | FU140: 0 | FV140: 0 | FW140: 0 | FX140: 0 | FY140: 0 | FZ140: 0 | GA140: 0 | GB140: 0 | GC140: 0 | GD140: 0 | GE140: 0 | GF140: 0 | GG140: 0 | GH140: 0 | GI140: 0 | GJ140: 0 | GK140: 0 | GL140: 0 | GM140: 0 | GN140: 0 | GO140: 0 | GP140: 0 | GQ140: 0 | GR140: 1 | GS140: 0 | GT140: 0 | GU140: 0 | GV140: 1 | GW140: 0 | GX140: 0 | GY140: 0 | GZ140: 1 | HA140: 0 | HB140: 0 | HC140: 0 | HD140: 1 | HE140: 0 | HF140: 0 | HG140: 0 | HH140: 0 | HI140: 0 | HJ140: 0 | HK140: 0 | HL140: 0 | HM140: 0 | HN140: 0 | HO140: 0 | HP140: 0 | HQ140: 0 | HR140: 0 | HS140: 0 | HT140: 0 | HU140: 0 | HV140: 0 | HW140: 0 | HX140: 3 | HY140: 2 | HZ140: 0 | IA140: 0 | IB140: 0 | IC140: 0 | ID140: 0 | IE140: 0 | IF140: 0 | IG140: 0 | IH140: 0 | II140: 0 | IJ140: 0 | IK140: 0 | IL140: 0 | IM140: 0 | IN140: 3 | IO140: 14 | IP140: 8 | IQ140: 2 | IR140: 0 | IS140: 1 | IT140: 0 | IU140: 0 | IV140: 0
A141: 7 | B141: 0 | C141: 0 | D141: 4 | E141: 0 | F141: 9 | G141: 0 | H141: 16 | I141: 0 | J141: 1 | K141: 0 | L141: 30 | M141: 0 | N141: 0 | O141: 0 | P141: 1 | Q141: 0 | R141: 0 | S141: 0 | T141: 5 | U141: 0 | V141: 0 | W141: 0 | X141: 6 | Y141: 0 | Z141: 0 | AA141: 0 | AB141: 0 | AC141: 0 | AD141: 1 | AE141: 0 | AF141: 7 | AG141: 0 | AH141: 0 | AI141: 0 | AJ141: 8 | AK141: 0 | AL141: 2 | AM141: 0 | AN141: 0 | AO141: 1 | AP141: 0 | AQ141: 0 | AR141: 1 | AS141: 0 | AT141: 4 | AU141: 0 | AV141: 0 | AW141: 0 | AX141: 5 | AY141: 1 | AZ141: 0 | BA141: 0 | BB141: 3 | BC141: 0 | BD141: 0 | BE141: 0 | BF141: 0 | BG141: 0 | BH141: 0 | BI141: 0 | BJ141: 3 | BK141: 0 | BL141: 0 | BM141: 0 | BN141: 0 | BO141: 0 | BP141: 0 | BQ141: 0 | BR141: 0 | BS141: 0 | BT141: 0 | BU141: 0 | BV141: 0 | BW141: 0 | BX141: 0 | BY141: 1 | BZ141: 0 | CA141: 1 | CB141: 0 | CC141: 2 | CD141: 0 | CE141: 0 | CF141: 4 | CG141: 1 | CH141: 1 | CI141: 0 | CJ141: 3 | CK141: 1 | CL141: 0 | CM141: 0 | CN141: 8 | CO141: 2 | CP141: 0 | CQ141: 0 | CR141: 0 | CS141: 0 | CT141: 1 | CU141: 0 | CV141: 2 | CW141: 0 | CX141: 0 | CY141: 0 | CZ141: 3 | DA141: 0 | DB141: 0 | DC141: 0 | DD141: 0 | DE141: 0 | DF141: 0 | DG141: 0 | DH141: 0 | DI141: 0 | DJ141: 0 | DK141: 0 | DL141: 0 | DM141: 0 | DN141: 0 | DO141: 0 | DP141: 0 | DQ141: 0 | DR141: 0 | DS141: 0 | DT141: 1 | DU141: 0 | DV141: 0 | DW141: 0 | DX141: 1 | DY141: 0 | DZ141: 0 | EA141: 0 | EB141: 0 | EC141: 0 | ED141: 0 | EE141: 0 | EF141: 0 | EG141: 1 | EH141: 0 | EI141: 0 | EJ141: 0 | EK141: 1 | EL141: 0 | EM141: 0 | EN141: 2 | EO141: 0 | EP141: 0 | EQ141: 0 | ER141: 0 | ES141: 0 | ET141: 0 | EU141: 0 | EV141: 2 | EW141: 0 | EX141: 0 | EY141: 0 | EZ141: 0 | FA141: 0 | FB141: 0 | FC141: 0 | FD141: 0 | FE141: 0 | FF141: 0 | FG141: 0 | FH141: 0 | FI141: 0 | FJ141: 0 | FK141: 0 | FL141: 0 | FM141: 0 | FN141: 0 | FO141: 0 | FP141: 0 | FQ141: 0 | FR141: 0 | FS141: 0 | FT141: 0 | FU141: 0 | FV141: 0 | FW141: 0 | FX141: 0 | FY141: 0 | FZ141: 0 | GA141: 0 | GB141: 0 | GC141: 0 | GD141: 0 | GE141: 0 | GF141: 0 | GG141: 0 | GH141: 0 | GI141: 1 | GJ141: 0 | GK141: 0 | GL141: 0 | GM141: 0 | GN141: 0 | GO141: 1 | GP141: 0 | GQ141: 0 | GR141: 0 | GS141: 0 | GT141: 0 | GU141: 0 | GV141: 0 | GW141: 0 | GX141: 0 | GY141: 0 | GZ141: 0 | HA141: 0 | HB141: 0 | HC141: 0 | HD141: 0 | HE141: 0 | HF141: 0 | HG141: 0 | HH141: 0 | HI141: 0 | HJ141: 0 | HK141: 0 | HL141: 0 | HM141: 0 | HN141: 0 | HO141: 0 | HP141: 10 | HQ141: 6 | HR141: 2 | HS141: 0 | HT141: 0 | HU141: 0 | HV141: 0 | HW141: 0 | HX141: 0 | HY141: 0 | HZ141: 0 | IA141: 0 | IB141: 0 | IC141: 0 | ID141: 0 | IE141: 0 | IF141: 0 | IG141: 0 | IH141: 0 | II141: 0 | IJ141: 0 | IK141: 0 | IL141: 0 | IM141: 0 | IN141: 6 | IO141: 17 | IP141: 16 | IQ141: 0 | IR141: 0 | IS141: 9 | IT141: 0 | IU141: 0 | IV141: 0
A142: 8 | B142: 0 | C142: 1 | D142: 3 | E142: 0 | F142: 6 | G142: 0 | H142: 20 | I142: 1 | J142: 1 | K142: 0 | L142: 30 | M142: 2 | N142: 0 | O142: 0 | P142: 1 | Q142: 0 | R142: 0 | S142: 0 | T142: 4 | U142: 0 | V142: 0 | W142: 0 | X142: 5 | Y142: 0 | Z142: 0 | AA142: 0 | AB142: 1 | AC142: 0 | AD142: 0 | AE142: 1 | AF142: 3 | AG142: 0 | AH142: 0 | AI142: 0 | AJ142: 4 | AK142: 1 | AL142: 8 | AM142: 0 | AN142: 1 | AO142: 0 | AP142: 0 | AQ142: 0 | AR142: 0 | AS142: 0 | AT142: 1 | AU142: 0 | AV142: 0 | AW142: 0 | AX142: 2 | AY142: 0 | AZ142: 1 | BA142: 0 | BB142: 0 | BC142: 0 | BD142: 0 | BE142: 0 | BF142: 0 | BG142: 0 | BH142: 0 | BI142: 0 | BJ142: 1 | BK142: 0 | BL142: 1 | BM142: 4 | BN142: 0 | BO142: 0 | BP142: 0 | BQ142: 0 | BR142: 0 | BS142: 0 | BT142: 0 | BU142: 0 | BV142: 1 | BW142: 4 | BX142: 1 | BY142: 4 | BZ142: 0 | CA142: 1 | CB142: 1 | CC142: 5 | CD142: 0 | CE142: 0 | CF142: 1 | CG142: 1 | CH142: 0 | CI142: 0 | CJ142: 1 | CK142: 0 | CL142: 0 | CM142: 0 | CN142: 2 | CO142: 1 | CP142: 2 | CQ142: 0 | CR142: 0 | CS142: 0 | CT142: 0 | CU142: 0 | CV142: 1 | CW142: 0 | CX142: 0 | CY142: 0 | CZ142: 3 | DA142: 0 | DB142: 0 | DC142: 0 | DD142: 0 | DE142: 0 | DF142: 0 | DG142: 0 | DH142: 0 | DI142: 0 | DJ142: 0 | DK142: 0 | DL142: 0 | DM142: 0 | DN142: 0 | DO142: 0 | DP142: 0 | DQ142: 0 | DR142: 0 | DS142: 0 | DT142: 0 | DU142: 2 | DV142: 0 | DW142: 0 | DX142: 0 | DY142: 2 | DZ142: 0 | EA142: 0 | EB142: 0 | EC142: 0 | ED142: 0 | EE142: 0 | EF142: 1 | EG142: 1 | EH142: 0 | EI142: 1 | EJ142: 1 | EK142: 2 | EL142: 0 | EM142: 0 | EN142: 0 | EO142: 0 | EP142: 0 | EQ142: 0 | ER142: 1 | ES142: 0 | ET142: 0 | EU142: 0 | EV142: 1 | EW142: 0 | EX142: 0 | EY142: 0 | EZ142: 0 | FA142: 0 | FB142: 0 | FC142: 0 | FD142: 0 | FE142: 0 | FF142: 0 | FG142: 0 | FH142: 0 | FI142: 0 | FJ142: 0 | FK142: 0 | FL142: 0 | FM142: 0 | FN142: 0 | FO142: 0 | FP142: 0 | FQ142: 0 | FR142: 0 | FS142: 0 | FT142: 0 | FU142: 0 | FV142: 0 | FW142: 0 | FX142: 0 | FY142: 0 | FZ142: 0 | GA142: 0 | GB142: 0 | GC142: 0 | GD142: 0 | GE142: 0 | GF142: 0 | GG142: 0 | GH142: 0 | GI142: 0 | GJ142: 0 | GK142: 0 | GL142: 0 | GM142: 0 | GN142: 0 | GO142: 0 | GP142: 0 | GQ142: 0 | GR142: 0 | GS142: 0 | GT142: 0 | GU142: 0 | GV142: 0 | GW142: 0 | GX142: 0 | GY142: 0 | GZ142: 0 | HA142: 0 | HB142: 0 | HC142: 0 | HD142: 0 | HE142: 0 | HF142: 0 | HG142: 0 | HH142: 1 | HI142: 8 | HJ142: 0 | HK142: 0 | HL142: 0 | HM142: 0 | HN142: 0 | HO142: 0 | HP142: 3 | HQ142: 0 | HR142: 0 | HS142: 0 | HT142: 0 | HU142: 0 | HV142: 0 | HW142: 0 | HX142: 0 | HY142: 2 | HZ142: 0 | IA142: 1 | IB142: 0 | IC142: 0 | ID142: 0 | IE142: 0 | IF142: 0 | IG142: 0 | IH142: 0 | II142: 0 | IJ142: 0 | IK142: 0 | IL142: 0 | IM142: 0 | IN142: 8 | IO142: 19 | IP142: 17 | IQ142: 0 | IR142: 0 | IS142: 11 | IT142: 0 | IU142: 0 | IV142: 0
A143: 9 | B143: 0 | C143: 1 | D143: 5 | E143: 2 | F143: 12 | G143: 0 | H143: 25 | I143: 0 | J143: 1 | K143: 0 | L143: 43 | M143: 3 | N143: 1 | O143: 0 | P143: 1 | Q143: 0 | R143: 2 | S143: 0 | T143: 1 | U143: 0 | V143: 0 | W143: 0 | X143: 5 | Y143: 0 | Z143: 0 | AA143: 0 | AB143: 0 | AC143: 0 | AD143: 1 | AE143: 0 | AF143: 0 | AG143: 0 | AH143: 0 | AI143: 0 | AJ143: 1 | AK143: 0 | AL143: 8 | AM143: 0 | AN143: 2 | AO143: 1 | AP143: 1 | AQ143: 0 | AR143: 3 | AS143: 0 | AT143: 5 | AU143: 1 | AV143: 1 | AW143: 0 | AX143: 12 | AY143: 2 | AZ143: 3 | BA143: 0 | BB143: 2 | BC143: 0 | BD143: 1 | BE143: 0 | BF143: 0 | BG143: 0 | BH143: 1 | BI143: 0 | BJ143: 7 | BK143: 0 | BL143: 1 | BM143: 0 | BN143: 0 | BO143: 0 | BP143: 0 | BQ143: 0 | BR143: 0 | BS143: 0 | BT143: 0 | BU143: 0 | BV143: 1 | BW143: 0 | BX143: 4 | BY143: 9 | BZ143: 0 | CA143: 2 | CB143: 4 | CC143: 11 | CD143: 0 | CE143: 0 | CF143: 1 | CG143: 0 | CH143: 5 | CI143: 1 | CJ143: 8 | CK143: 1 | CL143: 0 | CM143: 0 | CN143: 14 | CO143: 2 | CP143: 0 | CQ143: 0 | CR143: 1 | CS143: 0 | CT143: 4 | CU143: 0 | CV143: 5 | CW143: 3 | CX143: 0 | CY143: 0 | CZ143: 10 | DA143: 3 | DB143: 0 | DC143: 0 | DD143: 0 | DE143: 0 | DF143: 0 | DG143: 0 | DH143: 0 | DI143: 0 | DJ143: 0 | DK143: 0 | DL143: 0 | DM143: 0 | DN143: 0 | DO143: 0 | DP143: 0 | DQ143: 1 | DR143: 1 | DS143: 0 | DT143: 0 | DU143: 3 | DV143: 0 | DW143: 0 | DX143: 1 | DY143: 4 | DZ143: 0 | EA143: 0 | EB143: 0 | EC143: 0 | ED143: 0 | EE143: 0 | EF143: 0 | EG143: 1 | EH143: 0 | EI143: 1 | EJ143: 0 | EK143: 2 | EL143: 0 | EM143: 0 | EN143: 0 | EO143: 0 | EP143: 2 | EQ143: 0 | ER143: 1 | ES143: 0 | ET143: 0 | EU143: 0 | EV143: 3 | EW143: 0 | EX143: 0 | EY143: 0 | EZ143: 0 | FA143: 0 | FB143: 0 | FC143: 0 | FD143: 0 | FE143: 0 | FF143: 0 | FG143: 0 | FH143: 0 | FI143: 0 | FJ143: 0 | FK143: 0 | FL143: 0 | FM143: 0 | FN143: 0 | FO143: 0 | FP143: 0 | FQ143: 0 | FR143: 0 | FS143: 0 | FT143: 0 | FU143: 0 | FV143: 1 | FW143: 1 | FX143: 0 | FY143: 0 | FZ143: 0 | GA143: 0 | GB143: 0 | GC143: 0 | GD143: 0 | GE143: 0 | GF143: 1 | GG143: 1 | GH143: 0 | GI143: 0 | GJ143: 0 | GK143: 0 | GL143: 0 | GM143: 0 | GN143: 0 | GO143: 0 | GP143: 0 | GQ143: 0 | GR143: 0 | GS143: 0 | GT143: 0 | GU143: 0 | GV143: 0 | GW143: 0 | GX143: 0 | GY143: 0 | GZ143: 0 | HA143: 0 | HB143: 0 | HC143: 0 | HD143: 0 | HE143: 0 | HF143: 8 | HG143: 0 | HH143: 1 | HI143: 8 | HJ143: 5 | HK143: 0 | HL143: 6 | HM143: 0 | HN143: 8 | HO143: 0 | HP143: 14 | HQ143: 2 | HR143: 12 | HS143: 0 | HT143: 0 | HU143: 5 | HV143: 0 | HW143: 0 | HX143: 11 | HY143: 5 | HZ143: 0 | IA143: 0 | IB143: 0 | IC143: 0 | ID143: 0 | IE143: 0 | IF143: 6 | IG143: 0 | IH143: 0 | II143: 0 | IJ143: 0 | IK143: 0 | IL143: 0 | IM143: 0 | IN143: 35 | IO143: 41 | IP143: 50 | IQ143: 8 | IR143: 0 | IS143: 15 | IT143: 0 | IU143: 0 | IV143: 0
A144: 10 | B144: 1 | C144: 1 | D144: 2 | E144: 2 | F144: 9 | G144: 0 | H144: 14 | I144: 0 | J144: 0 | K144: 0 | L144: 26 | M144: 3 | N144: 0 | O144: 0 | P144: 0 | Q144: 0 | R144: 0 | S144: 0 | T144: 3 | U144: 0 | V144: 0 | W144: 0 | X144: 3 | Y144: 0 | Z144: 0 | AA144: 0 | AB144: 0 | AC144: 0 | AD144: 0 | AE144: 0 | AF144: 0 | AG144: 0 | AH144: 0 | AI144: 0 | AJ144: 0 | AK144: 0 | AL144: 2 | AM144: 0 | AN144: 3 | AO144: 4 | AP144: 0 | AQ144: 3 | AR144: 1 | AS144: 0 | AT144: 3 | AU144: 1 | AV144: 0 | AW144: 0 | AX144: 7 | AY144: 8 | AZ144: 1 | BA144: 0 | BB144: 1 | BC144: 0 | BD144: 0 | BE144: 0 | BF144: 2 | BG144: 0 | BH144: 0 | BI144: 0 | BJ144: 4 | BK144: 0 | BL144: 1 | BM144: 3 | BN144: 0 | BO144: 0 | BP144: 0 | BQ144: 0 | BR144: 0 | BS144: 0 | BT144: 0 | BU144: 0 | BV144: 1 | BW144: 3 | BX144: 4 | BY144: 11 | BZ144: 0 | CA144: 2 | CB144: 4 | CC144: 13 | CD144: 0 | CE144: 0 | CF144: 1 | CG144: 0 | CH144: 1 | CI144: 1 | CJ144: 6 | CK144: 1 | CL144: 1 | CM144: 1 | CN144: 9 | CO144: 3 | CP144: 0 | CQ144: 0 | CR144: 0 | CS144: 0 | CT144: 5 | CU144: 1 | CV144: 2 | CW144: 0 | CX144: 2 | CY144: 0 | CZ144: 9 | DA144: 1 | DB144: 0 | DC144: 0 | DD144: 0 | DE144: 0 | DF144: 0 | DG144: 0 | DH144: 0 | DI144: 0 | DJ144: 0 | DK144: 0 | DL144: 0 | DM144: 0 | DN144: 0 | DO144: 0 | DP144: 0 | DQ144: 0 | DR144: 0 | DS144: 1 | DT144: 0 | DU144: 3 | DV144: 0 | DW144: 0 | DX144: 0 | DY144: 4 | DZ144: 0 | EA144: 0 | EB144: 0 | EC144: 0 | ED144: 0 | EE144: 0 | EF144: 0 | EG144: 0 | EH144: 0 | EI144: 0 | EJ144: 0 | EK144: 0 | EL144: 0 | EM144: 0 | EN144: 0 | EO144: 0 | EP144: 0 | EQ144: 1 | ER144: 2 | ES144: 0 | ET144: 0 | EU144: 0 | EV144: 2 | EW144: 1 | EX144: 0 | EY144: 0 | EZ144: 0 | FA144: 0 | FB144: 0 | FC144: 0 | FD144: 0 | FE144: 0 | FF144: 0 | FG144: 0 | FH144: 0 | FI144: 0 | FJ144: 0 | FK144: 0 | FL144: 0 | FM144: 0 | FN144: 0 | FO144: 0 | FP144: 0 | FQ144: 0 | FR144: 0 | FS144: 0 | FT144: 0 | FU144: 0 | FV144: 0 | FW144: 0 | FX144: 0 | FY144: 0 | FZ144: 0 | GA144: 0 | GB144: 0 | GC144: 0 | GD144: 2 | GE144: 0 | GF144: 2 | GG144: 0 | GH144: 0 | GI144: 0 | GJ144: 1 | GK144: 0 | GL144: 0 | GM144: 0 | GN144: 1 | GO144: 0 | GP144: 0 | GQ144: 0 | GR144: 1 | GS144: 0 | GT144: 0 | GU144: 0 | GV144: 1 | GW144: 0 | GX144: 0 | GY144: 0 | GZ144: 0 | HA144: 0 | HB144: 0 | HC144: 0 | HD144: 0 | HE144: 0 | HF144: 7 | HG144: 0 | HH144: 1 | HI144: 8 | HJ144: 0 | HK144: 0 | HL144: 0 | HM144: 0 | HN144: 7 | HO144: 1 | HP144: 4 | HQ144: 2 | HR144: 1 | HS144: 0 | HT144: 0 | HU144: 0 | HV144: 0 | HW144: 0 | HX144: 8 | HY144: 8 | HZ144: 6 | IA144: 1 | IB144: 0 | IC144: 0 | ID144: 0 | IE144: 0 | IF144: 0 | IG144: 0 | IH144: 0 | II144: 0 | IJ144: 0 | IK144: 0 | IL144: 0 | IM144: 0 | IN144: 24 | IO144: 51 | IP144: 43 | IQ144: 2 | IR144: 0 | IS144: 25 | IT144: 0 | IU144: 0 | IV144: 0
A145: 11 | B145: 0 | C145: 0 | D145: 2 | E145: 0 | F145: 9 | G145: 0 | H145: 11 | I145: 0 | J145: 0 | K145: 0 | L145: 22 | M145: 0 | N145: 0 | O145: 1 | P145: 1 | Q145: 0 | R145: 5 | S145: 0 | T145: 4 | U145: 0 | V145: 0 | W145: 0 | X145: 10 | Y145: 1 | Z145: 0 | AA145: 0 | AB145: 0 | AC145: 0 | AD145: 0 | AE145: 0 | AF145: 0 | AG145: 0 | AH145: 0 | AI145: 0 | AJ145: 0 | AK145: 0 | AL145: 2 | AM145: 0 | AN145: 2 | AO145: 2 | AP145: 5 | AQ145: 4 | AR145: 3 | AS145: 0 | AT145: 3 | AU145: 0 | AV145: 0 | AW145: 0 | AX145: 13 | AY145: 6 | AZ145: 1 | BA145: 0 | BB145: 5 | BC145: 1 | BD145: 1 | BE145: 0 | BF145: 0 | BG145: 0 | BH145: 0 | BI145: 0 | BJ145: 7 | BK145: 1 | BL145: 0 | BM145: 2 | BN145: 0 | BO145: 0 | BP145: 0 | BQ145: 0 | BR145: 0 | BS145: 0 | BT145: 0 | BU145: 0 | BV145: 0 | BW145: 2 | BX145: 0 | BY145: 8 | BZ145: 2 | CA145: 2 | CB145: 2 | CC145: 10 | CD145: 0 | CE145: 0 | CF145: 4 | CG145: 2 | CH145: 3 | CI145: 2 | CJ145: 7 | CK145: 1 | CL145: 1 | CM145: 0 | CN145: 15 | CO145: 5 | CP145: 0 | CQ145: 0 | CR145: 0 | CS145: 0 | CT145: 3 | CU145: 3 | CV145: 2 | CW145: 1 | CX145: 1 | CY145: 0 | CZ145: 6 | DA145: 4 | DB145: 0 | DC145: 0 | DD145: 0 | DE145: 0 | DF145: 0 | DG145: 0 | DH145: 0 | DI145: 0 | DJ145: 0 | DK145: 0 | DL145: 0 | DM145: 0 | DN145: 0 | DO145: 0 | DP145: 0 | DQ145: 0 | DR145: 1 | DS145: 2 | DT145: 1 | DU145: 6 | DV145: 0 | DW145: 0 | DX145: 2 | DY145: 8 | DZ145: 0 | EA145: 0 | EB145: 0 | EC145: 0 | ED145: 0 | EE145: 0 | EF145: 3 | EG145: 3 | EH145: 0 | EI145: 0 | EJ145: 3 | EK145: 3 | EL145: 0 | EM145: 0 | EN145: 0 | EO145: 1 | EP145: 0 | EQ145: 0 | ER145: 0 | ES145: 1 | ET145: 0 | EU145: 0 | EV145: 0 | EW145: 2 | EX145: 0 | EY145: 0 | EZ145: 0 | FA145: 0 | FB145: 0 | FC145: 0 | FD145: 0 | FE145: 0 | FF145: 0 | FG145: 0 | FH145: 0 | FI145: 0 | FJ145: 0 | FK145: 0 | FL145: 0 | FM145: 0 | FN145: 0 | FO145: 0 | FP145: 0 | FQ145: 0 | FR145: 0 | FS145: 0 | FT145: 0 | FU145: 0 | FV145: 0 | FW145: 0 | FX145: 0 | FY145: 0 | FZ145: 0 | GA145: 0 | GB145: 1 | GC145: 0 | GD145: 0 | GE145: 0 | GF145: 1 | GG145: 0 | GH145: 0 | GI145: 0 | GJ145: 0 | GK145: 0 | GL145: 0 | GM145: 0 | GN145: 0 | GO145: 0 | GP145: 0 | GQ145: 0 | GR145: 0 | GS145: 1 | GT145: 0 | GU145: 0 | GV145: 0 | GW145: 1 | GX145: 0 | GY145: 0 | GZ145: 0 | HA145: 0 | HB145: 0 | HC145: 0 | HD145: 0 | HE145: 0 | HF145: 0 | HG145: 0 | HH145: 1 | HI145: 8 | HJ145: 0 | HK145: 0 | HL145: 0 | HM145: 0 | HN145: 0 | HO145: 0 | HP145: 0 | HQ145: 2 | HR145: 0 | HS145: 0 | HT145: 0 | HU145: 0 | HV145: 0 | HW145: 0 | HX145: 0 | HY145: 1 | HZ145: 1 | IA145: 2 | IB145: 0 | IC145: 0 | ID145: 0 | IE145: 0 | IF145: 0 | IG145: 0 | IH145: 0 | II145: 0 | IJ145: 0 | IK145: 0 | IL145: 0 | IM145: 0 | IN145: 23 | IO145: 52 | IP145: 61 | IQ145: 0 | IR145: 0 | IS145: 36 | IT145: 0 | IU145: 0 | IV145: 0
A146: Total general | B146: 6 | C146: 10 | D146: 32 | E146: 6 | F146: 88 | G146: 0 | H146: 165 | I146: 2 | J146: 11 | K146: 0 | L146: 302 | M146: 18 | N146: 3 | O146: 3 | P146: 9 | Q146: 0 | R146: 23 | S146: 0 | T146: 33 | U146: 0 | V146: 2 | W146: 0 | X146: 70 | Y146: 3 | Z146: 0 | AA146: 0 | AB146: 2 | AC146: 0 | AD146: 5 | AE146: 1 | AF146: 18 | AG146: 0 | AH146: 0 | AI146: 0 | AJ146: 25 | AK146: 1 | AL146: 31 | AM146: 1 | AN146: 14 | AO146: 13 | AP146: 9 | AQ146: 8 | AR146: 12 | AS146: 0 | AT146: 25 | AU146: 2 | AV146: 2 | AW146: 0 | AX146: 62 | AY146: 23 | AZ146: 7 | BA146: 0 | BB146: 13 | BC146: 1 | BD146: 2 | BE146: 0 | BF146: 2 | BG146: 0 | BH146: 1 | BI146: 0 | BJ146: 25 | BK146: 1 | BL146: 4 | BM146: 11 | BN146: 0 | BO146: 0 | BP146: 0 | BQ146: 0 | BR146: 0 | BS146: 0 | BT146: 0 | BU146: 0 | BV146: 4 | BW146: 11 | BX146: 15 | BY146: 40 | BZ146: 4 | CA146: 9 | CB146: 19 | CC146: 49 | CD146: 0 | CE146: 0 | CF146: 15 | CG146: 6 | CH146: 15 | CI146: 6 | CJ146: 36 | CK146: 7 | CL146: 7 | CM146: 5 | CN146: 73 | CO146: 24 | CP146: 2 | CQ146: 0 | CR146: 4 | CS146: 0 | CT146: 18 | CU146: 7 | CV146: 20 | CW146: 7 | CX146: 5 | CY146: 3 | CZ146: 49 | DA146: 17 | DB146: 0 | DC146: 0 | DD146: 0 | DE146: 0 | DF146: 0 | DG146: 0 | DH146: 0 | DI146: 0 | DJ146: 0 | DK146: 0 | DL146: 0 | DM146: 0 | DN146: 0 | DO146: 0 | DP146: 0 | DQ146: 1 | DR146: 3 | DS146: 6 | DT146: 2 | DU146: 18 | DV146: 0 | DW146: 1 | DX146: 5 | DY146: 26 | DZ146: 0 | EA146: 0 | EB146: 0 | EC146: 0 | ED146: 0 | EE146: 0 | EF146: 4 | EG146: 6 | EH146: 0 | EI146: 2 | EJ146: 4 | EK146: 8 | EL146: 0 | EM146: 0 | EN146: 2 | EO146: 1 | EP146: 2 | EQ146: 1 | ER146: 9 | ES146: 5 | ET146: 1 | EU146: 0 | EV146: 14 | EW146: 7 | EX146: 0 | EY146: 0 | EZ146: 0 | FA146: 0 | FB146: 0 | FC146: 0 | FD146: 0 | FE146: 0 | FF146: 0 | FG146: 0 | FH146: 0 | FI146: 0 | FJ146: 0 | FK146: 0 | FL146: 0 | FM146: 0 | FN146: 0 | FO146: 0 | FP146: 1 | FQ146: 0 | FR146: 0 | FS146: 0 | FT146: 1 | FU146: 0 | FV146: 1 | FW146: 1 | FX146: 0 | FY146: 0 | FZ146: 0 | GA146: 0 | GB146: 1 | GC146: 0 | GD146: 2 | GE146: 0 | GF146: 4 | GG146: 1 | GH146: 0 | GI146: 2 | GJ146: 4 | GK146: 3 | GL146: 0 | GM146: 0 | GN146: 4 | GO146: 5 | GP146: 0 | GQ146: 0 | GR146: 5 | GS146: 4 | GT146: 0 | GU146: 0 | GV146: 5 | GW146: 4 | GX146: 0 | GY146: 1 | GZ146: 1 | HA146: 2 | HB146: 0 | HC146: 0 | HD146: 1 | HE146: 3 | HF146: 17 | HG146: 2 | HH146: 7 | HI146: 56 | HJ146: 11 | HK146: 6 | HL146: 13 | HM146: 7 | HN146: 24 | HO146: 3 | HP146: 40 | HQ146: 18 | HR146: 21 | HS146: 5 | HT146: 5 | HU146: 8 | HV146: 3 | HW146: 3 | HX146: 25 | HY146: 21 | HZ146: 10 | IA146: 7 | IB146: 3 | IC146: 0 | ID146: 0 | IE146: 0 | IF146: 6 | IG146: 0 | IH146: 0 | II146: 0 | IJ146: 0 | IK146: 0 | IL146: 0 | IM146: 0 | IN146: 105 | IO146: 269 | IP146: 250 | IQ146: 23 | IR146: 22 | IS146: 110 | IT146: 0 | IU146: 0 | IV146: 0
A149: Salud Mental 6
A150: Anio | B150: 2024
A151: UE | B151: (Todas)
A152: Red | B152: LA CONVENCION
A153: MicroRed | B153: (Todas)
A154: EESS | B154: (Todas)
A155: Provincia | B155: (Todas)
A156: Distrito | B156: (Todas)
A158: Etiquetas de fila | B158: Participa_FC_PDisca_S1 | C158: Participa_FC_PDisca_S2 | D158: Participa_FC_PDisca_S3 | E158: Participa_FC_PDisca_S4 | F158: Participa_FC_PDisca_S5 | G158: Participa_FC_PDisca_S6 | H158: Participa_FC_PDisca_S7 | I158: Participa_FC_PDisca_S8 | J158: Inocuidad_Alimenta_S1 | K158: Inocuidad_Alimenta_S2 | L158: Inocuidad_Alimenta_S3 | M158: Inocuidad_Alimenta_S4 | N158: Inocuidad_Alimenta_S5 | O158: Inocuidad_Alimenta_S6 | P158: Inocuidad_Alimenta_S7 | Q158: Inocuidad_Alimenta_S8 | R158: Orienta_Familiar_S1 | S158: Orienta_Familiar_S2 | T158: Orienta_Familiar_S3 | U158: Orienta_Familiar_S4 | V158: Orienta_Familiar_S5 | W158: Orienta_Familiar_S6 | X158: Orienta_Familiar_S7 | Y158: Orienta_Familiar_S8 | Z158: Act_Terap_Cto_pte_S1 | AA158: Act_Terap_Cto_pte_S2 | AB158: Act_Terap_Cto_pte_S3 | AC158: Act_Terap_Cto_pte_S4 | AD158: Act_Terap_Cto_pte_S5 | AE158: Act_Terap_Cto_pte_S6 | AF158: Act_Terap_Cto_pte_S7 | AG158: Act_Terap_Cto_pte_S8 | AH158: Entrena_Autocuidado_S1 | AI158: Entrena_Autocuidado_S2 | AJ158: Entrena_Autocuidado_S3 | AK158: Entrena_Autocuidado_S4 | AL158: Entrena_Autocuidado_S5 | AM158: Entrena_Autocuidado_S6 | AN158: Entrena_Autocuidado_S7 | AO158: Entrena_Autocuidado_S8 | AP158: Entrena_Reintegra_CT_S1 | AQ158: Entrena_Reintegra_CT_S2 | AR158: Entrena_Reintegra_CT_S3 | AS158: Entrena_Reintegra_CT_S4 | AT158: Entrena_Reintegra_CT_S5 | AU158: Entrena_Reintegra_CT_S6 | AV158: Entrena_Reintegra_CT_S7 | AW158: Entrena_Reintegra_CT_S8 | AX158: Conseja_Act_Fisica_S1 | AY158: Conseja_Act_Fisica_S2 | AZ158: Conseja_Act_Fisica_S3 | BA158: Conseja_Act_Fisica_S4 | BB158: Conseja_Act_Fisica_S5 | BC158: Conseja_Act_Fisica_S6 | BD158: Conseja_Act_Fisica_S7 | BE158: Conseja_Act_Fisica_S8 | BF158: Viaje_FHabitual_AP_S1 | BG158: Viaje_FHabitual_AP_S2 | BH158: Viaje_FHabitual_AP_S3 | BI158: Viaje_FHabitual_AP_S4 | BJ158: Viaje_FHabitual_AP_S5 | BK158: Viaje_FHabitual_AP_S6 | BL158: Viaje_FHabitual_AP_S7 | BM158: Viaje_FHabitual_AP_S8 | BN158: Rehab_Psicosocial_1 | BO158: Rehab_Psicosocial_2 | BP158: Rehab_Psicosocial_3 | BQ158: Rehab_Psicosocial_4 | BR158: Rehab_Psicosocial_5 | BS158: Rehab_Psicosocial_6 | BT158: Rehab_Psicosocial_7 | BU158: Rehab_Psicosocial_8 | BV158: Rehab_Psicosocial_9 | BW158: Rehab_Psicosocial_10 | BX158: Rehab_Laboral_1 | BY158: Rehab_Laboral_2 | BZ158: Rehab_Laboral_3 | CA158: Rehab_Laboral_4 | CB158: Rehab_Laboral_5 | CC158: Rehab_Laboral_6 | CD158: Rehab_Laboral_7 | CE158: Rehab_Laboral_8 | CF158: Rehab_Laboral_9 | CG158: Rehab_Laboral_10 | CH158: Fortal_APsicosocial_R1 | CI158: Fortal_APsicosocial_R2 | CJ158: Fortal_APsicosocial_R3 | CK158: Fortal_APsicosocial_R4 | CL158: Fortal_APsicosocial_R5 | CM158: Fortal_APsicosocial_R6 | CN158: Acompaña_Psicosocial_R1 | CO158: Acompaña_Psicosocial_R2 | CP158: Acompaña_Psicosocial_R3 | CQ158: Acompaña_Psicosocial_R4 | CR158: Acompaña_Psicosocial_R5 | CS158: Acompaña_Psicosocial_R6 | CT158: Recontr_IdentidadC_R1 | CU158: Recontr_IdentidadC_R2 | CV158: Recontr_IdentidadC_R3 | CW158: Recontr_IdentidadC_R4 | CX158: Recontr_IdentidadC_R5 | CY158: Recontr_IdentidadC_R6 | CZ158: Fortal_APsicosocial_P1 | DA158: Fortal_APsicosocial_P2 | DB158: Fortal_APsicosocial_P3 | DC158: Fortal_APsicosocial_P4 | DD158: Fortal_APsicosocial_P5 | DE158: Fortal_APsicosocial_P6 | DF158: Acompaña_Psicosocial_P1 | DG158: Acompaña_Psicosocial_P2 | DH158: Acompaña_Psicosocial_P3 | DI158: Acompaña_Psicosocial_P4 | DJ158: Acompaña_Psicosocial_P5 | DK158: Acompaña_Psicosocial_P6 | DL158: Recontr_IdentidadC_P1 | DM158: Recontr_IdentidadC_P2 | DN158: Recontr_IdentidadC_P3 | DO158: Recontr_IdentidadC_P4 | DP158: Recontr_IdentidadC_P5 | DQ158: Recontr_IdentidadC_P6 | DR158: pob_Riesgo_SMetal_S1 | DS158: pob_Riesgo_SMetal_S2 | DT158: pob_Riesgo_SMetal_S3 | DU158: pob_Riesgo_SMetal_S4 | DV158: pob_Riesgo_SMetal_S5 | DW158: pob_Riesgo_SMetal_S6 | DX158: pob_Riesgo_SMetal_S7 | DY158: pob_Riesgo_SMetal_P_S1 | DZ158: pob_Riesgo_SMetal_P_S2 | EA158: pob_Riesgo_SMetal_P_S3 | EB158: pob_Riesgo_SMetal_P_S4 | EC158: pob_Riesgo_SMetal_P_S5 | ED158: pob_Riesgo_SMetal_P_S6 | EE158: pob_Riesgo_SMetal_P_S7 | EF158: pob_Riesgo_SMetal_P_P1 | EG158: pob_Riesgo_SMetal_P_P2 | EH158: pob_Riesgo_SMetal_P_P3 | EI158: pob_Riesgo_SMetal_P_P4 | EJ158: pob_Riesgo_SMetal_P_P5 | EK158: pob_Riesgo_SMetal_P_P6 | EL158: pob_Riesgo_SMetal_P_P7 | EM158: Custionario_HA_8_11F | EN158: Custionario_HA_8_11M | EO158: Custionario_HA_12_17F | EP158: Custionario_HA_12_17M | EQ158: Problemas_HAI_8_11F | ER158: Problemas_HAI_8_11M | ES158: Problemas_HAI_12_17F | ET158: Problemas_HAI_12_17M | EU158: Inicio_SEHS_8_11F | EV158: Inicio_SEHS_8_11M | EW158: Inicio_SEHS_12_17F | EX158: Inicio_SEHS_12_17M | EY158: Termina_SEHS_8_11F | EZ158: Termina_SEHS_8_11M | FA158: Termina_SEHS_12_17F | FB158: Termina_SEHS_12_17M | FC158: Staller_HHSS_S1_8_11 | FD158: Staller_HHSS_S2_8_11 | FE158: Staller_HHSS_S3_8_11 | FF158: Staller_HHSS_S4_8_11 | FG158: Staller_HHSS_S5_8_11 | FH158: Staller_HHSS_S6_8_11 | FI158: Staller_HHSS_S7_8_11 | FJ158: Staller_HHSS_S8_8_11 | FK158: Staller_HHSS_S9_8_11 | FL158: Staller_HHSS_S10_8_11 | FM158: Staller_HHSS_S1_12_17 | FN158: Staller_HHSS_S2_12_17 | FO158: Staller_HHSS_S3_12_17 | FP158: Staller_HHSS_S4_12_17 | FQ158: Staller_HHSS_S5_12_17 | FR158: Staller_HHSS_S6_12_17 | FS158: Staller_HHSS_S7_12_17 | FT158: Staller_HHSS_S8_12_17 | FU158: Staller_HHSS_S9_12_17 | FV158: Staller_HHSS_S10_12_17 | FW158: Staller_HHSS_P1_8_11 | FX158: Staller_HHSS_P2_8_11 | FY158: Staller_HHSS_P3_8_11 | FZ158: Staller_HHSS_P4_8_11 | GA158: Staller_HHSS_P5_8_11 | GB158: Staller_HHSS_P6_8_11 | GC158: Staller_HHSS_P7_8_11 | GD158: Staller_HHSS_P8_8_11 | GE158: Staller_HHSS_P9_8_11 | GF158: Staller_HHSS_P10_8_11 | GG158: Staller_HHSS_P1_12_17 | GH158: Staller_HHSS_P2_12_17 | GI158: Staller_HHSS_P3_12_17 | GJ158: Staller_HHSS_P4_12_17 | GK158: Staller_HHSS_P5_12_17 | GL158: Staller_HHSS_P6_12_17 | GM158: Staller_HHSS_P7_12_17 | GN158: Staller_HHSS_P8_12_17 | GO158: Staller_HHSS_P9_12_17 | GP158: Staller_HHSS_P10_12_17 | GQ158: Cria_DesaInfa_S1_1aF | GR158: Cria_DesaInfa_S1_1aM | GS158: Cria_DesaInfa_S2_1aF | GT158: Cria_DesaInfa_S2_1aM | GU158: Cria_DesaInfa_S3_1aF | GV158: Cria_DesaInfa_S3_1aM | GW158: Cria_DesaInfa_S1_2aF | GX158: Cria_DesaInfa_S1_2aM | GY158: Cria_DesaInfa_S2_2aF | GZ158: Cria_DesaInfa_S2_2aM | HA158: Cria_DesaInfa_S3_2aF | HB158: Cria_DesaInfa_S3_2aM | HC158: Cria_DesaInfa_S1_3aF | HD158: Cria_DesaInfa_S1_3aM | HE158: Cria_DesaInfa_S2_3aF | HF158: Cria_DesaInfa_S2_3aM | HG158: Cria_DesaInfa_S3_3aF | HH158: Cria_DesaInfa_S3_3aM | HI158: Cria_DesaInfa_S1_4aF | HJ158: Cria_DesaInfa_S1_4aM | HK158: Cria_DesaInfa_S2_4aF | HL158: Cria_DesaInfa_S2_4aM | HM158: Cria_DesaInfa_S3_4aF | HN158: Cria_DesaInfa_S3_4aM | HO158: SPareja_Convive_S1F | HP158: SPareja_Convive_S1M | HQ158: SPareja_Convive_S2F | HR158: SPareja_Convive_S2M | HS158: SPareja_Convive_S3F | HT158: SPareja_Convive_S3M | HU158: SPareja_Convive_S4F | HV158: SPareja_Convive_S4M | HW158: SPareja_Convive_Grupal_R1 | HX158: SPareja_Convive_Grupal_R2 | HY158: SPareja_Convive_Grupal_R3 | HZ158: SPareja_Convive_Grupal_R4 | IA158: SPareja_Convive_Grupal_P1 | IB158: SPareja_Convive_Grupal_P2 | IC158: SPareja_Convive_Grupal_P3 | ID158: SPareja_Convive_Grupal_P4 | IE158: Cria_DesaInfa_S1_11aF | IF158: Cria_DesaInfa_S1_11aM | IG158: Cria_DesaInfa_S2_11aF | IH158: Cria_DesaInfa_S2_11aM | II158: Cria_DesaInfa_S3_11aF | IJ158: Cria_DesaInfa_S3_11aM | IK158: Participa_FC_PDisca_S9 | IL158: Inocuidad_Alimenta_S9 | IM158: Orienta_Familiar_S9 | IN158: Act_Terap_Cto_pte_S9 | IO158: Entrena_Autocuidado_S9 | IP158: Entrena_Reintegra_CT_S9 | IQ158: Conseja_Act_Fisica_S9 | IR158: Viaje_FHabitual_AP_S9
A159: 1 | B159: 0 | C159: 0 | D159: 0 | E159: 0 | F159: 0 | G159: 0 | H159: 0 | I159: 0 | J159: 0 | K159: 0 | L159: 0 | M159: 0 | N159: 0 | O159: 0 | P159: 0 | Q159: 0 | R159: 0 | S159: 0 | T159: 0 | U159: 0 | V159: 0 | W159: 0 | X159: 0 | Y159: 0 | Z159: 0 | AA159: 0 | AB159: 0 | AC159: 0 | AD159: 0 | AE159: 0 | AF159: 0 | AG159: 0 | AH159: 0 | AI159: 0 | AJ159: 0 | AK159: 0 | AL159: 0 | AM159: 0 | AN159: 0 | AO159: 0 | AP159: 0 | AQ159: 0 | AR159: 0 | AS159: 0 | AT159: 0 | AU159: 0 | AV159: 0 | AW159: 0 | AX159: 0 | AY159: 0 | AZ159: 0 | BA159: 0 | BB159: 0 | BC159: 0 | BD159: 0 | BE159: 0 | BF159: 4 | BG159: 3 | BH159: 0 | BI159: 0 | BJ159: 0 | BK159: 0 | BL159: 0 | BM159: 0 | BN159: 0 | BO159: 0 | BP159: 0 | BQ159: 0 | BR159: 0 | BS159: 0 | BT159: 0 | BU159: 0 | BV159: 0 | BW159: 0 | BX159: 0 | BY159: 0 | BZ159: 0 | CA159: 0 | CB159: 0 | CC159: 0 | CD159: 0 | CE159: 0 | CF159: 0 | CG159: 0 | CH159: 0 | CI159: 0 | CJ159: 0 | CK159: 0 | CL159: 0 | CM159: 0 | CN159: 0 | CO159: 0 | CP159: 0 | CQ159: 0 | CR159: 0 | CS159: 0 | CT159: 0 | CU159: 0 | CV159: 0 | CW159: 0 | CX159: 0 | CY159: 0 | CZ159: 0 | DA159: 0 | DB159: 0 | DC159: 0 | DD159: 0 | DE159: 0 | DF159: 0 | DG159: 0 | DH159: 0 | DI159: 0 | DJ159: 0 | DK159: 0 | DL159: 0 | DM159: 0 | DN159: 0 | DO159: 0 | DP159: 0 | DQ159: 0 | DR159: 0 | DS159: 0 | DT159: 0 | DU159: 0 | DV159: 0 | DW159: 0 | DX159: 0 | DY159: 0 | DZ159: 0 | EA159: 0 | EB159: 0 | EC159: 0 | ED159: 0 | EE159: 0 | EF159: 0 | EG159: 0 | EH159: 0 | EI159: 0 | EJ159: 0 | EK159: 0 | EL159: 0 | EM159: 0 | EN159: 0 | EO159: 3 | EP159: 5 | EQ159: 0 | ER159: 0 | ES159: 2 | ET159: 5 | EU159: 0 | EV159: 0 | EW159: 0 | EX159: 0 | EY159: 0 | EZ159: 0 | FA159: 0 | FB159: 0 | FC159: 0 | FD159: 0 | FE159: 0 | FF159: 0 | FG159: 0 | FH159: 0 | FI159: 0 | FJ159: 0 | FK159: 0 | FL159: 0 | FM159: 0 | FN159: 2 | FO159: 0 | FP159: 0 | FQ159: 0 | FR159: 0 | FS159: 0 | FT159: 0 | FU159: 0 | FV159: 0 | FW159: 0 | FX159: 0 | FY159: 0 | FZ159: 0 | GA159: 0 | GB159: 0 | GC159: 0 | GD159: 0 | GE159: 0 | GF159: 0 | GG159: 0 | GH159: 0 | GI159: 0 | GJ159: 0 | GK159: 0 | GL159: 0 | GM159: 0 | GN159: 0 | GO159: 0 | GP159: 0 | GQ159: 11 | GR159: 15 | GS159: 26 | GT159: 17 | GU159: 21 | GV159: 31 | GW159: 4 | GX159: 2 | GY159: 0 | GZ159: 0 | HA159: 0 | HB159: 0 | HC159: 3 | HD159: 4 | HE159: 0 | HF159: 0 | HG159: 0 | HH159: 0 | HI159: 1 | HJ159: 4 | HK159: 0 | HL159: 0 | HM159: 0 | HN159: 0 | HO159: 0 | HP159: 0 | HQ159: 0 | HR159: 0 | HS159: 0 | HT159: 0 | HU159: 0 | HV159: 0 | HW159: 1 | HX159: 0 | HY159: 0 | HZ159: 0 | IA159: 26 | IB159: 0 | IC159: 0 | ID159: 0 | IE159: 3 | IF159: 3 | IG159: 0 | IH159: 0 | II159: 0 | IJ159: 3 | IK159: 0 | IL159: 0 | IM159: 0 | IN159: 0 | IO159: 0 | IP159: 0 | IQ159: 0 | IR159: 0
A160: 2 | B160: 0 | C160: 0 | D160: 0 | E160: 0 | F160: 0 | G160: 0 | H160: 0 | I160: 0 | J160: 4 | K160: 4 | L160: 4 | M160: 0 | N160: 0 | O160: 0 | P160: 0 | Q160: 0 | R160: 0 | S160: 0 | T160: 0 | U160: 0 | V160: 0 | W160: 0 | X160: 0 | Y160: 0 | Z160: 0 | AA160: 0 | AB160: 0 | AC160: 0 | AD160: 0 | AE160: 0 | AF160: 0 | AG160: 0 | AH160: 0 | AI160: 0 | AJ160: 0 | AK160: 0 | AL160: 0 | AM160: 0 | AN160: 0 | AO160: 0 | AP160: 0 | AQ160: 0 | AR160: 0 | AS160: 0 | AT160: 0 | AU160: 0 | AV160: 0 | AW160: 0 | AX160: 0 | AY160: 0 | AZ160: 0 | BA160: 0 | BB160: 0 | BC160: 0 | BD160: 0 | BE160: 0 | BF160: 0 | BG160: 1 | BH160: 0 | BI160: 0 | BJ160: 0 | BK160: 0 | BL160: 0 | BM160: 0 | BN160: 1 | BO160: 0 | BP160: 0 | BQ160: 0 | BR160: 0 | BS160: 0 | BT160: 0 | BU160: 0 | BV160: 0 | BW160: 0 | BX160: 0 | BY160: 0 | BZ160: 0 | CA160: 0 | CB160: 0 | CC160: 0 | CD160: 0 | CE160: 0 | CF160: 0 | CG160: 0 | CH160: 0 | CI160: 0 | CJ160: 0 | CK160: 0 | CL160: 0 | CM160: 0 | CN160: 0 | CO160: 0 | CP160: 0 | CQ160: 0 | CR160: 0 | CS160: 0 | CT160: 0 | CU160: 0 | CV160: 0 | CW160: 0 | CX160: 0 | CY160: 0 | CZ160: 0 | DA160: 0 | DB160: 0 | DC160: 0 | DD160: 0 | DE160: 0 | DF160: 0 | DG160: 0 | DH160: 0 | DI160: 0 | DJ160: 0 | DK160: 0 | DL160: 0 | DM160: 0 | DN160: 0 | DO160: 0 | DP160: 0 | DQ160: 0 | DR160: 0 | DS160: 0 | DT160: 0 | DU160: 0 | DV160: 0 | DW160: 0 | DX160: 0 | DY160: 0 | DZ160: 0 | EA160: 0 | EB160: 0 | EC160: 0 | ED160: 0 | EE160: 0 | EF160: 0 | EG160: 0 | EH160: 0 | EI160: 0 | EJ160: 0 | EK160: 0 | EL160: 0 | EM160: 2 | EN160: 2 | EO160: 6 | EP160: 5 | EQ160: 0 | ER160: 0 | ES160: 4 | ET160: 2 | EU160: 0 | EV160: 0 | EW160: 0 | EX160: 0 | EY160: 0 | EZ160: 0 | FA160: 0 | FB160: 0 | FC160: 0 | FD160: 0 | FE160: 0 | FF160: 0 | FG160: 0 | FH160: 0 | FI160: 0 | FJ160: 0 | FK160: 0 | FL160: 0 | FM160: 0 | FN160: 2 | FO160: 2 | FP160: 2 | FQ160: 2 | FR160: 0 | FS160: 1 | FT160: 1 | FU160: 1 | FV160: 0 | FW160: 0 | FX160: 0 | FY160: 0 | FZ160: 0 | GA160: 0 | GB160: 0 | GC160: 0 | GD160: 0 | GE160: 0 | GF160: 0 | GG160: 0 | GH160: 0 | GI160: 0 | GJ160: 0 | GK160: 0 | GL160: 0 | GM160: 0 | GN160: 0 | GO160: 0 | GP160: 0 | GQ160: 11 | GR160: 10 | GS160: 14 | GT160: 16 | GU160: 10 | GV160: 17 | GW160: 9 | GX160: 5 | GY160: 2 | GZ160: 0 | HA160: 0 | HB160: 0 | HC160: 1 | HD160: 3 | HE160: 0 | HF160: 0 | HG160: 0 | HH160: 0 | HI160: 5 | HJ160: 5 | HK160: 0 | HL160: 0 | HM160: 0 | HN160: 0 | HO160: 0 | HP160: 0 | HQ160: 0 | HR160: 0 | HS160: 0 | HT160: 0 | HU160: 0 | HV160: 0 | HW160: 0 | HX160: 0 | HY160: 0 | HZ160: 0 | IA160: 0 | IB160: 0 | IC160: 0 | ID160: 0 | IE160: 7 | IF160: 7 | IG160: 1 | IH160: 0 | II160: 1 | IJ160: 2 | IK160: 0 | IL160: 0 | IM160: 0 | IN160: 0 | IO160: 0 | IP160: 0 | IQ160: 0 | IR160: 0
A161: 3 | B161: 0 | C161: 0 | D161: 0 | E161: 0 | F161: 0 | G161: 0 | H161: 0 | I161: 0 | J161: 0 | K161: 0 | L161: 0 | M161: 0 | N161: 0 | O161: 0 | P161: 0 | Q161: 0 | R161: 0 | S161: 0 | T161: 0 | U161: 0 | V161: 0 | W161: 0 | X161: 0 | Y161: 0 | Z161: 0 | AA161: 0 | AB161: 0 | AC161: 0 | AD161: 0 | AE161: 0 | AF161: 0 | AG161: 0 | AH161: 0 | AI161: 0 | AJ161: 0 | AK161: 0 | AL161: 0 | AM161: 0 | AN161: 0 | AO161: 0 | AP161: 0 | AQ161: 0 | AR161: 0 | AS161: 0 | AT161: 0 | AU161: 0 | AV161: 0 | AW161: 0 | AX161: 2 | AY161: 2 | AZ161: 2 | BA161: 2 | BB161: 2 | BC161: 2 | BD161: 2 | BE161: 2 | BF161: 3 | BG161: 3 | BH161: 5 | BI161: 0 | BJ161: 1 | BK161: 0 | BL161: 0 | BM161: 0 | BN161: 1 | BO161: 0 | BP161: 0 | BQ161: 0 | BR161: 0 | BS161: 0 | BT161: 0 | BU161: 0 | BV161: 0 | BW161: 0 | BX161: 0 | BY161: 0 | BZ161: 0 | CA161: 0 | CB161: 0 | CC161: 0 | CD161: 0 | CE161: 0 | CF161: 0 | CG161: 0 | CH161: 0 | CI161: 0 | CJ161: 0 | CK161: 0 | CL161: 0 | CM161: 0 | CN161: 0 | CO161: 0 | CP161: 0 | CQ161: 0 | CR161: 0 | CS161: 0 | CT161: 0 | CU161: 0 | CV161: 0 | CW161: 0 | CX161: 0 | CY161: 0 | CZ161: 0 | DA161: 0 | DB161: 0 | DC161: 0 | DD161: 0 | DE161: 0 | DF161: 0 | DG161: 0 | DH161: 0 | DI161: 0 | DJ161: 0 | DK161: 0 | DL161: 0 | DM161: 0 | DN161: 0 | DO161: 0 | DP161: 0 | DQ161: 0 | DR161: 0 | DS161: 0 | DT161: 0 | DU161: 0 | DV161: 0 | DW161: 0 | DX161: 0 | DY161: 0 | DZ161: 0 | EA161: 0 | EB161: 0 | EC161: 0 | ED161: 0 | EE161: 0 | EF161: 0 | EG161: 0 | EH161: 0 | EI161: 0 | EJ161: 0 | EK161: 0 | EL161: 0 | EM161: 1 | EN161: 0 | EO161: 15 | EP161: 5 | EQ161: 1 | ER161: 0 | ES161: 6 | ET161: 3 | EU161: 0 | EV161: 0 | EW161: 1 | EX161: 0 | EY161: 0 | EZ161: 0 | FA161: 0 | FB161: 0 | FC161: 0 | FD161: 0 | FE161: 0 | FF161: 0 | FG161: 0 | FH161: 0 | FI161: 0 | FJ161: 0 | FK161: 0 | FL161: 0 | FM161: 2 | FN161: 0 | FO161: 0 | FP161: 0 | FQ161: 1 | FR161: 1 | FS161: 0 | FT161: 0 | FU161: 0 | FV161: 0 | FW161: 0 | FX161: 0 | FY161: 0 | FZ161: 0 | GA161: 0 | GB161: 0 | GC161: 0 | GD161: 0 | GE161: 0 | GF161: 0 | GG161: 0 | GH161: 0 | GI161: 0 | GJ161: 0 | GK161: 0 | GL161: 0 | GM161: 0 | GN161: 0 | GO161: 0 | GP161: 0 | GQ161: 12 | GR161: 7 | GS161: 9 | GT161: 13 | GU161: 13 | GV161: 6 | GW161: 4 | GX161: 5 | GY161: 0 | GZ161: 1 | HA161: 0 | HB161: 0 | HC161: 6 | HD161: 8 | HE161: 1 | HF161: 0 | HG161: 0 | HH161: 0 | HI161: 2 | HJ161: 8 | HK161: 0 | HL161: 0 | HM161: 0 | HN161: 0 | HO161: 13 | HP161: 5 | HQ161: 0 | HR161: 0 | HS161: 0 | HT161: 0 | HU161: 0 | HV161: 0 | HW161: 1 | HX161: 0 | HY161: 0 | HZ161: 0 | IA161: 17 | IB161: 0 | IC161: 0 | ID161: 0 | IE161: 6 | IF161: 1 | IG161: 0 | IH161: 1 | II161: 0 | IJ161: 0 | IK161: 0 | IL161: 0 | IM161: 0 | IN161: 0 | IO161: 0 | IP161: 0 | IQ161: 0 | IR161: 0
A162: 4 | B162: 0 | C162: 0 | D162: 0 | E162: 0 | F162: 0 | G162: 0 | H162: 0 | I162: 0 | J162: 0 | K162: 0 | L162: 0 | M162: 0 | N162: 0 | O162: 0 | P162: 0 | Q162: 0 | R162: 0 | S162: 0 | T162: 0 | U162: 0 | V162: 0 | W162: 0 | X162: 0 | Y162: 0 | Z162: 0 | AA162: 0 | AB162: 0 | AC162: 0 | AD162: 0 | AE162: 0 | AF162: 0 | AG162: 0 | AH162: 0 | AI162: 0 | AJ162: 0 | AK162: 0 | AL162: 0 | AM162: 0 | AN162: 0 | AO162: 0 | AP162: 0 | AQ162: 0 | AR162: 0 | AS162: 0 | AT162: 0 | AU162: 0 | AV162: 0 | AW162: 0 | AX162: 0 | AY162: 0 | AZ162: 0 | BA162: 0 | BB162: 0 | BC162: 0 | BD162: 0 | BE162: 0 | BF162: 0 | BG162: 0 | BH162: 0 | BI162: 0 | BJ162: 0 | BK162: 0 | BL162: 0 | BM162: 0 | BN162: 0 | BO162: 0 | BP162: 0 | BQ162: 0 | BR162: 0 | BS162: 0 | BT162: 0 | BU162: 0 | BV162: 0 | BW162: 0 | BX162: 0 | BY162: 0 | BZ162: 0 | CA162: 0 | CB162: 0 | CC162: 0 | CD162: 0 | CE162: 0 | CF162: 0 | CG162: 0 | CH162: 0 | CI162: 0 | CJ162: 0 | CK162: 0 | CL162: 0 | CM162: 0 | CN162: 0 | CO162: 0 | CP162: 0 | CQ162: 0 | CR162: 0 | CS162: 0 | CT162: 0 | CU162: 0 | CV162: 0 | CW162: 0 | CX162: 0 | CY162: 0 | CZ162: 0 | DA162: 0 | DB162: 0 | DC162: 0 | DD162: 0 | DE162: 0 | DF162: 0 | DG162: 0 | DH162: 0 | DI162: 0 | DJ162: 0 | DK162: 0 | DL162: 0 | DM162: 0 | DN162: 0 | DO162: 0 | DP162: 0 | DQ162: 0 | DR162: 0 | DS162: 0 | DT162: 0 | DU162: 0 | DV162: 0 | DW162: 0 | DX162: 0 | DY162: 2 | DZ162: 1 | EA162: 1 | EB162: 0 | EC162: 0 | ED162: 0 | EE162: 0 | EF162: 87 | EG162: 14 | EH162: 42 | EI162: 0 | EJ162: 0 | EK162: 0 | EL162: 0 | EM162: 28 | EN162: 43 | EO162: 68 | EP162: 54 | EQ162: 17 | ER162: 28 | ES162: 18 | ET162: 20 | EU162: 7 | EV162: 8 | EW162: 2 | EX162: 3 | EY162: 0 | EZ162: 0 | FA162: 0 | FB162: 0 | FC162: 15 | FD162: 16 | FE162: 0 | FF162: 0 | FG162: 0 | FH162: 0 | FI162: 0 | FJ162: 0 | FK162: 0 | FL162: 0 | FM162: 7 | FN162: 5 | FO162: 3 | FP162: 3 | FQ162: 1 | FR162: 0 | FS162: 1 | FT162: 1 | FU162: 0 | FV162: 0 | FW162: 0 | FX162: 0 | FY162: 0 | FZ162: 0 | GA162: 0 | GB162: 0 | GC162: 0 | GD162: 0 | GE162: 0 | GF162: 0 | GG162: 0 | GH162: 0 | GI162: 0 | GJ162: 0 | GK162: 0 | GL162: 0 | GM162: 0 | GN162: 0 | GO162: 0 | GP162: 0 | GQ162: 7 | GR162: 13 | GS162: 6 | GT162: 4 | GU162: 9 | GV162: 8 | GW162: 1 | GX162: 1 | GY162: 0 | GZ162: 0 | HA162: 0 | HB162: 0 | HC162: 1 | HD162: 2 | HE162: 0 | HF162: 0 | HG162: 0 | HH162: 0 | HI162: 0 | HJ162: 1 | HK162: 0 | HL162: 1 | HM162: 0 | HN162: 0 | HO162: 47 | HP162: 4 | HQ162: 29 | HR162: 0 | HS162: 0 | HT162: 0 | HU162: 0 | HV162: 0 | HW162: 3 | HX162: 2 | HY162: 1 | HZ162: 0 | IA162: 53 | IB162: 31 | IC162: 42 | ID162: 0 | IE162: 1 | IF162: 3 | IG162: 0 | IH162: 0 | II162: 1 | IJ162: 1 | IK162: 0 | IL162: 0 | IM162: 0 | IN162: 0 | IO162: 0 | IP162: 0 | IQ162: 0 | IR162: 0
A163: 5 | B163: 0 | C163: 0 | D163: 0 | E163: 0 | F163: 0 | G163: 0 | H163: 0 | I163: 0 | J163: 0 | K163: 0 | L163: 0 | M163: 0 | N163: 0 | O163: 0 | P163: 0 | Q163: 0 | R163: 0 | S163: 0 | T163: 0 | U163: 0 | V163: 0 | W163: 0 | X163: 0 | Y163: 0 | Z163: 0 | AA163: 0 | AB163: 0 | AC163: 0 | AD163: 0 | AE163: 0 | AF163: 0 | AG163: 0 | AH163: 0 | AI163: 0 | AJ163: 0 | AK163: 0 | AL163: 0 | AM163: 0 | AN163: 0 | AO163: 0 | AP163: 0 | AQ163: 0 | AR163: 0 | AS163: 0 | AT163: 0 | AU163: 0 | AV163: 0 | AW163: 0 | AX163: 3 | AY163: 3 | AZ163: 3 | BA163: 3 | BB163: 0 | BC163: 0 | BD163: 0 | BE163: 0 | BF163: 0 | BG163: 2 | BH163: 0 | BI163: 0 | BJ163: 0 | BK163: 0 | BL163: 0 | BM163: 0 | BN163: 0 | BO163: 1 | BP163: 0 | BQ163: 0 | BR163: 0 | BS163: 0 | BT163: 0 | BU163: 0 | BV163: 0 | BW163: 0 | BX163: 0 | BY163: 0 | BZ163: 0 | CA163: 0 | CB163: 0 | CC163: 0 | CD163: 0 | CE163: 0 | CF163: 0 | CG163: 0 | CH163: 1 | CI163: 1 | CJ163: 1 | CK163: 0 | CL163: 0 | CM163: 0 | CN163: 0 | CO163: 0 | CP163: 0 | CQ163: 0 | CR163: 0 | CS163: 0 | CT163: 0 | CU163: 0 | CV163: 0 | CW163: 0 | CX163: 0 | CY163: 0 | CZ163: 12 | DA163: 12 | DB163: 12 | DC163: 0 | DD163: 0 | DE163: 0 | DF163: 0 | DG163: 0 | DH163: 0 | DI163: 0 | DJ163: 0 | DK163: 0 | DL163: 0 | DM163: 0 | DN163: 0 | DO163: 0 | DP163: 0 | DQ163: 0 | DR163: 0 | DS163: 0 | DT163: 0 | DU163: 0 | DV163: 0 | DW163: 0 | DX163: 0 | DY163: 0 | DZ163: 0 | EA163: 0 | EB163: 0 | EC163: 0 | ED163: 0 | EE163: 0 | EF163: 0 | EG163: 0 | EH163: 0 | EI163: 0 | EJ163: 0 | EK163: 0 | EL163: 0 | EM163: 0 | EN163: 1 | EO163: 390 | EP163: 184 | EQ163: 10 | ER163: 19 | ES163: 30 | ET163: 30 | EU163: 0 | EV163: 0 | EW163: 0 | EX163: 1 | EY163: 0 | EZ163: 0 | FA163: 0 | FB163: 1 | FC163: 28 | FD163: 16 | FE163: 27 | FF163: 14 | FG163: 0 | FH163: 0 | FI163: 0 | FJ163: 0 | FK163: 0 | FL163: 0 | FM163: 1 | FN163: 1 | FO163: 5 | FP163: 4 | FQ163: 2 | FR163: 2 | FS163: 2 | FT163: 0 | FU163: 0 | FV163: 1 | FW163: 0 | FX163: 0 | FY163: 0 | FZ163: 0 | GA163: 0 | GB163: 0 | GC163: 0 | GD163: 0 | GE163: 0 | GF163: 0 | GG163: 0 | GH163: 0 | GI163: 0 | GJ163: 0 | GK163: 0 | GL163: 0 | GM163: 0 | GN163: 0 | GO163: 0 | GP163: 0 | GQ163: 1 | GR163: 2 | GS163: 5 | GT163: 10 | GU163: 8 | GV163: 1 | GW163: 0 | GX163: 1 | GY163: 0 | GZ163: 0 | HA163: 0 | HB163: 0 | HC163: 0 | HD163: 0 | HE163: 0 | HF163: 0 | HG163: 0 | HH163: 0 | HI163: 0 | HJ163: 0 | HK163: 0 | HL163: 1 | HM163: 0 | HN163: 0 | HO163: 8 | HP163: 0 | HQ163: 0 | HR163: 0 | HS163: 0 | HT163: 0 | HU163: 0 | HV163: 0 | HW163: 1 | HX163: 0 | HY163: 0 | HZ163: 0 | IA163: 9 | IB163: 0 | IC163: 0 | ID163: 0 | IE163: 0 | IF163: 0 | IG163: 1 | IH163: 0 | II163: 0 | IJ163: 0 | IK163: 0 | IL163: 0 | IM163: 0 | IN163: 0 | IO163: 0 | IP163: 0 | IQ163: 0 | IR163: 0
A164: 6 | B164: 0 | C164: 0 | D164: 0 | E164: 0 | F164: 0 | G164: 0 | H164: 0 | I164: 0 | J164: 0 | K164: 0 | L164: 0 | M164: 0 | N164: 0 | O164: 0 | P164: 0 | Q164: 0 | R164: 0 | S164: 0 | T164: 0 | U164: 0 | V164: 0 | W164: 0 | X164: 0 | Y164: 0 | Z164: 0 | AA164: 0 | AB164: 0 | AC164: 0 | AD164: 0 | AE164: 0 | AF164: 0 | AG164: 0 | AH164: 0 | AI164: 0 | AJ164: 0 | AK164: 0 | AL164: 0 | AM164: 0 | AN164: 0 | AO164: 0 | AP164: 0 | AQ164: 0 | AR164: 0 | AS164: 0 | AT164: 0 | AU164: 0 | AV164: 0 | AW164: 0 | AX164: 0 | AY164: 0 | AZ164: 0 | BA164: 0 | BB164: 0 | BC164: 0 | BD164: 0 | BE164: 0 | BF164: 2 | BG164: 1 | BH164: 0 | BI164: 0 | BJ164: 0 | BK164: 0 | BL164: 0 | BM164: 0 | BN164: 0 | BO164: 0 | BP164: 0 | BQ164: 0 | BR164: 0 | BS164: 0 | BT164: 0 | BU164: 0 | BV164: 0 | BW164: 0 | BX164: 4 | BY164: 0 | BZ164: 0 | CA164: 0 | CB164: 0 | CC164: 0 | CD164: 0 | CE164: 0 | CF164: 0 | CG164: 0 | CH164: 0 | CI164: 0 | CJ164: 0 | CK164: 1 | CL164: 1 | CM164: 1 | CN164: 0 | CO164: 0 | CP164: 0 | CQ164: 0 | CR164: 0 | CS164: 0 | CT164: 0 | CU164: 0 | CV164: 0 | CW164: 0 | CX164: 0 | CY164: 0 | CZ164: 0 | DA164: 0 | DB164: 0 | DC164: 10 | DD164: 12 | DE164: 10 | DF164: 0 | DG164: 0 | DH164: 0 | DI164: 0 | DJ164: 0 | DK164: 0 | DL164: 0 | DM164: 0 | DN164: 0 | DO164: 0 | DP164: 0 | DQ164: 0 | DR164: 0 | DS164: 0 | DT164: 0 | DU164: 0 | DV164: 0 | DW164: 0 | DX164: 0 | DY164: 0 | DZ164: 0 | EA164: 0 | EB164: 0 | EC164: 0 | ED164: 0 | EE164: 0 | EF164: 0 | EG164: 0 | EH164: 0 | EI164: 0 | EJ164: 0 | EK164: 0 | EL164: 0 | EM164: 1 | EN164: 0 | EO164: 282 | EP164: 274 | EQ164: 1 | ER164: 0 | ES164: 37 | ET164: 40 | EU164: 0 | EV164: 0 | EW164: 8 | EX164: 23 | EY164: 0 | EZ164: 0 | FA164: 0 | FB164: 0 | FC164: 0 | FD164: 0 | FE164: 14 | FF164: 28 | FG164: 29 | FH164: 9 | FI164: 3 | FJ164: 0 | FK164: 0 | FL164: 0 | FM164: 31 | FN164: 18 | FO164: 0 | FP164: 1 | FQ164: 5 | FR164: 7 | FS164: 1 | FT164: 2 | FU164: 0 | FV164: 0 | FW164: 0 | FX164: 0 | FY164: 0 | FZ164: 0 | GA164: 0 | GB164: 0 | GC164: 0 | GD164: 0 | GE164: 0 | GF164: 0 | GG164: 0 | GH164: 0 | GI164: 0 | GJ164: 0 | GK164: 0 | GL164: 0 | GM164: 0 | GN164: 0 | GO164: 0 | GP164: 0 | GQ164: 1 | GR164: 1 | GS164: 8 | GT164: 4 | GU164: 6 | GV164: 9 | GW164: 0 | GX164: 0 | GY164: 0 | GZ164: 0 | HA164: 0 | HB164: 0 | HC164: 0 | HD164: 0 | HE164: 0 | HF164: 0 | HG164: 1 | HH164: 1 | HI164: 0 | HJ164: 0 | HK164: 0 | HL164: 0 | HM164: 0 | HN164: 0 | HO164: 9 | HP164: 2 | HQ164: 4 | HR164: 0 | HS164: 0 | HT164: 0 | HU164: 0 | HV164: 0 | HW164: 1 | HX164: 1 | HY164: 1 | HZ164: 0 | IA164: 8 | IB164: 3 | IC164: 0 | ID164: 0 | IE164: 0 | IF164: 0 | IG164: 1 | IH164: 0 | II164: 0 | IJ164: 2 | IK164: 0 | IL164: 0 | IM164: 0 | IN164: 0 | IO164: 0 | IP164: 0 | IQ164: 0 | IR164: 0
A165: 7 | B165: 0 | C165: 0 | D165: 0 | E165: 0 | F165: 0 | G165: 0 | H165: 0 | I165: 0 | J165: 0 | K165: 0 | L165: 0 | M165: 0 | N165: 0 | O165: 0 | P165: 0 | Q165: 0 | R165: 1 | S165: 0 | T165: 0 | U165: 0 | V165: 0 | W165: 0 | X165: 0 | Y165: 0 | Z165: 0 | AA165: 0 | AB165: 0 | AC165: 0 | AD165: 0 | AE165: 0 | AF165: 0 | AG165: 0 | AH165: 0 | AI165: 0 | AJ165: 0 | AK165: 0 | AL165: 0 | AM165: 0 | AN165: 0 | AO165: 0 | AP165: 0 | AQ165: 0 | AR165: 0 | AS165: 0 | AT165: 0 | AU165: 0 | AV165: 0 | AW165: 0 | AX165: 0 | AY165: 0 | AZ165: 0 | BA165: 0 | BB165: 0 | BC165: 0 | BD165: 0 | BE165: 0 | BF165: 9 | BG165: 0 | BH165: 1 | BI165: 0 | BJ165: 1 | BK165: 0 | BL165: 1 | BM165: 1 | BN165: 1 | BO165: 0 | BP165: 0 | BQ165: 0 | BR165: 0 | BS165: 0 | BT165: 0 | BU165: 0 | BV165: 0 | BW165: 0 | BX165: 1 | BY165: 1 | BZ165: 0 | CA165: 0 | CB165: 0 | CC165: 0 | CD165: 0 | CE165: 0 | CF165: 0 | CG165: 0 | CH165: 0 | CI165: 0 | CJ165: 0 | CK165: 0 | CL165: 0 | CM165: 0 | CN165: 1 | CO165: 1 | CP165: 0 | CQ165: 0 | CR165: 0 | CS165: 0 | CT165: 0 | CU165: 0 | CV165: 0 | CW165: 0 | CX165: 0 | CY165: 0 | CZ165: 0 | DA165: 0 | DB165: 0 | DC165: 0 | DD165: 0 | DE165: 0 | DF165: 10 | DG165: 10 | DH165: 0 | DI165: 0 | DJ165: 0 | DK165: 0 | DL165: 0 | DM165: 0 | DN165: 0 | DO165: 0 | DP165: 0 | DQ165: 0 | DR165: 0 | DS165: 0 | DT165: 0 | DU165: 0 | DV165: 0 | DW165: 0 | DX165: 0 | DY165: 0 | DZ165: 0 | EA165: 0 | EB165: 0 | EC165: 0 | ED165: 0 | EE165: 0 | EF165: 0 | EG165: 0 | EH165: 0 | EI165: 0 | EJ165: 0 | EK165: 0 | EL165: 0 | EM165: 0 | EN165: 0 | EO165: 184 | EP165: 165 | EQ165: 0 | ER165: 0 | ES165: 14 | ET165: 19 | EU165: 0 | EV165: 0 | EW165: 0 | EX165: 0 | EY165: 0 | EZ165: 0 | FA165: 0 | FB165: 0 | FC165: 0 | FD165: 0 | FE165: 0 | FF165: 0 | FG165: 14 | FH165: 27 | FI165: 27 | FJ165: 0 | FK165: 0 | FL165: 0 | FM165: 16 | FN165: 15 | FO165: 20 | FP165: 20 | FQ165: 1 | FR165: 8 | FS165: 0 | FT165: 0 | FU165: 2 | FV165: 0 | FW165: 0 | FX165: 0 | FY165: 0 | FZ165: 0 | GA165: 0 | GB165: 0 | GC165: 0 | GD165: 0 | GE165: 0 | GF165: 0 | GG165: 0 | GH165: 0 | GI165: 0 | GJ165: 0 | GK165: 0 | GL165: 0 | GM165: 0 | GN165: 0 | GO165: 0 | GP165: 0 | GQ165: 2 | GR165: 1 | GS165: 3 | GT165: 3 | GU165: 4 | GV165: 4 | GW165: 0 | GX165: 1 | GY165: 0 | GZ165: 0 | HA165: 0 | HB165: 0 | HC165: 1 | HD165: 0 | HE165: 1 | HF165: 0 | HG165: 2 | HH165: 0 | HI165: 1 | HJ165: 1 | HK165: 0 | HL165: 0 | HM165: 0 | HN165: 0 | HO165: 0 | HP165: 0 | HQ165: 6 | HR165: 0 | HS165: 2 | HT165: 0 | HU165: 0 | HV165: 0 | HW165: 0 | HX165: 2 | HY165: 1 | HZ165: 0 | IA165: 0 | IB165: 6 | IC165: 2 | ID165: 0 | IE165: 1 | IF165: 2 | IG165: 0 | IH165: 0 | II165: 0 | IJ165: 0 | IK165: 0 | IL165: 0 | IM165: 0 | IN165: 0 | IO165: 0 | IP165: 0 | IQ165: 0 | IR165: 0
A166: 8 | B166: 1 | C166: 1 | D166: 1 | E166: 1 | F166: 1 | G166: 1 | H166: 0 | I166: 0 | J166: 1 | K166: 1 | L166: 1 | M166: 2 | N166: 0 | O166: 0 | P166: 0 | Q166: 0 | R166: 0 | S166: 0 | T166: 0 | U166: 0 | V166: 0 | W166: 0 | X166: 0 | Y166: 0 | Z166: 0 | AA166: 0 | AB166: 0 | AC166: 0 | AD166: 0 | AE166: 0 | AF166: 0 | AG166: 0 | AH166: 0 | AI166: 0 | AJ166: 0 | AK166: 0 | AL166: 0 | AM166: 0 | AN166: 0 | AO166: 0 | AP166: 0 | AQ166: 0 | AR166: 3 | AS166: 0 | AT166: 0 | AU166: 0 | AV166: 0 | AW166: 0 | AX166: 0 | AY166: 0 | AZ166: 0 | BA166: 0 | BB166: 0 | BC166: 0 | BD166: 0 | BE166: 0 | BF166: 0 | BG166: 0 | BH166: 0 | BI166: 0 | BJ166: 0 | BK166: 0 | BL166: 1 | BM166: 1 | BN166: 0 | BO166: 0 | BP166: 0 | BQ166: 0 | BR166: 0 | BS166: 0 | BT166: 0 | BU166: 0 | BV166: 0 | BW166: 0 | BX166: 0 | BY166: 1 | BZ166: 1 | CA166: 0 | CB166: 0 | CC166: 0 | CD166: 0 | CE166: 0 | CF166: 0 | CG166: 0 | CH166: 0 | CI166: 0 | CJ166: 0 | CK166: 0 | CL166: 0 | CM166: 0 | CN166: 0 | CO166: 0 | CP166: 1 | CQ166: 0 | CR166: 0 | CS166: 0 | CT166: 0 | CU166: 0 | CV166: 0 | CW166: 0 | CX166: 0 | CY166: 0 | CZ166: 0 | DA166: 0 | DB166: 0 | DC166: 0 | DD166: 0 | DE166: 0 | DF166: 0 | DG166: 0 | DH166: 10 | DI166: 0 | DJ166: 0 | DK166: 0 | DL166: 0 | DM166: 0 | DN166: 0 | DO166: 0 | DP166: 0 | DQ166: 0 | DR166: 15 | DS166: 15 | DT166: 15 | DU166: 0 | DV166: 0 | DW166: 0 | DX166: 0 | DY166: 1 | DZ166: 1 | EA166: 1 | EB166: 0 | EC166: 0 | ED166: 0 | EE166: 0 | EF166: 14 | EG166: 15 | EH166: 15 | EI166: 0 | EJ166: 0 | EK166: 0 | EL166: 0 | EM166: 0 | EN166: 0 | EO166: 103 | EP166: 112 | EQ166: 0 | ER166: 1 | ES166: 23 | ET166: 15 | EU166: 0 | EV166: 1 | EW166: 0 | EX166: 1 | EY166: 0 | EZ166: 0 | FA166: 0 | FB166: 1 | FC166: 1 | FD166: 0 | FE166: 0 | FF166: 0 | FG166: 0 | FH166: 0 | FI166: 9 | FJ166: 37 | FK166: 28 | FL166: 0 | FM166: 13 | FN166: 19 | FO166: 0 | FP166: 0 | FQ166: 12 | FR166: 20 | FS166: 13 | FT166: 9 | FU166: 4 | FV166: 1 | FW166: 0 | FX166: 0 | FY166: 0 | FZ166: 0 | GA166: 0 | GB166: 0 | GC166: 0 | GD166: 0 | GE166: 0 | GF166: 0 | GG166: 0 | GH166: 0 | GI166: 0 | GJ166: 0 | GK166: 0 | GL166: 0 | GM166: 0 | GN166: 0 | GO166: 0 | GP166: 0 | GQ166: 2 | GR166: 1 | GS166: 4 | GT166: 3 | GU166: 3 | GV166: 3 | GW166: 1 | GX166: 0 | GY166: 0 | GZ166: 0 | HA166: 0 | HB166: 0 | HC166: 3 | HD166: 4 | HE166: 1 | HF166: 1 | HG166: 0 | HH166: 0 | HI166: 0 | HJ166: 1 | HK166: 0 | HL166: 0 | HM166: 0 | HN166: 0 | HO166: 0 | HP166: 0 | HQ166: 0 | HR166: 0 | HS166: 2 | HT166: 0 | HU166: 2 | HV166: 0 | HW166: 1 | HX166: 2 | HY166: 1 | HZ166: 1 | IA166: 1 | IB166: 0 | IC166: 2 | ID166: 2 | IE166: 1 | IF166: 1 | IG166: 0 | IH166: 0 | II166: 0 | IJ166: 1 | IK166: 0 | IL166: 0 | IM166: 0 | IN166: 0 | IO166: 0 | IP166: 0 | IQ166: 0 | IR166: 0
A167: 9 | B167: 0 | C167: 0 | D167: 0 | E167: 0 | F167: 0 | G167: 0 | H167: 1 | I167: 1 | J167: 0 | K167: 0 | L167: 0 | M167: 0 | N167: 1 | O167: 1 | P167: 1 | Q167: 1 | R167: 0 | S167: 6 | T167: 0 | U167: 0 | V167: 0 | W167: 0 | X167: 0 | Y167: 0 | Z167: 36 | AA167: 36 | AB167: 16 | AC167: 10 | AD167: 5 | AE167: 4 | AF167: 2 | AG167: 1 | AH167: 37 | AI167: 26 | AJ167: 17 | AK167: 14 | AL167: 2 | AM167: 2 | AN167: 0 | AO167: 1 | AP167: 21 | AQ167: 17 | AR167: 9 | AS167: 4 | AT167: 3 | AU167: 0 | AV167: 0 | AW167: 0 | AX167: 7 | AY167: 3 | AZ167: 0 | BA167: 0 | BB167: 0 | BC167: 0 | BD167: 0 | BE167: 0 | BF167: 0 | BG167: 0 | BH167: 0 | BI167: 1 | BJ167: 0 | BK167: 0 | BL167: 0 | BM167: 0 | BN167: 0 | BO167: 0 | BP167: 0 | BQ167: 0 | BR167: 0 | BS167: 0 | BT167: 0 | BU167: 0 | BV167: 0 | BW167: 0 | BX167: 0 | BY167: 0 | BZ167: 0 | CA167: 0 | CB167: 0 | CC167: 0 | CD167: 0 | CE167: 0 | CF167: 0 | CG167: 0 | CH167: 0 | CI167: 0 | CJ167: 0 | CK167: 0 | CL167: 0 | CM167: 0 | CN167: 0 | CO167: 0 | CP167: 0 | CQ167: 1 | CR167: 0 | CS167: 0 | CT167: 0 | CU167: 0 | CV167: 0 | CW167: 0 | CX167: 0 | CY167: 0 | CZ167: 0 | DA167: 0 | DB167: 0 | DC167: 0 | DD167: 0 | DE167: 0 | DF167: 0 | DG167: 0 | DH167: 0 | DI167: 8 | DJ167: 0 | DK167: 0 | DL167: 0 | DM167: 0 | DN167: 0 | DO167: 0 | DP167: 0 | DQ167: 0 | DR167: 0 | DS167: 0 | DT167: 0 | DU167: 14 | DV167: 15 | DW167: 0 | DX167: 0 | DY167: 0 | DZ167: 0 | EA167: 1 | EB167: 1 | EC167: 1 | ED167: 0 | EE167: 0 | EF167: 0 | EG167: 0 | EH167: 17 | EI167: 15 | EJ167: 15 | EK167: 0 | EL167: 0 | EM167: 2 | EN167: 0 | EO167: 326 | EP167: 276 | EQ167: 0 | ER167: 1 | ES167: 32 | ET167: 32 | EU167: 0 | EV167: 0 | EW167: 1 | EX167: 1 | EY167: 9 | EZ167: 16 | FA167: 5 | FB167: 6 | FC167: 0 | FD167: 0 | FE167: 0 | FF167: 0 | FG167: 0 | FH167: 0 | FI167: 0 | FJ167: 0 | FK167: 10 | FL167: 25 | FM167: 11 | FN167: 2 | FO167: 19 | FP167: 17 | FQ167: 17 | FR167: 16 | FS167: 30 | FT167: 24 | FU167: 36 | FV167: 11 | FW167: 0 | FX167: 0 | FY167: 0 | FZ167: 0 | GA167: 0 | GB167: 0 | GC167: 0 | GD167: 0 | GE167: 0 | GF167: 0 | GG167: 0 | GH167: 0 | GI167: 0 | GJ167: 0 | GK167: 0 | GL167: 0 | GM167: 0 | GN167: 0 | GO167: 0 | GP167: 0 | GQ167: 6 | GR167: 3 | GS167: 2 | GT167: 6 | GU167: 4 | GV167: 2 | GW167: 0 | GX167: 0 | GY167: 0 | GZ167: 0 | HA167: 0 | HB167: 0 | HC167: 0 | HD167: 0 | HE167: 0 | HF167: 0 | HG167: 1 | HH167: 0 | HI167: 0 | HJ167: 0 | HK167: 0 | HL167: 0 | HM167: 0 | HN167: 0 | HO167: 2 | HP167: 0 | HQ167: 0 | HR167: 0 | HS167: 36 | HT167: 0 | HU167: 1 | HV167: 0 | HW167: 3 | HX167: 1 | HY167: 2 | HZ167: 1 | IA167: 2 | IB167: 0 | IC167: 39 | ID167: 1 | IE167: 0 | IF167: 0 | IG167: 0 | IH167: 1 | II167: 1 | IJ167: 1 | IK167: 0 | IL167: 4 | IM167: 0 | IN167: 0 | IO167: 0 | IP167: 0 | IQ167: 0 | IR167: 6
A168: 10 | B168: 0 | C168: 0 | D168: 0 | E168: 0 | F168: 1 | G168: 0 | H168: 1 | I168: 0 | J168: 8 | K168: 0 | L168: 0 | M168: 0 | N168: 0 | O168: 0 | P168: 0 | Q168: 0 | R168: 0 | S168: 0 | T168: 0 | U168: 0 | V168: 0 | W168: 0 | X168: 0 | Y168: 0 | Z168: 14 | AA168: 16 | AB168: 18 | AC168: 16 | AD168: 12 | AE168: 10 | AF168: 8 | AG168: 7 | AH168: 12 | AI168: 13 | AJ168: 10 | AK168: 12 | AL168: 10 | AM168: 13 | AN168: 6 | AO168: 6 | AP168: 11 | AQ168: 6 | AR168: 10 | AS168: 2 | AT168: 1 | AU168: 1 | AV168: 2 | AW168: 2 | AX168: 9 | AY168: 13 | AZ168: 3 | BA168: 0 | BB168: 0 | BC168: 0 | BD168: 0 | BE168: 0 | BF168: 0 | BG168: 0 | BH168: 0 | BI168: 0 | BJ168: 0 | BK168: 0 | BL168: 0 | BM168: 0 | BN168: 2 | BO168: 0 | BP168: 0 | BQ168: 0 | BR168: 0 | BS168: 0 | BT168: 0 | BU168: 0 | BV168: 0 | BW168: 0 | BX168: 0 | BY168: 0 | BZ168: 0 | CA168: 0 | CB168: 0 | CC168: 0 | CD168: 0 | CE168: 0 | CF168: 0 | CG168: 0 | CH168: 0 | CI168: 0 | CJ168: 0 | CK168: 0 | CL168: 0 | CM168: 0 | CN168: 0 | CO168: 0 | CP168: 0 | CQ168: 0 | CR168: 1 | CS168: 1 | CT168: 1 | CU168: 1 | CV168: 1 | CW168: 1 | CX168: 1 | CY168: 1 | CZ168: 0 | DA168: 0 | DB168: 0 | DC168: 0 | DD168: 0 | DE168: 0 | DF168: 0 | DG168: 0 | DH168: 0 | DI168: 0 | DJ168: 10 | DK168: 10 | DL168: 12 | DM168: 12 | DN168: 10 | DO168: 10 | DP168: 11 | DQ168: 11 | DR168: 0 | DS168: 0 | DT168: 0 | DU168: 0 | DV168: 0 | DW168: 15 | DX168: 15 | DY168: 0 | DZ168: 0 | EA168: 0 | EB168: 1 | EC168: 1 | ED168: 0 | EE168: 0 | EF168: 0 | EG168: 0 | EH168: 0 | EI168: 18 | EJ168: 17 | EK168: 0 | EL168: 0 | EM168: 0 | EN168: 0 | EO168: 105 | EP168: 112 | EQ168: 0 | ER168: 0 | ES168: 28 | ET168: 31 | EU168: 0 | EV168: 0 | EW168: 0 | EX168: 0 | EY168: 3 | EZ168: 1 | FA168: 7 | FB168: 11 | FC168: 0 | FD168: 0 | FE168: 0 | FF168: 0 | FG168: 0 | FH168: 0 | FI168: 0 | FJ168: 0 | FK168: 0 | FL168: 4 | FM168: 9 | FN168: 12 | FO168: 1 | FP168: 0 | FQ168: 0 | FR168: 0 | FS168: 0 | FT168: 0 | FU168: 17 | FV168: 18 | FW168: 0 | FX168: 0 | FY168: 0 | FZ168: 0 | GA168: 0 | GB168: 0 | GC168: 0 | GD168: 0 | GE168: 0 | GF168: 0 | GG168: 0 | GH168: 0 | GI168: 0 | GJ168: 0 | GK168: 0 | GL168: 0 | GM168: 0 | GN168: 0 | GO168: 0 | GP168: 0 | GQ168: 5 | GR168: 10 | GS168: 3 | GT168: 9 | GU168: 3 | GV168: 6 | GW168: 0 | GX168: 0 | GY168: 0 | GZ168: 0 | HA168: 1 | HB168: 0 | HC168: 0 | HD168: 1 | HE168: 0 | HF168: 0 | HG168: 0 | HH168: 0 | HI168: 0 | HJ168: 3 | HK168: 0 | HL168: 0 | HM168: 0 | HN168: 0 | HO168: 4 | HP168: 0 | HQ168: 0 | HR168: 0 | HS168: 1 | HT168: 0 | HU168: 37 | HV168: 1 | HW168: 3 | HX168: 0 | HY168: 1 | HZ168: 2 | IA168: 5 | IB168: 0 | IC168: 1 | ID168: 39 | IE168: 1 | IF168: 3 | IG168: 0 | IH168: 0 | II168: 1 | IJ168: 0 | IK168: 4 | IL168: 0 | IM168: 0 | IN168: 23 | IO168: 13 | IP168: 7 | IQ168: 0 | IR168: 0
A169: 11 | B169: 0 | C169: 0 | D169: 0 | E169: 0 | F169: 0 | G169: 0 | H169: 0 | I169: 0 | J169: 2 | K169: 3 | L169: 0 | M169: 0 | N169: 0 | O169: 0 | P169: 0 | Q169: 0 | R169: 0 | S169: 0 | T169: 0 | U169: 0 | V169: 0 | W169: 0 | X169: 0 | Y169: 0 | Z169: 2 | AA169: 1 | AB169: 3 | AC169: 2 | AD169: 2 | AE169: 2 | AF169: 2 | AG169: 2 | AH169: 2 | AI169: 1 | AJ169: 3 | AK169: 2 | AL169: 2 | AM169: 2 | AN169: 1 | AO169: 1 | AP169: 1 | AQ169: 3 | AR169: 2 | AS169: 3 | AT169: 3 | AU169: 2 | AV169: 2 | AW169: 3 | AX169: 0 | AY169: 2 | AZ169: 3 | BA169: 1 | BB169: 0 | BC169: 0 | BD169: 0 | BE169: 0 | BF169: 0 | BG169: 0 | BH169: 0 | BI169: 0 | BJ169: 0 | BK169: 0 | BL169: 0 | BM169: 0 | BN169: 0 | BO169: 0 | BP169: 0 | BQ169: 0 | BR169: 0 | BS169: 0 | BT169: 0 | BU169: 0 | BV169: 0 | BW169: 0 | BX169: 0 | BY169: 0 | BZ169: 0 | CA169: 0 | CB169: 0 | CC169: 0 | CD169: 0 | CE169: 0 | CF169: 0 | CG169: 0 | CH169: 0 | CI169: 0 | CJ169: 0 | CK169: 0 | CL169: 0 | CM169: 0 | CN169: 0 | CO169: 0 | CP169: 0 | CQ169: 0 | CR169: 0 | CS169: 0 | CT169: 0 | CU169: 0 | CV169: 0 | CW169: 0 | CX169: 0 | CY169: 0 | CZ169: 0 | DA169: 0 | DB169: 0 | DC169: 0 | DD169: 0 | DE169: 0 | DF169: 0 | DG169: 0 | DH169: 0 | DI169: 0 | DJ169: 0 | DK169: 0 | DL169: 0 | DM169: 0 | DN169: 0 | DO169: 0 | DP169: 0 | DQ169: 0 | DR169: 0 | DS169: 0 | DT169: 0 | DU169: 0 | DV169: 0 | DW169: 0 | DX169: 0 | DY169: 0 | DZ169: 0 | EA169: 0 | EB169: 0 | EC169: 0 | ED169: 1 | EE169: 1 | EF169: 0 | EG169: 0 | EH169: 0 | EI169: 0 | EJ169: 0 | EK169: 12 | EL169: 14 | EM169: 1 | EN169: 0 | EO169: 253 | EP169: 257 | EQ169: 0 | ER169: 0 | ES169: 26 | ET169: 36 | EU169: 0 | EV169: 0 | EW169: 1 | EX169: 0 | EY169: 1 | EZ169: 2 | FA169: 0 | FB169: 12 | FC169: 0 | FD169: 0 | FE169: 0 | FF169: 0 | FG169: 0 | FH169: 0 | FI169: 0 | FJ169: 0 | FK169: 0 | FL169: 3 | FM169: 1 | FN169: 1 | FO169: 1 | FP169: 9 | FQ169: 5 | FR169: 2 | FS169: 0 | FT169: 0 | FU169: 0 | FV169: 12 | FW169: 0 | FX169: 0 | FY169: 0 | FZ169: 0 | GA169: 0 | GB169: 0 | GC169: 0 | GD169: 0 | GE169: 0 | GF169: 0 | GG169: 0 | GH169: 0 | GI169: 0 | GJ169: 0 | GK169: 0 | GL169: 0 | GM169: 0 | GN169: 0 | GO169: 0 | GP169: 0 | GQ169: 2 | GR169: 3 | GS169: 1 | GT169: 4 | GU169: 1 | GV169: 3 | GW169: 0 | GX169: 0 | GY169: 0 | GZ169: 0 | HA169: 0 | HB169: 0 | HC169: 0 | HD169: 0 | HE169: 0 | HF169: 0 | HG169: 1 | HH169: 0 | HI169: 0 | HJ169: 0 | HK169: 0 | HL169: 0 | HM169: 1 | HN169: 0 | HO169: 3 | HP169: 0 | HQ169: 3 | HR169: 0 | HS169: 0 | HT169: 0 | HU169: 2 | HV169: 0 | HW169: 1 | HX169: 1 | HY169: 3 | HZ169: 1 | IA169: 3 | IB169: 3 | IC169: 0 | ID169: 3 | IE169: 0 | IF169: 0 | IG169: 0 | IH169: 0 | II169: 1 | IJ169: 1 | IK169: 0 | IL169: 0 | IM169: 0 | IN169: 6 | IO169: 6 | IP169: 7 | IQ169: 0 | IR169: 0
A170: Total general | B170: 1 | C170: 1 | D170: 1 | E170: 1 | F170: 2 | G170: 1 | H170: 2 | I170: 1 | J170: 15 | K170: 8 | L170: 5 | M170: 2 | N170: 1 | O170: 1 | P170: 1 | Q170: 1 | R170: 1 | S170: 6 | T170: 0 | U170: 0 | V170: 0 | W170: 0 | X170: 0 | Y170: 0 | Z170: 52 | AA170: 53 | AB170: 37 | AC170: 28 | AD170: 19 | AE170: 16 | AF170: 12 | AG170: 10 | AH170: 51 | AI170: 40 | AJ170: 30 | AK170: 28 | AL170: 14 | AM170: 17 | AN170: 7 | AO170: 8 | AP170: 33 | AQ170: 26 | AR170: 24 | AS170: 9 | AT170: 7 | AU170: 3 | AV170: 4 | AW170: 5 | AX170: 21 | AY170: 23 | AZ170: 11 | BA170: 6 | BB170: 2 | BC170: 2 | BD170: 2 | BE170: 2 | BF170: 18 | BG170: 10 | BH170: 6 | BI170: 1 | BJ170: 2 | BK170: 0 | BL170: 2 | BM170: 2 | BN170: 5 | BO170: 1 | BP170: 0 | BQ170: 0 | BR170: 0 | BS170: 0 | BT170: 0 | BU170: 0 | BV170: 0 | BW170: 0 | BX170: 5 | BY170: 2 | BZ170: 1 | CA170: 0 | CB170: 0 | CC170: 0 | CD170: 0 | CE170: 0 | CF170: 0 | CG170: 0 | CH170: 1 | CI170: 1 | CJ170: 1 | CK170: 1 | CL170: 1 | CM170: 1 | CN170: 1 | CO170: 1 | CP170: 1 | CQ170: 1 | CR170: 1 | CS170: 1 | CT170: 1 | CU170: 1 | CV170: 1 | CW170: 1 | CX170: 1 | CY170: 1 | CZ170: 12 | DA170: 12 | DB170: 12 | DC170: 10 | DD170: 12 | DE170: 10 | DF170: 10 | DG170: 10 | DH170: 10 | DI170: 8 | DJ170: 10 | DK170: 10 | DL170: 12 | DM170: 12 | DN170: 10 | DO170: 10 | DP170: 11 | DQ170: 11 | DR170: 15 | DS170: 15 | DT170: 15 | DU170: 14 | DV170: 15 | DW170: 15 | DX170: 15 | DY170: 3 | DZ170: 2 | EA170: 3 | EB170: 2 | EC170: 2 | ED170: 1 | EE170: 1 | EF170: 101 | EG170: 29 | EH170: 74 | EI170: 33 | EJ170: 32 | EK170: 12 | EL170: 14 | EM170: 35 | EN170: 46 | EO170: 1735 | EP170: 1449 | EQ170: 29 | ER170: 49 | ES170: 220 | ET170: 233 | EU170: 7 | EV170: 9 | EW170: 13 | EX170: 29 | EY170: 13 | EZ170: 19 | FA170: 12 | FB170: 31 | FC170: 44 | FD170: 32 | FE170: 41 | FF170: 42 | FG170: 43 | FH170: 36 | FI170: 39 | FJ170: 37 | FK170: 38 | FL170: 32 | FM170: 91 | FN170: 77 | FO170: 51 | FP170: 56 | FQ170: 46 | FR170: 56 | FS170: 48 | FT170: 37 | FU170: 60 | FV170: 43 | FW170: 0 | FX170: 0 | FY170: 0 | FZ170: 0 | GA170: 0 | GB170: 0 | GC170: 0 | GD170: 0 | GE170: 0 | GF170: 0 | GG170: 0 | GH170: 0 | GI170: 0 | GJ170: 0 | GK170: 0 | GL170: 0 | GM170: 0 | GN170: 0 | GO170: 0 | GP170: 0 | GQ170: 60 | GR170: 66 | GS170: 81 | GT170: 89 | GU170: 82 | GV170: 90 | GW170: 19 | GX170: 15 | GY170: 2 | GZ170: 1 | HA170: 1 | HB170: 0 | HC170: 15 | HD170: 22 | HE170: 3 | HF170: 1 | HG170: 5 | HH170: 1 | HI170: 9 | HJ170: 23 | HK170: 0 | HL170: 2 | HM170: 1 | HN170: 0 | HO170: 86 | HP170: 11 | HQ170: 42 | HR170: 0 | HS170: 41 | HT170: 0 | HU170: 42 | HV170: 1 | HW170: 15 | HX170: 9 | HY170: 10 | HZ170: 5 | IA170: 124 | IB170: 43 | IC170: 86 | ID170: 45 | IE170: 20 | IF170: 20 | IG170: 3 | IH170: 2 | II170: 5 | IJ170: 11 | IK170: 4 | IL170: 4 | IM170: 0 | IN170: 29 | IO170: 19 | IP170: 14 | IQ170: 0 | IR170: 6
A173: Salud Mental 7
A174: Anio | B174: 2024
A175: UE | B175: (Todas)
A176: Red | B176: LA CONVENCION
A177: MicroRed | B177: (Todas)
A178: EESS | B178: (Todas)
A179: Provincia | B179: (Todas)
A180: Distrito | B180: (Todas)
A182: Etiquetas de fila | B182: Induccion_Docente_R1 | C182: Induccion_Docente_R2 | D182: Induccion_Docente_R3 | E182: Induccion_Docente_R4 | F182: Monitoreo_Docente_R1 | G182: Monitoreo_Docente_R2 | H182: Monitoreo_Docente_R3 | I182: Evaluacion_Docente_R1 | J182: Evaluacion_Docente_R2 | K182: IE_Reunion_coordina_R1 | L182: IE_Reunion_coordina_R2 | M182: IE_Reunion_coordina_R3 | N182: IE_Reunion_coordina_R4 | O182: Taller_LiderAdolesc_R1 | P182: Taller_LiderAdolesc_R2 | Q182: Induccion_Docente_P1 | R182: Induccion_Docente_P2 | S182: Induccion_Docente_P3 | T182: Induccion_Docente_P4 | U182: Monitoreo_Docente_P1 | V182: Monitoreo_Docente_P2 | W182: Monitoreo_Docente_P3 | X182: Evaluacion_Docente_P1 | Y182: Evaluacion_Docente_P2 | Z182: T_MujerOrgCom_R1 | AA182: T_MujerOrgCom_R2 | AB182: T_MujerOrgCom_R3 | AC182: T_MujerOrgCom_R4 | AD182: Monitoreo_Vigila_com_R1 | AE182: Monitoreo_Vigila_com_R2 | AF182: Monitoreo_Vigila_com_R3 | AG182: Indidencia_OrgCom_R1 | AH182: T_MujerOrgCom_P1 | AI182: T_MujerOrgCom_P2 | AJ182: T_MujerOrgCom_P3 | AK182: T_MujerOrgCom_P4 | AL182: Monitoreo_Vigila_com_P1 | AM182: Monitoreo_Vigila_com_P2 | AN182: Monitoreo_Vigila_com_P3 | AO182: ActCom_F_Coord_R1 | AP182: ActCom_F_Coord_R2 | AQ182: ActCom_F_Coord_R3 | AR182: ActCom_F_Coord_R4 | AS182: ActCom_F_Sensib_R1 | AT182: ActCom_F_Sensib_R2 | AU182: ActCom_F_Sensib_R3 | AV182: ActCom_F_Sensib_R4 | AW182: ActCom_F_Organ_R1 | AX182: ActCom_F_Organ_R2 | AY182: ActCom_F_Organ_R3 | AZ182: ActCom_F_Organ_R4 | BA182: ActCom_Dx_Plani_R1 | BB182: ActCom_Dx_Plani_R2 | BC182: ActCom_Dx_Plani_R3 | BD182: ActCom_Dx_Plani_R4 | BE182: ActCom_F_Ejec_R1 | BF182: ActCom_F_Ejec_R2 | BG182: ActCom_F_Ejec_R3 | BH182: ActCom_F_Ejec_R4 | BI182: ActCom_F_Eval_R1 | BJ182: ActCom_F_Eval_R2 | BK182: ActCom_F_Eval_R3 | BL182: ActCom_F_Eval_R4 | BM182: ActCom_RTC_R1 | BN182: ActCom_RTC_R2 | BO182: ActCom_RTC_R3 | BP182: ActCom_RTC_R4 | BQ182: AO_Reconce_ComSocial_UF_R1 | BR182: AO_Reconce_ComSocial_UF_R2 | BS182: AO_Reconce_ComSocial_UF_R3 | BT182: AO_Reconce_ComSocial_UF_R4 | BU182: AO_Reconce_ComSocial_UF_R5 | BV182: Encuent_Part_Com_R1 | BW182: Encuent_Part_Com_R2 | BX182: Encuent_Part_Com_R3 | BY182: Encuent_Part_Com_R4 | BZ182: Encuent_Part_Com_R5 | CA182: Encuent_Part_Com_P1 | CB182: Encuent_Part_Com_P2 | CC182: Encuent_Part_Com_P3 | CD182: Encuent_Part_Com_P4 | CE182: Encuent_Part_Com_P5 | CF182: Comite_Conformado | CG182: Derecho_Salud_R | CH182: Desentigmatizacion_R | CI182: Empoderamiento_R | CJ182: Asociacionismo_R | CK182: Liderazgo_R | CL182: Derecho_Salud_P | CM182: Desentigmatizacion_P | CN182: Empoderamiento_P | CO182: Asociacionismo_P | CP182: Liderazgo_P | CQ182: Promo_CrianzaS_R | CR182: Prim_Aux_Psicol_R | CS182: Prev_Cond_PSMentalF_R | CT182: Emp_Pers_Discapacidad_R | CU182: Promo_CrianzaS_P | CV182: Prim_Aux_Psicol_P | CW182: Prev_Cond_PSMentalF_P | CX182: Emp_Pers_Discapacidad_P | CY182: DispMed_ConsIndiv | CZ182: DispMed_ConsGrup_R | DA182: DispMed_ConsGrup_P | DB182: Mamis_AF_1_4F | DC182: Mamis_AF_1_4M | DD182: Mamis_AF_5_11F | DE182: Mamis_AF_5_11M | DF182: Mamis_AF_12_14F | DG182: Mamis_AF_12_14M | DH182: Mamis_AF_15_17F | DI182: Mamis_AF_15_17M | DJ182: Mamis_AF_TotalF | DK182: Mamis_AF_TotalM | DL182: Mamis_AF_TOTAL | DM182: Atc_Mamis_AF_TOTALF | DN182: Atc_Mamis_AF_TOTALM | DO182: Atc_Mamis_AF_TOTAL | DP182: Mamis_APS_1_4F | DQ182: Mamis_APS_1_4M | DR182: Mamis_APS_5_11F | DS182: Mamis_APS_5_11M | DT182: Mamis_APS_12_14F | DU182: Mamis_APS_12_14M | DV182: Mamis_APS_15_17F | DW182: Mamis_APS_15_17M | DX182: Mamis_APS_TotalF | DY182: Mamis_APS_TotalM | DZ182: Mamis_APS_TOTAL | EA182: Atc_Mamis_APS_TOTALF | EB182: Atc_Mamis_APS_TOTALM | EC182: Atc_Mamis_APS_TOTAL | ED182: Mamis_ASE_1_4F | EE182: Mamis_ASE_1_4M | EF182: Mamis_ASE_5_11F | EG182: Mamis_ASE_5_11M | EH182: Mamis_ASE_12_14F | EI182: Mamis_ASE_12_14M | EJ182: Mamis_ASE_15_17F | EK182: Mamis_ASE_15_17M | EL182: Mamis_ASE_TotalF | EM182: Mamis_ASE_TotalM | EN182: Mamis_ASE_TOTAL | EO182: Atc_Mamis_ASE_TOTALF | EP182: Atc_Mamis_ASE_TOTALM | EQ182: Atc_Mamis_ASE_TOTAL | ER182: Mamis_NEG_1_4F | ES182: Mamis_NEG_1_4M | ET182: Mamis_NEG_5_11F | EU182: Mamis_NEG_5_11M | EV182: Mamis_NEG_12_14F | EW182: Mamis_NEG_12_14M | EX182: Mamis_NEG_15_17F | EY182: Mamis_NEG_15_17M | EZ182: Mamis_NEG_TotalF | FA182: Mamis_NEG_TotalM | FB182: Mamis_NEG_TOTAL | FC182: Atc_Mamis_NEG_TOTALF | FD182: Atc_Mamis_NEG_TOTALM | FE182: Atc_Mamis_NEG_TOTAL | FF182: Mamis_OSM_1_4F | FG182: Mamis_OSM_1_4M | FH182: Mamis_OSM_5_11F | FI182: Mamis_OSM_5_11M | FJ182: Mamis_OSM_12_14F | FK182: Mamis_OSM_12_14M | FL182: Mamis_OSM_15_17F | FM182: Mamis_OSM_15_17M | FN182: Mamis_OSM_TotalF | FO182: Mamis_OSM_TotalM | FP182: Mamis_OSM_TOTAL | FQ182: Atc_Mamis_OSM_TOTALF | FR182: Atc_Mamis_OSM_TOTALM | FS182: Atc_Mamis_OSM_TOTAL | FT182: Indidencia_OrgCom_P1
A183: 1 | B183: 0 | C183: 0 | D183: 0 | E183: 0 | F183: 0 | G183: 0 | H183: 0 | I183: 0 | J183: 0 | K183: 0 | L183: 0 | M183: 0 | N183: 0 | O183: 0 | P183: 0 | Q183: 0 | R183: 0 | S183: 0 | T183: 0 | U183: 0 | V183: 0 | W183: 0 | X183: 0 | Y183: 0 | Z183: 1 | AA183: 0 | AB183: 0 | AC183: 0 | AD183: 0 | AE183: 0 | AF183: 0 | AG183: 2 | AH183: 10 | AI183: 0 | AJ183: 0 | AK183: 0 | AL183: 0 | AM183: 0 | AN183: 0 | AO183: 0 | AP183: 0 | AQ183: 0 | AR183: 0 | AS183: 0 | AT183: 0 | AU183: 0 | AV183: 0 | AW183: 0 | AX183: 0 | AY183: 0 | AZ183: 0 | BA183: 0 | BB183: 0 | BC183: 0 | BD183: 0 | BE183: 0 | BF183: 0 | BG183: 0 | BH183: 0 | BI183: 0 | BJ183: 0 | BK183: 0 | BL183: 0 | BM183: 0 | BN183: 0 | BO183: 0 | BP183: 0 | BQ183: 0 | BR183: 0 | BS183: 0 | BT183: 0 | BU183: 0 | BV183: 0 | BW183: 0 | BX183: 0 | BY183: 0 | BZ183: 0 | CA183: 0 | CB183: 0 | CC183: 0 | CD183: 0 | CE183: 0 | CF183: 0 | CG183: 0 | CH183: 0 | CI183: 0 | CJ183: 0 | CK183: 0 | CL183: 0 | CM183: 0 | CN183: 0 | CO183: 0 | CP183: 0 | CQ183: 0 | CR183: 0 | CS183: 0 | CT183: 0 | CU183: 0 | CV183: 0 | CW183: 0 | CX183: 0 | CY183: 143 | CZ183: 0 | DA183: 0 | DB183: 0 | DC183: 0 | DD183: 0 | DE183: 0 | DF183: 0 | DG183: 0 | DH183: 0 | DI183: 0 | DJ183: 0 | DK183: 0 | DL183: 0 | DM183: 0 | DN183: 0 | DO183: 0 | DP183: 0 | DQ183: 0 | DR183: 0 | DS183: 0 | DT183: 0 | DU183: 0 | DV183: 0 | DW183: 0 | DX183: 0 | DY183: 0 | DZ183: 0 | EA183: 0 | EB183: 0 | EC183: 0 | ED183: 0 | EE183: 0 | EF183: 0 | EG183: 0 | EH183: 0 | EI183: 0 | EJ183: 0 | EK183: 0 | EL183: 0 | EM183: 0 | EN183: 0 | EO183: 0 | EP183: 0 | EQ183: 0 | ER183: 0 | ES183: 0 | ET183: 0 | EU183: 0 | EV183: 0 | EW183: 0 | EX183: 0 | EY183: 0 | EZ183: 0 | FA183: 0 | FB183: 0 | FC183: 0 | FD183: 0 | FE183: 0 | FF183: 0 | FG183: 0 | FH183: 0 | FI183: 0 | FJ183: 0 | FK183: 0 | FL183: 0 | FM183: 0 | FN183: 0 | FO183: 0 | FP183: 0 | FQ183: 0 | FR183: 0 | FS183: 0 | FT183: 7
A184: 2 | B184: 0 | C184: 0 | D184: 0 | E184: 0 | F184: 0 | G184: 0 | H184: 0 | I184: 0 | J184: 0 | K184: 0 | L184: 0 | M184: 0 | N184: 0 | O184: 0 | P184: 0 | Q184: 0 | R184: 0 | S184: 0 | T184: 0 | U184: 0 | V184: 0 | W184: 0 | X184: 0 | Y184: 0 | Z184: 0 | AA184: 0 | AB184: 0 | AC184: 0 | AD184: 0 | AE184: 0 | AF184: 0 | AG184: 2 | AH184: 0 | AI184: 0 | AJ184: 0 | AK184: 0 | AL184: 0 | AM184: 0 | AN184: 0 | AO184: 0 | AP184: 0 | AQ184: 0 | AR184: 0 | AS184: 0 | AT184: 0 | AU184: 0 | AV184: 0 | AW184: 0 | AX184: 0 | AY184: 0 | AZ184: 0 | BA184: 0 | BB184: 0 | BC184: 0 | BD184: 0 | BE184: 0 | BF184: 0 | BG184: 0 | BH184: 0 | BI184: 0 | BJ184: 0 | BK184: 0 | BL184: 0 | BM184: 0 | BN184: 0 | BO184: 0 | BP184: 0 | BQ184: 0 | BR184: 0 | BS184: 0 | BT184: 0 | BU184: 0 | BV184: 0 | BW184: 0 | BX184: 0 | BY184: 0 | BZ184: 0 | CA184: 0 | CB184: 0 | CC184: 0 | CD184: 0 | CE184: 0 | CF184: 0 | CG184: 0 | CH184: 0 | CI184: 0 | CJ184: 0 | CK184: 0 | CL184: 0 | CM184: 0 | CN184: 0 | CO184: 0 | CP184: 0 | CQ184: 1 | CR184: 0 | CS184: 0 | CT184: 0 | CU184: 24 | CV184: 0 | CW184: 0 | CX184: 0 | CY184: 126 | CZ184: 0 | DA184: 0 | DB184: 0 | DC184: 0 | DD184: 0 | DE184: 0 | DF184: 0 | DG184: 0 | DH184: 0 | DI184: 0 | DJ184: 0 | DK184: 0 | DL184: 0 | DM184: 0 | DN184: 0 | DO184: 0 | DP184: 0 | DQ184: 0 | DR184: 0 | DS184: 0 | DT184: 0 | DU184: 0 | DV184: 0 | DW184: 0 | DX184: 0 | DY184: 0 | DZ184: 0 | EA184: 0 | EB184: 0 | EC184: 0 | ED184: 0 | EE184: 0 | EF184: 0 | EG184: 0 | EH184: 0 | EI184: 0 | EJ184: 0 | EK184: 0 | EL184: 0 | EM184: 0 | EN184: 0 | EO184: 0 | EP184: 0 | EQ184: 0 | ER184: 0 | ES184: 0 | ET184: 0 | EU184: 0 | EV184: 0 | EW184: 0 | EX184: 0 | EY184: 0 | EZ184: 0 | FA184: 0 | FB184: 0 | FC184: 0 | FD184: 0 | FE184: 0 | FF184: 0 | FG184: 0 | FH184: 0 | FI184: 0 | FJ184: 0 | FK184: 0 | FL184: 0 | FM184: 0 | FN184: 0 | FO184: 0 | FP184: 0 | FQ184: 0 | FR184: 0 | FS184: 0 | FT184: 2
A185: 3 | B185: 0 | C185: 0 | D185: 0 | E185: 0 | F185: 0 | G185: 0 | H185: 0 | I185: 0 | J185: 0 | K185: 5 | L185: 0 | M185: 0 | N185: 0 | O185: 0 | P185: 0 | Q185: 0 | R185: 0 | S185: 0 | T185: 0 | U185: 0 | V185: 0 | W185: 0 | X185: 0 | Y185: 0 | Z185: 0 | AA185: 0 | AB185: 0 | AC185: 0 | AD185: 0 | AE185: 0 | AF185: 0 | AG185: 4 | AH185: 0 | AI185: 0 | AJ185: 0 | AK185: 0 | AL185: 0 | AM185: 0 | AN185: 0 | AO185: 0 | AP185: 0 | AQ185: 0 | AR185: 0 | AS185: 0 | AT185: 0 | AU185: 0 | AV185: 0 | AW185: 0 | AX185: 0 | AY185: 0 | AZ185: 0 | BA185: 0 | BB185: 0 | BC185: 0 | BD185: 0 | BE185: 0 | BF185: 0 | BG185: 0 | BH185: 0 | BI185: 0 | BJ185: 0 | BK185: 0 | BL185: 0 | BM185: 0 | BN185: 0 | BO185: 0 | BP185: 0 | BQ185: 0 | BR185: 0 | BS185: 0 | BT185: 0 | BU185: 0 | BV185: 0 | BW185: 0 | BX185: 0 | BY185: 0 | BZ185: 0 | CA185: 0 | CB185: 0 | CC185: 0 | CD185: 0 | CE185: 0 | CF185: 0 | CG185: 0 | CH185: 0 | CI185: 0 | CJ185: 0 | CK185: 0 | CL185: 0 | CM185: 0 | CN185: 0 | CO185: 0 | CP185: 0 | CQ185: 2 | CR185: 0 | CS185: 0 | CT185: 0 | CU185: 37 | CV185: 0 | CW185: 0 | CX185: 0 | CY185: 136 | CZ185: 0 | DA185: 0 | DB185: 0 | DC185: 0 | DD185: 0 | DE185: 0 | DF185: 0 | DG185: 0 | DH185: 0 | DI185: 0 | DJ185: 0 | DK185: 0 | DL185: 0 | DM185: 0 | DN185: 0 | DO185: 0 | DP185: 0 | DQ185: 0 | DR185: 0 | DS185: 0 | DT185: 0 | DU185: 0 | DV185: 0 | DW185: 0 | DX185: 0 | DY185: 0 | DZ185: 0 | EA185: 0 | EB185: 0 | EC185: 0 | ED185: 0 | EE185: 0 | EF185: 0 | EG185: 0 | EH185: 0 | EI185: 0 | EJ185: 0 | EK185: 0 | EL185: 0 | EM185: 0 | EN185: 0 | EO185: 0 | EP185: 0 | EQ185: 0 | ER185: 0 | ES185: 0 | ET185: 0 | EU185: 0 | EV185: 0 | EW185: 0 | EX185: 0 | EY185: 0 | EZ185: 0 | FA185: 0 | FB185: 0 | FC185: 0 | FD185: 0 | FE185: 0 | FF185: 0 | FG185: 0 | FH185: 0 | FI185: 0 | FJ185: 0 | FK185: 0 | FL185: 0 | FM185: 0 | FN185: 0 | FO185: 0 | FP185: 0 | FQ185: 0 | FR185: 0 | FS185: 0 | FT185: 23
A186: 4 | B186: 1 | C186: 0 | D186: 0 | E186: 1 | F186: 0 | G186: 0 | H186: 0 | I186: 1 | J186: 0 | K186: 8 | L186: 1 | M186: 0 | N186: 0 | O186: 0 | P186: 0 | Q186: 0 | R186: 0 | S186: 0 | T186: 1 | U186: 0 | V186: 0 | W186: 0 | X186: 11 | Y186: 0 | Z186: 0 | AA186: 0 | AB186: 0 | AC186: 0 | AD186: 0 | AE186: 0 | AF186: 0 | AG186: 2 | AH186: 0 | AI186: 0 | AJ186: 0 | AK186: 0 | AL186: 0 | AM186: 0 | AN186: 0 | AO186: 0 | AP186: 0 | AQ186: 0 | AR186: 0 | AS186: 0 | AT186: 0 | AU186: 0 | AV186: 0 | AW186: 0 | AX186: 0 | AY186: 0 | AZ186: 0 | BA186: 0 | BB186: 0 | BC186: 0 | BD186: 0 | BE186: 0 | BF186: 0 | BG186: 0 | BH186: 0 | BI186: 0 | BJ186: 0 | BK186: 0 | BL186: 0 | BM186: 1 | BN186: 1 | BO186: 1 | BP186: 0 | BQ186: 0 | BR186: 0 | BS186: 0 | BT186: 0 | BU186: 0 | BV186: 0 | BW186: 0 | BX186: 0 | BY186: 0 | BZ186: 0 | CA186: 0 | CB186: 0 | CC186: 0 | CD186: 0 | CE186: 0 | CF186: 0 | CG186: 0 | CH186: 0 | CI186: 0 | CJ186: 0 | CK186: 0 | CL186: 0 | CM186: 0 | CN186: 0 | CO186: 0 | CP186: 0 | CQ186: 0 | CR186: 0 | CS186: 0 | CT186: 0 | CU186: 0 | CV186: 0 | CW186: 0 | CX186: 0 | CY186: 150 | CZ186: 0 | DA186: 0 | DB186: 0 | DC186: 0 | DD186: 0 | DE186: 0 | DF186: 0 | DG186: 0 | DH186: 0 | DI186: 0 | DJ186: 0 | DK186: 0 | DL186: 0 | DM186: 0 | DN186: 0 | DO186: 0 | DP186: 0 | DQ186: 0 | DR186: 0 | DS186: 0 | DT186: 0 | DU186: 0 | DV186: 0 | DW186: 0 | DX186: 0 | DY186: 0 | DZ186: 0 | EA186: 0 | EB186: 0 | EC186: 0 | ED186: 0 | EE186: 0 | EF186: 0 | EG186: 0 | EH186: 0 | EI186: 0 | EJ186: 0 | EK186: 0 | EL186: 0 | EM186: 0 | EN186: 0 | EO186: 0 | EP186: 0 | EQ186: 0 | ER186: 0 | ES186: 0 | ET186: 0 | EU186: 0 | EV186: 0 | EW186: 0 | EX186: 0 | EY186: 0 | EZ186: 0 | FA186: 0 | FB186: 0 | FC186: 0 | FD186: 0 | FE186: 0 | FF186: 0 | FG186: 0 | FH186: 0 | FI186: 0 | FJ186: 0 | FK186: 0 | FL186: 0 | FM186: 0 | FN186: 0 | FO186: 0 | FP186: 0 | FQ186: 0 | FR186: 0 | FS186: 0 | FT186: 34
A187: 5 | B187: 0 | C187: 0 | D187: 0 | E187: 0 | F187: 0 | G187: 0 | H187: 0 | I187: 0 | J187: 0 | K187: 7 | L187: 0 | M187: 0 | N187: 0 | O187: 0 | P187: 0 | Q187: 0 | R187: 0 | S187: 0 | T187: 0 | U187: 0 | V187: 0 | W187: 0 | X187: 0 | Y187: 0 | Z187: 0 | AA187: 0 | AB187: 0 | AC187: 0 | AD187: 0 | AE187: 1 | AF187: 0 | AG187: 1 | AH187: 0 | AI187: 0 | AJ187: 0 | AK187: 0 | AL187: 0 | AM187: 30 | AN187: 0 | AO187: 0 | AP187: 0 | AQ187: 0 | AR187: 0 | AS187: 0 | AT187: 0 | AU187: 0 | AV187: 0 | AW187: 0 | AX187: 0 | AY187: 0 | AZ187: 0 | BA187: 0 | BB187: 0 | BC187: 0 | BD187: 0 | BE187: 0 | BF187: 0 | BG187: 0 | BH187: 0 | BI187: 0 | BJ187: 0 | BK187: 0 | BL187: 0 | BM187: 0 | BN187: 0 | BO187: 0 | BP187: 0 | BQ187: 0 | BR187: 0 | BS187: 0 | BT187: 0 | BU187: 0 | BV187: 0 | BW187: 0 | BX187: 0 | BY187: 0 | BZ187: 0 | CA187: 0 | CB187: 0 | CC187: 0 | CD187: 0 | CE187: 0 | CF187: 0 | CG187: 0 | CH187: 0 | CI187: 0 | CJ187: 0 | CK187: 0 | CL187: 0 | CM187: 0 | CN187: 0 | CO187: 0 | CP187: 0 | CQ187: 0 | CR187: 0 | CS187: 0 | CT187: 0 | CU187: 0 | CV187: 0 | CW187: 0 | CX187: 0 | CY187: 169 | CZ187: 0 | DA187: 0 | DB187: 0 | DC187: 0 | DD187: 0 | DE187: 0 | DF187: 0 | DG187: 0 | DH187: 0 | DI187: 0 | DJ187: 0 | DK187: 0 | DL187: 0 | DM187: 0 | DN187: 0 | DO187: 0 | DP187: 0 | DQ187: 0 | DR187: 0 | DS187: 0 | DT187: 0 | DU187: 0 | DV187: 0 | DW187: 0 | DX187: 0 | DY187: 0 | DZ187: 0 | EA187: 0 | EB187: 0 | EC187: 0 | ED187: 0 | EE187: 0 | EF187: 0 | EG187: 0 | EH187: 0 | EI187: 0 | EJ187: 0 | EK187: 0 | EL187: 0 | EM187: 0 | EN187: 0 | EO187: 0 | EP187: 0 | EQ187: 0 | ER187: 0 | ES187: 0 | ET187: 0 | EU187: 0 | EV187: 0 | EW187: 0 | EX187: 0 | EY187: 0 | EZ187: 0 | FA187: 0 | FB187: 0 | FC187: 0 | FD187: 0 | FE187: 0 | FF187: 0 | FG187: 0 | FH187: 0 | FI187: 0 | FJ187: 0 | FK187: 0 | FL187: 0 | FM187: 0 | FN187: 0 | FO187: 0 | FP187: 0 | FQ187: 0 | FR187: 0 | FS187: 0 | FT187: 1
A188: 6 | B188: 1 | C188: 3 | D188: 0 | E188: 1 | F188: 0 | G188: 0 | H188: 0 | I188: 0 | J188: 0 | K188: 11 | L188: 0 | M188: 0 | N188: 0 | O188: 39 | P188: 0 | Q188: 5 | R188: 2 | S188: 0 | T188: 2 | U188: 0 | V188: 0 | W188: 0 | X188: 0 | Y188: 0 | Z188: 0 | AA188: 0 | AB188: 0 | AC188: 0 | AD188: 0 | AE188: 0 | AF188: 0 | AG188: 3 | AH188: 0 | AI188: 0 | AJ188: 0 | AK188: 0 | AL188: 0 | AM188: 0 | AN188: 0 | AO188: 0 | AP188: 0 | AQ188: 0 | AR188: 0 | AS188: 0 | AT188: 0 | AU188: 0 | AV188: 0 | AW188: 0 | AX188: 0 | AY188: 0 | AZ188: 0 | BA188: 0 | BB188: 0 | BC188: 0 | BD188: 0 | BE188: 0 | BF188: 0 | BG188: 0 | BH188: 0 | BI188: 0 | BJ188: 0 | BK188: 0 | BL188: 0 | BM188: 1 | BN188: 1 | BO188: 0 | BP188: 0 | BQ188: 0 | BR188: 0 | BS188: 0 | BT188: 0 | BU188: 0 | BV188: 0 | BW188: 0 | BX188: 0 | BY188: 0 | BZ188: 0 | CA188: 0 | CB188: 0 | CC188: 0 | CD188: 0 | CE188: 0 | CF188: 0 | CG188: 0 | CH188: 0 | CI188: 0 | CJ188: 0 | CK188: 0 | CL188: 0 | CM188: 0 | CN188: 0 | CO188: 0 | CP188: 0 | CQ188: 0 | CR188: 0 | CS188: 0 | CT188: 0 | CU188: 0 | CV188: 0 | CW188: 0 | CX188: 0 | CY188: 152 | CZ188: 0 | DA188: 0 | DB188: 0 | DC188: 0 | DD188: 0 | DE188: 0 | DF188: 0 | DG188: 0 | DH188: 0 | DI188: 0 | DJ188: 0 | DK188: 0 | DL188: 0 | DM188: 0 | DN188: 0 | DO188: 0 | DP188: 0 | DQ188: 0 | DR188: 0 | DS188: 0 | DT188: 0 | DU188: 0 | DV188: 0 | DW188: 0 | DX188: 0 | DY188: 0 | DZ188: 0 | EA188: 0 | EB188: 0 | EC188: 0 | ED188: 0 | EE188: 0 | EF188: 0 | EG188: 0 | EH188: 0 | EI188: 0 | EJ188: 0 | EK188: 0 | EL188: 0 | EM188: 0 | EN188: 0 | EO188: 0 | EP188: 0 | EQ188: 0 | ER188: 0 | ES188: 0 | ET188: 0 | EU188: 0 | EV188: 0 | EW188: 0 | EX188: 0 | EY188: 0 | EZ188: 0 | FA188: 0 | FB188: 0 | FC188: 0 | FD188: 0 | FE188: 0 | FF188: 0 | FG188: 0 | FH188: 0 | FI188: 0 | FJ188: 0 | FK188: 0 | FL188: 0 | FM188: 0 | FN188: 0 | FO188: 0 | FP188: 0 | FQ188: 0 | FR188: 0 | FS188: 0 | FT188: 5
A189: 7 | B189: 2 | C189: 3 | D189: 0 | E189: 0 | F189: 0 | G189: 1 | H189: 0 | I189: 0 | J189: 0 | K189: 2 | L189: 2 | M189: 0 | N189: 0 | O189: 41 | P189: 0 | Q189: 0 | R189: 0 | S189: 0 | T189: 0 | U189: 0 | V189: 0 | W189: 0 | X189: 0 | Y189: 0 | Z189: 0 | AA189: 0 | AB189: 0 | AC189: 0 | AD189: 0 | AE189: 0 | AF189: 0 | AG189: 0 | AH189: 0 | AI189: 0 | AJ189: 0 | AK189: 0 | AL189: 0 | AM189: 0 | AN189: 0 | AO189: 0 | AP189: 0 | AQ189: 0 | AR189: 0 | AS189: 0 | AT189: 0 | AU189: 0 | AV189: 0 | AW189: 0 | AX189: 0 | AY189: 0 | AZ189: 0 | BA189: 0 | BB189: 0 | BC189: 0 | BD189: 0 | BE189: 0 | BF189: 0 | BG189: 0 | BH189: 0 | BI189: 0 | BJ189: 0 | BK189: 0 | BL189: 0 | BM189: 0 | BN189: 0 | BO189: 1 | BP189: 1 | BQ189: 0 | BR189: 0 | BS189: 0 | BT189: 0 | BU189: 0 | BV189: 0 | BW189: 0 | BX189: 0 | BY189: 0 | BZ189: 0 | CA189: 0 | CB189: 0 | CC189: 0 | CD189: 0 | CE189: 0 | CF189: 0 | CG189: 0 | CH189: 0 | CI189: 0 | CJ189: 0 | CK189: 0 | CL189: 0 | CM189: 0 | CN189: 0 | CO189: 0 | CP189: 0 | CQ189: 0 | CR189: 0 | CS189: 0 | CT189: 0 | CU189: 0 | CV189: 0 | CW189: 0 | CX189: 0 | CY189: 146 | CZ189: 0 | DA189: 0 | DB189: 0 | DC189: 0 | DD189: 0 | DE189: 0 | DF189: 0 | DG189: 0 | DH189: 0 | DI189: 0 | DJ189: 0 | DK189: 0 | DL189: 0 | DM189: 0 | DN189: 0 | DO189: 0 | DP189: 0 | DQ189: 0 | DR189: 0 | DS189: 0 | DT189: 0 | DU189: 0 | DV189: 0 | DW189: 0 | DX189: 0 | DY189: 0 | DZ189: 0 | EA189: 0 | EB189: 0 | EC189: 0 | ED189: 0 | EE189: 0 | EF189: 0 | EG189: 0 | EH189: 0 | EI189: 0 | EJ189: 0 | EK189: 0 | EL189: 0 | EM189: 0 | EN189: 0 | EO189: 0 | EP189: 0 | EQ189: 0 | ER189: 0 | ES189: 0 | ET189: 0 | EU189: 0 | EV189: 0 | EW189: 0 | EX189: 0 | EY189: 0 | EZ189: 0 | FA189: 0 | FB189: 0 | FC189: 0 | FD189: 0 | FE189: 0 | FF189: 0 | FG189: 0 | FH189: 0 | FI189: 0 | FJ189: 0 | FK189: 0 | FL189: 0 | FM189: 0 | FN189: 0 | FO189: 0 | FP189: 0 | FQ189: 0 | FR189: 0 | FS189: 0 | FT189: 0
A190: 8 | B190: 1 | C190: 0 | D190: 0 | E190: 0 | F190: 0 | G190: 0 | H190: 0 | I190: 0 | J190: 0 | K190: 0 | L190: 1 | M190: 0 | N190: 0 | O190: 0 | P190: 0 | Q190: 1 | R190: 0 | S190: 0 | T190: 0 | U190: 0 | V190: 0 | W190: 0 | X190: 0 | Y190: 0 | Z190: 0 | AA190: 0 | AB190: 0 | AC190: 0 | AD190: 0 | AE190: 0 | AF190: 0 | AG190: 0 | AH190: 0 | AI190: 0 | AJ190: 0 | AK190: 0 | AL190: 0 | AM190: 0 | AN190: 0 | AO190: 0 | AP190: 0 | AQ190: 0 | AR190: 0 | AS190: 0 | AT190: 0 | AU190: 0 | AV190: 0 | AW190: 0 | AX190: 0 | AY190: 0 | AZ190: 0 | BA190: 0 | BB190: 0 | BC190: 0 | BD190: 0 | BE190: 0 | BF190: 0 | BG190: 0 | BH190: 0 | BI190: 0 | BJ190: 0 | BK190: 0 | BL190: 0 | BM190: 0 | BN190: 0 | BO190: 0 | BP190: 0 | BQ190: 0 | BR190: 0 | BS190: 0 | BT190: 0 | BU190: 0 | BV190: 0 | BW190: 0 | BX190: 0 | BY190: 0 | BZ190: 0 | CA190: 0 | CB190: 0 | CC190: 0 | CD190: 0 | CE190: 0 | CF190: 0 | CG190: 0 | CH190: 0 | CI190: 0 | CJ190: 0 | CK190: 0 | CL190: 0 | CM190: 0 | CN190: 0 | CO190: 0 | CP190: 0 | CQ190: 0 | CR190: 0 | CS190: 0 | CT190: 0 | CU190: 0 | CV190: 0 | CW190: 0 | CX190: 0 | CY190: 97 | CZ190: 0 | DA190: 0 | DB190: 0 | DC190: 0 | DD190: 0 | DE190: 0 | DF190: 0 | DG190: 0 | DH190: 0 | DI190: 0 | DJ190: 0 | DK190: 0 | DL190: 0 | DM190: 0 | DN190: 0 | DO190: 0 | DP190: 0 | DQ190: 0 | DR190: 0 | DS190: 0 | DT190: 0 | DU190: 0 | DV190: 0 | DW190: 0 | DX190: 0 | DY190: 0 | DZ190: 0 | EA190: 0 | EB190: 0 | EC190: 0 | ED190: 0 | EE190: 0 | EF190: 0 | EG190: 0 | EH190: 0 | EI190: 0 | EJ190: 0 | EK190: 0 | EL190: 0 | EM190: 0 | EN190: 0 | EO190: 0 | EP190: 0 | EQ190: 0 | ER190: 0 | ES190: 0 | ET190: 0 | EU190: 0 | EV190: 0 | EW190: 0 | EX190: 0 | EY190: 0 | EZ190: 0 | FA190: 0 | FB190: 0 | FC190: 0 | FD190: 0 | FE190: 0 | FF190: 0 | FG190: 0 | FH190: 0 | FI190: 0 | FJ190: 0 | FK190: 0 | FL190: 0 | FM190: 0 | FN190: 0 | FO190: 0 | FP190: 0 | FQ190: 0 | FR190: 0 | FS190: 0 | FT190: 0
A191: 9 | B191: 12 | C191: 4 | D191: 3 | E191: 0 | F191: 0 | G191: 0 | H191: 0 | I191: 0 | J191: 0 | K191: 2 | L191: 12 | M191: 0 | N191: 0 | O191: 18 | P191: 39 | Q191: 2 | R191: 3 | S191: 4 | T191: 0 | U191: 0 | V191: 0 | W191: 0 | X191: 0 | Y191: 0 | Z191: 0 | AA191: 0 | AB191: 0 | AC191: 0 | AD191: 0 | AE191: 0 | AF191: 0 | AG191: 1 | AH191: 0 | AI191: 0 | AJ191: 0 | AK191: 0 | AL191: 0 | AM191: 0 | AN191: 0 | AO191: 0 | AP191: 0 | AQ191: 0 | AR191: 0 | AS191: 0 | AT191: 0 | AU191: 0 | AV191: 0 | AW191: 0 | AX191: 0 | AY191: 0 | AZ191: 0 | BA191: 0 | BB191: 0 | BC191: 0 | BD191: 0 | BE191: 0 | BF191: 0 | BG191: 0 | BH191: 0 | BI191: 0 | BJ191: 0 | BK191: 0 | BL191: 0 | BM191: 0 | BN191: 0 | BO191: 0 | BP191: 0 | BQ191: 0 | BR191: 0 | BS191: 0 | BT191: 0 | BU191: 0 | BV191: 0 | BW191: 0 | BX191: 0 | BY191: 0 | BZ191: 0 | CA191: 0 | CB191: 0 | CC191: 0 | CD191: 0 | CE191: 0 | CF191: 0 | CG191: 0 | CH191: 0 | CI191: 0 | CJ191: 0 | CK191: 0 | CL191: 0 | CM191: 0 | CN191: 0 | CO191: 0 | CP191: 0 | CQ191: 0 | CR191: 0 | CS191: 0 | CT191: 0 | CU191: 0 | CV191: 0 | CW191: 0 | CX191: 0 | CY191: 153 | CZ191: 0 | DA191: 0 | DB191: 0 | DC191: 0 | DD191: 0 | DE191: 0 | DF191: 0 | DG191: 0 | DH191: 0 | DI191: 0 | DJ191: 0 | DK191: 0 | DL191: 0 | DM191: 0 | DN191: 0 | DO191: 0 | DP191: 0 | DQ191: 0 | DR191: 0 | DS191: 0 | DT191: 0 | DU191: 0 | DV191: 0 | DW191: 0 | DX191: 0 | DY191: 0 | DZ191: 0 | EA191: 0 | EB191: 0 | EC191: 0 | ED191: 0 | EE191: 0 | EF191: 0 | EG191: 0 | EH191: 0 | EI191: 0 | EJ191: 0 | EK191: 0 | EL191: 0 | EM191: 0 | EN191: 0 | EO191: 0 | EP191: 0 | EQ191: 0 | ER191: 0 | ES191: 0 | ET191: 0 | EU191: 0 | EV191: 0 | EW191: 0 | EX191: 0 | EY191: 0 | EZ191: 0 | FA191: 0 | FB191: 0 | FC191: 0 | FD191: 0 | FE191: 0 | FF191: 0 | FG191: 0 | FH191: 0 | FI191: 0 | FJ191: 0 | FK191: 0 | FL191: 0 | FM191: 0 | FN191: 0 | FO191: 0 | FP191: 0 | FQ191: 0 | FR191: 0 | FS191: 0 | FT191: 6
A192: 10 | B192: 5 | C192: 14 | D192: 1 | E192: 1 | F192: 1 | G192: 1 | H192: 0 | I192: 0 | J192: 0 | K192: 0 | L192: 0 | M192: 0 | N192: 0 | O192: 0 | P192: 0 | Q192: 8 | R192: 8 | S192: 2 | T192: 2 | U192: 24 | V192: 24 | W192: 0 | X192: 0 | Y192: 0 | Z192: 0 | AA192: 0 | AB192: 0 | AC192: 0 | AD192: 0 | AE192: 0 | AF192: 0 | AG192: 0 | AH192: 0 | AI192: 0 | AJ192: 0 | AK192: 0 | AL192: 0 | AM192: 0 | AN192: 0 | AO192: 0 | AP192: 0 | AQ192: 0 | AR192: 0 | AS192: 0 | AT192: 0 | AU192: 0 | AV192: 0 | AW192: 0 | AX192: 0 | AY192: 0 | AZ192: 0 | BA192: 0 | BB192: 0 | BC192: 0 | BD192: 0 | BE192: 0 | BF192: 0 | BG192: 0 | BH192: 0 | BI192: 0 | BJ192: 0 | BK192: 0 | BL192: 0 | BM192: 0 | BN192: 1 | BO192: 0 | BP192: 0 | BQ192: 0 | BR192: 1 | BS192: 0 | BT192: 0 | BU192: 0 | BV192: 0 | BW192: 0 | BX192: 0 | BY192: 0 | BZ192: 0 | CA192: 0 | CB192: 0 | CC192: 0 | CD192: 0 | CE192: 0 | CF192: 0 | CG192: 0 | CH192: 1 | CI192: 0 | CJ192: 0 | CK192: 0 | CL192: 0 | CM192: 8 | CN192: 0 | CO192: 0 | CP192: 0 | CQ192: 0 | CR192: 0 | CS192: 0 | CT192: 0 | CU192: 0 | CV192: 0 | CW192: 0 | CX192: 0 | CY192: 63 | CZ192: 0 | DA192: 0 | DB192: 0 | DC192: 0 | DD192: 0 | DE192: 0 | DF192: 0 | DG192: 0 | DH192: 0 | DI192: 0 | DJ192: 0 | DK192: 0 | DL192: 0 | DM192: 0 | DN192: 0 | DO192: 0 | DP192: 0 | DQ192: 0 | DR192: 0 | DS192: 0 | DT192: 0 | DU192: 0 | DV192: 0 | DW192: 0 | DX192: 0 | DY192: 0 | DZ192: 0 | EA192: 0 | EB192: 0 | EC192: 0 | ED192: 0 | EE192: 0 | EF192: 0 | EG192: 0 | EH192: 0 | EI192: 0 | EJ192: 0 | EK192: 0 | EL192: 0 | EM192: 0 | EN192: 0 | EO192: 0 | EP192: 0 | EQ192: 0 | ER192: 0 | ES192: 0 | ET192: 0 | EU192: 0 | EV192: 0 | EW192: 0 | EX192: 0 | EY192: 0 | EZ192: 0 | FA192: 0 | FB192: 0 | FC192: 0 | FD192: 0 | FE192: 0 | FF192: 0 | FG192: 0 | FH192: 0 | FI192: 0 | FJ192: 0 | FK192: 0 | FL192: 0 | FM192: 0 | FN192: 0 | FO192: 0 | FP192: 0 | FQ192: 0 | FR192: 0 | FS192: 0 | FT192: 0
